Workbook

Sheet 災害廃棄物事業経費（市町村）
A1: 【災害】廃棄物処理事業経費（市区町村の合計）（令和4年度実績）
A2: 都道府県名 | B2: 地方公共団体コード | C2: 市区町村名 | D2: ごみ | M2: し尿 | V2: 合計 | AE2: ごみ（建設改良費＋処理維持管理費＋その他）（組合分担金を除く） | BG2: し尿（建設改良費＋処理維持管理費＋その他）（組合分担金を除く） | CI2: 合計（建設改良費＋処理維持管理費＋その他）（組合分担金を除く）
D3: 合計 (特定財源(市区町村分担金を除く)+一般財源) | M3: 合計 (特定財源(市区町村分担金を除く)+一般財源) | V3: 合計 (特定財源(市区町村分担金を除く)+一般財源) | AE3: 建設改良費 (工事費+調査費)(組合分担金を除く) | AM3: 処理及び維持管理費 (人件費+処理費+車両購入費+委託費+調査研究費)(組合分担金を除く) | BE3: その他 | BF3: 合計 | BG3: 建設改良費 (工事費+調査費)(組合分担金を除く) | BO3: 処理及び維持管理費 (人件費+処理費+車両購入費+委託費+調査研究費)(組合分担金を除く) | CG3: その他 | CH3: 合計 | CI3: 建設改良費 (工事費+調査費)(組合分担金を除く) | CQ3: 処理及び維持管理費 (人件費+処理費+車両購入費+委託費+調査研究費)(組合分担金を除く) | DI3: その他 | DJ3: 合計
E4: 特定財源 (市区町村分担金を除く) | L4: 一般財源 | N4: 特定財源 (市区町村分担金を除く) | U4: 一般財源 | W4: 特定財源 (市区町村分担金を除く) | AD4: 一般財源 | AE4: 合計 | AF4: 工事費 (収集運搬施設+中間処理施設+最終処分場+その他) | AK4: 調査費 | AL4: （建設改良費組合分担金） | AM4: 合計 | AN4: 人件費（一般職＋収集運搬＋中間処理＋最終処分） | AS4: 処理費 (収集運搬費+中間処理費+最終処分費) | AW4: 車両等購入費 | AX4: 委託費 (収集運搬費+中間処理費+最終処分費+その他) | BC4: (組合分担金) | BD4: 調査研究費 | BG4: 合計 | BH4: 工事費 (収集運搬施設+中間処理施設+最終処分場+その他) | BM4: 調査費 | BN4: （建設改良費組合分担金） | BO4: 合計 | BP4: 人件費（一般職＋収集運搬＋中間処理＋最終処分） | BU4: 処理費 (収集運搬費+中間処理費+最終処分費) | BY4: 車両等購入費 | BZ4: 委託費 (収集運搬費+中間処理費+最終処分費+その他) | CE4: (組合分担金) | CF4: 調査研究費 | CI4: 合計 | CJ4: 工事費 (収集運搬施設+中間処理施設+最終処分場+その他) | CO4: 調査費 | CP4: （建設改良費組合分担金） | CQ4: 合計 | CR4: 人件費（一般職＋収集運搬＋中間処理＋最終処分） | CW4: 処理費 (収集運搬費+中間処理費+最終処分費) | DA4: 車両等購入費 | DB4: 委託費 (収集運搬費+中間処理費+最終処分費+その他) | DG4: (組合分担金) | DH4: 調査研究費
F5: 国庫支出金 | G5: 都道府県 支出金 | H5: 地方債 | I5: 使用料及び 手数料 | J5: （市区町村 分担金） | K5: その他 | O5: 国庫支出金 | P5: 都道府県 支出金 | Q5: 地方債 | R5: 使用料及び 手数料 | S5: （市区町村 分担金） | T5: その他 | X5: 国庫支出金 | Y5: 都道府県 支出金 | Z5: 地方債 | AA5: 使用料及び 手数料 | AB5: （市区町村 分担金） | AC5: その他 | AF5: 合計 | AG5: 収集運搬施設 | AH5: 中間処理施設 | AI5: 最終処分場 | AJ5: その他 | AO5: 一般職 | AP5: 収集運搬 | AQ5: 中間処理 | AR5: 最終処分 | AS5: 合計 | AT5: 収集運搬費 | AU5: 中間処理費 | AV5: 最終処分費 | AY5: 収集運搬費 | AZ5: 中間処理費 | BA5: 最終処分費 | BB5: その他 | BH5: 合計 | BI5: 収集運搬施設 | BJ5: 中間処理施設 | BK5: 最終処分場 | BL5: その他 | BQ5: 一般職 | BR5: 収集運搬 | BS5: 中間処理 | BT5: 最終処分 | BU5: 合計 | BV5: 収集運搬費 | BW5: 中間処理費 | BX5: 最終処分費 | CA5: 収集運搬費 | CB5: 中間処理費 | CC5: 最終処分費 | CD5: その他 | CJ5: 合計 | CK5: 収集運搬施設 | CL5: 中間処理施設 | CM5: 最終処分場 | CN5: その他 | CS5: 一般職 | CT5: 収集運搬 | CU5: 中間処理 | CV5: 最終処分 | CW5: 合計 | CX5: 収集運搬費 | CY5: 中間処理費 | CZ5: 最終処分費 | DC5: 収集運搬費 | DD5: 中間処理費 | DE5: 最終処分費 | DF5: その他
D6: （千円） | E6: （千円） | F6: （千円） | G6: （千円） | H6: （千円） | I6: （千円） | J6: （千円） | K6: （千円） | L6: （千円） | M6: （千円） | N6: （千円） | O6: （千円） | P6: （千円） | Q6: （千円） | R6: （千円） | S6: （千円） | T6: （千円） | U6: （千円） | V6: （千円） | W6: （千円） | X6: （千円） | Y6: （千円） | Z6: （千円） | AA6: （千円） | AB6: （千円） | AC6: （千円） | AD6: （千円） | AE6: （千円） | AF6: （千円） | AG6: （千円） | AH6: （千円） | AI6: （千円） | AJ6: （千円） | AK6: （千円） | AL6: （千円） | AM6: （千円） | AN6: （千円） | AO6: （千円） | AP6: （千円） | AQ6: （千円） | AR6: （千円） | AS6: （千円） | AT6: （千円） | AU6: （千円） | AV6: （千円） | AW6: （千円） | AX6: （千円） | AY6: （千円） | AZ6: （千円） | BA6: （千円） | BB6: （千円） | BC6: （千円） | BD6: （千円） | BE6: （千円） | BF6: （千円） | BG6: （千円） | BH6: （千円） | BI6: （千円） | BJ6: （千円） | BK6: （千円） | BL6: （千円） | BM6: （千円） | BN6: （千円） | BO6: （千円） | BP6: （千円） | BQ6: （千円） | BR6: （千円） | BS6: （千円） | BT6: （千円） | BU6: （千円） | BV6: （千円） | BW6: （千円） | BX6: （千円） | BY6: （千円） | BZ6: （千円） | CA6: （千円） | CB6: （千円） | CC6: （千円） | CD6: （千円） | CE6: （千円） | CF6: （千円） | CG6: （千円） | CH6: （千円） | CI6: （千円） | CJ6: （千円） | CK6: （千円） | CL6: （千円） | CM6: （千円） | CN6: （千円） | CO6: （千円） | CP6: （千円） | CQ6: （千円） | CR6: （千円） | CS6: （千円） | CT6: （千円） | CU6: （千円） | CV6: （千円） | CW6: （千円） | CX6: （千円） | CY6: （千円） | CZ6: （千円） | DA6: （千円） | DB6: （千円） | DC6: （千円） | DD6: （千円） | DE6: （千円） | DF6: （千円） | DG6: （千円） | DH6: （千円） | DI6: （千円） | DJ6: （千円）
A7: 熊本県 | B7: 43000 | C7: 合計 | D7: =SUM($D$8:$D$48) -> 148,897 | E7: =SUM($E$8:$E$48) -> 146,350 | F7: =SUM($F$8:$F$48) -> 65,350 | G7: =SUM($G$8:$G$48) -> 0 | H7: =SUM($H$8:$H$48) -> 81,000 | I7: =SUM($I$8:$I$48) -> 0 | J7: - | K7: =SUM($K$8:$K$48) -> 0 | L7: =SUM($L$8:$L$48) -> 2,547 | M7: =SUM($M$8:$M$48) -> 0 | N7: =SUM($N$8:$N$48) -> 0 | O7: =SUM($O$8:$O$48) -> 0 | P7: =SUM($P$8:$P$48) -> 0 | Q7: =SUM($Q$8:$Q$48) -> 0 | R7: =SUM($R$8:$R$48) -> 0 | S7: - | T7: =SUM($T$8:$T$48) -> 0 | U7: =SUM($U$8:$U$48) -> 0 | V7: =SUM($V$8:$V$48) -> 148,897 | W7: =SUM($W$8:$W$48) -> 146,350 | X7: =SUM($X$8:$X$48) -> 65,350 | Y7: =SUM($Y$8:$Y$48) -> 0 | Z7: =SUM($Z$8:$Z$48) -> 81,000 | AA7: =SUM($AA$8:$AA$48) -> 0 | AB7: - | AC7: =SUM($AC$8:$AC$48) -> 0 | AD7: =SUM($AD$8:$AD$48) -> 2,547 | AE7: =SUM($AE$8:$AE$48) -> 27,031 | AF7: =SUM($AF$8:$AF$48) -> 27,031 | AG7: =SUM($AG$8:$AG$48) -> 1,031 | AH7: =SUM($AH$8:$AH$48) -> 0 | AI7: =SUM($AI$8:$AI$48) -> 0 | AJ7: =SUM($AJ$8:$AJ$48) -> 26,000 | AK7: =SUM($AK$8:$AK$48) -> 0 | AL7: =SUM($AL$8:$AL$48) -> 0 | AM7: =SUM($AM$8:$AM$48) -> 121,866 | AN7: =SUM($AN$8:$AN$48) -> 0 | AO7: =SUM($AO$8:$AO$48) -> 0 | AP7: =SUM($AP$8:$AP$48) -> 0 | AQ7: =SUM($AQ$8:$AQ$48) -> 0 | AR7: =SUM($AR$8:$AR$48) -> 0 | AS7: =SUM($AS$8:$AS$48) -> 29 | AT7: =SUM($AT$8:$AT$48) -> 20 | AU7: =SUM($AU$8:$AU$48) -> 9 | AV7: =SUM($AV$8:$AV$48) -> 0 | AW7: =SUM($AW$8:$AW$48) -> 0 | AX7: =SUM($AX$8:$AX$48) -> 121,837 | AY7: =SUM($AY$8:$AY$48) -> 618 | AZ7: =SUM($AZ$8:$AZ$48) -> 2,774 | BA7: =SUM($BA$8:$BA$48) -> 0 | BB7: =SUM($BB$8:$BB$48) -> 118,445 | BC7: =SUM($BC$8:$BC$48) -> 0 | BD7: =SUM($BD$8:$BD$48) -> 0 | BE7: =SUM($BE$8:$BE$48) -> 0 | BF7: =SUM($BF$8:$BF$48) -> 148,897 | BG7: =SUM($BG$8:$BG$48) -> 0 | BH7: =SUM($BH$8:$BH$48) -> 0 | BI7: =SUM($BI$8:$BI$48) -> 0 | BJ7: =SUM($BJ$8:$BJ$48) -> 0 | BK7: =SUM($BK$8:$BK$48) -> 0 | BL7: =SUM($BL$8:$BL$48) -> 0 | BM7: =SUM($BM$8:$BM$48) -> 0 | BN7: =SUM($BN$8:$BN$48) -> 0 | BO7: =SUM($BO$8:$BO$48) -> 0 | BP7: =SUM($BP$8:$BP$48) -> 0 | BQ7: =SUM($BQ$8:$BQ$48) -> 0 | BR7: =SUM($BR$8:$BR$48) -> 0 | BS7: =SUM($BS$8:$BS$48) -> 0 | BT7: =SUM($BT$8:$BT$48) -> 0 | BU7: =SUM($BU$8:$BU$48) -> 0 | BV7: =SUM($BV$8:$BV$48) -> 0 | BW7: =SUM($BW$8:$BW$48) -> 0 | BX7: =SUM($BX$8:$BX$48) -> 0 | BY7: =SUM($BY$8:$BY$48) -> 0 | BZ7: =SUM($BZ$8:$BZ$48) -> 0 | CA7: =SUM($CA$8:$CA$48) -> 0 | CB7: =SUM($CB$8:$CB$48) -> 0 | CC7: =SUM($CC$8:$CC$48) -> 0 | CD7: =SUM($CD$8:$CD$48) -> 0 | CE7: =SUM($CE$8:$CE$48) -> 0 | CF7: =SUM($CF$8:$CF$48) -> 0 | CG7: =SUM($CG$8:$CG$48) -> 0 | CH7: =SUM($CH$8:$CH$48) -> 0 | CI7: =SUM($CI$8:$CI$48) -> 27,031 | CJ7: =SUM($CJ$8:$CJ$48) -> 27,031 | CK7: =SUM($CK$8:$CK$48) -> 1,031 | CL7: =SUM($CL$8:$CL$48) -> 0 | CM7: =SUM($CM$8:$CM$48) -> 0 | CN7: =SUM($CN$8:$CN$48) -> 26,000 | CO7: =SUM($CO$8:$CO$48) -> 0 | CP7: =SUM($CP$8:$CP$48) -> 0 | CQ7: =SUM($CQ$8:$CQ$48) -> 121,866 | CR7: =SUM($CR$8:$CR$48) -> 0 | CS7: =SUM($CS$8:$CS$48) -> 0 | CT7: =SUM($CT$8:$CT$48) -> 0 | CU7: =SUM($CU$8:$CU$48) -> 0 | CV7: =SUM($CV$8:$CV$48) -> 0 | CW7: =SUM($CW$8:$CW$48) -> 29 | CX7: =SUM($CX$8:$CX$48) -> 20 | CY7: =SUM($CY$8:$CY$48) -> 9 | CZ7: =SUM($CZ$8:$CZ$48) -> 0 | DA7: =SUM($DA$8:$DA$48) -> 0 | DB7: =SUM($DB$8:$DB$48) -> 121,837 | DC7: =SUM($DC$8:$DC$48) -> 618 | DD7: =SUM($DD$8:$DD$48) -> 2,774 | DE7: =SUM($DE$8:$DE$48) -> 0 | DF7: =SUM($DF$8:$DF$48) -> 118,445 | DG7: =SUM($DG$8:$DG$48) -> 0 | DH7: =SUM($DH$8:$DH$48) -> 0 | DI7: =SUM($DI$8:$DI$48) -> 0 | DJ7: =SUM($DJ$8:$DJ$48) -> 148,897
A8: 熊本県 | B8: 43100 | C8: 熊本市 | D8: =SUM(E8,+L8) -> 0 | E8: =SUM(F8:I8)+K8 -> 0 | F8: 0 | G8: 0 | H8: 0 | I8: 0 | J8: - | K8: 0 | L8: 0 | M8: =SUM(N8,+U8) -> 0 | N8: =SUM(O8:R8)+T8 -> 0 | O8: 0 | P8: 0 | Q8: 0 | R8: 0 | S8: - | T8: 0 | U8: 0 | V8: 0 | W8: 0 | X8: 0 | Y8: 0 | Z8: 0 | AA8: 0 | AB8: - | AC8: 0 | AD8: 0 | AE8: =SUM(AF8,+AK8) -> 0 | AF8: =SUM(AG8:AJ8) -> 0 | AG8: 0 | AH8: 0 | AI8: 0 | AJ8: 0 | AK8: 0 | AL8: =組合分担金内訳!D8 -> 0 | AM8: =SUM(AN8,AS8,AW8,AX8,BD8) -> 0 | AN8: =SUM(AO8:AR8) -> 0 | AO8: 0 | AP8: 0 | AQ8: 0 | AR8: 0 | AS8: =SUM(AT8:AV8) -> 0 | AT8: 0 | AU8: 0 | AV8: 0 | AW8: 0 | AX8: =SUM(AY8:BB8) -> 0 | AY8: 0 | AZ8: 0 | BA8: 0 | BB8: 0 | BC8: =組合分担金内訳!E8 -> 0 | BD8: 0 | BE8: 0 | BF8: =SUM(AE8,+AM8,+BE8) -> 0 | BG8: =SUM(BH8,+BM8) -> 0 | BH8: =SUM(BI8:BL8) -> 0 | BI8: 0 | BJ8: 0 | BK8: 0 | BL8: 0 | BM8: 0 | BN8: =組合分担金内訳!G8 -> 0 | BO8: =SUM(BP8,BU8,BY8,BZ8,CF8) -> 0 | BP8: =SUM(BQ8:BT8) -> 0 | BQ8: 0 | BR8: 0 | BS8: 0 | BT8: 0 | BU8: =SUM(BV8:BX8) -> 0 | BV8: 0 | BW8: 0 | BX8: 0 | BY8: 0 | BZ8: =SUM(CA8:CD8) -> 0 | CA8: 0 | CB8: 0 | CC8: 0 | CD8: 0 | CE8: =組合分担金内訳!H8 -> 0 | CF8: 0 | CG8: 0 | CH8: =SUM(BG8,+BO8,+CG8) -> 0 | CI8: =SUM(AE8,+BG8) -> 0 | CJ8: =SUM(AF8,+BH8) -> 0 | CK8: =SUM(AG8,+BI8) -> 0 | CL8: =SUM(AH8,+BJ8) -> 0 | CM8: =SUM(AI8,+BK8) -> 0 | CN8: =SUM(AJ8,+BL8) -> 0 | CO8: =SUM(AK8,+BM8) -> 0 | CP8: =SUM(AL8,+BN8) -> 0 | CQ8: =SUM(AM8,+BO8) -> 0 | CR8: =SUM(AN8,+BP8) -> 0 | CS8: =SUM(AO8,+BQ8) -> 0 | CT8: =SUM(AP8,+BR8) -> 0 | CU8: =SUM(AQ8,+BS8) -> 0 | CV8: =SUM(AR8,+BT8) -> 0 | CW8: =SUM(AS8,+BU8) -> 0 | CX8: =SUM(AT8,+BV8) -> 0 | CY8: =SUM(AU8,+BW8) -> 0 | CZ8: =SUM(AV8,+BX8) -> 0 | DA8: =SUM(AW8,+BY8) -> 0 | DB8: =SUM(AX8,+BZ8) -> 0 | DC8: =SUM(AY8,+CA8) -> 0 | DD8: =SUM(AZ8,+CB8) -> 0 | DE8: =SUM(BA8,+CC8) -> 0 | DF8: =SUM(BB8,+CD8) -> 0 | DG8: =SUM(BC8,+CE8) -> 0 | DH8: =SUM(BD8,+CF8) -> 0 | DI8: =SUM(BE8,+CG8) -> 0 | DJ8: =SUM(BF8,+CH8) -> 0
A9: 熊本県 | B9: 43202 | C9: 八代市 | D9: =SUM(E9,+L9) -> 117,827 | E9: =SUM(F9:I9)+K9 -> 117,826 | F9: 49,826 | G9: 0 | H9: 68,000 | I9: 0 | J9: - | K9: 0 | L9: 1 | M9: =SUM(N9,+U9) -> 0 | N9: =SUM(O9:R9)+T9 -> 0 | O9: 0 | P9: 0 | Q9: 0 | R9: 0 | S9: - | T9: 0 | U9: 0 | V9: 117,827 | W9: 117,826 | X9: 49,826 | Y9: 0 | Z9: 68,000 | AA9: 0 | AB9: - | AC9: 0 | AD9: 1 | AE9: =SUM(AF9,+AK9) -> 0 | AF9: =SUM(AG9:AJ9) -> 0 | AG9: 0 | AH9: 0 | AI9: 0 | AJ9: 0 | AK9: 0 | AL9: =組合分担金内訳!D9 -> 0 | AM9: =SUM(AN9,AS9,AW9,AX9,BD9) -> 117,827 | AN9: =SUM(AO9:AR9) -> 0 | AO9: 0 | AP9: 0 | AQ9: 0 | AR9: 0 | AS9: =SUM(AT9:AV9) -> 0 | AT9: 0 | AU9: 0 | AV9: 0 | AW9: 0 | AX9: =SUM(AY9:BB9) -> 117,827 | AY9: 0 | AZ9: 0 | BA9: 0 | BB9: 117,827 | BC9: =組合分担金内訳!E9 -> 0 | BD9: 0 | BE9: 0 | BF9: =SUM(AE9,+AM9,+BE9) -> 117,827 | BG9: =SUM(BH9,+BM9) -> 0 | BH9: =SUM(BI9:BL9) -> 0 | BI9: 0 | BJ9: 0 | BK9: 0 | BL9: 0 | BM9: 0 | BN9: =組合分担金内訳!G9 -> 0 | BO9: =SUM(BP9,BU9,BY9,BZ9,CF9) -> 0 | BP9: =SUM(BQ9:BT9) -> 0 | BQ9: 0 | BR9: 0 | BS9: 0 | BT9: 0 | BU9: =SUM(BV9:BX9) -> 0 | BV9: 0 | BW9: 0 | BX9: 0 | BY9: 0 | BZ9: =SUM(CA9:CD9) -> 0 | CA9: 0 | CB9: 0 | CC9: 0 | CD9: 0 | CE9: =組合分担金内訳!H9 -> 0 | CF9: 0 | CG9: 0 | CH9: =SUM(BG9,+BO9,+CG9) -> 0 | CI9: 0 | CJ9: 0 | CK9: 0 | CL9: 0 | CM9: 0 | CN9: 0 | CO9: 0 | CP9: 0 | CQ9: 117,827 | CR9: 0 | CS9: 0 | CT9: 0 | CU9: 0 | CV9: 0 | CW9: 0 | CX9: 0 | CY9: 0 | CZ9: 0 | DA9: 0 | DB9: 117,827 | DC9: 0 | DD9: 0 | DE9: 0 | DF9: 117,827 | DG9: 0 | DH9: 0 | DI9: 0 | DJ9: 117,827
A10: 熊本県 | B10: 43203 | C10: 人吉市 | D10: =SUM(E10,+L10) -> 0 | E10: =SUM(F10:I10)+K10 -> 0 | F10: 0 | G10: 0 | H10: 0 | I10: 0 | J10: - | K10: 0 | L10: 0 | M10: =SUM(N10,+U10) -> 0 | N10: =SUM(O10:R10)+T10 -> 0 | O10: 0 | P10: 0 | Q10: 0 | R10: 0 | S10: - | T10: 0 | U10: 0 | V10: 0 | W10: 0 | X10: 0 | Y10: 0 | Z10: 0 | AA10: 0 | AB10: - | AC10: 0 | AD10: 0 | AE10: =SUM(AF10,+AK10) -> 0 | AF10: =SUM(AG10:AJ10) -> 0 | AG10: 0 | AH10: 0 | AI10: 0 | AJ10: 0 | AK10: 0 | AL10: =組合分担金内訳!D10 -> 0 | AM10: =SUM(AN10,AS10,AW10,AX10,BD10) -> 0 | AN10: =SUM(AO10:AR10) -> 0 | AO10: 0 | AP10: 0 | AQ10: 0 | AR10: 0 | AS10: =SUM(AT10:AV10) -> 0 | AT10: 0 | AU10: 0 | AV10: 0 | AW10: 0 | AX10: =SUM(AY10:BB10) -> 0 | AY10: 0 | AZ10: 0 | BA10: 0 | BB10: 0 | BC10: =組合分担金内訳!E10 -> 0 | BD10: 0 | BE10: 0 | BF10: =SUM(AE10,+AM10,+BE10) -> 0 | BG10: =SUM(BH10,+BM10) -> 0 | BH10: =SUM(BI10:BL10) -> 0 | BI10: 0 | BJ10: 0 | BK10: 0 | BL10: 0 | BM10: 0 | BN10: =組合分担金内訳!G10 -> 0 | BO10: =SUM(BP10,BU10,BY10,BZ10,CF10) -> 0 | BP10: =SUM(BQ10:BT10) -> 0 | BQ10: 0 | BR10: 0 | BS10: 0 | BT10: 0 | BU10: =SUM(BV10:BX10) -> 0 | BV10: 0 | BW10: 0 | BX10: 0 | BY10: 0 | BZ10: =SUM(CA10:CD10) -> 0 | CA10: 0 | CB10: 0 | CC10: 0 | CD10: 0 | CE10: =組合分担金内訳!H10 -> 0 | CF10: 0 | CG10: 0 | CH10: =SUM(BG10,+BO10,+CG10) -> 0 | CI10: 0 | CJ10: 0 | CK10: 0 | CL10: 0 | CM10: 0 | CN10: 0 | CO10: 0 | CP10: 0 | CQ10: 0 | CR10: 0 | CS10: 0 | CT10: 0 | CU10: 0 | CV10: 0 | CW10: 0 | CX10: 0 | CY10: 0 | CZ10: 0 | DA10: 0 | DB10: 0 | DC10: 0 | DD10: 0 | DE10: 0 | DF10: 0 | DG10: 0 | DH10: 0 | DI10: 0 | DJ10: 0
A11: 熊本県 | B11: 43204 | C11: 荒尾市 | D11: =SUM(E11,+L11) -> 0 | E11: =SUM(F11:I11)+K11 -> 0 | F11: 0 | G11: 0 | H11: 0 | I11: 0 | J11: - | K11: 0 | L11: 0 | M11: =SUM(N11,+U11) -> 0 | N11: =SUM(O11:R11)+T11 -> 0 | O11: 0 | P11: 0 | Q11: 0 | R11: 0 | S11: - | T11: 0 | U11: 0 | V11: 0 | W11: 0 | X11: 0 | Y11: 0 | Z11: 0 | AA11: 0 | AB11: - | AC11: 0 | AD11: 0 | AE11: =SUM(AF11,+AK11) -> 0 | AF11: =SUM(AG11:AJ11) -> 0 | AG11: 0 | AH11: 0 | AI11: 0 | AJ11: 0 | AK11: 0 | AL11: =組合分担金内訳!D11 -> 0 | AM11: =SUM(AN11,AS11,AW11,AX11,BD11) -> 0 | AN11: =SUM(AO11:AR11) -> 0 | AO11: 0 | AP11: 0 | AQ11: 0 | AR11: 0 | AS11: =SUM(AT11:AV11) -> 0 | AT11: 0 | AU11: 0 | AV11: 0 | AW11: 0 | AX11: =SUM(AY11:BB11) -> 0 | AY11: 0 | AZ11: 0 | BA11: 0 | BB11: 0 | BC11: =組合分担金内訳!E11 -> 0 | BD11: 0 | BE11: 0 | BF11: =SUM(AE11,+AM11,+BE11) -> 0 | BG11: =SUM(BH11,+BM11) -> 0 | BH11: =SUM(BI11:BL11) -> 0 | BI11: 0 | BJ11: 0 | BK11: 0 | BL11: 0 | BM11: 0 | BN11: =組合分担金内訳!G11 -> 0 | BO11: =SUM(BP11,BU11,BY11,BZ11,CF11) -> 0 | BP11: =SUM(BQ11:BT11) -> 0 | BQ11: 0 | BR11: 0 | BS11: 0 | BT11: 0 | BU11: =SUM(BV11:BX11) -> 0 | BV11: 0 | BW11: 0 | BX11: 0 | BY11: 0 | BZ11: =SUM(CA11:CD11) -> 0 | CA11: 0 | CB11: 0 | CC11: 0 | CD11: 0 | CE11: =組合分担金内訳!H11 -> 0 | CF11: 0 | CG11: 0 | CH11: =SUM(BG11,+BO11,+CG11) -> 0 | CI11: 0 | CJ11: 0 | CK11: 0 | CL11: 0 | CM11: 0 | CN11: 0 | CO11: 0 | CP11: 0 | CQ11: 0 | CR11: 0 | CS11: 0 | CT11: 0 | CU11: 0 | CV11: 0 | CW11: 0 | CX11: 0 | CY11: 0 | CZ11: 0 | DA11: 0 | DB11: 0 | DC11: 0 | DD11: 0 | DE11: 0 | DF11: 0 | DG11: 0 | DH11: 0 | DI11: 0 | DJ11: 0
A12: 熊本県 | B12: 43205 | C12: 水俣市 | D12: =SUM(E12,+L12) -> 0 | E12: =SUM(F12:I12)+K12 -> 0 | F12: 0 | G12: 0 | H12: 0 | I12: 0 | J12: - | K12: 0 | L12: 0 | M12: =SUM(N12,+U12) -> 0 | N12: =SUM(O12:R12)+T12 -> 0 | O12: 0 | P12: 0 | Q12: 0 | R12: 0 | S12: - | T12: 0 | U12: 0 | V12: 0 | W12: 0 | X12: 0 | Y12: 0 | Z12: 0 | AA12: 0 | AB12: - | AC12: 0 | AD12: 0 | AE12: =SUM(AF12,+AK12) -> 0 | AF12: =SUM(AG12:AJ12) -> 0 | AG12: 0 | AH12: 0 | AI12: 0 | AJ12: 0 | AK12: 0 | AL12: =組合分担金内訳!D12 -> 0 | AM12: =SUM(AN12,AS12,AW12,AX12,BD12) -> 0 | AN12: =SUM(AO12:AR12) -> 0 | AO12: 0 | AP12: 0 | AQ12: 0 | AR12: 0 | AS12: =SUM(AT12:AV12) -> 0 | AT12: 0 | AU12: 0 | AV12: 0 | AW12: 0 | AX12: =SUM(AY12:BB12) -> 0 | AY12: 0 | AZ12: 0 | BA12: 0 | BB12: 0 | BC12: =組合分担金内訳!E12 -> 0 | BD12: 0 | BE12: 0 | BF12: =SUM(AE12,+AM12,+BE12) -> 0 | BG12: =SUM(BH12,+BM12) -> 0 | BH12: =SUM(BI12:BL12) -> 0 | BI12: 0 | BJ12: 0 | BK12: 0 | BL12: 0 | BM12: 0 | BN12: =組合分担金内訳!G12 -> 0 | BO12: =SUM(BP12,BU12,BY12,BZ12,CF12) -> 0 | BP12: =SUM(BQ12:BT12) -> 0 | BQ12: 0 | BR12: 0 | BS12: 0 | BT12: 0 | BU12: =SUM(BV12:BX12) -> 0 | BV12: 0 | BW12: 0 | BX12: 0 | BY12: 0 | BZ12: =SUM(CA12:CD12) -> 0 | CA12: 0 | CB12: 0 | CC12: 0 | CD12: 0 | CE12: =組合分担金内訳!H12 -> 0 | CF12: 0 | CG12: 0 | CH12: =SUM(BG12,+BO12,+CG12) -> 0 | CI12: 0 | CJ12: 0 | CK12: 0 | CL12: 0 | CM12: 0 | CN12: 0 | CO12: 0 | CP12: 0 | CQ12: 0 | CR12: 0 | CS12: 0 | CT12: 0 | CU12: 0 | CV12: 0 | CW12: 0 | CX12: 0 | CY12: 0 | CZ12: 0 | DA12: 0 | DB12: 0 | DC12: 0 | DD12: 0 | DE12: 0 | DF12: 0 | DG12: 0 | DH12: 0 | DI12: 0 | DJ12: 0
A13: 熊本県 | B13: 43206 | C13: 玉名市 | D13: =SUM(E13,+L13) -> 0 | E13: =SUM(F13:I13)+K13 -> 0 | F13: 0 | G13: 0 | H13: 0 | I13: 0 | J13: - | K13: 0 | L13: 0 | M13: =SUM(N13,+U13) -> 0 | N13: =SUM(O13:R13)+T13 -> 0 | O13: 0 | P13: 0 | Q13: 0 | R13: 0 | S13: - | T13: 0 | U13: 0 | V13: 0 | W13: 0 | X13: 0 | Y13: 0 | Z13: 0 | AA13: 0 | AB13: - | AC13: 0 | AD13: 0 | AE13: =SUM(AF13,+AK13) -> 0 | AF13: =SUM(AG13:AJ13) -> 0 | AG13: 0 | AH13: 0 | AI13: 0 | AJ13: 0 | AK13: 0 | AL13: =組合分担金内訳!D13 -> 0 | AM13: =SUM(AN13,AS13,AW13,AX13,BD13) -> 0 | AN13: =SUM(AO13:AR13) -> 0 | AO13: 0 | AP13: 0 | AQ13: 0 | AR13: 0 | AS13: =SUM(AT13:AV13) -> 0 | AT13: 0 | AU13: 0 | AV13: 0 | AW13: 0 | AX13: =SUM(AY13:BB13) -> 0 | AY13: 0 | AZ13: 0 | BA13: 0 | BB13: 0 | BC13: =組合分担金内訳!E13 -> 0 | BD13: 0 | BE13: 0 | BF13: =SUM(AE13,+AM13,+BE13) -> 0 | BG13: =SUM(BH13,+BM13) -> 0 | BH13: =SUM(BI13:BL13) -> 0 | BI13: 0 | BJ13: 0 | BK13: 0 | BL13: 0 | BM13: 0 | BN13: =組合分担金内訳!G13 -> 0 | BO13: =SUM(BP13,BU13,BY13,BZ13,CF13) -> 0 | BP13: =SUM(BQ13:BT13) -> 0 | BQ13: 0 | BR13: 0 | BS13: 0 | BT13: 0 | BU13: =SUM(BV13:BX13) -> 0 | BV13: 0 | BW13: 0 | BX13: 0 | BY13: 0 | BZ13: =SUM(CA13:CD13) -> 0 | CA13: 0 | CB13: 0 | CC13: 0 | CD13: 0 | CE13: =組合分担金内訳!H13 -> 0 | CF13: 0 | CG13: 0 | CH13: =SUM(BG13,+BO13,+CG13) -> 0 | CI13: 0 | CJ13: 0 | CK13: 0 | CL13: 0 | CM13: 0 | CN13: 0 | CO13: 0 | CP13: 0 | CQ13: 0 | CR13: 0 | CS13: 0 | CT13: 0 | CU13: 0 | CV13: 0 | CW13: 0 | CX13: 0 | CY13: 0 | CZ13: 0 | DA13: 0 | DB13: 0 | DC13: 0 | DD13: 0 | DE13: 0 | DF13: 0 | DG13: 0 | DH13: 0 | DI13: 0 | DJ13: 0
A14: 熊本県 | B14: 43208 | C14: 山鹿市 | D14: =SUM(E14,+L14) -> 0 | E14: =SUM(F14:I14)+K14 -> 0 | F14: 0 | G14: 0 | H14: 0 | I14: 0 | J14: - | K14: 0 | L14: 0 | M14: =SUM(N14,+U14) -> 0 | N14: =SUM(O14:R14)+T14 -> 0 | O14: 0 | P14: 0 | Q14: 0 | R14: 0 | S14: - | T14: 0 | U14: 0 | V14: 0 | W14: 0 | X14: 0 | Y14: 0 | Z14: 0 | AA14: 0 | AB14: - | AC14: 0 | AD14: 0 | AE14: =SUM(AF14,+AK14) -> 0 | AF14: =SUM(AG14:AJ14) -> 0 | AG14: 0 | AH14: 0 | AI14: 0 | AJ14: 0 | AK14: 0 | AL14: =組合分担金内訳!D14 -> 0 | AM14: =SUM(AN14,AS14,AW14,AX14,BD14) -> 0 | AN14: =SUM(AO14:AR14) -> 0 | AO14: 0 | AP14: 0 | AQ14: 0 | AR14: 0 | AS14: =SUM(AT14:AV14) -> 0 | AT14: 0 | AU14: 0 | AV14: 0 | AW14: 0 | AX14: =SUM(AY14:BB14) -> 0 | AY14: 0 | AZ14: 0 | BA14: 0 | BB14: 0 | BC14: =組合分担金内訳!E14 -> 0 | BD14: 0 | BE14: 0 | BF14: =SUM(AE14,+AM14,+BE14) -> 0 | BG14: =SUM(BH14,+BM14) -> 0 | BH14: =SUM(BI14:BL14) -> 0 | BI14: 0 | BJ14: 0 | BK14: 0 | BL14: 0 | BM14: 0 | BN14: =組合分担金内訳!G14 -> 0 | BO14: =SUM(BP14,BU14,BY14,BZ14,CF14) -> 0 | BP14: =SUM(BQ14:BT14) -> 0 | BQ14: 0 | BR14: 0 | BS14: 0 | BT14: 0 | BU14: =SUM(BV14:BX14) -> 0 | BV14: 0 | BW14: 0 | BX14: 0 | BY14: 0 | BZ14: =SUM(CA14:CD14) -> 0 | CA14: 0 | CB14: 0 | CC14: 0 | CD14: 0 | CE14: =組合分担金内訳!H14 -> 0 | CF14: 0 | CG14: 0 | CH14: =SUM(BG14,+BO14,+CG14) -> 0 | CI14: 0 | CJ14: 0 | CK14: 0 | CL14: 0 | CM14: 0 | CN14: 0 | CO14: 0 | CP14: 0 | CQ14: 0 | CR14: 0 | CS14: 0 | CT14: 0 | CU14: 0 | CV14: 0 | CW14: 0 | CX14: 0 | CY14: 0 | CZ14: 0 | DA14: 0 | DB14: 0 | DC14: 0 | DD14: 0 | DE14: 0 | DF14: 0 | DG14: 0 | DH14: 0 | DI14: 0 | DJ14: 0
A15: 熊本県 | B15: 43210 | C15: 菊池市 | D15: =SUM(E15,+L15) -> 0 | E15: =SUM(F15:I15)+K15 -> 0 | F15: 0 | G15: 0 | H15: 0 | I15: 0 | J15: - | K15: 0 | L15: 0 | M15: =SUM(N15,+U15) -> 0 | N15: =SUM(O15:R15)+T15 -> 0 | O15: 0 | P15: 0 | Q15: 0 | R15: 0 | S15: - | T15: 0 | U15: 0 | V15: 0 | W15: 0 | X15: 0 | Y15: 0 | Z15: 0 | AA15: 0 | AB15: - | AC15: 0 | AD15: 0 | AE15: =SUM(AF15,+AK15) -> 0 | AF15: =SUM(AG15:AJ15) -> 0 | AG15: 0 | AH15: 0 | AI15: 0 | AJ15: 0 | AK15: 0 | AL15: =組合分担金内訳!D15 -> 0 | AM15: =SUM(AN15,AS15,AW15,AX15,BD15) -> 0 | AN15: =SUM(AO15:AR15) -> 0 | AO15: 0 | AP15: 0 | AQ15: 0 | AR15: 0 | AS15: =SUM(AT15:AV15) -> 0 | AT15: 0 | AU15: 0 | AV15: 0 | AW15: 0 | AX15: =SUM(AY15:BB15) -> 0 | AY15: 0 | AZ15: 0 | BA15: 0 | BB15: 0 | BC15: =組合分担金内訳!E15 -> 0 | BD15: 0 | BE15: 0 | BF15: =SUM(AE15,+AM15,+BE15) -> 0 | BG15: =SUM(BH15,+BM15) -> 0 | BH15: =SUM(BI15:BL15) -> 0 | BI15: 0 | BJ15: 0 | BK15: 0 | BL15: 0 | BM15: 0 | BN15: =組合分担金内訳!G15 -> 0 | BO15: =SUM(BP15,BU15,BY15,BZ15,CF15) -> 0 | BP15: =SUM(BQ15:BT15) -> 0 | BQ15: 0 | BR15: 0 | BS15: 0 | BT15: 0 | BU15: =SUM(BV15:BX15) -> 0 | BV15: 0 | BW15: 0 | BX15: 0 | BY15: 0 | BZ15: =SUM(CA15:CD15) -> 0 | CA15: 0 | CB15: 0 | CC15: 0 | CD15: 0 | CE15: =組合分担金内訳!H15 -> 0 | CF15: 0 | CG15: 0 | CH15: =SUM(BG15,+BO15,+CG15) -> 0 | CI15: 0 | CJ15: 0 | CK15: 0 | CL15: 0 | CM15: 0 | CN15: 0 | CO15: 0 | CP15: 0 | CQ15: 0 | CR15: 0 | CS15: 0 | CT15: 0 | CU15: 0 | CV15: 0 | CW15: 0 | CX15: 0 | CY15: 0 | CZ15: 0 | DA15: 0 | DB15: 0 | DC15: 0 | DD15: 0 | DE15: 0 | DF15: 0 | DG15: 0 | DH15: 0 | DI15: 0 | DJ15: 0
A16: 熊本県 | B16: 43211 | C16: 宇土市 | D16: =SUM(E16,+L16) -> 0 | E16: =SUM(F16:I16)+K16 -> 0 | F16: 0 | G16: 0 | H16: 0 | I16: 0 | J16: - | K16: 0 | L16: 0 | M16: =SUM(N16,+U16) -> 0 | N16: =SUM(O16:R16)+T16 -> 0 | O16: 0 | P16: 0 | Q16: 0 | R16: 0 | S16: - | T16: 0 | U16: 0 | V16: 0 | W16: 0 | X16: 0 | Y16: 0 | Z16: 0 | AA16: 0 | AB16: - | AC16: 0 | AD16: 0 | AE16: =SUM(AF16,+AK16) -> 0 | AF16: =SUM(AG16:AJ16) -> 0 | AG16: 0 | AH16: 0 | AI16: 0 | AJ16: 0 | AK16: 0 | AL16: =組合分担金内訳!D16 -> 0 | AM16: =SUM(AN16,AS16,AW16,AX16,BD16) -> 0 | AN16: =SUM(AO16:AR16) -> 0 | AO16: 0 | AP16: 0 | AQ16: 0 | AR16: 0 | AS16: =SUM(AT16:AV16) -> 0 | AT16: 0 | AU16: 0 | AV16: 0 | AW16: 0 | AX16: =SUM(AY16:BB16) -> 0 | AY16: 0 | AZ16: 0 | BA16: 0 | BB16: 0 | BC16: =組合分担金内訳!E16 -> 0 | BD16: 0 | BE16: 0 | BF16: =SUM(AE16,+AM16,+BE16) -> 0 | BG16: =SUM(BH16,+BM16) -> 0 | BH16: =SUM(BI16:BL16) -> 0 | BI16: 0 | BJ16: 0 | BK16: 0 | BL16: 0 | BM16: 0 | BN16: =組合分担金内訳!G16 -> 0 | BO16: =SUM(BP16,BU16,BY16,BZ16,CF16) -> 0 | BP16: =SUM(BQ16:BT16) -> 0 | BQ16: 0 | BR16: 0 | BS16: 0 | BT16: 0 | BU16: =SUM(BV16:BX16) -> 0 | BV16: 0 | BW16: 0 | BX16: 0 | BY16: 0 | BZ16: =SUM(CA16:CD16) -> 0 | CA16: 0 | CB16: 0 | CC16: 0 | CD16: 0 | CE16: =組合分担金内訳!H16 -> 0 | CF16: 0 | CG16: 0 | CH16: =SUM(BG16,+BO16,+CG16) -> 0 | CI16: 0 | CJ16: 0 | CK16: 0 | CL16: 0 | CM16: 0 | CN16: 0 | CO16: 0 | CP16: 0 | CQ16: 0 | CR16: 0 | CS16: 0 | CT16: 0 | CU16: 0 | CV16: 0 | CW16: 0 | CX16: 0 | CY16: 0 | CZ16: 0 | DA16: 0 | DB16: 0 | DC16: 0 | DD16: 0 | DE16: 0 | DF16: 0 | DG16: 0 | DH16: 0 | DI16: 0 | DJ16: 0
A17: 熊本県 | B17: 43212 | C17: 上天草市 | D17: =SUM(E17,+L17) -> 0 | E17: =SUM(F17:I17)+K17 -> 0 | F17: 0 | G17: 0 | H17: 0 | I17: 0 | J17: - | K17: 0 | L17: 0 | M17: =SUM(N17,+U17) -> 0 | N17: =SUM(O17:R17)+T17 -> 0 | O17: 0 | P17: 0 | Q17: 0 | R17: 0 | S17: - | T17: 0 | U17: 0 | V17: 0 | W17: 0 | X17: 0 | Y17: 0 | Z17: 0 | AA17: 0 | AB17: - | AC17: 0 | AD17: 0 | AE17: =SUM(AF17,+AK17) -> 0 | AF17: =SUM(AG17:AJ17) -> 0 | AG17: 0 | AH17: 0 | AI17: 0 | AJ17: 0 | AK17: 0 | AL17: =組合分担金内訳!D17 -> 0 | AM17: =SUM(AN17,AS17,AW17,AX17,BD17) -> 0 | AN17: =SUM(AO17:AR17) -> 0 | AO17: 0 | AP17: 0 | AQ17: 0 | AR17: 0 | AS17: =SUM(AT17:AV17) -> 0 | AT17: 0 | AU17: 0 | AV17: 0 | AW17: 0 | AX17: =SUM(AY17:BB17) -> 0 | AY17: 0 | AZ17: 0 | BA17: 0 | BB17: 0 | BC17: =組合分担金内訳!E17 -> 0 | BD17: 0 | BE17: 0 | BF17: =SUM(AE17,+AM17,+BE17) -> 0 | BG17: =SUM(BH17,+BM17) -> 0 | BH17: =SUM(BI17:BL17) -> 0 | BI17: 0 | BJ17: 0 | BK17: 0 | BL17: 0 | BM17: 0 | BN17: =組合分担金内訳!G17 -> 0 | BO17: =SUM(BP17,BU17,BY17,BZ17,CF17) -> 0 | BP17: =SUM(BQ17:BT17) -> 0 | BQ17: 0 | BR17: 0 | BS17: 0 | BT17: 0 | BU17: =SUM(BV17:BX17) -> 0 | BV17: 0 | BW17: 0 | BX17: 0 | BY17: 0 | BZ17: =SUM(CA17:CD17) -> 0 | CA17: 0 | CB17: 0 | CC17: 0 | CD17: 0 | CE17: =組合分担金内訳!H17 -> 0 | CF17: 0 | CG17: 0 | CH17: =SUM(BG17,+BO17,+CG17) -> 0 | CI17: 0 | CJ17: 0 | CK17: 0 | CL17: 0 | CM17: 0 | CN17: 0 | CO17: 0 | CP17: 0 | CQ17: 0 | CR17: 0 | CS17: 0 | CT17: 0 | CU17: 0 | CV17: 0 | CW17: 0 | CX17: 0 | CY17: 0 | CZ17: 0 | DA17: 0 | DB17: 0 | DC17: 0 | DD17: 0 | DE17: 0 | DF17: 0 | DG17: 0 | DH17: 0 | DI17: 0 | DJ17: 0
A18: 熊本県 | B18: 43213 | C18: 宇城市 | D18: =SUM(E18,+L18) -> 0 | E18: =SUM(F18:I18)+K18 -> 0 | F18: 0 | G18: 0 | H18: 0 | I18: 0 | J18: - | K18: 0 | L18: 0 | M18: =SUM(N18,+U18) -> 0 | N18: =SUM(O18:R18)+T18 -> 0 | O18: 0 | P18: 0 | Q18: 0 | R18: 0 | S18: - | T18: 0 | U18: 0 | V18: 0 | W18: 0 | X18: 0 | Y18: 0 | Z18: 0 | AA18: 0 | AB18: - | AC18: 0 | AD18: 0 | AE18: =SUM(AF18,+AK18) -> 0 | AF18: =SUM(AG18:AJ18) -> 0 | AG18: 0 | AH18: 0 | AI18: 0 | AJ18: 0 | AK18: 0 | AL18: =組合分担金内訳!D18 -> 0 | AM18: =SUM(AN18,AS18,AW18,AX18,BD18) -> 0 | AN18: =SUM(AO18:AR18) -> 0 | AO18: 0 | AP18: 0 | AQ18: 0 | AR18: 0 | AS18: =SUM(AT18:AV18) -> 0 | AT18: 0 | AU18: 0 | AV18: 0 | AW18: 0 | AX18: =SUM(AY18:BB18) -> 0 | AY18: 0 | AZ18: 0 | BA18: 0 | BB18: 0 | BC18: =組合分担金内訳!E18 -> 0 | BD18: 0 | BE18: 0 | BF18: =SUM(AE18,+AM18,+BE18) -> 0 | BG18: =SUM(BH18,+BM18) -> 0 | BH18: =SUM(BI18:BL18) -> 0 | BI18: 0 | BJ18: 0 | BK18: 0 | BL18: 0 | BM18: 0 | BN18: =組合分担金内訳!G18 -> 0 | BO18: =SUM(BP18,BU18,BY18,BZ18,CF18) -> 0 | BP18: =SUM(BQ18:BT18) -> 0 | BQ18: 0 | BR18: 0 | BS18: 0 | BT18: 0 | BU18: =SUM(BV18:BX18) -> 0 | BV18: 0 | BW18: 0 | BX18: 0 | BY18: 0 | BZ18: =SUM(CA18:CD18) -> 0 | CA18: 0 | CB18: 0 | CC18: 0 | CD18: 0 | CE18: =組合分担金内訳!H18 -> 0 | CF18: 0 | CG18: 0 | CH18: =SUM(BG18,+BO18,+CG18) -> 0 | CI18: 0 | CJ18: 0 | CK18: 0 | CL18: 0 | CM18: 0 | CN18: 0 | CO18: 0 | CP18: 0 | CQ18: 0 | CR18: 0 | CS18: 0 | CT18: 0 | CU18: 0 | CV18: 0 | CW18: 0 | CX18: 0 | CY18: 0 | CZ18: 0 | DA18: 0 | DB18: 0 | DC18: 0 | DD18: 0 | DE18: 0 | DF18: 0 | DG18: 0 | DH18: 0 | DI18: 0 | DJ18: 0
A19: 熊本県 | B19: 43214 | C19: 阿蘇市 | D19: =SUM(E19,+L19) -> 0 | E19: =SUM(F19:I19)+K19 -> 0 | F19: 0 | G19: 0 | H19: 0 | I19: 0 | J19: - | K19: 0 | L19: 0 | M19: =SUM(N19,+U19) -> 0 | N19: =SUM(O19:R19)+T19 -> 0 | O19: 0 | P19: 0 | Q19: 0 | R19: 0 | S19: - | T19: 0 | U19: 0 | V19: 0 | W19: 0 | X19: 0 | Y19: 0 | Z19: 0 | AA19: 0 | AB19: - | AC19: 0 | AD19: 0 | AE19: =SUM(AF19,+AK19) -> 0 | AF19: =SUM(AG19:AJ19) -> 0 | AG19: 0 | AH19: 0 | AI19: 0 | AJ19: 0 | AK19: 0 | AL19: =組合分担金内訳!D19 -> 0 | AM19: =SUM(AN19,AS19,AW19,AX19,BD19) -> 0 | AN19: =SUM(AO19:AR19) -> 0 | AO19: 0 | AP19: 0 | AQ19: 0 | AR19: 0 | AS19: =SUM(AT19:AV19) -> 0 | AT19: 0 | AU19: 0 | AV19: 0 | AW19: 0 | AX19: =SUM(AY19:BB19) -> 0 | AY19: 0 | AZ19: 0 | BA19: 0 | BB19: 0 | BC19: =組合分担金内訳!E19 -> 0 | BD19: 0 | BE19: 0 | BF19: =SUM(AE19,+AM19,+BE19) -> 0 | BG19: =SUM(BH19,+BM19) -> 0 | BH19: =SUM(BI19:BL19) -> 0 | BI19: 0 | BJ19: 0 | BK19: 0 | BL19: 0 | BM19: 0 | BN19: =組合分担金内訳!G19 -> 0 | BO19: =SUM(BP19,BU19,BY19,BZ19,CF19) -> 0 | BP19: =SUM(BQ19:BT19) -> 0 | BQ19: 0 | BR19: 0 | BS19: 0 | BT19: 0 | BU19: =SUM(BV19:BX19) -> 0 | BV19: 0 | BW19: 0 | BX19: 0 | BY19: 0 | BZ19: =SUM(CA19:CD19) -> 0 | CA19: 0 | CB19: 0 | CC19: 0 | CD19: 0 | CE19: =組合分担金内訳!H19 -> 0 | CF19: 0 | CG19: 0 | CH19: =SUM(BG19,+BO19,+CG19) -> 0 | CI19: 0 | CJ19: 0 | CK19: 0 | CL19: 0 | CM19: 0 | CN19: 0 | CO19: 0 | CP19: 0 | CQ19: 0 | CR19: 0 | CS19: 0 | CT19: 0 | CU19: 0 | CV19: 0 | CW19: 0 | CX19: 0 | CY19: 0 | CZ19: 0 | DA19: 0 | DB19: 0 | DC19: 0 | DD19: 0 | DE19: 0 | DF19: 0 | DG19: 0 | DH19: 0 | DI19: 0 | DJ19: 0
A20: 熊本県 | B20: 43216 | C20: 合志市 | D20: =SUM(E20,+L20) -> 0 | E20: =SUM(F20:I20)+K20 -> 0 | F20: 0 | G20: 0 | H20: 0 | I20: 0 | J20: - | K20: 0 | L20: 0 | M20: =SUM(N20,+U20) -> 0 | N20: =SUM(O20:R20)+T20 -> 0 | O20: 0 | P20: 0 | Q20: 0 | R20: 0 | S20: - | T20: 0 | U20: 0 | V20: 0 | W20: 0 | X20: 0 | Y20: 0 | Z20: 0 | AA20: 0 | AB20: - | AC20: 0 | AD20: 0 | AE20: =SUM(AF20,+AK20) -> 0 | AF20: =SUM(AG20:AJ20) -> 0 | AG20: 0 | AH20: 0 | AI20: 0 | AJ20: 0 | AK20: 0 | AL20: =組合分担金内訳!D20 -> 0 | AM20: =SUM(AN20,AS20,AW20,AX20,BD20) -> 0 | AN20: =SUM(AO20:AR20) -> 0 | AO20: 0 | AP20: 0 | AQ20: 0 | AR20: 0 | AS20: =SUM(AT20:AV20) -> 0 | AT20: 0 | AU20: 0 | AV20: 0 | AW20: 0 | AX20: =SUM(AY20:BB20) -> 0 | AY20: 0 | AZ20: 0 | BA20: 0 | BB20: 0 | BC20: =組合分担金内訳!E20 -> 0 | BD20: 0 | BE20: 0 | BF20: =SUM(AE20,+AM20,+BE20) -> 0 | BG20: =SUM(BH20,+BM20) -> 0 | BH20: =SUM(BI20:BL20) -> 0 | BI20: 0 | BJ20: 0 | BK20: 0 | BL20: 0 | BM20: 0 | BN20: =組合分担金内訳!G20 -> 0 | BO20: =SUM(BP20,BU20,BY20,BZ20,CF20) -> 0 | BP20: =SUM(BQ20:BT20) -> 0 | BQ20: 0 | BR20: 0 | BS20: 0 | BT20: 0 | BU20: =SUM(BV20:BX20) -> 0 | BV20: 0 | BW20: 0 | BX20: 0 | BY20: 0 | BZ20: =SUM(CA20:CD20) -> 0 | CA20: 0 | CB20: 0 | CC20: 0 | CD20: 0 | CE20: =組合分担金内訳!H20 -> 0 | CF20: 0 | CG20: 0 | CH20: =SUM(BG20,+BO20,+CG20) -> 0 | CI20: 0 | CJ20: 0 | CK20: 0 | CL20: 0 | CM20: 0 | CN20: 0 | CO20: 0 | CP20: 0 | CQ20: 0 | CR20: 0 | CS20: 0 | CT20: 0 | CU20: 0 | CV20: 0 | CW20: 0 | CX20: 0 | CY20: 0 | CZ20: 0 | DA20: 0 | DB20: 0 | DC20: 0 | DD20: 0 | DE20: 0 | DF20: 0 | DG20: 0 | DH20: 0 | DI20: 0 | DJ20: 0
A21: 熊本県 | B21: 43348 | C21: 美里町 | D21: =SUM(E21,+L21) -> 0 | E21: =SUM(F21:I21)+K21 -> 0 | F21: 0 | G21: 0 | H21: 0 | I21: 0 | J21: - | K21: 0 | L21: 0 | M21: =SUM(N21,+U21) -> 0 | N21: =SUM(O21:R21)+T21 -> 0 | O21: 0 | P21: 0 | Q21: 0 | R21: 0 | S21: - | T21: 0 | U21: 0 | V21: 0 | W21: 0 | X21: 0 | Y21: 0 | Z21: 0 | AA21: 0 | AB21: - | AC21: 0 | AD21: 0 | AE21: =SUM(AF21,+AK21) -> 0 | AF21: =SUM(AG21:AJ21) -> 0 | AG21: 0 | AH21: 0 | AI21: 0 | AJ21: 0 | AK21: 0 | AL21: =組合分担金内訳!D21 -> 0 | AM21: =SUM(AN21,AS21,AW21,AX21,BD21) -> 0 | AN21: =SUM(AO21:AR21) -> 0 | AO21: 0 | AP21: 0 | AQ21: 0 | AR21: 0 | AS21: =SUM(AT21:AV21) -> 0 | AT21: 0 | AU21: 0 | AV21: 0 | AW21: 0 | AX21: =SUM(AY21:BB21) -> 0 | AY21: 0 | AZ21: 0 | BA21: 0 | BB21: 0 | BC21: =組合分担金内訳!E21 -> 0 | BD21: 0 | BE21: 0 | BF21: =SUM(AE21,+AM21,+BE21) -> 0 | BG21: =SUM(BH21,+BM21) -> 0 | BH21: =SUM(BI21:BL21) -> 0 | BI21: 0 | BJ21: 0 | BK21: 0 | BL21: 0 | BM21: 0 | BN21: =組合分担金内訳!G21 -> 0 | BO21: =SUM(BP21,BU21,BY21,BZ21,CF21) -> 0 | BP21: =SUM(BQ21:BT21) -> 0 | BQ21: 0 | BR21: 0 | BS21: 0 | BT21: 0 | BU21: =SUM(BV21:BX21) -> 0 | BV21: 0 | BW21: 0 | BX21: 0 | BY21: 0 | BZ21: =SUM(CA21:CD21) -> 0 | CA21: 0 | CB21: 0 | CC21: 0 | CD21: 0 | CE21: =組合分担金内訳!H21 -> 0 | CF21: 0 | CG21: 0 | CH21: =SUM(BG21,+BO21,+CG21) -> 0 | CI21: 0 | CJ21: 0 | CK21: 0 | CL21: 0 | CM21: 0 | CN21: 0 | CO21: 0 | CP21: 0 | CQ21: 0 | CR21: 0 | CS21: 0 | CT21: 0 | CU21: 0 | CV21: 0 | CW21: 0 | CX21: 0 | CY21: 0 | CZ21: 0 | DA21: 0 | DB21: 0 | DC21: 0 | DD21: 0 | DE21: 0 | DF21: 0 | DG21: 0 | DH21: 0 | DI21: 0 | DJ21: 0
A22: 熊本県 | B22: 43364 | C22: 玉東町 | D22: =SUM(E22,+L22) -> 0 | E22: =SUM(F22:I22)+K22 -> 0 | F22: 0 | G22: 0 | H22: 0 | I22: 0 | J22: - | K22: 0 | L22: 0 | M22: =SUM(N22,+U22) -> 0 | N22: =SUM(O22:R22)+T22 -> 0 | O22: 0 | P22: 0 | Q22: 0 | R22: 0 | S22: - | T22: 0 | U22: 0 | V22: 0 | W22: 0 | X22: 0 | Y22: 0 | Z22: 0 | AA22: 0 | AB22: - | AC22: 0 | AD22: 0 | AE22: =SUM(AF22,+AK22) -> 0 | AF22: =SUM(AG22:AJ22) -> 0 | AG22: 0 | AH22: 0 | AI22: 0 | AJ22: 0 | AK22: 0 | AL22: =組合分担金内訳!D22 -> 0 | AM22: =SUM(AN22,AS22,AW22,AX22,BD22) -> 0 | AN22: =SUM(AO22:AR22) -> 0 | AO22: 0 | AP22: 0 | AQ22: 0 | AR22: 0 | AS22: =SUM(AT22:AV22) -> 0 | AT22: 0 | AU22: 0 | AV22: 0 | AW22: 0 | AX22: =SUM(AY22:BB22) -> 0 | AY22: 0 | AZ22: 0 | BA22: 0 | BB22: 0 | BC22: =組合分担金内訳!E22 -> 0 | BD22: 0 | BE22: 0 | BF22: =SUM(AE22,+AM22,+BE22) -> 0 | BG22: =SUM(BH22,+BM22) -> 0 | BH22: =SUM(BI22:BL22) -> 0 | BI22: 0 | BJ22: 0 | BK22: 0 | BL22: 0 | BM22: 0 | BN22: =組合分担金内訳!G22 -> 0 | BO22: =SUM(BP22,BU22,BY22,BZ22,CF22) -> 0 | BP22: =SUM(BQ22:BT22) -> 0 | BQ22: 0 | BR22: 0 | BS22: 0 | BT22: 0 | BU22: =SUM(BV22:BX22) -> 0 | BV22: 0 | BW22: 0 | BX22: 0 | BY22: 0 | BZ22: =SUM(CA22:CD22) -> 0 | CA22: 0 | CB22: 0 | CC22: 0 | CD22: 0 | CE22: =組合分担金内訳!H22 -> 0 | CF22: 0 | CG22: 0 | CH22: =SUM(BG22,+BO22,+CG22) -> 0 | CI22: 0 | CJ22: 0 | CK22: 0 | CL22: 0 | CM22: 0 | CN22: 0 | CO22: 0 | CP22: 0 | CQ22: 0 | CR22: 0 | CS22: 0 | CT22: 0 | CU22: 0 | CV22: 0 | CW22: 0 | CX22: 0 | CY22: 0 | CZ22: 0 | DA22: 0 | DB22: 0 | DC22: 0 | DD22: 0 | DE22: 0 | DF22: 0 | DG22: 0 | DH22: 0 | DI22: 0 | DJ22: 0
A23: 熊本県 | B23: 43367 | C23: 南関町 | D23: =SUM(E23,+L23) -> 0 | E23: =SUM(F23:I23)+K23 -> 0 | F23: 0 | G23: 0 | H23: 0 | I23: 0 | J23: - | K23: 0 | L23: 0 | M23: =SUM(N23,+U23) -> 0 | N23: =SUM(O23:R23)+T23 -> 0 | O23: 0 | P23: 0 | Q23: 0 | R23: 0 | S23: - | T23: 0 | U23: 0 | V23: 0 | W23: 0 | X23: 0 | Y23: 0 | Z23: 0 | AA23: 0 | AB23: - | AC23: 0 | AD23: 0 | AE23: =SUM(AF23,+AK23) -> 0 | AF23: =SUM(AG23:AJ23) -> 0 | AG23: 0 | AH23: 0 | AI23: 0 | AJ23: 0 | AK23: 0 | AL23: =組合分担金内訳!D23 -> 0 | AM23: =SUM(AN23,AS23,AW23,AX23,BD23) -> 0 | AN23: =SUM(AO23:AR23) -> 0 | AO23: 0 | AP23: 0 | AQ23: 0 | AR23: 0 | AS23: =SUM(AT23:AV23) -> 0 | AT23: 0 | AU23: 0 | AV23: 0 | AW23: 0 | AX23: =SUM(AY23:BB23) -> 0 | AY23: 0 | AZ23: 0 | BA23: 0 | BB23: 0 | BC23: =組合分担金内訳!E23 -> 0 | BD23: 0 | BE23: 0 | BF23: =SUM(AE23,+AM23,+BE23) -> 0 | BG23: =SUM(BH23,+BM23) -> 0 | BH23: =SUM(BI23:BL23) -> 0 | BI23: 0 | BJ23: 0 | BK23: 0 | BL23: 0 | BM23: 0 | BN23: =組合分担金内訳!G23 -> 0 | BO23: =SUM(BP23,BU23,BY23,BZ23,CF23) -> 0 | BP23: =SUM(BQ23:BT23) -> 0 | BQ23: 0 | BR23: 0 | BS23: 0 | BT23: 0 | BU23: =SUM(BV23:BX23) -> 0 | BV23: 0 | BW23: 0 | BX23: 0 | BY23: 0 | BZ23: =SUM(CA23:CD23) -> 0 | CA23: 0 | CB23: 0 | CC23: 0 | CD23: 0 | CE23: =組合分担金内訳!H23 -> 0 | CF23: 0 | CG23: 0 | CH23: =SUM(BG23,+BO23,+CG23) -> 0 | CI23: 0 | CJ23: 0 | CK23: 0 | CL23: 0 | CM23: 0 | CN23: 0 | CO23: 0 | CP23: 0 | CQ23: 0 | CR23: 0 | CS23: 0 | CT23: 0 | CU23: 0 | CV23: 0 | CW23: 0 | CX23: 0 | CY23: 0 | CZ23: 0 | DA23: 0 | DB23: 0 | DC23: 0 | DD23: 0 | DE23: 0 | DF23: 0 | DG23: 0 | DH23: 0 | DI23: 0 | DJ23: 0
A24: 熊本県 | B24: 43368 | C24: 長洲町 | D24: =SUM(E24,+L24) -> 0 | E24: =SUM(F24:I24)+K24 -> 0 | F24: 0 | G24: 0 | H24: 0 | I24: 0 | J24: - | K24: 0 | L24: 0 | M24: =SUM(N24,+U24) -> 0 | N24: =SUM(O24:R24)+T24 -> 0 | O24: 0 | P24: 0 | Q24: 0 | R24: 0 | S24: - | T24: 0 | U24: 0 | V24: 0 | W24: 0 | X24: 0 | Y24: 0 | Z24: 0 | AA24: 0 | AB24: - | AC24: 0 | AD24: 0 | AE24: =SUM(AF24,+AK24) -> 0 | AF24: =SUM(AG24:AJ24) -> 0 | AG24: 0 | AH24: 0 | AI24: 0 | AJ24: 0 | AK24: 0 | AL24: =組合分担金内訳!D24 -> 0 | AM24: =SUM(AN24,AS24,AW24,AX24,BD24) -> 0 | AN24: =SUM(AO24:AR24) -> 0 | AO24: 0 | AP24: 0 | AQ24: 0 | AR24: 0 | AS24: =SUM(AT24:AV24) -> 0 | AT24: 0 | AU24: 0 | AV24: 0 | AW24: 0 | AX24: =SUM(AY24:BB24) -> 0 | AY24: 0 | AZ24: 0 | BA24: 0 | BB24: 0 | BC24: =組合分担金内訳!E24 -> 0 | BD24: 0 | BE24: 0 | BF24: =SUM(AE24,+AM24,+BE24) -> 0 | BG24: =SUM(BH24,+BM24) -> 0 | BH24: =SUM(BI24:BL24) -> 0 | BI24: 0 | BJ24: 0 | BK24: 0 | BL24: 0 | BM24: 0 | BN24: =組合分担金内訳!G24 -> 0 | BO24: =SUM(BP24,BU24,BY24,BZ24,CF24) -> 0 | BP24: =SUM(BQ24:BT24) -> 0 | BQ24: 0 | BR24: 0 | BS24: 0 | BT24: 0 | BU24: =SUM(BV24:BX24) -> 0 | BV24: 0 | BW24: 0 | BX24: 0 | BY24: 0 | BZ24: =SUM(CA24:CD24) -> 0 | CA24: 0 | CB24: 0 | CC24: 0 | CD24: 0 | CE24: =組合分担金内訳!H24 -> 0 | CF24: 0 | CG24: 0 | CH24: =SUM(BG24,+BO24,+CG24) -> 0 | CI24: 0 | CJ24: 0 | CK24: 0 | CL24: 0 | CM24: 0 | CN24: 0 | CO24: 0 | CP24: 0 | CQ24: 0 | CR24: 0 | CS24: 0 | CT24: 0 | CU24: 0 | CV24: 0 | CW24: 0 | CX24: 0 | CY24: 0 | CZ24: 0 | DA24: 0 | DB24: 0 | DC24: 0 | DD24: 0 | DE24: 0 | DF24: 0 | DG24: 0 | DH24: 0 | DI24: 0 | DJ24: 0
A25: 熊本県 | B25: 43369 | C25: 和水町 | D25: =SUM(E25,+L25) -> 0 | E25: =SUM(F25:I25)+K25 -> 0 | F25: 0 | G25: 0 | H25: 0 | I25: 0 | J25: - | K25: 0 | L25: 0 | M25: =SUM(N25,+U25) -> 0 | N25: =SUM(O25:R25)+T25 -> 0 | O25: 0 | P25: 0 | Q25: 0 | R25: 0 | S25: - | T25: 0 | U25: 0 | V25: 0 | W25: 0 | X25: 0 | Y25: 0 | Z25: 0 | AA25: 0 | AB25: - | AC25: 0 | AD25: 0 | AE25: =SUM(AF25,+AK25) -> 0 | AF25: =SUM(AG25:AJ25) -> 0 | AG25: 0 | AH25: 0 | AI25: 0 | AJ25: 0 | AK25: 0 | AL25: =組合分担金内訳!D25 -> 0 | AM25: =SUM(AN25,AS25,AW25,AX25,BD25) -> 0 | AN25: =SUM(AO25:AR25) -> 0 | AO25: 0 | AP25: 0 | AQ25: 0 | AR25: 0 | AS25: =SUM(AT25:AV25) -> 0 | AT25: 0 | AU25: 0 | AV25: 0 | AW25: 0 | AX25: =SUM(AY25:BB25) -> 0 | AY25: 0 | AZ25: 0 | BA25: 0 | BB25: 0 | BC25: =組合分担金内訳!E25 -> 0 | BD25: 0 | BE25: 0 | BF25: =SUM(AE25,+AM25,+BE25) -> 0 | BG25: =SUM(BH25,+BM25) -> 0 | BH25: =SUM(BI25:BL25) -> 0 | BI25: 0 | BJ25: 0 | BK25: 0 | BL25: 0 | BM25: 0 | BN25: =組合分担金内訳!G25 -> 0 | BO25: =SUM(BP25,BU25,BY25,BZ25,CF25) -> 0 | BP25: =SUM(BQ25:BT25) -> 0 | BQ25: 0 | BR25: 0 | BS25: 0 | BT25: 0 | BU25: =SUM(BV25:BX25) -> 0 | BV25: 0 | BW25: 0 | BX25: 0 | BY25: 0 | BZ25: =SUM(CA25:CD25) -> 0 | CA25: 0 | CB25: 0 | CC25: 0 | CD25: 0 | CE25: =組合分担金内訳!H25 -> 0 | CF25: 0 | CG25: 0 | CH25: =SUM(BG25,+BO25,+CG25) -> 0 | CI25: 0 | CJ25: 0 | CK25: 0 | CL25: 0 | CM25: 0 | CN25: 0 | CO25: 0 | CP25: 0 | CQ25: 0 | CR25: 0 | CS25: 0 | CT25: 0 | CU25: 0 | CV25: 0 | CW25: 0 | CX25: 0 | CY25: 0 | CZ25: 0 | DA25: 0 | DB25: 0 | DC25: 0 | DD25: 0 | DE25: 0 | DF25: 0 | DG25: 0 | DH25: 0 | DI25: 0 | DJ25: 0
A26: 熊本県 | B26: 43403 | C26: 大津町 | D26: =SUM(E26,+L26) -> 0 | E26: =SUM(F26:I26)+K26 -> 0 | F26: 0 | G26: 0 | H26: 0 | I26: 0 | J26: - | K26: 0 | L26: 0 | M26: =SUM(N26,+U26) -> 0 | N26: =SUM(O26:R26)+T26 -> 0 | O26: 0 | P26: 0 | Q26: 0 | R26: 0 | S26: - | T26: 0 | U26: 0 | V26: 0 | W26: 0 | X26: 0 | Y26: 0 | Z26: 0 | AA26: 0 | AB26: - | AC26: 0 | AD26: 0 | AE26: =SUM(AF26,+AK26) -> 0 | AF26: =SUM(AG26:AJ26) -> 0 | AG26: 0 | AH26: 0 | AI26: 0 | AJ26: 0 | AK26: 0 | AL26: =組合分担金内訳!D26 -> 0 | AM26: =SUM(AN26,AS26,AW26,AX26,BD26) -> 0 | AN26: =SUM(AO26:AR26) -> 0 | AO26: 0 | AP26: 0 | AQ26: 0 | AR26: 0 | AS26: =SUM(AT26:AV26) -> 0 | AT26: 0 | AU26: 0 | AV26: 0 | AW26: 0 | AX26: =SUM(AY26:BB26) -> 0 | AY26: 0 | AZ26: 0 | BA26: 0 | BB26: 0 | BC26: =組合分担金内訳!E26 -> 0 | BD26: 0 | BE26: 0 | BF26: =SUM(AE26,+AM26,+BE26) -> 0 | BG26: =SUM(BH26,+BM26) -> 0 | BH26: =SUM(BI26:BL26) -> 0 | BI26: 0 | BJ26: 0 | BK26: 0 | BL26: 0 | BM26: 0 | BN26: =組合分担金内訳!G26 -> 0 | BO26: =SUM(BP26,BU26,BY26,BZ26,CF26) -> 0 | BP26: =SUM(BQ26:BT26) -> 0 | BQ26: 0 | BR26: 0 | BS26: 0 | BT26: 0 | BU26: =SUM(BV26:BX26) -> 0 | BV26: 0 | BW26: 0 | BX26: 0 | BY26: 0 | BZ26: =SUM(CA26:CD26) -> 0 | CA26: 0 | CB26: 0 | CC26: 0 | CD26: 0 | CE26: =組合分担金内訳!H26 -> 0 | CF26: 0 | CG26: 0 | CH26: =SUM(BG26,+BO26,+CG26) -> 0 | CI26: 0 | CJ26: 0 | CK26: 0 | CL26: 0 | CM26: 0 | CN26: 0 | CO26: 0 | CP26: 0 | CQ26: 0 | CR26: 0 | CS26: 0 | CT26: 0 | CU26: 0 | CV26: 0 | CW26: 0 | CX26: 0 | CY26: 0 | CZ26: 0 | DA26: 0 | DB26: 0 | DC26: 0 | DD26: 0 | DE26: 0 | DF26: 0 | DG26: 0 | DH26: 0 | DI26: 0 | DJ26: 0
A27: 熊本県 | B27: 43404 | C27: 菊陽町 | D27: =SUM(E27,+L27) -> 0 | E27: =SUM(F27:I27)+K27 -> 0 | F27: 0 | G27: 0 | H27: 0 | I27: 0 | J27: - | K27: 0 | L27: 0 | M27: =SUM(N27,+U27) -> 0 | N27: =SUM(O27:R27)+T27 -> 0 | O27: 0 | P27: 0 | Q27: 0 | R27: 0 | S27: - | T27: 0 | U27: 0 | V27: 0 | W27: 0 | X27: 0 | Y27: 0 | Z27: 0 | AA27: 0 | AB27: - | AC27: 0 | AD27: 0 | AE27: =SUM(AF27,+AK27) -> 0 | AF27: =SUM(AG27:AJ27) -> 0 | AG27: 0 | AH27: 0 | AI27: 0 | AJ27: 0 | AK27: 0 | AL27: =組合分担金内訳!D27 -> 0 | AM27: =SUM(AN27,AS27,AW27,AX27,BD27) -> 0 | AN27: =SUM(AO27:AR27) -> 0 | AO27: 0 | AP27: 0 | AQ27: 0 | AR27: 0 | AS27: =SUM(AT27:AV27) -> 0 | AT27: 0 | AU27: 0 | AV27: 0 | AW27: 0 | AX27: =SUM(AY27:BB27) -> 0 | AY27: 0 | AZ27: 0 | BA27: 0 | BB27: 0 | BC27: =組合分担金内訳!E27 -> 0 | BD27: 0 | BE27: 0 | BF27: =SUM(AE27,+AM27,+BE27) -> 0 | BG27: =SUM(BH27,+BM27) -> 0 | BH27: =SUM(BI27:BL27) -> 0 | BI27: 0 | BJ27: 0 | BK27: 0 | BL27: 0 | BM27: 0 | BN27: =組合分担金内訳!G27 -> 0 | BO27: =SUM(BP27,BU27,BY27,BZ27,CF27) -> 0 | BP27: =SUM(BQ27:BT27) -> 0 | BQ27: 0 | BR27: 0 | BS27: 0 | BT27: 0 | BU27: =SUM(BV27:BX27) -> 0 | BV27: 0 | BW27: 0 | BX27: 0 | BY27: 0 | BZ27: =SUM(CA27:CD27) -> 0 | CA27: 0 | CB27: 0 | CC27: 0 | CD27: 0 | CE27: =組合分担金内訳!H27 -> 0 | CF27: 0 | CG27: 0 | CH27: =SUM(BG27,+BO27,+CG27) -> 0 | CI27: 0 | CJ27: 0 | CK27: 0 | CL27: 0 | CM27: 0 | CN27: 0 | CO27: 0 | CP27: 0 | CQ27: 0 | CR27: 0 | CS27: 0 | CT27: 0 | CU27: 0 | CV27: 0 | CW27: 0 | CX27: 0 | CY27: 0 | CZ27: 0 | DA27: 0 | DB27: 0 | DC27: 0 | DD27: 0 | DE27: 0 | DF27: 0 | DG27: 0 | DH27: 0 | DI27: 0 | DJ27: 0
A28: 熊本県 | B28: 43423 | C28: 南小国町 | D28: =SUM(E28,+L28) -> 0 | E28: =SUM(F28:I28)+K28 -> 0 | F28: 0 | G28: 0 | H28: 0 | I28: 0 | J28: - | K28: 0 | L28: 0 | M28: =SUM(N28,+U28) -> 0 | N28: =SUM(O28:R28)+T28 -> 0 | O28: 0 | P28: 0 | Q28: 0 | R28: 0 | S28: - | T28: 0 | U28: 0 | V28: 0 | W28: 0 | X28: 0 | Y28: 0 | Z28: 0 | AA28: 0 | AB28: - | AC28: 0 | AD28: 0 | AE28: =SUM(AF28,+AK28) -> 0 | AF28: =SUM(AG28:AJ28) -> 0 | AG28: 0 | AH28: 0 | AI28: 0 | AJ28: 0 | AK28: 0 | AL28: =組合分担金内訳!D28 -> 0 | AM28: =SUM(AN28,AS28,AW28,AX28,BD28) -> 0 | AN28: =SUM(AO28:AR28) -> 0 | AO28: 0 | AP28: 0 | AQ28: 0 | AR28: 0 | AS28: =SUM(AT28:AV28) -> 0 | AT28: 0 | AU28: 0 | AV28: 0 | AW28: 0 | AX28: =SUM(AY28:BB28) -> 0 | AY28: 0 | AZ28: 0 | BA28: 0 | BB28: 0 | BC28: =組合分担金内訳!E28 -> 0 | BD28: 0 | BE28: 0 | BF28: =SUM(AE28,+AM28,+BE28) -> 0 | BG28: =SUM(BH28,+BM28) -> 0 | BH28: =SUM(BI28:BL28) -> 0 | BI28: 0 | BJ28: 0 | BK28: 0 | BL28: 0 | BM28: 0 | BN28: =組合分担金内訳!G28 -> 0 | BO28: =SUM(BP28,BU28,BY28,BZ28,CF28) -> 0 | BP28: =SUM(BQ28:BT28) -> 0 | BQ28: 0 | BR28: 0 | BS28: 0 | BT28: 0 | BU28: =SUM(BV28:BX28) -> 0 | BV28: 0 | BW28: 0 | BX28: 0 | BY28: 0 | BZ28: =SUM(CA28:CD28) -> 0 | CA28: 0 | CB28: 0 | CC28: 0 | CD28: 0 | CE28: =組合分担金内訳!H28 -> 0 | CF28: 0 | CG28: 0 | CH28: =SUM(BG28,+BO28,+CG28) -> 0 | CI28: 0 | CJ28: 0 | CK28: 0 | CL28: 0 | CM28: 0 | CN28: 0 | CO28: 0 | CP28: 0 | CQ28: 0 | CR28: 0 | CS28: 0 | CT28: 0 | CU28: 0 | CV28: 0 | CW28: 0 | CX28: 0 | CY28: 0 | CZ28: 0 | DA28: 0 | DB28: 0 | DC28: 0 | DD28: 0 | DE28: 0 | DF28: 0 | DG28: 0 | DH28: 0 | DI28: 0 | DJ28: 0
A29: 熊本県 | B29: 43424 | C29: 小国町 | D29: =SUM(E29,+L29) -> 0 | E29: =SUM(F29:I29)+K29 -> 0 | F29: 0 | G29: 0 | H29: 0 | I29: 0 | J29: - | K29: 0 | L29: 0 | M29: =SUM(N29,+U29) -> 0 | N29: =SUM(O29:R29)+T29 -> 0 | O29: 0 | P29: 0 | Q29: 0 | R29: 0 | S29: - | T29: 0 | U29: 0 | V29: 0 | W29: 0 | X29: 0 | Y29: 0 | Z29: 0 | AA29: 0 | AB29: - | AC29: 0 | AD29: 0 | AE29: =SUM(AF29,+AK29) -> 0 | AF29: =SUM(AG29:AJ29) -> 0 | AG29: 0 | AH29: 0 | AI29: 0 | AJ29: 0 | AK29: 0 | AL29: =組合分担金内訳!D29 -> 0 | AM29: =SUM(AN29,AS29,AW29,AX29,BD29) -> 0 | AN29: =SUM(AO29:AR29) -> 0 | AO29: 0 | AP29: 0 | AQ29: 0 | AR29: 0 | AS29: =SUM(AT29:AV29) -> 0 | AT29: 0 | AU29: 0 | AV29: 0 | AW29: 0 | AX29: =SUM(AY29:BB29) -> 0 | AY29: 0 | AZ29: 0 | BA29: 0 | BB29: 0 | BC29: =組合分担金内訳!E29 -> 0 | BD29: 0 | BE29: 0 | BF29: =SUM(AE29,+AM29,+BE29) -> 0 | BG29: =SUM(BH29,+BM29) -> 0 | BH29: =SUM(BI29:BL29) -> 0 | BI29: 0 | BJ29: 0 | BK29: 0 | BL29: 0 | BM29: 0 | BN29: =組合分担金内訳!G29 -> 0 | BO29: =SUM(BP29,BU29,BY29,BZ29,CF29) -> 0 | BP29: =SUM(BQ29:BT29) -> 0 | BQ29: 0 | BR29: 0 | BS29: 0 | BT29: 0 | BU29: =SUM(BV29:BX29) -> 0 | BV29: 0 | BW29: 0 | BX29: 0 | BY29: 0 | BZ29: =SUM(CA29:CD29) -> 0 | CA29: 0 | CB29: 0 | CC29: 0 | CD29: 0 | CE29: =組合分担金内訳!H29 -> 0 | CF29: 0 | CG29: 0 | CH29: =SUM(BG29,+BO29,+CG29) -> 0 | CI29: 0 | CJ29: 0 | CK29: 0 | CL29: 0 | CM29: 0 | CN29: 0 | CO29: 0 | CP29: 0 | CQ29: 0 | CR29: 0 | CS29: 0 | CT29: 0 | CU29: 0 | CV29: 0 | CW29: 0 | CX29: 0 | CY29: 0 | CZ29: 0 | DA29: 0 | DB29: 0 | DC29: 0 | DD29: 0 | DE29: 0 | DF29: 0 | DG29: 0 | DH29: 0 | DI29: 0 | DJ29: 0
A30: 熊本県 | B30: 43425 | C30: 産山村 | D30: =SUM(E30,+L30) -> 0 | E30: =SUM(F30:I30)+K30 -> 0 | F30: 0 | G30: 0 | H30: 0 | I30: 0 | J30: - | K30: 0 | L30: 0 | M30: =SUM(N30,+U30) -> 0 | N30: =SUM(O30:R30)+T30 -> 0 | O30: 0 | P30: 0 | Q30: 0 | R30: 0 | S30: - | T30: 0 | U30: 0 | V30: 0 | W30: 0 | X30: 0 | Y30: 0 | Z30: 0 | AA30: 0 | AB30: - | AC30: 0 | AD30: 0 | AE30: =SUM(AF30,+AK30) -> 0 | AF30: =SUM(AG30:AJ30) -> 0 | AG30: 0 | AH30: 0 | AI30: 0 | AJ30: 0 | AK30: 0 | AL30: =組合分担金内訳!D30 -> 0 | AM30: =SUM(AN30,AS30,AW30,AX30,BD30) -> 0 | AN30: =SUM(AO30:AR30) -> 0 | AO30: 0 | AP30: 0 | AQ30: 0 | AR30: 0 | AS30: =SUM(AT30:AV30) -> 0 | AT30: 0 | AU30: 0 | AV30: 0 | AW30: 0 | AX30: =SUM(AY30:BB30) -> 0 | AY30: 0 | AZ30: 0 | BA30: 0 | BB30: 0 | BC30: =組合分担金内訳!E30 -> 0 | BD30: 0 | BE30: 0 | BF30: =SUM(AE30,+AM30,+BE30) -> 0 | BG30: =SUM(BH30,+BM30) -> 0 | BH30: =SUM(BI30:BL30) -> 0 | BI30: 0 | BJ30: 0 | BK30: 0 | BL30: 0 | BM30: 0 | BN30: =組合分担金内訳!G30 -> 0 | BO30: =SUM(BP30,BU30,BY30,BZ30,CF30) -> 0 | BP30: =SUM(BQ30:BT30) -> 0 | BQ30: 0 | BR30: 0 | BS30: 0 | BT30: 0 | BU30: =SUM(BV30:BX30) -> 0 | BV30: 0 | BW30: 0 | BX30: 0 | BY30: 0 | BZ30: =SUM(CA30:CD30) -> 0 | CA30: 0 | CB30: 0 | CC30: 0 | CD30: 0 | CE30: =組合分担金内訳!H30 -> 0 | CF30: 0 | CG30: 0 | CH30: =SUM(BG30,+BO30,+CG30) -> 0 | CI30: 0 | CJ30: 0 | CK30: 0 | CL30: 0 | CM30: 0 | CN30: 0 | CO30: 0 | CP30: 0 | CQ30: 0 | CR30: 0 | CS30: 0 | CT30: 0 | CU30: 0 | CV30: 0 | CW30: 0 | CX30: 0 | CY30: 0 | CZ30: 0 | DA30: 0 | DB30: 0 | DC30: 0 | DD30: 0 | DE30: 0 | DF30: 0 | DG30: 0 | DH30: 0 | DI30: 0 | DJ30: 0
A31: 熊本県 | B31: 43428 | C31: 高森町 | D31: =SUM(E31,+L31) -> 0 | E31: =SUM(F31:I31)+K31 -> 0 | F31: 0 | G31: 0 | H31: 0 | I31: 0 | J31: - | K31: 0 | L31: 0 | M31: =SUM(N31,+U31) -> 0 | N31: =SUM(O31:R31)+T31 -> 0 | O31: 0 | P31: 0 | Q31: 0 | R31: 0 | S31: - | T31: 0 | U31: 0 | V31: 0 | W31: 0 | X31: 0 | Y31: 0 | Z31: 0 | AA31: 0 | AB31: - | AC31: 0 | AD31: 0 | AE31: =SUM(AF31,+AK31) -> 0 | AF31: =SUM(AG31:AJ31) -> 0 | AG31: 0 | AH31: 0 | AI31: 0 | AJ31: 0 | AK31: 0 | AL31: =組合分担金内訳!D31 -> 0 | AM31: =SUM(AN31,AS31,AW31,AX31,BD31) -> 0 | AN31: =SUM(AO31:AR31) -> 0 | AO31: 0 | AP31: 0 | AQ31: 0 | AR31: 0 | AS31: =SUM(AT31:AV31) -> 0 | AT31: 0 | AU31: 0 | AV31: 0 | AW31: 0 | AX31: =SUM(AY31:BB31) -> 0 | AY31: 0 | AZ31: 0 | BA31: 0 | BB31: 0 | BC31: =組合分担金内訳!E31 -> 0 | BD31: 0 | BE31: 0 | BF31: =SUM(AE31,+AM31,+BE31) -> 0 | BG31: =SUM(BH31,+BM31) -> 0 | BH31: =SUM(BI31:BL31) -> 0 | BI31: 0 | BJ31: 0 | BK31: 0 | BL31: 0 | BM31: 0 | BN31: =組合分担金内訳!G31 -> 0 | BO31: =SUM(BP31,BU31,BY31,BZ31,CF31) -> 0 | BP31: =SUM(BQ31:BT31) -> 0 | BQ31: 0 | BR31: 0 | BS31: 0 | BT31: 0 | BU31: =SUM(BV31:BX31) -> 0 | BV31: 0 | BW31: 0 | BX31: 0 | BY31: 0 | BZ31: =SUM(CA31:CD31) -> 0 | CA31: 0 | CB31: 0 | CC31: 0 | CD31: 0 | CE31: =組合分担金内訳!H31 -> 0 | CF31: 0 | CG31: 0 | CH31: =SUM(BG31,+BO31,+CG31) -> 0 | CI31: 0 | CJ31: 0 | CK31: 0 | CL31: 0 | CM31: 0 | CN31: 0 | CO31: 0 | CP31: 0 | CQ31: 0 | CR31: 0 | CS31: 0 | CT31: 0 | CU31: 0 | CV31: 0 | CW31: 0 | CX31: 0 | CY31: 0 | CZ31: 0 | DA31: 0 | DB31: 0 | DC31: 0 | DD31: 0 | DE31: 0 | DF31: 0 | DG31: 0 | DH31: 0 | DI31: 0 | DJ31: 0
A32: 熊本県 | B32: 43432 | C32: 西原村 | D32: =SUM(E32,+L32) -> 0 | E32: =SUM(F32:I32)+K32 -> 0 | F32: 0 | G32: 0 | H32: 0 | I32: 0 | J32: - | K32: 0 | L32: 0 | M32: =SUM(N32,+U32) -> 0 | N32: =SUM(O32:R32)+T32 -> 0 | O32: 0 | P32: 0 | Q32: 0 | R32: 0 | S32: - | T32: 0 | U32: 0 | V32: 0 | W32: 0 | X32: 0 | Y32: 0 | Z32: 0 | AA32: 0 | AB32: - | AC32: 0 | AD32: 0 | AE32: =SUM(AF32,+AK32) -> 0 | AF32: =SUM(AG32:AJ32) -> 0 | AG32: 0 | AH32: 0 | AI32: 0 | AJ32: 0 | AK32: 0 | AL32: =組合分担金内訳!D32 -> 0 | AM32: =SUM(AN32,AS32,AW32,AX32,BD32) -> 0 | AN32: =SUM(AO32:AR32) -> 0 | AO32: 0 | AP32: 0 | AQ32: 0 | AR32: 0 | AS32: =SUM(AT32:AV32) -> 0 | AT32: 0 | AU32: 0 | AV32: 0 | AW32: 0 | AX32: =SUM(AY32:BB32) -> 0 | AY32: 0 | AZ32: 0 | BA32: 0 | BB32: 0 | BC32: =組合分担金内訳!E32 -> 0 | BD32: 0 | BE32: 0 | BF32: =SUM(AE32,+AM32,+BE32) -> 0 | BG32: =SUM(BH32,+BM32) -> 0 | BH32: =SUM(BI32:BL32) -> 0 | BI32: 0 | BJ32: 0 | BK32: 0 | BL32: 0 | BM32: 0 | BN32: =組合分担金内訳!G32 -> 0 | BO32: =SUM(BP32,BU32,BY32,BZ32,CF32) -> 0 | BP32: =SUM(BQ32:BT32) -> 0 | BQ32: 0 | BR32: 0 | BS32: 0 | BT32: 0 | BU32: =SUM(BV32:BX32) -> 0 | BV32: 0 | BW32: 0 | BX32: 0 | BY32: 0 | BZ32: =SUM(CA32:CD32) -> 0 | CA32: 0 | CB32: 0 | CC32: 0 | CD32: 0 | CE32: =組合分担金内訳!H32 -> 0 | CF32: 0 | CG32: 0 | CH32: =SUM(BG32,+BO32,+CG32) -> 0 | CI32: 0 | CJ32: 0 | CK32: 0 | CL32: 0 | CM32: 0 | CN32: 0 | CO32: 0 | CP32: 0 | CQ32: 0 | CR32: 0 | CS32: 0 | CT32: 0 | CU32: 0 | CV32: 0 | CW32: 0 | CX32: 0 | CY32: 0 | CZ32: 0 | DA32: 0 | DB32: 0 | DC32: 0 | DD32: 0 | DE32: 0 | DF32: 0 | DG32: 0 | DH32: 0 | DI32: 0 | DJ32: 0
A33: 熊本県 | B33: 43433 | C33: 南阿蘇村 | D33: =SUM(E33,+L33) -> 0 | E33: =SUM(F33:I33)+K33 -> 0 | F33: 0 | G33: 0 | H33: 0 | I33: 0 | J33: - | K33: 0 | L33: 0 | M33: =SUM(N33,+U33) -> 0 | N33: =SUM(O33:R33)+T33 -> 0 | O33: 0 | P33: 0 | Q33: 0 | R33: 0 | S33: - | T33: 0 | U33: 0 | V33: 0 | W33: 0 | X33: 0 | Y33: 0 | Z33: 0 | AA33: 0 | AB33: - | AC33: 0 | AD33: 0 | AE33: =SUM(AF33,+AK33) -> 0 | AF33: =SUM(AG33:AJ33) -> 0 | AG33: 0 | AH33: 0 | AI33: 0 | AJ33: 0 | AK33: 0 | AL33: =組合分担金内訳!D33 -> 0 | AM33: =SUM(AN33,AS33,AW33,AX33,BD33) -> 0 | AN33: =SUM(AO33:AR33) -> 0 | AO33: 0 | AP33: 0 | AQ33: 0 | AR33: 0 | AS33: =SUM(AT33:AV33) -> 0 | AT33: 0 | AU33: 0 | AV33: 0 | AW33: 0 | AX33: =SUM(AY33:BB33) -> 0 | AY33: 0 | AZ33: 0 | BA33: 0 | BB33: 0 | BC33: =組合分担金内訳!E33 -> 0 | BD33: 0 | BE33: 0 | BF33: =SUM(AE33,+AM33,+BE33) -> 0 | BG33: =SUM(BH33,+BM33) -> 0 | BH33: =SUM(BI33:BL33) -> 0 | BI33: 0 | BJ33: 0 | BK33: 0 | BL33: 0 | BM33: 0 | BN33: =組合分担金内訳!G33 -> 0 | BO33: =SUM(BP33,BU33,BY33,BZ33,CF33) -> 0 | BP33: =SUM(BQ33:BT33) -> 0 | BQ33: 0 | BR33: 0 | BS33: 0 | BT33: 0 | BU33: =SUM(BV33:BX33) -> 0 | BV33: 0 | BW33: 0 | BX33: 0 | BY33: 0 | BZ33: =SUM(CA33:CD33) -> 0 | CA33: 0 | CB33: 0 | CC33: 0 | CD33: 0 | CE33: =組合分担金内訳!H33 -> 0 | CF33: 0 | CG33: 0 | CH33: =SUM(BG33,+BO33,+CG33) -> 0 | CI33: 0 | CJ33: 0 | CK33: 0 | CL33: 0 | CM33: 0 | CN33: 0 | CO33: 0 | CP33: 0 | CQ33: 0 | CR33: 0 | CS33: 0 | CT33: 0 | CU33: 0 | CV33: 0 | CW33: 0 | CX33: 0 | CY33: 0 | CZ33: 0 | DA33: 0 | DB33: 0 | DC33: 0 | DD33: 0 | DE33: 0 | DF33: 0 | DG33: 0 | DH33: 0 | DI33: 0 | DJ33: 0
A34: 熊本県 | B34: 43441 | C34: 御船町 | D34: =SUM(E34,+L34) -> 0 | E34: =SUM(F34:I34)+K34 -> 0 | F34: 0 | G34: 0 | H34: 0 | I34: 0 | J34: - | K34: 0 | L34: 0 | M34: =SUM(N34,+U34) -> 0 | N34: =SUM(O34:R34)+T34 -> 0 | O34: 0 | P34: 0 | Q34: 0 | R34: 0 | S34: - | T34: 0 | U34: 0 | V34: 0 | W34: 0 | X34: 0 | Y34: 0 | Z34: 0 | AA34: 0 | AB34: - | AC34: 0 | AD34: 0 | AE34: =SUM(AF34,+AK34) -> 0 | AF34: =SUM(AG34:AJ34) -> 0 | AG34: 0 | AH34: 0 | AI34: 0 | AJ34: 0 | AK34: 0 | AL34: =組合分担金内訳!D34 -> 0 | AM34: =SUM(AN34,AS34,AW34,AX34,BD34) -> 0 | AN34: =SUM(AO34:AR34) -> 0 | AO34: 0 | AP34: 0 | AQ34: 0 | AR34: 0 | AS34: =SUM(AT34:AV34) -> 0 | AT34: 0 | AU34: 0 | AV34: 0 | AW34: 0 | AX34: =SUM(AY34:BB34) -> 0 | AY34: 0 | AZ34: 0 | BA34: 0 | BB34: 0 | BC34: =組合分担金内訳!E34 -> 0 | BD34: 0 | BE34: 0 | BF34: =SUM(AE34,+AM34,+BE34) -> 0 | BG34: =SUM(BH34,+BM34) -> 0 | BH34: =SUM(BI34:BL34) -> 0 | BI34: 0 | BJ34: 0 | BK34: 0 | BL34: 0 | BM34: 0 | BN34: =組合分担金内訳!G34 -> 0 | BO34: =SUM(BP34,BU34,BY34,BZ34,CF34) -> 0 | BP34: =SUM(BQ34:BT34) -> 0 | BQ34: 0 | BR34: 0 | BS34: 0 | BT34: 0 | BU34: =SUM(BV34:BX34) -> 0 | BV34: 0 | BW34: 0 | BX34: 0 | BY34: 0 | BZ34: =SUM(CA34:CD34) -> 0 | CA34: 0 | CB34: 0 | CC34: 0 | CD34: 0 | CE34: =組合分担金内訳!H34 -> 0 | CF34: 0 | CG34: 0 | CH34: =SUM(BG34,+BO34,+CG34) -> 0 | CI34: 0 | CJ34: 0 | CK34: 0 | CL34: 0 | CM34: 0 | CN34: 0 | CO34: 0 | CP34: 0 | CQ34: 0 | CR34: 0 | CS34: 0 | CT34: 0 | CU34: 0 | CV34: 0 | CW34: 0 | CX34: 0 | CY34: 0 | CZ34: 0 | DA34: 0 | DB34: 0 | DC34: 0 | DD34: 0 | DE34: 0 | DF34: 0 | DG34: 0 | DH34: 0 | DI34: 0 | DJ34: 0
A35: 熊本県 | B35: 43442 | C35: 嘉島町 | D35: =SUM(E35,+L35) -> 0 | E35: =SUM(F35:I35)+K35 -> 0 | F35: 0 | G35: 0 | H35: 0 | I35: 0 | J35: - | K35: 0 | L35: 0 | M35: =SUM(N35,+U35) -> 0 | N35: =SUM(O35:R35)+T35 -> 0 | O35: 0 | P35: 0 | Q35: 0 | R35: 0 | S35: - | T35: 0 | U35: 0 | V35: 0 | W35: 0 | X35: 0 | Y35: 0 | Z35: 0 | AA35: 0 | AB35: - | AC35: 0 | AD35: 0 | AE35: =SUM(AF35,+AK35) -> 0 | AF35: =SUM(AG35:AJ35) -> 0 | AG35: 0 | AH35: 0 | AI35: 0 | AJ35: 0 | AK35: 0 | AL35: =組合分担金内訳!D35 -> 0 | AM35: =SUM(AN35,AS35,AW35,AX35,BD35) -> 0 | AN35: =SUM(AO35:AR35) -> 0 | AO35: 0 | AP35: 0 | AQ35: 0 | AR35: 0 | AS35: =SUM(AT35:AV35) -> 0 | AT35: 0 | AU35: 0 | AV35: 0 | AW35: 0 | AX35: =SUM(AY35:BB35) -> 0 | AY35: 0 | AZ35: 0 | BA35: 0 | BB35: 0 | BC35: =組合分担金内訳!E35 -> 0 | BD35: 0 | BE35: 0 | BF35: =SUM(AE35,+AM35,+BE35) -> 0 | BG35: =SUM(BH35,+BM35) -> 0 | BH35: =SUM(BI35:BL35) -> 0 | BI35: 0 | BJ35: 0 | BK35: 0 | BL35: 0 | BM35: 0 | BN35: =組合分担金内訳!G35 -> 0 | BO35: =SUM(BP35,BU35,BY35,BZ35,CF35) -> 0 | BP35: =SUM(BQ35:BT35) -> 0 | BQ35: 0 | BR35: 0 | BS35: 0 | BT35: 0 | BU35: =SUM(BV35:BX35) -> 0 | BV35: 0 | BW35: 0 | BX35: 0 | BY35: 0 | BZ35: =SUM(CA35:CD35) -> 0 | CA35: 0 | CB35: 0 | CC35: 0 | CD35: 0 | CE35: =組合分担金内訳!H35 -> 0 | CF35: 0 | CG35: 0 | CH35: =SUM(BG35,+BO35,+CG35) -> 0 | CI35: 0 | CJ35: 0 | CK35: 0 | CL35: 0 | CM35: 0 | CN35: 0 | CO35: 0 | CP35: 0 | CQ35: 0 | CR35: 0 | CS35: 0 | CT35: 0 | CU35: 0 | CV35: 0 | CW35: 0 | CX35: 0 | CY35: 0 | CZ35: 0 | DA35: 0 | DB35: 0 | DC35: 0 | DD35: 0 | DE35: 0 | DF35: 0 | DG35: 0 | DH35: 0 | DI35: 0 | DJ35: 0
A36: 熊本県 | B36: 43443 | C36: 益城町 | D36: =SUM(E36,+L36) -> 0 | E36: =SUM(F36:I36)+K36 -> 0 | F36: 0 | G36: 0 | H36: 0 | I36: 0 | J36: - | K36: 0 | L36: 0 | M36: =SUM(N36,+U36) -> 0 | N36: =SUM(O36:R36)+T36 -> 0 | O36: 0 | P36: 0 | Q36: 0 | R36: 0 | S36: - | T36: 0 | U36: 0 | V36: 0 | W36: 0 | X36: 0 | Y36: 0 | Z36: 0 | AA36: 0 | AB36: - | AC36: 0 | AD36: 0 | AE36: =SUM(AF36,+AK36) -> 0 | AF36: =SUM(AG36:AJ36) -> 0 | AG36: 0 | AH36: 0 | AI36: 0 | AJ36: 0 | AK36: 0 | AL36: =組合分担金内訳!D36 -> 0 | AM36: =SUM(AN36,AS36,AW36,AX36,BD36) -> 0 | AN36: =SUM(AO36:AR36) -> 0 | AO36: 0 | AP36: 0 | AQ36: 0 | AR36: 0 | AS36: =SUM(AT36:AV36) -> 0 | AT36: 0 | AU36: 0 | AV36: 0 | AW36: 0 | AX36: =SUM(AY36:BB36) -> 0 | AY36: 0 | AZ36: 0 | BA36: 0 | BB36: 0 | BC36: =組合分担金内訳!E36 -> 0 | BD36: 0 | BE36: 0 | BF36: =SUM(AE36,+AM36,+BE36) -> 0 | BG36: =SUM(BH36,+BM36) -> 0 | BH36: =SUM(BI36:BL36) -> 0 | BI36: 0 | BJ36: 0 | BK36: 0 | BL36: 0 | BM36: 0 | BN36: =組合分担金内訳!G36 -> 0 | BO36: =SUM(BP36,BU36,BY36,BZ36,CF36) -> 0 | BP36: =SUM(BQ36:BT36) -> 0 | BQ36: 0 | BR36: 0 | BS36: 0 | BT36: 0 | BU36: =SUM(BV36:BX36) -> 0 | BV36: 0 | BW36: 0 | BX36: 0 | BY36: 0 | BZ36: =SUM(CA36:CD36) -> 0 | CA36: 0 | CB36: 0 | CC36: 0 | CD36: 0 | CE36: =組合分担金内訳!H36 -> 0 | CF36: 0 | CG36: 0 | CH36: =SUM(BG36,+BO36,+CG36) -> 0 | CI36: 0 | CJ36: 0 | CK36: 0 | CL36: 0 | CM36: 0 | CN36: 0 | CO36: 0 | CP36: 0 | CQ36: 0 | CR36: 0 | CS36: 0 | CT36: 0 | CU36: 0 | CV36: 0 | CW36: 0 | CX36: 0 | CY36: 0 | CZ36: 0 | DA36: 0 | DB36: 0 | DC36: 0 | DD36: 0 | DE36: 0 | DF36: 0 | DG36: 0 | DH36: 0 | DI36: 0 | DJ36: 0
A37: 熊本県 | B37: 43447 | C37: 山都町 | D37: =SUM(E37,+L37) -> 0 | E37: =SUM(F37:I37)+K37 -> 0 | F37: 0 | G37: 0 | H37: 0 | I37: 0 | J37: - | K37: 0 | L37: 0 | M37: =SUM(N37,+U37) -> 0 | N37: =SUM(O37:R37)+T37 -> 0 | O37: 0 | P37: 0 | Q37: 0 | R37: 0 | S37: - | T37: 0 | U37: 0 | V37: 0 | W37: 0 | X37: 0 | Y37: 0 | Z37: 0 | AA37: 0 | AB37: - | AC37: 0 | AD37: 0 | AE37: =SUM(AF37,+AK37) -> 0 | AF37: =SUM(AG37:AJ37) -> 0 | AG37: 0 | AH37: 0 | AI37: 0 | AJ37: 0 | AK37: 0 | AL37: =組合分担金内訳!D37 -> 0 | AM37: =SUM(AN37,AS37,AW37,AX37,BD37) -> 0 | AN37: =SUM(AO37:AR37) -> 0 | AO37: 0 | AP37: 0 | AQ37: 0 | AR37: 0 | AS37: =SUM(AT37:AV37) -> 0 | AT37: 0 | AU37: 0 | AV37: 0 | AW37: 0 | AX37: =SUM(AY37:BB37) -> 0 | AY37: 0 | AZ37: 0 | BA37: 0 | BB37: 0 | BC37: =組合分担金内訳!E37 -> 0 | BD37: 0 | BE37: 0 | BF37: =SUM(AE37,+AM37,+BE37) -> 0 | BG37: =SUM(BH37,+BM37) -> 0 | BH37: =SUM(BI37:BL37) -> 0 | BI37: 0 | BJ37: 0 | BK37: 0 | BL37: 0 | BM37: 0 | BN37: =組合分担金内訳!G37 -> 0 | BO37: =SUM(BP37,BU37,BY37,BZ37,CF37) -> 0 | BP37: =SUM(BQ37:BT37) -> 0 | BQ37: 0 | BR37: 0 | BS37: 0 | BT37: 0 | BU37: =SUM(BV37:BX37) -> 0 | BV37: 0 | BW37: 0 | BX37: 0 | BY37: 0 | BZ37: =SUM(CA37:CD37) -> 0 | CA37: 0 | CB37: 0 | CC37: 0 | CD37: 0 | CE37: =組合分担金内訳!H37 -> 0 | CF37: 0 | CG37: 0 | CH37: =SUM(BG37,+BO37,+CG37) -> 0 | CI37: 0 | CJ37: 0 | CK37: 0 | CL37: 0 | CM37: 0 | CN37: 0 | CO37: 0 | CP37: 0 | CQ37: 0 | CR37: 0 | CS37: 0 | CT37: 0 | CU37: 0 | CV37: 0 | CW37: 0 | CX37: 0 | CY37: 0 | CZ37: 0 | DA37: 0 | DB37: 0 | DC37: 0 | DD37: 0 | DE37: 0 | DF37: 0 | DG37: 0 | DH37: 0 | DI37: 0 | DJ37: 0
A38: 熊本県 | B38: 43468 | C38: 氷川町 | D38: =SUM(E38,+L38) -> 0 | E38: =SUM(F38:I38)+K38 -> 0 | F38: 0 | G38: 0 | H38: 0 | I38: 0 | J38: - | K38: 0 | L38: 0 | M38: =SUM(N38,+U38) -> 0 | N38: =SUM(O38:R38)+T38 -> 0 | O38: 0 | P38: 0 | Q38: 0 | R38: 0 | S38: - | T38: 0 | U38: 0 | V38: 0 | W38: 0 | X38: 0 | Y38: 0 | Z38: 0 | AA38: 0 | AB38: - | AC38: 0 | AD38: 0 | AE38: =SUM(AF38,+AK38) -> 0 | AF38: =SUM(AG38:AJ38) -> 0 | AG38: 0 | AH38: 0 | AI38: 0 | AJ38: 0 | AK38: 0 | AL38: =組合分担金内訳!D38 -> 0 | AM38: =SUM(AN38,AS38,AW38,AX38,BD38) -> 0 | AN38: =SUM(AO38:AR38) -> 0 | AO38: 0 | AP38: 0 | AQ38: 0 | AR38: 0 | AS38: =SUM(AT38:AV38) -> 0 | AT38: 0 | AU38: 0 | AV38: 0 | AW38: 0 | AX38: =SUM(AY38:BB38) -> 0 | AY38: 0 | AZ38: 0 | BA38: 0 | BB38: 0 | BC38: =組合分担金内訳!E38 -> 0 | BD38: 0 | BE38: 0 | BF38: =SUM(AE38,+AM38,+BE38) -> 0 | BG38: =SUM(BH38,+BM38) -> 0 | BH38: =SUM(BI38:BL38) -> 0 | BI38: 0 | BJ38: 0 | BK38: 0 | BL38: 0 | BM38: 0 | BN38: =組合分担金内訳!G38 -> 0 | BO38: =SUM(BP38,BU38,BY38,BZ38,CF38) -> 0 | BP38: =SUM(BQ38:BT38) -> 0 | BQ38: 0 | BR38: 0 | BS38: 0 | BT38: 0 | BU38: =SUM(BV38:BX38) -> 0 | BV38: 0 | BW38: 0 | BX38: 0 | BY38: 0 | BZ38: =SUM(CA38:CD38) -> 0 | CA38: 0 | CB38: 0 | CC38: 0 | CD38: 0 | CE38: =組合分担金内訳!H38 -> 0 | CF38: 0 | CG38: 0 | CH38: =SUM(BG38,+BO38,+CG38) -> 0 | CI38: 0 | CJ38: 0 | CK38: 0 | CL38: 0 | CM38: 0 | CN38: 0 | CO38: 0 | CP38: 0 | CQ38: 0 | CR38: 0 | CS38: 0 | CT38: 0 | CU38: 0 | CV38: 0 | CW38: 0 | CX38: 0 | CY38: 0 | CZ38: 0 | DA38: 0 | DB38: 0 | DC38: 0 | DD38: 0 | DE38: 0 | DF38: 0 | DG38: 0 | DH38: 0 | DI38: 0 | DJ38: 0
A39: 熊本県 | B39: 43482 | C39: 芦北町 | D39: =SUM(E39,+L39) -> 0 | E39: =SUM(F39:I39)+K39 -> 0 | F39: 0 | G39: 0 | H39: 0 | I39: 0 | J39: - | K39: 0 | L39: 0 | M39: =SUM(N39,+U39) -> 0 | N39: =SUM(O39:R39)+T39 -> 0 | O39: 0 | P39: 0 | Q39: 0 | R39: 0 | S39: - | T39: 0 | U39: 0 | V39: 0 | W39: 0 | X39: 0 | Y39: 0 | Z39: 0 | AA39: 0 | AB39: - | AC39: 0 | AD39: 0 | AE39: =SUM(AF39,+AK39) -> 0 | AF39: =SUM(AG39:AJ39) -> 0 | AG39: 0 | AH39: 0 | AI39: 0 | AJ39: 0 | AK39: 0 | AL39: =組合分担金内訳!D39 -> 0 | AM39: =SUM(AN39,AS39,AW39,AX39,BD39) -> 0 | AN39: =SUM(AO39:AR39) -> 0 | AO39: 0 | AP39: 0 | AQ39: 0 | AR39: 0 | AS39: =SUM(AT39:AV39) -> 0 | AT39: 0 | AU39: 0 | AV39: 0 | AW39: 0 | AX39: =SUM(AY39:BB39) -> 0 | AY39: 0 | AZ39: 0 | BA39: 0 | BB39: 0 | BC39: =組合分担金内訳!E39 -> 0 | BD39: 0 | BE39: 0 | BF39: =SUM(AE39,+AM39,+BE39) -> 0 | BG39: =SUM(BH39,+BM39) -> 0 | BH39: =SUM(BI39:BL39) -> 0 | BI39: 0 | BJ39: 0 | BK39: 0 | BL39: 0 | BM39: 0 | BN39: =組合分担金内訳!G39 -> 0 | BO39: =SUM(BP39,BU39,BY39,BZ39,CF39) -> 0 | BP39: =SUM(BQ39:BT39) -> 0 | BQ39: 0 | BR39: 0 | BS39: 0 | BT39: 0 | BU39: =SUM(BV39:BX39) -> 0 | BV39: 0 | BW39: 0 | BX39: 0 | BY39: 0 | BZ39: =SUM(CA39:CD39) -> 0 | CA39: 0 | CB39: 0 | CC39: 0 | CD39: 0 | CE39: =組合分担金内訳!H39 -> 0 | CF39: 0 | CG39: 0 | CH39: =SUM(BG39,+BO39,+CG39) -> 0 | CI39: 0 | CJ39: 0 | CK39: 0 | CL39: 0 | CM39: 0 | CN39: 0 | CO39: 0 | CP39: 0 | CQ39: 0 | CR39: 0 | CS39: 0 | CT39: 0 | CU39: 0 | CV39: 0 | CW39: 0 | CX39: 0 | CY39: 0 | CZ39: 0 | DA39: 0 | DB39: 0 | DC39: 0 | DD39: 0 | DE39: 0 | DF39: 0 | DG39: 0 | DH39: 0 | DI39: 0 | DJ39: 0
A40: 熊本県 | B40: 43501 | C40: 錦町 | D40: =SUM(E40,+L40) -> 26,000 | E40: =SUM(F40:I40)+K40 -> 26,000 | F40: 13,000 | G40: 0 | H40: 13,000 | I40: 0 | J40: - | K40: 0 | L40: 0 | M40: =SUM(N40,+U40) -> 0 | N40: =SUM(O40:R40)+T40 -> 0 | O40: 0 | P40: 0 | Q40: 0 | R40: 0 | S40: - | T40: 0 | U40: 0 | V40: 26,000 | W40: 26,000 | X40: 13,000 | Y40: 0 | Z40: 13,000 | AA40: 0 | AB40: - | AC40: 0 | AD40: 0 | AE40: =SUM(AF40,+AK40) -> 26,000 | AF40: =SUM(AG40:AJ40) -> 26,000 | AG40: 0 | AH40: 0 | AI40: 0 | AJ40: 26,000 | AK40: 0 | AL40: =組合分担金内訳!D40 -> 0 | AM40: =SUM(AN40,AS40,AW40,AX40,BD40) -> 0 | AN40: =SUM(AO40:AR40) -> 0 | AO40: 0 | AP40: 0 | AQ40: 0 | AR40: 0 | AS40: =SUM(AT40:AV40) -> 0 | AT40: 0 | AU40: 0 | AV40: 0 | AW40: 0 | AX40: =SUM(AY40:BB40) -> 0 | AY40: 0 | AZ40: 0 | BA40: 0 | BB40: 0 | BC40: =組合分担金内訳!E40 -> 0 | BD40: 0 | BE40: 0 | BF40: =SUM(AE40,+AM40,+BE40) -> 26,000 | BG40: =SUM(BH40,+BM40) -> 0 | BH40: =SUM(BI40:BL40) -> 0 | BI40: 0 | BJ40: 0 | BK40: 0 | BL40: 0 | BM40: 0 | BN40: =組合分担金内訳!G40 -> 0 | BO40: =SUM(BP40,BU40,BY40,BZ40,CF40) -> 0 | BP40: =SUM(BQ40:BT40) -> 0 | BQ40: 0 | BR40: 0 | BS40: 0 | BT40: 0 | BU40: =SUM(BV40:BX40) -> 0 | BV40: 0 | BW40: 0 | BX40: 0 | BY40: 0 | BZ40: =SUM(CA40:CD40) -> 0 | CA40: 0 | CB40: 0 | CC40: 0 | CD40: 0 | CE40: =組合分担金内訳!H40 -> 0 | CF40: 0 | CG40: 0 | CH40: =SUM(BG40,+BO40,+CG40) -> 0 | CI40: 26,000 | CJ40: 26,000 | CK40: 0 | CL40: 0 | CM40: 0 | CN40: 26,000 | CO40: 0 | CP40: 0 | CQ40: 0 | CR40: 0 | CS40: 0 | CT40: 0 | CU40: 0 | CV40: 0 | CW40: 0 | CX40: 0 | CY40: 0 | CZ40: 0 | DA40: 0 | DB40: 0 | DC40: 0 | DD40: 0 | DE40: 0 | DF40: 0 | DG40: 0 | DH40: 0 | DI40: 0 | DJ40: 26,000
A41: 熊本県 | B41: 43505 | C41: 多良木町 | D41: =SUM(E41,+L41) -> 2,783 | E41: =SUM(F41:I41)+K41 -> 1,391 | F41: 1,391 | G41: 0 | H41: 0 | I41: 0 | J41: - | K41: 0 | L41: 1,392 | M41: =SUM(N41,+U41) -> 0 | N41: =SUM(O41:R41)+T41 -> 0 | O41: 0 | P41: 0 | Q41: 0 | R41: 0 | S41: - | T41: 0 | U41: 0 | V41: 2,783 | W41: 1,391 | X41: 1,391 | Y41: 0 | Z41: 0 | AA41: 0 | AB41: - | AC41: 0 | AD41: 1,392 | AE41: =SUM(AF41,+AK41) -> 0 | AF41: =SUM(AG41:AJ41) -> 0 | AG41: 0 | AH41: 0 | AI41: 0 | AJ41: 0 | AK41: 0 | AL41: =組合分担金内訳!D41 -> 0 | AM41: =SUM(AN41,AS41,AW41,AX41,BD41) -> 2,783 | AN41: =SUM(AO41:AR41) -> 0 | AO41: 0 | AP41: 0 | AQ41: 0 | AR41: 0 | AS41: =SUM(AT41:AV41) -> 9 | AT41: 0 | AU41: 9 | AV41: 0 | AW41: 0 | AX41: =SUM(AY41:BB41) -> 2,774 | AY41: 0 | AZ41: 2,774 | BA41: 0 | BB41: 0 | BC41: =組合分担金内訳!E41 -> 0 | BD41: 0 | BE41: 0 | BF41: =SUM(AE41,+AM41,+BE41) -> 2,783 | BG41: =SUM(BH41,+BM41) -> 0 | BH41: =SUM(BI41:BL41) -> 0 | BI41: 0 | BJ41: 0 | BK41: 0 | BL41: 0 | BM41: 0 | BN41: =組合分担金内訳!G41 -> 0 | BO41: =SUM(BP41,BU41,BY41,BZ41,CF41) -> 0 | BP41: =SUM(BQ41:BT41) -> 0 | BQ41: 0 | BR41: 0 | BS41: 0 | BT41: 0 | BU41: =SUM(BV41:BX41) -> 0 | BV41: 0 | BW41: 0 | BX41: 0 | BY41: 0 | BZ41: =SUM(CA41:CD41) -> 0 | CA41: 0 | CB41: 0 | CC41: 0 | CD41: 0 | CE41: =組合分担金内訳!H41 -> 0 | CF41: 0 | CG41: 0 | CH41: =SUM(BG41,+BO41,+CG41) -> 0 | CI41: 0 | CJ41: 0 | CK41: 0 | CL41: 0 | CM41: 0 | CN41: 0 | CO41: 0 | CP41: 0 | CQ41: 2,783 | CR41: 0 | CS41: 0 | CT41: 0 | CU41: 0 | CV41: 0 | CW41: 9 | CX41: 0 | CY41: 9 | CZ41: 0 | DA41: 0 | DB41: 2,774 | DC41: 0 | DD41: 2,774 | DE41: 0 | DF41: 0 | DG41: 0 | DH41: 0 | DI41: 0 | DJ41: 2,783
A42: 熊本県 | B42: 43506 | C42: 湯前町 | D42: =SUM(E42,+L42) -> 1,669 | E42: =SUM(F42:I42)+K42 -> 824 | F42: 824 | G42: 0 | H42: 0 | I42: 0 | J42: - | K42: 0 | L42: 845 | M42: =SUM(N42,+U42) -> 0 | N42: =SUM(O42:R42)+T42 -> 0 | O42: 0 | P42: 0 | Q42: 0 | R42: 0 | S42: - | T42: 0 | U42: 0 | V42: 1,669 | W42: 824 | X42: 824 | Y42: 0 | Z42: 0 | AA42: 0 | AB42: - | AC42: 0 | AD42: 845 | AE42: =SUM(AF42,+AK42) -> 1,031 | AF42: =SUM(AG42:AJ42) -> 1,031 | AG42: 1,031 | AH42: 0 | AI42: 0 | AJ42: 0 | AK42: 0 | AL42: =組合分担金内訳!D42 -> 0 | AM42: =SUM(AN42,AS42,AW42,AX42,BD42) -> 638 | AN42: =SUM(AO42:AR42) -> 0 | AO42: 0 | AP42: 0 | AQ42: 0 | AR42: 0 | AS42: =SUM(AT42:AV42) -> 20 | AT42: 20 | AU42: 0 | AV42: 0 | AW42: 0 | AX42: =SUM(AY42:BB42) -> 618 | AY42: 618 | AZ42: 0 | BA42: 0 | BB42: 0 | BC42: =組合分担金内訳!E42 -> 0 | BD42: 0 | BE42: 0 | BF42: =SUM(AE42,+AM42,+BE42) -> 1,669 | BG42: =SUM(BH42,+BM42) -> 0 | BH42: =SUM(BI42:BL42) -> 0 | BI42: 0 | BJ42: 0 | BK42: 0 | BL42: 0 | BM42: 0 | BN42: =組合分担金内訳!G42 -> 0 | BO42: =SUM(BP42,BU42,BY42,BZ42,CF42) -> 0 | BP42: =SUM(BQ42:BT42) -> 0 | BQ42: 0 | BR42: 0 | BS42: 0 | BT42: 0 | BU42: =SUM(BV42:BX42) -> 0 | BV42: 0 | BW42: 0 | BX42: 0 | BY42: 0 | BZ42: =SUM(CA42:CD42) -> 0 | CA42: 0 | CB42: 0 | CC42: 0 | CD42: 0 | CE42: =組合分担金内訳!H42 -> 0 | CF42: 0 | CG42: 0 | CH42: =SUM(BG42,+BO42,+CG42) -> 0 | CI42: 1,031 | CJ42: 1,031 | CK42: 1,031 | CL42: 0 | CM42: 0 | CN42: 0 | CO42: 0 | CP42: 0 | CQ42: 638 | CR42: 0 | CS42: 0 | CT42: 0 | CU42: 0 | CV42: 0 | CW42: 20 | CX42: 20 | CY42: 0 | CZ42: 0 | DA42: 0 | DB42: 618 | DC42: 618 | DD42: 0 | DE42: 0 | DF42: 0 | DG42: 0 | DH42: 0 | DI42: 0 | DJ42: 1,669
A43: 熊本県 | B43: 43507 | C43: 水上村 | D43: =SUM(E43,+L43) -> 0 | E43: =SUM(F43:I43)+K43 -> 0 | F43: 0 | G43: 0 | H43: 0 | I43: 0 | J43: - | K43: 0 | L43: 0 | M43: =SUM(N43,+U43) -> 0 | N43: =SUM(O43:R43)+T43 -> 0 | O43: 0 | P43: 0 | Q43: 0 | R43: 0 | S43: - | T43: 0 | U43: 0 | V43: 0 | W43: 0 | X43: 0 | Y43: 0 | Z43: 0 | AA43: 0 | AB43: - | AC43: 0 | AD43: 0 | AE43: =SUM(AF43,+AK43) -> 0 | AF43: =SUM(AG43:AJ43) -> 0 | AG43: 0 | AH43: 0 | AI43: 0 | AJ43: 0 | AK43: 0 | AL43: =組合分担金内訳!D43 -> 0 | AM43: =SUM(AN43,AS43,AW43,AX43,BD43) -> 0 | AN43: =SUM(AO43:AR43) -> 0 | AO43: 0 | AP43: 0 | AQ43: 0 | AR43: 0 | AS43: =SUM(AT43:AV43) -> 0 | AT43: 0 | AU43: 0 | AV43: 0 | AW43: 0 | AX43: =SUM(AY43:BB43) -> 0 | AY43: 0 | AZ43: 0 | BA43: 0 | BB43: 0 | BC43: =組合分担金内訳!E43 -> 0 | BD43: 0 | BE43: 0 | BF43: =SUM(AE43,+AM43,+BE43) -> 0 | BG43: =SUM(BH43,+BM43) -> 0 | BH43: =SUM(BI43:BL43) -> 0 | BI43: 0 | BJ43: 0 | BK43: 0 | BL43: 0 | BM43: 0 | BN43: =組合分担金内訳!G43 -> 0 | BO43: =SUM(BP43,BU43,BY43,BZ43,CF43) -> 0 | BP43: =SUM(BQ43:BT43) -> 0 | BQ43: 0 | BR43: 0 | BS43: 0 | BT43: 0 | BU43: =SUM(BV43:BX43) -> 0 | BV43: 0 | BW43: 0 | BX43: 0 | BY43: 0 | BZ43: =SUM(CA43:CD43) -> 0 | CA43: 0 | CB43: 0 | CC43: 0 | CD43: 0 | CE43: =組合分担金内訳!H43 -> 0 | CF43: 0 | CG43: 0 | CH43: =SUM(BG43,+BO43,+CG43) -> 0 | CI43: 0 | CJ43: 0 | CK43: 0 | CL43: 0 | CM43: 0 | CN43: 0 | CO43: 0 | CP43: 0 | CQ43: 0 | CR43: 0 | CS43: 0 | CT43: 0 | CU43: 0 | CV43: 0 | CW43: 0 | CX43: 0 | CY43: 0 | CZ43: 0 | DA43: 0 | DB43: 0 | DC43: 0 | DD43: 0 | DE43: 0 | DF43: 0 | DG43: 0 | DH43: 0 | DI43: 0 | DJ43: 0
A44: 熊本県 | B44: 43510 | C44: 相良村 | D44: =SUM(E44,+L44) -> 0 | E44: =SUM(F44:I44)+K44 -> 0 | F44: 0 | G44: 0 | H44: 0 | I44: 0 | J44: - | K44: 0 | L44: 0 | M44: =SUM(N44,+U44) -> 0 | N44: =SUM(O44:R44)+T44 -> 0 | O44: 0 | P44: 0 | Q44: 0 | R44: 0 | S44: - | T44: 0 | U44: 0 | V44: 0 | W44: 0 | X44: 0 | Y44: 0 | Z44: 0 | AA44: 0 | AB44: - | AC44: 0 | AD44: 0 | AE44: =SUM(AF44,+AK44) -> 0 | AF44: =SUM(AG44:AJ44) -> 0 | AG44: 0 | AH44: 0 | AI44: 0 | AJ44: 0 | AK44: 0 | AL44: =組合分担金内訳!D44 -> 0 | AM44: =SUM(AN44,AS44,AW44,AX44,BD44) -> 0 | AN44: =SUM(AO44:AR44) -> 0 | AO44: 0 | AP44: 0 | AQ44: 0 | AR44: 0 | AS44: =SUM(AT44:AV44) -> 0 | AT44: 0 | AU44: 0 | AV44: 0 | AW44: 0 | AX44: =SUM(AY44:BB44) -> 0 | AY44: 0 | AZ44: 0 | BA44: 0 | BB44: 0 | BC44: =組合分担金内訳!E44 -> 0 | BD44: 0 | BE44: 0 | BF44: =SUM(AE44,+AM44,+BE44) -> 0 | BG44: =SUM(BH44,+BM44) -> 0 | BH44: =SUM(BI44:BL44) -> 0 | BI44: 0 | BJ44: 0 | BK44: 0 | BL44: 0 | BM44: 0 | BN44: =組合分担金内訳!G44 -> 0 | BO44: =SUM(BP44,BU44,BY44,BZ44,CF44) -> 0 | BP44: =SUM(BQ44:BT44) -> 0 | BQ44: 0 | BR44: 0 | BS44: 0 | BT44: 0 | BU44: =SUM(BV44:BX44) -> 0 | BV44: 0 | BW44: 0 | BX44: 0 | BY44: 0 | BZ44: =SUM(CA44:CD44) -> 0 | CA44: 0 | CB44: 0 | CC44: 0 | CD44: 0 | CE44: =組合分担金内訳!H44 -> 0 | CF44: 0 | CG44: 0 | CH44: =SUM(BG44,+BO44,+CG44) -> 0 | CI44: 0 | CJ44: 0 | CK44: 0 | CL44: 0 | CM44: 0 | CN44: 0 | CO44: 0 | CP44: 0 | CQ44: 0 | CR44: 0 | CS44: 0 | CT44: 0 | CU44: 0 | CV44: 0 | CW44: 0 | CX44: 0 | CY44: 0 | CZ44: 0 | DA44: 0 | DB44: 0 | DC44: 0 | DD44: 0 | DE44: 0 | DF44: 0 | DG44: 0 | DH44: 0 | DI44: 0 | DJ44: 0
A45: 熊本県 | B45: 43511 | C45: 五木村 | D45: =SUM(E45,+L45) -> 618 | E45: =SUM(F45:I45)+K45 -> 309 | F45: 309 | G45: 0 | H45: 0 | I45: 0 | J45: - | K45: 0 | L45: 309 | M45: =SUM(N45,+U45) -> 0 | N45: =SUM(O45:R45)+T45 -> 0 | O45: 0 | P45: 0 | Q45: 0 | R45: 0 | S45: - | T45: 0 | U45: 0 | V45: 618 | W45: 309 | X45: 309 | Y45: 0 | Z45: 0 | AA45: 0 | AB45: - | AC45: 0 | AD45: 309 | AE45: =SUM(AF45,+AK45) -> 0 | AF45: =SUM(AG45:AJ45) -> 0 | AG45: 0 | AH45: 0 | AI45: 0 | AJ45: 0 | AK45: 0 | AL45: =組合分担金内訳!D45 -> 0 | AM45: =SUM(AN45,AS45,AW45,AX45,BD45) -> 618 | AN45: =SUM(AO45:AR45) -> 0 | AO45: 0 | AP45: 0 | AQ45: 0 | AR45: 0 | AS45: =SUM(AT45:AV45) -> 0 | AT45: 0 | AU45: 0 | AV45: 0 | AW45: 0 | AX45: =SUM(AY45:BB45) -> 618 | AY45: 0 | AZ45: 0 | BA45: 0 | BB45: 618 | BC45: =組合分担金内訳!E45 -> 0 | BD45: 0 | BE45: 0 | BF45: =SUM(AE45,+AM45,+BE45) -> 618 | BG45: =SUM(BH45,+BM45) -> 0 | BH45: =SUM(BI45:BL45) -> 0 | BI45: 0 | BJ45: 0 | BK45: 0 | BL45: 0 | BM45: 0 | BN45: =組合分担金内訳!G45 -> 0 | BO45: =SUM(BP45,BU45,BY45,BZ45,CF45) -> 0 | BP45: =SUM(BQ45:BT45) -> 0 | BQ45: 0 | BR45: 0 | BS45: 0 | BT45: 0 | BU45: =SUM(BV45:BX45) -> 0 | BV45: 0 | BW45: 0 | BX45: 0 | BY45: 0 | BZ45: =SUM(CA45:CD45) -> 0 | CA45: 0 | CB45: 0 | CC45: 0 | CD45: 0 | CE45: =組合分担金内訳!H45 -> 0 | CF45: 0 | CG45: 0 | CH45: =SUM(BG45,+BO45,+CG45) -> 0 | CI45: 0 | CJ45: 0 | CK45: 0 | CL45: 0 | CM45: 0 | CN45: 0 | CO45: 0 | CP45: 0 | CQ45: 618 | CR45: 0 | CS45: 0 | CT45: 0 | CU45: 0 | CV45: 0 | CW45: 0 | CX45: 0 | CY45: 0 | CZ45: 0 | DA45: 0 | DB45: 618 | DC45: 0 | DD45: 0 | DE45: 0 | DF45: 618 | DG45: 0 | DH45: 0 | DI45: 0 | DJ45: 618
A46: 熊本県 | B46: 43512 | C46: 山江村 | D46: =SUM(E46,+L46) -> 0 | E46: =SUM(F46:I46)+K46 -> 0 | F46: 0 | G46: 0 | H46: 0 | I46: 0 | J46: - | K46: 0 | L46: 0 | M46: =SUM(N46,+U46) -> 0 | N46: =SUM(O46:R46)+T46 -> 0 | O46: 0 | P46: 0 | Q46: 0 | R46: 0 | S46: - | T46: 0 | U46: 0 | V46: 0 | W46: 0 | X46: 0 | Y46: 0 | Z46: 0 | AA46: 0 | AB46: - | AC46: 0 | AD46: 0 | AE46: =SUM(AF46,+AK46) -> 0 | AF46: =SUM(AG46:AJ46) -> 0 | AG46: 0 | AH46: 0 | AI46: 0 | AJ46: 0 | AK46: 0 | AL46: =組合分担金内訳!D46 -> 0 | AM46: =SUM(AN46,AS46,AW46,AX46,BD46) -> 0 | AN46: =SUM(AO46:AR46) -> 0 | AO46: 0 | AP46: 0 | AQ46: 0 | AR46: 0 | AS46: =SUM(AT46:AV46) -> 0 | AT46: 0 | AU46: 0 | AV46: 0 | AW46: 0 | AX46: =SUM(AY46:BB46) -> 0 | AY46: 0 | AZ46: 0 | BA46: 0 | BB46: 0 | BC46: =組合分担金内訳!E46 -> 0 | BD46: 0 | BE46: 0 | BF46: =SUM(AE46,+AM46,+BE46) -> 0 | BG46: =SUM(BH46,+BM46) -> 0 | BH46: =SUM(BI46:BL46) -> 0 | BI46: 0 | BJ46: 0 | BK46: 0 | BL46: 0 | BM46: 0 | BN46: =組合分担金内訳!G46 -> 0 | BO46: =SUM(BP46,BU46,BY46,BZ46,CF46) -> 0 | BP46: =SUM(BQ46:BT46) -> 0 | BQ46: 0 | BR46: 0 | BS46: 0 | BT46: 0 | BU46: =SUM(BV46:BX46) -> 0 | BV46: 0 | BW46: 0 | BX46: 0 | BY46: 0 | BZ46: =SUM(CA46:CD46) -> 0 | CA46: 0 | CB46: 0 | CC46: 0 | CD46: 0 | CE46: =組合分担金内訳!H46 -> 0 | CF46: 0 | CG46: 0 | CH46: =SUM(BG46,+BO46,+CG46) -> 0 | CI46: 0 | CJ46: 0 | CK46: 0 | CL46: 0 | CM46: 0 | CN46: 0 | CO46: 0 | CP46: 0 | CQ46: 0 | CR46: 0 | CS46: 0 | CT46: 0 | CU46: 0 | CV46: 0 | CW46: 0 | CX46: 0 | CY46: 0 | CZ46: 0 | DA46: 0 | DB46: 0 | DC46: 0 | DD46: 0 | DE46: 0 | DF46: 0 | DG46: 0 | DH46: 0 | DI46: 0 | DJ46: 0
A47: 熊本県 | B47: 43513 | C47: 球磨村 | D47: =SUM(E47,+L47) -> 0 | E47: =SUM(F47:I47)+K47 -> 0 | F47: 0 | G47: 0 | H47: 0 | I47: 0 | J47: - | K47: 0 | L47: 0 | M47: =SUM(N47,+U47) -> 0 | N47: =SUM(O47:R47)+T47 -> 0 | O47: 0 | P47: 0 | Q47: 0 | R47: 0 | S47: - | T47: 0 | U47: 0 | V47: 0 | W47: 0 | X47: 0 | Y47: 0 | Z47: 0 | AA47: 0 | AB47: - | AC47: 0 | AD47: 0 | AE47: =SUM(AF47,+AK47) -> 0 | AF47: =SUM(AG47:AJ47) -> 0 | AG47: 0 | AH47: 0 | AI47: 0 | AJ47: 0 | AK47: 0 | AL47: =組合分担金内訳!D47 -> 0 | AM47: =SUM(AN47,AS47,AW47,AX47,BD47) -> 0 | AN47: =SUM(AO47:AR47) -> 0 | AO47: 0 | AP47: 0 | AQ47: 0 | AR47: 0 | AS47: =SUM(AT47:AV47) -> 0 | AT47: 0 | AU47: 0 | AV47: 0 | AW47: 0 | AX47: =SUM(AY47:BB47) -> 0 | AY47: 0 | AZ47: 0 | BA47: 0 | BB47: 0 | BC47: =組合分担金内訳!E47 -> 0 | BD47: 0 | BE47: 0 | BF47: =SUM(AE47,+AM47,+BE47) -> 0 | BG47: =SUM(BH47,+BM47) -> 0 | BH47: =SUM(BI47:BL47) -> 0 | BI47: 0 | BJ47: 0 | BK47: 0 | BL47: 0 | BM47: 0 | BN47: =組合分担金内訳!G47 -> 0 | BO47: =SUM(BP47,BU47,BY47,BZ47,CF47) -> 0 | BP47: =SUM(BQ47:BT47) -> 0 | BQ47: 0 | BR47: 0 | BS47: 0 | BT47: 0 | BU47: =SUM(BV47:BX47) -> 0 | BV47: 0 | BW47: 0 | BX47: 0 | BY47: 0 | BZ47: =SUM(CA47:CD47) -> 0 | CA47: 0 | CB47: 0 | CC47: 0 | CD47: 0 | CE47: =組合分担金内訳!H47 -> 0 | CF47: 0 | CG47: 0 | CH47: =SUM(BG47,+BO47,+CG47) -> 0 | CI47: 0 | CJ47: 0 | CK47: 0 | CL47: 0 | CM47: 0 | CN47: 0 | CO47: 0 | CP47: 0 | CQ47: 0 | CR47: 0 | CS47: 0 | CT47: 0 | CU47: 0 | CV47: 0 | CW47: 0 | CX47: 0 | CY47: 0 | CZ47: 0 | DA47: 0 | DB47: 0 | DC47: 0 | DD47: 0 | DE47: 0 | DF47: 0 | DG47: 0 | DH47: 0 | DI47: 0 | DJ47: 0
A48: 熊本県 | B48: 43531 | C48: 苓北町 | D48: =SUM(E48,+L48) -> 0 | E48: =SUM(F48:I48)+K48 -> 0 | F48: 0 | G48: 0 | H48: 0 | I48: 0 | J48: - | K48: 0 | L48: 0 | M48: =SUM(N48,+U48) -> 0 | N48: =SUM(O48:R48)+T48 -> 0 | O48: 0 | P48: 0 | Q48: 0 | R48: 0 | S48: - | T48: 0 | U48: 0 | V48: 0 | W48: 0 | X48: 0 | Y48: 0 | Z48: 0 | AA48: 0 | AB48: - | AC48: 0 | AD48: 0 | AE48: =SUM(AF48,+AK48) -> 0 | AF48: =SUM(AG48:AJ48) -> 0 | AG48: 0 | AH48: 0 | AI48: 0 | AJ48: 0 | AK48: 0 | AL48: =組合分担金内訳!D48 -> 0 | AM48: =SUM(AN48,AS48,AW48,AX48,BD48) -> 0 | AN48: =SUM(AO48:AR48) -> 0 | AO48: 0 | AP48: 0 | AQ48: 0 | AR48: 0 | AS48: =SUM(AT48:AV48) -> 0 | AT48: 0 | AU48: 0 | AV48: 0 | AW48: 0 | AX48: =SUM(AY48:BB48) -> 0 | AY48: 0 | AZ48: 0 | BA48: 0 | BB48: 0 | BC48: =組合分担金内訳!E48 -> 0 | BD48: 0 | BE48: 0 | BF48: =SUM(AE48,+AM48,+BE48) -> 0 | BG48: =SUM(BH48,+BM48) -> 0 | BH48: =SUM(BI48:BL48) -> 0 | BI48: 0 | BJ48: 0 | BK48: 0 | BL48: 0 | BM48: 0 | BN48: =組合分担金内訳!G48 -> 0 | BO48: =SUM(BP48,BU48,BY48,BZ48,CF48) -> 0 | BP48: =SUM(BQ48:BT48) -> 0 | BQ48: 0 | BR48: 0 | BS48: 0 | BT48: 0 | BU48: =SUM(BV48:BX48) -> 0 | BV48: 0 | BW48: 0 | BX48: 0 | BY48: 0 | BZ48: =SUM(CA48:CD48) -> 0 | CA48: 0 | CB48: 0 | CC48: 0 | CD48: 0 | CE48: =組合分担金内訳!H48 -> 0 | CF48: 0 | CG48: 0 | CH48: =SUM(BG48,+BO48,+CG48) -> 0 | CI48: 0 | CJ48: 0 | CK48: 0 | CL48: 0 | CM48: 0 | CN48: 0 | CO48: 0 | CP48: 0 | CQ48: 0 | CR48: 0 | CS48: 0 | CT48: 0 | CU48: 0 | CV48: 0 | CW48: 0 | CX48: 0 | CY48: 0 | CZ48: 0 | DA48: 0 | DB48: 0 | DC48: 0 | DD48: 0 | DE48: 0 | DF48: 0 | DG48: 0 | DH48: 0 | DI48: 0 | DJ48: 0

Sheet 災害廃棄物事業経費（組合）
A1: 【災害】廃棄物処理事業経費（一部事務組合・広域連合の合計）（令和4年度実績）
A2: 都道府県名 | B2: 地方公共団体コード | C2: 一部事務組合・広域連合名 | D2: ごみ | M2: し尿 | V2: 合計 | AE2: ごみ（建設改良費＋処理維持管理費＋その他）（組合分担金を除く） | BG2: し尿（建設改良費＋処理維持管理費＋その他）（組合分担金を除く） | CI2: 合計（建設改良費＋処理維持管理費＋その他）（組合分担金を除く）
D3: 合計 (特定財源(市区町村分担金を除く)+一般財源) | M3: 合計 (特定財源(市区町村分担金を除く)+一般財源) | V3: 合計 (特定財源(市区町村分担金を除く)+一般財源) | AE3: 建設改良費 (工事費+調査費)(組合分担金を除く) | AM3: 処理及び維持管理費 (人件費+処理費+車両購入費+委託費+調査研究費)(組合分担金を除く) | BE3: その他 | BF3: 合計 | BG3: 建設改良費 (工事費+調査費)(組合分担金を除く) | BO3: 処理及び維持管理費 (人件費+処理費+車両購入費+委託費+調査研究費)(組合分担金を除く) | CG3: その他 | CH3: 合計 | CI3: 建設改良費 (工事費+調査費)(組合分担金を除く) | CQ3: 処理及び維持管理費 (人件費+処理費+車両購入費+委託費+調査研究費)(組合分担金を除く) | DI3: その他 | DJ3: 合計
E4: 特定財源 (市区町村分担金を除く) | L4: 一般財源 | N4: 特定財源 (市区町村分担金を除く) | U4: 一般財源 | W4: 特定財源 (市区町村分担金を除く) | AD4: 一般財源 | AE4: 合計 | AF4: 工事費 (収集運搬施設+中間処理施設+最終処分場+その他) | AK4: 調査費 | AL4: （建設改良費組合分担金） | AM4: 合計 | AN4: 人件費（一般職＋収集運搬＋中間処理＋最終処分） | AS4: 処理費 (収集運搬費+中間処理費+最終処分費) | AW4: 車両等購入費 | AX4: 委託費 (収集運搬費+中間処理費+最終処分費+その他) | BC4: (組合分担金) | BD4: 調査研究費 | BG4: 合計 | BH4: 工事費 (収集運搬施設+中間処理施設+最終処分場+その他) | BM4: 調査費 | BN4: （建設改良費組合分担金） | BO4: 合計 | BP4: 人件費（一般職＋収集運搬＋中間処理＋最終処分） | BU4: 処理費 (収集運搬費+中間処理費+最終処分費) | BY4: 車両等購入費 | BZ4: 委託費 (収集運搬費+中間処理費+最終処分費+その他) | CE4: (組合分担金) | CF4: 調査研究費 | CI4: 合計 | CJ4: 工事費 (収集運搬施設+中間処理施設+最終処分場+その他) | CO4: 調査費 | CP4: （建設改良費組合分担金） | CQ4: 合計 | CR4: 人件費（一般職＋収集運搬＋中間処理＋最終処分） | CW4: 処理費 (収集運搬費+中間処理費+最終処分費) | DA4: 車両等購入費 | DB4: 委託費 (収集運搬費+中間処理費+最終処分費+その他) | DG4: (組合分担金) | DH4: 調査研究費
E5: 合計 | F5: 国庫支出金 | G5: 都道府県 支出金 | H5: 地方債 | I5: 使用料及び 手数料 | J5: （市区町村 分担金） | K5: その他 | N5: 合計 | O5: 国庫支出金 | P5: 都道府県 支出金 | Q5: 地方債 | R5: 使用料及び 手数料 | S5: （市区町村 分担金） | T5: その他 | W5: 合計 | X5: 国庫支出金 | Y5: 都道府県 支出金 | Z5: 地方債 | AA5: 使用料及び 手数料 | AB5: （市区町村 分担金） | AC5: その他 | AF5: 合計 | AG5: 収集運搬施設 | AH5: 中間処理施設 | AI5: 最終処分場 | AJ5: その他 | AN5: 合計 | AO5: 一般職 | AP5: 収集運搬 | AQ5: 中間処理 | AR5: 最終処分 | AS5: 合計 | AT5: 収集運搬費 | AU5: 中間処理費 | AV5: 最終処分費 | AX5: 合計 | AY5: 収集運搬費 | AZ5: 中間処理費 | BA5: 最終処分費 | BB5: その他 | BH5: 合計 | BI5: 収集運搬施設 | BJ5: 中間処理施設 | BK5: 最終処分場 | BL5: その他 | BP5: 合計 | BQ5: 一般職 | BR5: 収集運搬 | BS5: 中間処理 | BT5: 最終処分 | BU5: 合計 | BV5: 収集運搬費 | BW5: 中間処理費 | BX5: 最終処分費 | BZ5: 合計 | CA5: 収集運搬費 | CB5: 中間処理費 | CC5: 最終処分費 | CD5: その他 | CJ5: 合計 | CK5: 収集運搬施設 | CL5: 中間処理施設 | CM5: 最終処分場 | CN5: その他 | CR5: 合計 | CS5: 一般職 | CT5: 収集運搬 | CU5: 中間処理 | CV5: 最終処分 | CW5: 合計 | CX5: 収集運搬費 | CY5: 中間処理費 | CZ5: 最終処分費 | DB5: 合計 | DC5: 収集運搬費 | DD5: 中間処理費 | DE5: 最終処分費 | DF5: その他
D6: （千円） | E6: （千円） | F6: （千円） | G6: （千円） | H6: （千円） | I6: （千円） | J6: （千円） | K6: （千円） | L6: （千円） | M6: （千円） | N6: （千円） | O6: （千円） | P6: （千円） | Q6: （千円） | R6: （千円） | S6: （千円） | T6: （千円） | U6: （千円） | V6: （千円） | W6: （千円） | X6: （千円） | Y6: （千円） | Z6: （千円） | AA6: （千円） | AB6: （千円） | AC6: （千円） | AD6: （千円） | AE6: （千円） | AF6: （千円） | AG6: （千円） | AH6: （千円） | AI6: （千円） | AJ6: （千円） | AK6: （千円） | AL6: （千円） | AM6: （千円） | AN6: （千円） | AO6: （千円） | AP6: （千円） | AQ6: （千円） | AR6: （千円） | AS6: （千円） | AT6: （千円） | AU6: （千円） | AV6: （千円） | AW6: （千円） | AX6: （千円） | AY6: （千円） | AZ6: （千円） | BA6: （千円） | BB6: （千円） | BC6: （千円） | BD6: （千円） | BE6: （千円） | BF6: （千円） | BG6: （千円） | BH6: （千円） | BI6: （千円） | BJ6: （千円） | BK6: （千円） | BL6: （千円） | BM6: （千円） | BN6: （千円） | BO6: （千円） | BP6: （千円） | BQ6: （千円） | BR6: （千円） | BS6: （千円） | BT6: （千円） | BU6: （千円） | BV6: （千円） | BW6: （千円） | BX6: （千円） | BY6: （千円） | BZ6: （千円） | CA6: （千円） | CB6: （千円） | CC6: （千円） | CD6: （千円） | CE6: （千円） | CF6: （千円） | CG6: （千円） | CH6: （千円） | CI6: （千円） | CJ6: （千円） | CK6: （千円） | CL6: （千円） | CM6: （千円） | CN6: （千円） | CO6: （千円） | CP6: （千円） | CQ6: （千円） | CR6: （千円） | CS6: （千円） | CT6: （千円） | CU6: （千円） | CV6: （千円） | CW6: （千円） | CX6: （千円） | CY6: （千円） | CZ6: （千円） | DA6: （千円） | DB6: （千円） | DC6: （千円） | DD6: （千円） | DE6: （千円） | DF6: （千円） | DG6: （千円） | DH6: （千円） | DI6: （千円） | DJ6: （千円）
A7: 熊本県 | B7: 43000 | C7: 合計 | D7: =SUM($D$8:$D$19) -> 0 | E7: =SUM($E$8:$E$19) -> 0 | F7: =SUM($F$8:$F$19) -> 0 | G7: =SUM($G$8:$G$19) -> 0 | H7: =SUM($H$8:$H$19) -> 0 | I7: =SUM($I$8:$I$19) -> 0 | J7: =SUM($J$8:$J$19) -> 0 | K7: =SUM($K$8:$K$19) -> 0 | L7: =SUM($L$8:$L$19) -> 0 | M7: =SUM($M$8:$M$19) -> 0 | N7: =SUM($N$8:$N$19) -> 0 | O7: =SUM($O$8:$O$19) -> 0 | P7: =SUM($P$8:$P$19) -> 0 | Q7: =SUM($Q$8:$Q$19) -> 0 | R7: =SUM($R$8:$R$19) -> 0 | S7: =SUM($S$8:$S$19) -> 0 | T7: =SUM($T$8:$T$19) -> 0 | U7: =SUM($U$8:$U$19) -> 0 | V7: =SUM($V$8:$V$19) -> 0 | W7: =SUM($W$8:$W$19) -> 0 | X7: =SUM($X$8:$X$19) -> 0 | Y7: =SUM($Y$8:$Y$19) -> 0 | Z7: =SUM($Z$8:$Z$19) -> 0 | AA7: =SUM($AA$8:$AA$19) -> 0 | AB7: =SUM($AB$8:$AB$19) -> 0 | AC7: =SUM($AC$8:$AC$19) -> 0 | AD7: =SUM($AD$8:$AD$19) -> 0 | AE7: =SUM($AE$8:$AE$19) -> 0 | AF7: =SUM($AF$8:$AF$19) -> 0 | AG7: =SUM($AG$8:$AG$19) -> 0 | AH7: =SUM($AH$8:$AH$19) -> 0 | AI7: =SUM($AI$8:$AI$19) -> 0 | AJ7: =SUM($AJ$8:$AJ$19) -> 0 | AK7: =SUM($AK$8:$AK$19) -> 0 | AL7: - | AM7: =SUM($AM$8:$AM$19) -> 0 | AN7: =SUM($AN$8:$AN$19) -> 0 | AO7: =SUM($AO$8:$AO$19) -> 0 | AP7: =SUM($AP$8:$AP$19) -> 0 | AQ7: =SUM($AQ$8:$AQ$19) -> 0 | AR7: =SUM($AR$8:$AR$19) -> 0 | AS7: =SUM($AS$8:$AS$19) -> 0 | AT7: =SUM($AT$8:$AT$19) -> 0 | AU7: =SUM($AU$8:$AU$19) -> 0 | AV7: =SUM($AV$8:$AV$19) -> 0 | AW7: =SUM($AW$8:$AW$19) -> 0 | AX7: =SUM($AX$8:$AX$19) -> 0 | AY7: =SUM($AY$8:$AY$19) -> 0 | AZ7: =SUM($AZ$8:$AZ$19) -> 0 | BA7: =SUM($BA$8:$BA$19) -> 0 | BB7: =SUM($BB$8:$BB$19) -> 0 | BC7: - | BD7: =SUM($BD$8:$BD$19) -> 0 | BE7: =SUM($BE$8:$BE$19) -> 0 | BF7: =SUM($BF$8:$BF$19) -> 0 | BG7: =SUM($BG$8:$BG$19) -> 0 | BH7: =SUM($BH$8:$BH$19) -> 0 | BI7: =SUM($BI$8:$BI$19) -> 0 | BJ7: =SUM($BJ$8:$BJ$19) -> 0 | BK7: =SUM($BK$8:$BK$19) -> 0 | BL7: =SUM($BL$8:$BL$19) -> 0 | BM7: =SUM($BM$8:$BM$19) -> 0 | BN7: - | BO7: =SUM($BO$8:$BO$19) -> 0 | BP7: =SUM($BP$8:$BP$19) -> 0 | BQ7: =SUM($BQ$8:$BQ$19) -> 0 | BR7: =SUM($BR$8:$BR$19) -> 0 | BS7: =SUM($BS$8:$BS$19) -> 0 | BT7: =SUM($BT$8:$BT$19) -> 0 | BU7: =SUM($BU$8:$BU$19) -> 0 | BV7: =SUM($BV$8:$BV$19) -> 0 | BW7: =SUM($BW$8:$BW$19) -> 0 | BX7: =SUM($BX$8:$BX$19) -> 0 | BY7: =SUM($BY$8:$BY$19) -> 0 | BZ7: =SUM($BZ$8:$BZ$19) -> 0 | CA7: =SUM($CA$8:$CA$19) -> 0 | CB7: =SUM($CB$8:$CB$19) -> 0 | CC7: =SUM($CC$8:$CC$19) -> 0 | CD7: =SUM($CD$8:$CD$19) -> 0 | CE7: - | CF7: =SUM($CF$8:$CF$19) -> 0 | CG7: =SUM($CG$8:$CG$19) -> 0 | CH7: =SUM($CH$8:$CH$19) -> 0 | CI7: =SUM($CI$8:$CI$19) -> 0 | CJ7: =SUM($CJ$8:$CJ$19) -> 0 | CK7: =SUM($CK$8:$CK$19) -> 0 | CL7: =SUM($CL$8:$CL$19) -> 0 | CM7: =SUM($CM$8:$CM$19) -> 0 | CN7: =SUM($CN$8:$CN$19) -> 0 | CO7: =SUM($CO$8:$CO$19) -> 0 | CP7: - | CQ7: =SUM($CQ$8:$CQ$19) -> 0 | CR7: =SUM($CR$8:$CR$19) -> 0 | CS7: =SUM($CS$8:$CS$19) -> 0 | CT7: =SUM($CT$8:$CT$19) -> 0 | CU7: =SUM($CU$8:$CU$19) -> 0 | CV7: =SUM($CV$8:$CV$19) -> 0 | CW7: =SUM($CW$8:$CW$19) -> 0 | CX7: =SUM($CX$8:$CX$19) -> 0 | CY7: =SUM($CY$8:$CY$19) -> 0 | CZ7: =SUM($CZ$8:$CZ$19) -> 0 | DA7: =SUM($DA$8:$DA$19) -> 0 | DB7: =SUM($DB$8:$DB$19) -> 0 | DC7: =SUM($DC$8:$DC$19) -> 0 | DD7: =SUM($DD$8:$DD$19) -> 0 | DE7: =SUM($DE$8:$DE$19) -> 0 | DF7: =SUM($DF$8:$DF$19) -> 0 | DG7: - | DH7: =SUM($DH$8:$DH$19) -> 0 | DI7: =SUM($DI$8:$DI$19) -> 0 | DJ7: =SUM($DJ$8:$DJ$19) -> 0
A8: 熊本県 | B8: 43854 | C8: 菊池環境保全組合 | D8: =SUM(E8,+L8) -> 0 | E8: =SUM(F8:I8)+K8 -> 0 | F8: 0 | G8: 0 | H8: 0 | I8: 0 | J8: =市町村分担金内訳!D8 -> 0 | K8: 0 | L8: 0 | M8: =SUM(N8,+U8) -> 0 | N8: =SUM(O8:R8)+T8 -> 0 | O8: 0 | P8: 0 | Q8: 0 | R8: 0 | S8: =市町村分担金内訳!E8 -> 0 | T8: 0 | U8: 0 | V8: 0 | W8: 0 | X8: 0 | Y8: 0 | Z8: 0 | AA8: 0 | AB8: =SUM(J8,S8) -> 0 | AC8: 0 | AD8: 0 | AE8: =SUM(AF8,+AK8) -> 0 | AF8: =SUM(AG8:AJ8) -> 0 | AG8: 0 | AH8: 0 | AI8: 0 | AJ8: 0 | AK8: 0 | AL8: - | AM8: =SUM(AN8,AS8,AW8,AX8,BD8) -> 0 | AN8: =SUM(AO8:AR8) -> 0 | AO8: 0 | AP8: 0 | AQ8: 0 | AR8: 0 | AS8: =SUM(AT8:AV8) -> 0 | AT8: 0 | AU8: 0 | AV8: 0 | AW8: 0 | AX8: =SUM(AY8:BB8) -> 0 | AY8: 0 | AZ8: 0 | BA8: 0 | BB8: 0 | BC8: - | BD8: 0 | BE8: 0 | BF8: =SUM(AE8,+AM8,+BE8) -> 0 | BG8: =SUM(BH8,+BM8) -> 0 | BH8: =SUM(BI8:BL8) -> 0 | BI8: 0 | BJ8: 0 | BK8: 0 | BL8: 0 | BM8: 0 | BN8: - | BO8: =SUM(BP8,BU8,BY8,BZ8,CF8) -> 0 | BP8: =SUM(BQ8:BT8) -> 0 | BQ8: 0 | BR8: 0 | BS8: 0 | BT8: 0 | BU8: =SUM(BV8:BX8) -> 0 | BV8: 0 | BW8: 0 | BX8: 0 | BY8: 0 | BZ8: =SUM(CA8:CD8) -> 0 | CA8: 0 | CB8: 0 | CC8: 0 | CD8: 0 | CE8: - | CF8: 0 | CG8: 0 | CH8: =SUM(BG8,+BO8,+CG8) -> 0 | CI8: =SUM(AE8,+BG8) -> 0 | CJ8: =SUM(AF8,+BH8) -> 0 | CK8: =SUM(AG8,+BI8) -> 0 | CL8: =SUM(AH8,+BJ8) -> 0 | CM8: =SUM(AI8,+BK8) -> 0 | CN8: =SUM(AJ8,+BL8) -> 0 | CO8: =SUM(AK8,+BM8) -> 0 | CP8: - | CQ8: =SUM(AM8,+BO8) -> 0 | CR8: =SUM(AN8,+BP8) -> 0 | CS8: =SUM(AO8,+BQ8) -> 0 | CT8: =SUM(AP8,+BR8) -> 0 | CU8: =SUM(AQ8,+BS8) -> 0 | CV8: =SUM(AR8,+BT8) -> 0 | CW8: =SUM(AS8,+BU8) -> 0 | CX8: =SUM(AT8,+BV8) -> 0 | CY8: =SUM(AU8,+BW8) -> 0 | CZ8: =SUM(AV8,+BX8) -> 0 | DA8: =SUM(AW8,+BY8) -> 0 | DB8: =SUM(AX8,+BZ8) -> 0 | DC8: =SUM(AY8,+CA8) -> 0 | DD8: =SUM(AZ8,+CB8) -> 0 | DE8: =SUM(BA8,+CC8) -> 0 | DF8: =SUM(BB8,+CD8) -> 0 | DG8: - | DH8: =SUM(BD8,+CF8) -> 0 | DI8: =SUM(BE8,+CG8) -> 0 | DJ8: =SUM(BF8,+CH8) -> 0
A9: 熊本県 | B9: 43857 | C9: 御船地区衛生施設組合 | D9: =SUM(E9,+L9) -> 0 | E9: =SUM(F9:I9)+K9 -> 0 | F9: 0 | G9: 0 | H9: 0 | I9: 0 | J9: =市町村分担金内訳!D9 -> 0 | K9: 0 | L9: 0 | M9: =SUM(N9,+U9) -> 0 | N9: =SUM(O9:R9)+T9 -> 0 | O9: 0 | P9: 0 | Q9: 0 | R9: 0 | S9: =市町村分担金内訳!E9 -> 0 | T9: 0 | U9: 0 | V9: 0 | W9: 0 | X9: 0 | Y9: 0 | Z9: 0 | AA9: 0 | AB9: =SUM(J9,S9) -> 0 | AC9: 0 | AD9: 0 | AE9: =SUM(AF9,+AK9) -> 0 | AF9: =SUM(AG9:AJ9) -> 0 | AG9: 0 | AH9: 0 | AI9: 0 | AJ9: 0 | AK9: 0 | AL9: - | AM9: =SUM(AN9,AS9,AW9,AX9,BD9) -> 0 | AN9: =SUM(AO9:AR9) -> 0 | AO9: 0 | AP9: 0 | AQ9: 0 | AR9: 0 | AS9: =SUM(AT9:AV9) -> 0 | AT9: 0 | AU9: 0 | AV9: 0 | AW9: 0 | AX9: =SUM(AY9:BB9) -> 0 | AY9: 0 | AZ9: 0 | BA9: 0 | BB9: 0 | BC9: - | BD9: 0 | BE9: 0 | BF9: =SUM(AE9,+AM9,+BE9) -> 0 | BG9: =SUM(BH9,+BM9) -> 0 | BH9: =SUM(BI9:BL9) -> 0 | BI9: 0 | BJ9: 0 | BK9: 0 | BL9: 0 | BM9: 0 | BN9: - | BO9: =SUM(BP9,BU9,BY9,BZ9,CF9) -> 0 | BP9: =SUM(BQ9:BT9) -> 0 | BQ9: 0 | BR9: 0 | BS9: 0 | BT9: 0 | BU9: =SUM(BV9:BX9) -> 0 | BV9: 0 | BW9: 0 | BX9: 0 | BY9: 0 | BZ9: =SUM(CA9:CD9) -> 0 | CA9: 0 | CB9: 0 | CC9: 0 | CD9: 0 | CE9: - | CF9: 0 | CG9: 0 | CH9: =SUM(BG9,+BO9,+CG9) -> 0 | CI9: 0 | CJ9: 0 | CK9: 0 | CL9: 0 | CM9: 0 | CN9: 0 | CO9: 0 | CP9: - | CQ9: 0 | CR9: 0 | CS9: 0 | CT9: 0 | CU9: 0 | CV9: 0 | CW9: 0 | CX9: 0 | CY9: 0 | CZ9: 0 | DA9: 0 | DB9: 0 | DC9: 0 | DD9: 0 | DE9: 0 | DF9: 0 | DG9: - | DH9: 0 | DI9: 0 | DJ9: 0
A10: 熊本県 | B10: 43935 | C10: 上天草衛生施設組合 | D10: =SUM(E10,+L10) -> 0 | E10: =SUM(F10:I10)+K10 -> 0 | F10: 0 | G10: 0 | H10: 0 | I10: 0 | J10: =市町村分担金内訳!D10 -> 0 | K10: 0 | L10: 0 | M10: =SUM(N10,+U10) -> 0 | N10: =SUM(O10:R10)+T10 -> 0 | O10: 0 | P10: 0 | Q10: 0 | R10: 0 | S10: =市町村分担金内訳!E10 -> 0 | T10: 0 | U10: 0 | V10: 0 | W10: 0 | X10: 0 | Y10: 0 | Z10: 0 | AA10: 0 | AB10: =SUM(J10,S10) -> 0 | AC10: 0 | AD10: 0 | AE10: =SUM(AF10,+AK10) -> 0 | AF10: =SUM(AG10:AJ10) -> 0 | AG10: 0 | AH10: 0 | AI10: 0 | AJ10: 0 | AK10: 0 | AL10: - | AM10: =SUM(AN10,AS10,AW10,AX10,BD10) -> 0 | AN10: =SUM(AO10:AR10) -> 0 | AO10: 0 | AP10: 0 | AQ10: 0 | AR10: 0 | AS10: =SUM(AT10:AV10) -> 0 | AT10: 0 | AU10: 0 | AV10: 0 | AW10: 0 | AX10: =SUM(AY10:BB10) -> 0 | AY10: 0 | AZ10: 0 | BA10: 0 | BB10: 0 | BC10: - | BD10: 0 | BE10: 0 | BF10: =SUM(AE10,+AM10,+BE10) -> 0 | BG10: =SUM(BH10,+BM10) -> 0 | BH10: =SUM(BI10:BL10) -> 0 | BI10: 0 | BJ10: 0 | BK10: 0 | BL10: 0 | BM10: 0 | BN10: - | BO10: =SUM(BP10,BU10,BY10,BZ10,CF10) -> 0 | BP10: =SUM(BQ10:BT10) -> 0 | BQ10: 0 | BR10: 0 | BS10: 0 | BT10: 0 | BU10: =SUM(BV10:BX10) -> 0 | BV10: 0 | BW10: 0 | BX10: 0 | BY10: 0 | BZ10: =SUM(CA10:CD10) -> 0 | CA10: 0 | CB10: 0 | CC10: 0 | CD10: 0 | CE10: - | CF10: 0 | CG10: 0 | CH10: =SUM(BG10,+BO10,+CG10) -> 0 | CI10: 0 | CJ10: 0 | CK10: 0 | CL10: 0 | CM10: 0 | CN10: 0 | CO10: 0 | CP10: - | CQ10: 0 | CR10: 0 | CS10: 0 | CT10: 0 | CU10: 0 | CV10: 0 | CW10: 0 | CX10: 0 | CY10: 0 | CZ10: 0 | DA10: 0 | DB10: 0 | DC10: 0 | DD10: 0 | DE10: 0 | DF10: 0 | DG10: - | DH10: 0 | DI10: 0 | DJ10: 0
A11: 熊本県 | B11: 43949 | C11: 益城、嘉島、西原環境衛生施設組合 | D11: =SUM(E11,+L11) -> 0 | E11: =SUM(F11:I11)+K11 -> 0 | F11: 0 | G11: 0 | H11: 0 | I11: 0 | J11: =市町村分担金内訳!D11 -> 0 | K11: 0 | L11: 0 | M11: =SUM(N11,+U11) -> 0 | N11: =SUM(O11:R11)+T11 -> 0 | O11: 0 | P11: 0 | Q11: 0 | R11: 0 | S11: =市町村分担金内訳!E11 -> 0 | T11: 0 | U11: 0 | V11: 0 | W11: 0 | X11: 0 | Y11: 0 | Z11: 0 | AA11: 0 | AB11: =SUM(J11,S11) -> 0 | AC11: 0 | AD11: 0 | AE11: =SUM(AF11,+AK11) -> 0 | AF11: =SUM(AG11:AJ11) -> 0 | AG11: 0 | AH11: 0 | AI11: 0 | AJ11: 0 | AK11: 0 | AL11: - | AM11: =SUM(AN11,AS11,AW11,AX11,BD11) -> 0 | AN11: =SUM(AO11:AR11) -> 0 | AO11: 0 | AP11: 0 | AQ11: 0 | AR11: 0 | AS11: =SUM(AT11:AV11) -> 0 | AT11: 0 | AU11: 0 | AV11: 0 | AW11: 0 | AX11: =SUM(AY11:BB11) -> 0 | AY11: 0 | AZ11: 0 | BA11: 0 | BB11: 0 | BC11: - | BD11: 0 | BE11: 0 | BF11: =SUM(AE11,+AM11,+BE11) -> 0 | BG11: =SUM(BH11,+BM11) -> 0 | BH11: =SUM(BI11:BL11) -> 0 | BI11: 0 | BJ11: 0 | BK11: 0 | BL11: 0 | BM11: 0 | BN11: - | BO11: =SUM(BP11,BU11,BY11,BZ11,CF11) -> 0 | BP11: =SUM(BQ11:BT11) -> 0 | BQ11: 0 | BR11: 0 | BS11: 0 | BT11: 0 | BU11: =SUM(BV11:BX11) -> 0 | BV11: 0 | BW11: 0 | BX11: 0 | BY11: 0 | BZ11: =SUM(CA11:CD11) -> 0 | CA11: 0 | CB11: 0 | CC11: 0 | CD11: 0 | CE11: - | CF11: 0 | CG11: 0 | CH11: =SUM(BG11,+BO11,+CG11) -> 0 | CI11: 0 | CJ11: 0 | CK11: 0 | CL11: 0 | CM11: 0 | CN11: 0 | CO11: 0 | CP11: - | CQ11: 0 | CR11: 0 | CS11: 0 | CT11: 0 | CU11: 0 | CV11: 0 | CW11: 0 | CX11: 0 | CY11: 0 | CZ11: 0 | DA11: 0 | DB11: 0 | DC11: 0 | DD11: 0 | DE11: 0 | DF11: 0 | DG11: - | DH11: 0 | DI11: 0 | DJ11: 0
A12: 熊本県 | B12: 43954 | C12: 山鹿植木広域行政事務組合 | D12: =SUM(E12,+L12) -> 0 | E12: =SUM(F12:I12)+K12 -> 0 | F12: 0 | G12: 0 | H12: 0 | I12: 0 | J12: =市町村分担金内訳!D12 -> 0 | K12: 0 | L12: 0 | M12: =SUM(N12,+U12) -> 0 | N12: =SUM(O12:R12)+T12 -> 0 | O12: 0 | P12: 0 | Q12: 0 | R12: 0 | S12: =市町村分担金内訳!E12 -> 0 | T12: 0 | U12: 0 | V12: 0 | W12: 0 | X12: 0 | Y12: 0 | Z12: 0 | AA12: 0 | AB12: =SUM(J12,S12) -> 0 | AC12: 0 | AD12: 0 | AE12: =SUM(AF12,+AK12) -> 0 | AF12: =SUM(AG12:AJ12) -> 0 | AG12: 0 | AH12: 0 | AI12: 0 | AJ12: 0 | AK12: 0 | AL12: - | AM12: =SUM(AN12,AS12,AW12,AX12,BD12) -> 0 | AN12: =SUM(AO12:AR12) -> 0 | AO12: 0 | AP12: 0 | AQ12: 0 | AR12: 0 | AS12: =SUM(AT12:AV12) -> 0 | AT12: 0 | AU12: 0 | AV12: 0 | AW12: 0 | AX12: =SUM(AY12:BB12) -> 0 | AY12: 0 | AZ12: 0 | BA12: 0 | BB12: 0 | BC12: - | BD12: 0 | BE12: 0 | BF12: =SUM(AE12,+AM12,+BE12) -> 0 | BG12: =SUM(BH12,+BM12) -> 0 | BH12: =SUM(BI12:BL12) -> 0 | BI12: 0 | BJ12: 0 | BK12: 0 | BL12: 0 | BM12: 0 | BN12: - | BO12: =SUM(BP12,BU12,BY12,BZ12,CF12) -> 0 | BP12: =SUM(BQ12:BT12) -> 0 | BQ12: 0 | BR12: 0 | BS12: 0 | BT12: 0 | BU12: =SUM(BV12:BX12) -> 0 | BV12: 0 | BW12: 0 | BX12: 0 | BY12: 0 | BZ12: =SUM(CA12:CD12) -> 0 | CA12: 0 | CB12: 0 | CC12: 0 | CD12: 0 | CE12: - | CF12: 0 | CG12: 0 | CH12: =SUM(BG12,+BO12,+CG12) -> 0 | CI12: 0 | CJ12: 0 | CK12: 0 | CL12: 0 | CM12: 0 | CN12: 0 | CO12: 0 | CP12: - | CQ12: 0 | CR12: 0 | CS12: 0 | CT12: 0 | CU12: 0 | CV12: 0 | CW12: 0 | CX12: 0 | CY12: 0 | CZ12: 0 | DA12: 0 | DB12: 0 | DC12: 0 | DD12: 0 | DE12: 0 | DF12: 0 | DG12: - | DH12: 0 | DI12: 0 | DJ12: 0
A13: 熊本県 | B13: 43974 | C13: 八代生活環境事務組合 | D13: =SUM(E13,+L13) -> 0 | E13: =SUM(F13:I13)+K13 -> 0 | F13: 0 | G13: 0 | H13: 0 | I13: 0 | J13: =市町村分担金内訳!D13 -> 0 | K13: 0 | L13: 0 | M13: =SUM(N13,+U13) -> 0 | N13: =SUM(O13:R13)+T13 -> 0 | O13: 0 | P13: 0 | Q13: 0 | R13: 0 | S13: =市町村分担金内訳!E13 -> 0 | T13: 0 | U13: 0 | V13: 0 | W13: 0 | X13: 0 | Y13: 0 | Z13: 0 | AA13: 0 | AB13: =SUM(J13,S13) -> 0 | AC13: 0 | AD13: 0 | AE13: =SUM(AF13,+AK13) -> 0 | AF13: =SUM(AG13:AJ13) -> 0 | AG13: 0 | AH13: 0 | AI13: 0 | AJ13: 0 | AK13: 0 | AL13: - | AM13: =SUM(AN13,AS13,AW13,AX13,BD13) -> 0 | AN13: =SUM(AO13:AR13) -> 0 | AO13: 0 | AP13: 0 | AQ13: 0 | AR13: 0 | AS13: =SUM(AT13:AV13) -> 0 | AT13: 0 | AU13: 0 | AV13: 0 | AW13: 0 | AX13: =SUM(AY13:BB13) -> 0 | AY13: 0 | AZ13: 0 | BA13: 0 | BB13: 0 | BC13: - | BD13: 0 | BE13: 0 | BF13: =SUM(AE13,+AM13,+BE13) -> 0 | BG13: =SUM(BH13,+BM13) -> 0 | BH13: =SUM(BI13:BL13) -> 0 | BI13: 0 | BJ13: 0 | BK13: 0 | BL13: 0 | BM13: 0 | BN13: - | BO13: =SUM(BP13,BU13,BY13,BZ13,CF13) -> 0 | BP13: =SUM(BQ13:BT13) -> 0 | BQ13: 0 | BR13: 0 | BS13: 0 | BT13: 0 | BU13: =SUM(BV13:BX13) -> 0 | BV13: 0 | BW13: 0 | BX13: 0 | BY13: 0 | BZ13: =SUM(CA13:CD13) -> 0 | CA13: 0 | CB13: 0 | CC13: 0 | CD13: 0 | CE13: - | CF13: 0 | CG13: 0 | CH13: =SUM(BG13,+BO13,+CG13) -> 0 | CI13: 0 | CJ13: 0 | CK13: 0 | CL13: 0 | CM13: 0 | CN13: 0 | CO13: 0 | CP13: - | CQ13: 0 | CR13: 0 | CS13: 0 | CT13: 0 | CU13: 0 | CV13: 0 | CW13: 0 | CX13: 0 | CY13: 0 | CZ13: 0 | DA13: 0 | DB13: 0 | DC13: 0 | DD13: 0 | DE13: 0 | DF13: 0 | DG13: - | DH13: 0 | DI13: 0 | DJ13: 0
A14: 熊本県 | B14: 43985 | C14: 阿蘇広域行政事務組合 | D14: =SUM(E14,+L14) -> 0 | E14: =SUM(F14:I14)+K14 -> 0 | F14: 0 | G14: 0 | H14: 0 | I14: 0 | J14: =市町村分担金内訳!D14 -> 0 | K14: 0 | L14: 0 | M14: =SUM(N14,+U14) -> 0 | N14: =SUM(O14:R14)+T14 -> 0 | O14: 0 | P14: 0 | Q14: 0 | R14: 0 | S14: =市町村分担金内訳!E14 -> 0 | T14: 0 | U14: 0 | V14: 0 | W14: 0 | X14: 0 | Y14: 0 | Z14: 0 | AA14: 0 | AB14: =SUM(J14,S14) -> 0 | AC14: 0 | AD14: 0 | AE14: =SUM(AF14,+AK14) -> 0 | AF14: =SUM(AG14:AJ14) -> 0 | AG14: 0 | AH14: 0 | AI14: 0 | AJ14: 0 | AK14: 0 | AL14: - | AM14: =SUM(AN14,AS14,AW14,AX14,BD14) -> 0 | AN14: =SUM(AO14:AR14) -> 0 | AO14: 0 | AP14: 0 | AQ14: 0 | AR14: 0 | AS14: =SUM(AT14:AV14) -> 0 | AT14: 0 | AU14: 0 | AV14: 0 | AW14: 0 | AX14: =SUM(AY14:BB14) -> 0 | AY14: 0 | AZ14: 0 | BA14: 0 | BB14: 0 | BC14: - | BD14: 0 | BE14: 0 | BF14: =SUM(AE14,+AM14,+BE14) -> 0 | BG14: =SUM(BH14,+BM14) -> 0 | BH14: =SUM(BI14:BL14) -> 0 | BI14: 0 | BJ14: 0 | BK14: 0 | BL14: 0 | BM14: 0 | BN14: - | BO14: =SUM(BP14,BU14,BY14,BZ14,CF14) -> 0 | BP14: =SUM(BQ14:BT14) -> 0 | BQ14: 0 | BR14: 0 | BS14: 0 | BT14: 0 | BU14: =SUM(BV14:BX14) -> 0 | BV14: 0 | BW14: 0 | BX14: 0 | BY14: 0 | BZ14: =SUM(CA14:CD14) -> 0 | CA14: 0 | CB14: 0 | CC14: 0 | CD14: 0 | CE14: - | CF14: 0 | CG14: 0 | CH14: =SUM(BG14,+BO14,+CG14) -> 0 | CI14: 0 | CJ14: 0 | CK14: 0 | CL14: 0 | CM14: 0 | CN14: 0 | CO14: 0 | CP14: - | CQ14: 0 | CR14: 0 | CS14: 0 | CT14: 0 | CU14: 0 | CV14: 0 | CW14: 0 | CX14: 0 | CY14: 0 | CZ14: 0 | DA14: 0 | DB14: 0 | DC14: 0 | DD14: 0 | DE14: 0 | DF14: 0 | DG14: - | DH14: 0 | DI14: 0 | DJ14: 0
A15: 熊本県 | B15: 43986 | C15: 人吉球磨広域行政組合 | D15: =SUM(E15,+L15) -> 0 | E15: =SUM(F15:I15)+K15 -> 0 | F15: 0 | G15: 0 | H15: 0 | I15: 0 | J15: =市町村分担金内訳!D15 -> 0 | K15: 0 | L15: 0 | M15: =SUM(N15,+U15) -> 0 | N15: =SUM(O15:R15)+T15 -> 0 | O15: 0 | P15: 0 | Q15: 0 | R15: 0 | S15: =市町村分担金内訳!E15 -> 0 | T15: 0 | U15: 0 | V15: 0 | W15: 0 | X15: 0 | Y15: 0 | Z15: 0 | AA15: 0 | AB15: =SUM(J15,S15) -> 0 | AC15: 0 | AD15: 0 | AE15: =SUM(AF15,+AK15) -> 0 | AF15: =SUM(AG15:AJ15) -> 0 | AG15: 0 | AH15: 0 | AI15: 0 | AJ15: 0 | AK15: 0 | AL15: - | AM15: =SUM(AN15,AS15,AW15,AX15,BD15) -> 0 | AN15: =SUM(AO15:AR15) -> 0 | AO15: 0 | AP15: 0 | AQ15: 0 | AR15: 0 | AS15: =SUM(AT15:AV15) -> 0 | AT15: 0 | AU15: 0 | AV15: 0 | AW15: 0 | AX15: =SUM(AY15:BB15) -> 0 | AY15: 0 | AZ15: 0 | BA15: 0 | BB15: 0 | BC15: - | BD15: 0 | BE15: 0 | BF15: =SUM(AE15,+AM15,+BE15) -> 0 | BG15: =SUM(BH15,+BM15) -> 0 | BH15: =SUM(BI15:BL15) -> 0 | BI15: 0 | BJ15: 0 | BK15: 0 | BL15: 0 | BM15: 0 | BN15: - | BO15: =SUM(BP15,BU15,BY15,BZ15,CF15) -> 0 | BP15: =SUM(BQ15:BT15) -> 0 | BQ15: 0 | BR15: 0 | BS15: 0 | BT15: 0 | BU15: =SUM(BV15:BX15) -> 0 | BV15: 0 | BW15: 0 | BX15: 0 | BY15: 0 | BZ15: =SUM(CA15:CD15) -> 0 | CA15: 0 | CB15: 0 | CC15: 0 | CD15: 0 | CE15: - | CF15: 0 | CG15: 0 | CH15: =SUM(BG15,+BO15,+CG15) -> 0 | CI15: 0 | CJ15: 0 | CK15: 0 | CL15: 0 | CM15: 0 | CN15: 0 | CO15: 0 | CP15: - | CQ15: 0 | CR15: 0 | CS15: 0 | CT15: 0 | CU15: 0 | CV15: 0 | CW15: 0 | CX15: 0 | CY15: 0 | CZ15: 0 | DA15: 0 | DB15: 0 | DC15: 0 | DD15: 0 | DE15: 0 | DF15: 0 | DG15: - | DH15: 0 | DI15: 0 | DJ15: 0
A16: 熊本県 | B16: 43991 | C16: 有明広域行政事務組合 | D16: =SUM(E16,+L16) -> 0 | E16: =SUM(F16:I16)+K16 -> 0 | F16: 0 | G16: 0 | H16: 0 | I16: 0 | J16: =市町村分担金内訳!D16 -> 0 | K16: 0 | L16: 0 | M16: =SUM(N16,+U16) -> 0 | N16: =SUM(O16:R16)+T16 -> 0 | O16: 0 | P16: 0 | Q16: 0 | R16: 0 | S16: =市町村分担金内訳!E16 -> 0 | T16: 0 | U16: 0 | V16: 0 | W16: 0 | X16: 0 | Y16: 0 | Z16: 0 | AA16: 0 | AB16: =SUM(J16,S16) -> 0 | AC16: 0 | AD16: 0 | AE16: =SUM(AF16,+AK16) -> 0 | AF16: =SUM(AG16:AJ16) -> 0 | AG16: 0 | AH16: 0 | AI16: 0 | AJ16: 0 | AK16: 0 | AL16: - | AM16: =SUM(AN16,AS16,AW16,AX16,BD16) -> 0 | AN16: =SUM(AO16:AR16) -> 0 | AO16: 0 | AP16: 0 | AQ16: 0 | AR16: 0 | AS16: =SUM(AT16:AV16) -> 0 | AT16: 0 | AU16: 0 | AV16: 0 | AW16: 0 | AX16: =SUM(AY16:BB16) -> 0 | AY16: 0 | AZ16: 0 | BA16: 0 | BB16: 0 | BC16: - | BD16: 0 | BE16: 0 | BF16: =SUM(AE16,+AM16,+BE16) -> 0 | BG16: =SUM(BH16,+BM16) -> 0 | BH16: =SUM(BI16:BL16) -> 0 | BI16: 0 | BJ16: 0 | BK16: 0 | BL16: 0 | BM16: 0 | BN16: - | BO16: =SUM(BP16,BU16,BY16,BZ16,CF16) -> 0 | BP16: =SUM(BQ16:BT16) -> 0 | BQ16: 0 | BR16: 0 | BS16: 0 | BT16: 0 | BU16: =SUM(BV16:BX16) -> 0 | BV16: 0 | BW16: 0 | BX16: 0 | BY16: 0 | BZ16: =SUM(CA16:CD16) -> 0 | CA16: 0 | CB16: 0 | CC16: 0 | CD16: 0 | CE16: - | CF16: 0 | CG16: 0 | CH16: =SUM(BG16,+BO16,+CG16) -> 0 | CI16: 0 | CJ16: 0 | CK16: 0 | CL16: 0 | CM16: 0 | CN16: 0 | CO16: 0 | CP16: - | CQ16: 0 | CR16: 0 | CS16: 0 | CT16: 0 | CU16: 0 | CV16: 0 | CW16: 0 | CX16: 0 | CY16: 0 | CZ16: 0 | DA16: 0 | DB16: 0 | DC16: 0 | DD16: 0 | DE16: 0 | DF16: 0 | DG16: - | DH16: 0 | DI16: 0 | DJ16: 0
A17: 熊本県 | B17: 43993 | C17: 水俣芦北広域行政事務組合 | D17: =SUM(E17,+L17) -> 0 | E17: =SUM(F17:I17)+K17 -> 0 | F17: 0 | G17: 0 | H17: 0 | I17: 0 | J17: =市町村分担金内訳!D17 -> 0 | K17: 0 | L17: 0 | M17: =SUM(N17,+U17) -> 0 | N17: =SUM(O17:R17)+T17 -> 0 | O17: 0 | P17: 0 | Q17: 0 | R17: 0 | S17: =市町村分担金内訳!E17 -> 0 | T17: 0 | U17: 0 | V17: 0 | W17: 0 | X17: 0 | Y17: 0 | Z17: 0 | AA17: 0 | AB17: =SUM(J17,S17) -> 0 | AC17: 0 | AD17: 0 | AE17: =SUM(AF17,+AK17) -> 0 | AF17: =SUM(AG17:AJ17) -> 0 | AG17: 0 | AH17: 0 | AI17: 0 | AJ17: 0 | AK17: 0 | AL17: - | AM17: =SUM(AN17,AS17,AW17,AX17,BD17) -> 0 | AN17: =SUM(AO17:AR17) -> 0 | AO17: 0 | AP17: 0 | AQ17: 0 | AR17: 0 | AS17: =SUM(AT17:AV17) -> 0 | AT17: 0 | AU17: 0 | AV17: 0 | AW17: 0 | AX17: =SUM(AY17:BB17) -> 0 | AY17: 0 | AZ17: 0 | BA17: 0 | BB17: 0 | BC17: - | BD17: 0 | BE17: 0 | BF17: =SUM(AE17,+AM17,+BE17) -> 0 | BG17: =SUM(BH17,+BM17) -> 0 | BH17: =SUM(BI17:BL17) -> 0 | BI17: 0 | BJ17: 0 | BK17: 0 | BL17: 0 | BM17: 0 | BN17: - | BO17: =SUM(BP17,BU17,BY17,BZ17,CF17) -> 0 | BP17: =SUM(BQ17:BT17) -> 0 | BQ17: 0 | BR17: 0 | BS17: 0 | BT17: 0 | BU17: =SUM(BV17:BX17) -> 0 | BV17: 0 | BW17: 0 | BX17: 0 | BY17: 0 | BZ17: =SUM(CA17:CD17) -> 0 | CA17: 0 | CB17: 0 | CC17: 0 | CD17: 0 | CE17: - | CF17: 0 | CG17: 0 | CH17: =SUM(BG17,+BO17,+CG17) -> 0 | CI17: 0 | CJ17: 0 | CK17: 0 | CL17: 0 | CM17: 0 | CN17: 0 | CO17: 0 | CP17: - | CQ17: 0 | CR17: 0 | CS17: 0 | CT17: 0 | CU17: 0 | CV17: 0 | CW17: 0 | CX17: 0 | CY17: 0 | CZ17: 0 | DA17: 0 | DB17: 0 | DC17: 0 | DD17: 0 | DE17: 0 | DF17: 0 | DG17: - | DH17: 0 | DI17: 0 | DJ17: 0
A18: 熊本県 | B18: 43995 | C18: 宇城広域連合 | D18: =SUM(E18,+L18) -> 0 | E18: =SUM(F18:I18)+K18 -> 0 | F18: 0 | G18: 0 | H18: 0 | I18: 0 | J18: =市町村分担金内訳!D18 -> 0 | K18: 0 | L18: 0 | M18: =SUM(N18,+U18) -> 0 | N18: =SUM(O18:R18)+T18 -> 0 | O18: 0 | P18: 0 | Q18: 0 | R18: 0 | S18: =市町村分担金内訳!E18 -> 0 | T18: 0 | U18: 0 | V18: 0 | W18: 0 | X18: 0 | Y18: 0 | Z18: 0 | AA18: 0 | AB18: =SUM(J18,S18) -> 0 | AC18: 0 | AD18: 0 | AE18: =SUM(AF18,+AK18) -> 0 | AF18: =SUM(AG18:AJ18) -> 0 | AG18: 0 | AH18: 0 | AI18: 0 | AJ18: 0 | AK18: 0 | AL18: - | AM18: =SUM(AN18,AS18,AW18,AX18,BD18) -> 0 | AN18: =SUM(AO18:AR18) -> 0 | AO18: 0 | AP18: 0 | AQ18: 0 | AR18: 0 | AS18: =SUM(AT18:AV18) -> 0 | AT18: 0 | AU18: 0 | AV18: 0 | AW18: 0 | AX18: =SUM(AY18:BB18) -> 0 | AY18: 0 | AZ18: 0 | BA18: 0 | BB18: 0 | BC18: - | BD18: 0 | BE18: 0 | BF18: =SUM(AE18,+AM18,+BE18) -> 0 | BG18: =SUM(BH18,+BM18) -> 0 | BH18: =SUM(BI18:BL18) -> 0 | BI18: 0 | BJ18: 0 | BK18: 0 | BL18: 0 | BM18: 0 | BN18: - | BO18: =SUM(BP18,BU18,BY18,BZ18,CF18) -> 0 | BP18: =SUM(BQ18:BT18) -> 0 | BQ18: 0 | BR18: 0 | BS18: 0 | BT18: 0 | BU18: =SUM(BV18:BX18) -> 0 | BV18: 0 | BW18: 0 | BX18: 0 | BY18: 0 | BZ18: =SUM(CA18:CD18) -> 0 | CA18: 0 | CB18: 0 | CC18: 0 | CD18: 0 | CE18: - | CF18: 0 | CG18: 0 | CH18: =SUM(BG18,+BO18,+CG18) -> 0 | CI18: 0 | CJ18: 0 | CK18: 0 | CL18: 0 | CM18: 0 | CN18: 0 | CO18: 0 | CP18: - | CQ18: 0 | CR18: 0 | CS18: 0 | CT18: 0 | CU18: 0 | CV18: 0 | CW18: 0 | CX18: 0 | CY18: 0 | CZ18: 0 | DA18: 0 | DB18: 0 | DC18: 0 | DD18: 0 | DE18: 0 | DF18: 0 | DG18: - | DH18: 0 | DI18: 0 | DJ18: 0
A19: 熊本県 | B19: 43996 | C19: 菊池広域連合 | D19: =SUM(E19,+L19) -> 0 | E19: =SUM(F19:I19)+K19 -> 0 | F19: 0 | G19: 0 | H19: 0 | I19: 0 | J19: =市町村分担金内訳!D19 -> 0 | K19: 0 | L19: 0 | M19: =SUM(N19,+U19) -> 0 | N19: =SUM(O19:R19)+T19 -> 0 | O19: 0 | P19: 0 | Q19: 0 | R19: 0 | S19: =市町村分担金内訳!E19 -> 0 | T19: 0 | U19: 0 | V19: 0 | W19: 0 | X19: 0 | Y19: 0 | Z19: 0 | AA19: 0 | AB19: =SUM(J19,S19) -> 0 | AC19: 0 | AD19: 0 | AE19: =SUM(AF19,+AK19) -> 0 | AF19: =SUM(AG19:AJ19) -> 0 | AG19: 0 | AH19: 0 | AI19: 0 | AJ19: 0 | AK19: 0 | AL19: - | AM19: =SUM(AN19,AS19,AW19,AX19,BD19) -> 0 | AN19: =SUM(AO19:AR19) -> 0 | AO19: 0 | AP19: 0 | AQ19: 0 | AR19: 0 | AS19: =SUM(AT19:AV19) -> 0 | AT19: 0 | AU19: 0 | AV19: 0 | AW19: 0 | AX19: =SUM(AY19:BB19) -> 0 | AY19: 0 | AZ19: 0 | BA19: 0 | BB19: 0 | BC19: - | BD19: 0 | BE19: 0 | BF19: =SUM(AE19,+AM19,+BE19) -> 0 | BG19: =SUM(BH19,+BM19) -> 0 | BH19: =SUM(BI19:BL19) -> 0 | BI19: 0 | BJ19: 0 | BK19: 0 | BL19: 0 | BM19: 0 | BN19: - | BO19: =SUM(BP19,BU19,BY19,BZ19,CF19) -> 0 | BP19: =SUM(BQ19:BT19) -> 0 | BQ19: 0 | BR19: 0 | BS19: 0 | BT19: 0 | BU19: =SUM(BV19:BX19) -> 0 | BV19: 0 | BW19: 0 | BX19: 0 | BY19: 0 | BZ19: =SUM(CA19:CD19) -> 0 | CA19: 0 | CB19: 0 | CC19: 0 | CD19: 0 | CE19: - | CF19: 0 | CG19: 0 | CH19: =SUM(BG19,+BO19,+CG19) -> 0 | CI19: 0 | CJ19: 0 | CK19: 0 | CL19: 0 | CM19: 0 | CN19: 0 | CO19: 0 | CP19: - | CQ19: 0 | CR19: 0 | CS19: 0 | CT19: 0 | CU19: 0 | CV19: 0 | CW19: 0 | CX19: 0 | CY19: 0 | CZ19: 0 | DA19: 0 | DB19: 0 | DC19: 0 | DD19: 0 | DE19: 0 | DF19: 0 | DG19: - | DH19: 0 | DI19: 0 | DJ19: 0

Sheet 災害廃棄物事業経費（歳入）
A1: 【災害】廃棄物処理事業経費（市区町村及び一部事務組合・広域連合の合計）【歳入】（令和4年度実績）
A2: 都道府県名 | B2: 地方公共団体コード | C2: 市区町村・一部事務組合・広域連合名 | D2: ごみ | M2: し尿 | V2: 合計
D3: 合計 (特定財源(市区町村分担金を除く)+一般財源) | M3: 合計 (特定財源(市区町村分担金を除く)+一般財源) | V3: 合計 (特定財源(市区町村分担金を除く)+一般財源)
E4: 特定財源 (市区町村分担金を除く) | L4: 一般財源 | N4: 特定財源 (市区町村分担金を除く) | U4: 一般財源 | W4: 特定財源 (市区町村分担金を除く) | AD4: 一般財源
E5: 合計 | F5: 国庫支出金 | G5: 都道府県 支出金 | H5: 地方債 | I5: 使用料及び 手数料 | J5: （市区町村 分担金） | K5: その他 | N5: 合計 | O5: 国庫支出金 | P5: 都道府県 支出金 | Q5: 地方債 | R5: 使用料及び 手数料 | S5: （市区町村 分担金） | T5: その他 | W5: 合計 | X5: 国庫支出金 | Y5: 都道府県 支出金 | Z5: 地方債 | AA5: 使用料及び 手数料 | AB5: （市区町村 分担金） | AC5: その他
D6: （千円） | E6: （千円） | F6: （千円） | G6: （千円） | H6: （千円） | I6: （千円） | J6: （千円） | K6: （千円） | L6: （千円） | M6: （千円） | N6: （千円） | O6: （千円） | P6: （千円） | Q6: （千円） | R6: （千円） | S6: （千円） | T6: （千円） | U6: （千円） | V6: （千円） | W6: （千円） | X6: （千円） | Y6: （千円） | Z6: （千円） | AA6: （千円） | AB6: （千円） | AC6: （千円） | AD6: （千円）
A7: 熊本県 | B7: 43000 | C7: 合計 | D7: =SUM($D$8:$D$60) -> 148,897 | E7: =SUM($E$8:$E$60) -> 146,350 | F7: =SUM($F$8:$F$60) -> 65,350 | G7: =SUM($G$8:$G$60) -> 0 | H7: =SUM($H$8:$H$60) -> 81,000 | I7: =SUM($I$8:$I$60) -> 0 | J7: =SUM($J$8:$J$60) -> 0 | K7: =SUM($K$8:$K$60) -> 0 | L7: =SUM($L$8:$L$60) -> 2,547 | M7: =SUM($M$8:$M$60) -> 0 | N7: =SUM($N$8:$N$60) -> 0 | O7: =SUM($O$8:$O$60) -> 0 | P7: =SUM($P$8:$P$60) -> 0 | Q7: =SUM($Q$8:$Q$60) -> 0 | R7: =SUM($R$8:$R$60) -> 0 | S7: =SUM($S$8:$S$60) -> 0 | T7: =SUM($T$8:$T$60) -> 0 | U7: =SUM($U$8:$U$60) -> 0 | V7: =SUM($V$8:$V$60) -> 148,897 | W7: =SUM($W$8:$W$60) -> 146,350 | X7: =SUM($X$8:$X$60) -> 65,350 | Y7: =SUM($Y$8:$Y$60) -> 0 | Z7: =SUM($Z$8:$Z$60) -> 81,000 | AA7: =SUM($AA$8:$AA$60) -> 0 | AB7: =SUM($AB$8:$AB$60) -> 0 | AC7: =SUM($AC$8:$AC$60) -> 0 | AD7: =SUM($AD$8:$AD$60) -> 2,547
A8: 熊本県 | B8: 43100 | C8: 熊本市 | D8: =SUM(E8,+L8) -> 0 | E8: 0 | F8: 0 | G8: 0 | H8: 0 | I8: 0 | J8: 0 | K8: 0 | L8: 0 | M8: =SUM(N8,+U8) -> 0 | N8: 0 | O8: 0 | P8: 0 | Q8: 0 | R8: 0 | S8: 0 | T8: 0 | U8: 0 | V8: 0 | W8: 0 | X8: 0 | Y8: 0 | Z8: 0 | AA8: 0 | AB8: 0 | AC8: 0 | AD8: 0
A9: 熊本県 | B9: 43202 | C9: 八代市 | D9: =SUM(E9,+L9) -> 117,827 | E9: 117,826 | F9: 49,826 | G9: 0 | H9: 68,000 | I9: 0 | J9: 0 | K9: 0 | L9: 1 | M9: =SUM(N9,+U9) -> 0 | N9: 0 | O9: 0 | P9: 0 | Q9: 0 | R9: 0 | S9: 0 | T9: 0 | U9: 0 | V9: 117,827 | W9: 117,826 | X9: 49,826 | Y9: 0 | Z9: 68,000 | AA9: 0 | AB9: 0 | AC9: 0 | AD9: 1
A10: 熊本県 | B10: 43203 | C10: 人吉市 | D10: =SUM(E10,+L10) -> 0 | E10: 0 | F10: 0 | G10: 0 | H10: 0 | I10: 0 | J10: 0 | K10: 0 | L10: 0 | M10: =SUM(N10,+U10) -> 0 | N10: 0 | O10: 0 | P10: 0 | Q10: 0 | R10: 0 | S10: 0 | T10: 0 | U10: 0 | V10: 0 | W10: 0 | X10: 0 | Y10: 0 | Z10: 0 | AA10: 0 | AB10: 0 | AC10: 0 | AD10: 0
A11: 熊本県 | B11: 43204 | C11: 荒尾市 | D11: =SUM(E11,+L11) -> 0 | E11: 0 | F11: 0 | G11: 0 | H11: 0 | I11: 0 | J11: 0 | K11: 0 | L11: 0 | M11: =SUM(N11,+U11) -> 0 | N11: 0 | O11: 0 | P11: 0 | Q11: 0 | R11: 0 | S11: 0 | T11: 0 | U11: 0 | V11: 0 | W11: 0 | X11: 0 | Y11: 0 | Z11: 0 | AA11: 0 | AB11: 0 | AC11: 0 | AD11: 0
A12: 熊本県 | B12: 43205 | C12: 水俣市 | D12: =SUM(E12,+L12) -> 0 | E12: 0 | F12: 0 | G12: 0 | H12: 0 | I12: 0 | J12: 0 | K12: 0 | L12: 0 | M12: =SUM(N12,+U12) -> 0 | N12: 0 | O12: 0 | P12: 0 | Q12: 0 | R12: 0 | S12: 0 | T12: 0 | U12: 0 | V12: 0 | W12: 0 | X12: 0 | Y12: 0 | Z12: 0 | AA12: 0 | AB12: 0 | AC12: 0 | AD12: 0
A13: 熊本県 | B13: 43206 | C13: 玉名市 | D13: =SUM(E13,+L13) -> 0 | E13: 0 | F13: 0 | G13: 0 | H13: 0 | I13: 0 | J13: 0 | K13: 0 | L13: 0 | M13: =SUM(N13,+U13) -> 0 | N13: 0 | O13: 0 | P13: 0 | Q13: 0 | R13: 0 | S13: 0 | T13: 0 | U13: 0 | V13: 0 | W13: 0 | X13: 0 | Y13: 0 | Z13: 0 | AA13: 0 | AB13: 0 | AC13: 0 | AD13: 0
A14: 熊本県 | B14: 43208 | C14: 山鹿市 | D14: =SUM(E14,+L14) -> 0 | E14: 0 | F14: 0 | G14: 0 | H14: 0 | I14: 0 | J14: 0 | K14: 0 | L14: 0 | M14: =SUM(N14,+U14) -> 0 | N14: 0 | O14: 0 | P14: 0 | Q14: 0 | R14: 0 | S14: 0 | T14: 0 | U14: 0 | V14: 0 | W14: 0 | X14: 0 | Y14: 0 | Z14: 0 | AA14: 0 | AB14: 0 | AC14: 0 | AD14: 0
A15: 熊本県 | B15: 43210 | C15: 菊池市 | D15: =SUM(E15,+L15) -> 0 | E15: 0 | F15: 0 | G15: 0 | H15: 0 | I15: 0 | J15: 0 | K15: 0 | L15: 0 | M15: =SUM(N15,+U15) -> 0 | N15: 0 | O15: 0 | P15: 0 | Q15: 0 | R15: 0 | S15: 0 | T15: 0 | U15: 0 | V15: 0 | W15: 0 | X15: 0 | Y15: 0 | Z15: 0 | AA15: 0 | AB15: 0 | AC15: 0 | AD15: 0
A16: 熊本県 | B16: 43211 | C16: 宇土市 | D16: =SUM(E16,+L16) -> 0 | E16: 0 | F16: 0 | G16: 0 | H16: 0 | I16: 0 | J16: 0 | K16: 0 | L16: 0 | M16: =SUM(N16,+U16) -> 0 | N16: 0 | O16: 0 | P16: 0 | Q16: 0 | R16: 0 | S16: 0 | T16: 0 | U16: 0 | V16: 0 | W16: 0 | X16: 0 | Y16: 0 | Z16: 0 | AA16: 0 | AB16: 0 | AC16: 0 | AD16: 0
A17: 熊本県 | B17: 43212 | C17: 上天草市 | D17: =SUM(E17,+L17) -> 0 | E17: 0 | F17: 0 | G17: 0 | H17: 0 | I17: 0 | J17: 0 | K17: 0 | L17: 0 | M17: =SUM(N17,+U17) -> 0 | N17: 0 | O17: 0 | P17: 0 | Q17: 0 | R17: 0 | S17: 0 | T17: 0 | U17: 0 | V17: 0 | W17: 0 | X17: 0 | Y17: 0 | Z17: 0 | AA17: 0 | AB17: 0 | AC17: 0 | AD17: 0
A18: 熊本県 | B18: 43213 | C18: 宇城市 | D18: =SUM(E18,+L18) -> 0 | E18: 0 | F18: 0 | G18: 0 | H18: 0 | I18: 0 | J18: 0 | K18: 0 | L18: 0 | M18: =SUM(N18,+U18) -> 0 | N18: 0 | O18: 0 | P18: 0 | Q18: 0 | R18: 0 | S18: 0 | T18: 0 | U18: 0 | V18: 0 | W18: 0 | X18: 0 | Y18: 0 | Z18: 0 | AA18: 0 | AB18: 0 | AC18: 0 | AD18: 0
A19: 熊本県 | B19: 43214 | C19: 阿蘇市 | D19: =SUM(E19,+L19) -> 0 | E19: 0 | F19: 0 | G19: 0 | H19: 0 | I19: 0 | J19: 0 | K19: 0 | L19: 0 | M19: =SUM(N19,+U19) -> 0 | N19: 0 | O19: 0 | P19: 0 | Q19: 0 | R19: 0 | S19: 0 | T19: 0 | U19: 0 | V19: 0 | W19: 0 | X19: 0 | Y19: 0 | Z19: 0 | AA19: 0 | AB19: 0 | AC19: 0 | AD19: 0
A20: 熊本県 | B20: 43216 | C20: 合志市 | D20: =SUM(E20,+L20) -> 0 | E20: 0 | F20: 0 | G20: 0 | H20: 0 | I20: 0 | J20: 0 | K20: 0 | L20: 0 | M20: =SUM(N20,+U20) -> 0 | N20: 0 | O20: 0 | P20: 0 | Q20: 0 | R20: 0 | S20: 0 | T20: 0 | U20: 0 | V20: 0 | W20: 0 | X20: 0 | Y20: 0 | Z20: 0 | AA20: 0 | AB20: 0 | AC20: 0 | AD20: 0
A21: 熊本県 | B21: 43348 | C21: 美里町 | D21: =SUM(E21,+L21) -> 0 | E21: 0 | F21: 0 | G21: 0 | H21: 0 | I21: 0 | J21: 0 | K21: 0 | L21: 0 | M21: =SUM(N21,+U21) -> 0 | N21: 0 | O21: 0 | P21: 0 | Q21: 0 | R21: 0 | S21: 0 | T21: 0 | U21: 0 | V21: 0 | W21: 0 | X21: 0 | Y21: 0 | Z21: 0 | AA21: 0 | AB21: 0 | AC21: 0 | AD21: 0
A22: 熊本県 | B22: 43364 | C22: 玉東町 | D22: =SUM(E22,+L22) -> 0 | E22: 0 | F22: 0 | G22: 0 | H22: 0 | I22: 0 | J22: 0 | K22: 0 | L22: 0 | M22: =SUM(N22,+U22) -> 0 | N22: 0 | O22: 0 | P22: 0 | Q22: 0 | R22: 0 | S22: 0 | T22: 0 | U22: 0 | V22: 0 | W22: 0 | X22: 0 | Y22: 0 | Z22: 0 | AA22: 0 | AB22: 0 | AC22: 0 | AD22: 0
A23: 熊本県 | B23: 43367 | C23: 南関町 | D23: =SUM(E23,+L23) -> 0 | E23: 0 | F23: 0 | G23: 0 | H23: 0 | I23: 0 | J23: 0 | K23: 0 | L23: 0 | M23: =SUM(N23,+U23) -> 0 | N23: 0 | O23: 0 | P23: 0 | Q23: 0 | R23: 0 | S23: 0 | T23: 0 | U23: 0 | V23: 0 | W23: 0 | X23: 0 | Y23: 0 | Z23: 0 | AA23: 0 | AB23: 0 | AC23: 0 | AD23: 0
A24: 熊本県 | B24: 43368 | C24: 長洲町 | D24: =SUM(E24,+L24) -> 0 | E24: 0 | F24: 0 | G24: 0 | H24: 0 | I24: 0 | J24: 0 | K24: 0 | L24: 0 | M24: =SUM(N24,+U24) -> 0 | N24: 0 | O24: 0 | P24: 0 | Q24: 0 | R24: 0 | S24: 0 | T24: 0 | U24: 0 | V24: 0 | W24: 0 | X24: 0 | Y24: 0 | Z24: 0 | AA24: 0 | AB24: 0 | AC24: 0 | AD24: 0
A25: 熊本県 | B25: 43369 | C25: 和水町 | D25: =SUM(E25,+L25) -> 0 | E25: 0 | F25: 0 | G25: 0 | H25: 0 | I25: 0 | J25: 0 | K25: 0 | L25: 0 | M25: =SUM(N25,+U25) -> 0 | N25: 0 | O25: 0 | P25: 0 | Q25: 0 | R25: 0 | S25: 0 | T25: 0 | U25: 0 | V25: 0 | W25: 0 | X25: 0 | Y25: 0 | Z25: 0 | AA25: 0 | AB25: 0 | AC25: 0 | AD25: 0
A26: 熊本県 | B26: 43403 | C26: 大津町 | D26: =SUM(E26,+L26) -> 0 | E26: 0 | F26: 0 | G26: 0 | H26: 0 | I26: 0 | J26: 0 | K26: 0 | L26: 0 | M26: =SUM(N26,+U26) -> 0 | N26: 0 | O26: 0 | P26: 0 | Q26: 0 | R26: 0 | S26: 0 | T26: 0 | U26: 0 | V26: 0 | W26: 0 | X26: 0 | Y26: 0 | Z26: 0 | AA26: 0 | AB26: 0 | AC26: 0 | AD26: 0
A27: 熊本県 | B27: 43404 | C27: 菊陽町 | D27: =SUM(E27,+L27) -> 0 | E27: 0 | F27: 0 | G27: 0 | H27: 0 | I27: 0 | J27: 0 | K27: 0 | L27: 0 | M27: =SUM(N27,+U27) -> 0 | N27: 0 | O27: 0 | P27: 0 | Q27: 0 | R27: 0 | S27: 0 | T27: 0 | U27: 0 | V27: 0 | W27: 0 | X27: 0 | Y27: 0 | Z27: 0 | AA27: 0 | AB27: 0 | AC27: 0 | AD27: 0
A28: 熊本県 | B28: 43423 | C28: 南小国町 | D28: =SUM(E28,+L28) -> 0 | E28: 0 | F28: 0 | G28: 0 | H28: 0 | I28: 0 | J28: 0 | K28: 0 | L28: 0 | M28: =SUM(N28,+U28) -> 0 | N28: 0 | O28: 0 | P28: 0 | Q28: 0 | R28: 0 | S28: 0 | T28: 0 | U28: 0 | V28: 0 | W28: 0 | X28: 0 | Y28: 0 | Z28: 0 | AA28: 0 | AB28: 0 | AC28: 0 | AD28: 0
A29: 熊本県 | B29: 43424 | C29: 小国町 | D29: =SUM(E29,+L29) -> 0 | E29: 0 | F29: 0 | G29: 0 | H29: 0 | I29: 0 | J29: 0 | K29: 0 | L29: 0 | M29: =SUM(N29,+U29) -> 0 | N29: 0 | O29: 0 | P29: 0 | Q29: 0 | R29: 0 | S29: 0 | T29: 0 | U29: 0 | V29: 0 | W29: 0 | X29: 0 | Y29: 0 | Z29: 0 | AA29: 0 | AB29: 0 | AC29: 0 | AD29: 0
A30: 熊本県 | B30: 43425 | C30: 産山村 | D30: =SUM(E30,+L30) -> 0 | E30: 0 | F30: 0 | G30: 0 | H30: 0 | I30: 0 | J30: 0 | K30: 0 | L30: 0 | M30: =SUM(N30,+U30) -> 0 | N30: 0 | O30: 0 | P30: 0 | Q30: 0 | R30: 0 | S30: 0 | T30: 0 | U30: 0 | V30: 0 | W30: 0 | X30: 0 | Y30: 0 | Z30: 0 | AA30: 0 | AB30: 0 | AC30: 0 | AD30: 0
A31: 熊本県 | B31: 43428 | C31: 高森町 | D31: =SUM(E31,+L31) -> 0 | E31: 0 | F31: 0 | G31: 0 | H31: 0 | I31: 0 | J31: 0 | K31: 0 | L31: 0 | M31: =SUM(N31,+U31) -> 0 | N31: 0 | O31: 0 | P31: 0 | Q31: 0 | R31: 0 | S31: 0 | T31: 0 | U31: 0 | V31: 0 | W31: 0 | X31: 0 | Y31: 0 | Z31: 0 | AA31: 0 | AB31: 0 | AC31: 0 | AD31: 0
A32: 熊本県 | B32: 43432 | C32: 西原村 | D32: =SUM(E32,+L32) -> 0 | E32: 0 | F32: 0 | G32: 0 | H32: 0 | I32: 0 | J32: 0 | K32: 0 | L32: 0 | M32: =SUM(N32,+U32) -> 0 | N32: 0 | O32: 0 | P32: 0 | Q32: 0 | R32: 0 | S32: 0 | T32: 0 | U32: 0 | V32: 0 | W32: 0 | X32: 0 | Y32: 0 | Z32: 0 | AA32: 0 | AB32: 0 | AC32: 0 | AD32: 0
A33: 熊本県 | B33: 43433 | C33: 南阿蘇村 | D33: =SUM(E33,+L33) -> 0 | E33: 0 | F33: 0 | G33: 0 | H33: 0 | I33: 0 | J33: 0 | K33: 0 | L33: 0 | M33: =SUM(N33,+U33) -> 0 | N33: 0 | O33: 0 | P33: 0 | Q33: 0 | R33: 0 | S33: 0 | T33: 0 | U33: 0 | V33: 0 | W33: 0 | X33: 0 | Y33: 0 | Z33: 0 | AA33: 0 | AB33: 0 | AC33: 0 | AD33: 0
A34: 熊本県 | B34: 43441 | C34: 御船町 | D34: =SUM(E34,+L34) -> 0 | E34: 0 | F34: 0 | G34: 0 | H34: 0 | I34: 0 | J34: 0 | K34: 0 | L34: 0 | M34: =SUM(N34,+U34) -> 0 | N34: 0 | O34: 0 | P34: 0 | Q34: 0 | R34: 0 | S34: 0 | T34: 0 | U34: 0 | V34: 0 | W34: 0 | X34: 0 | Y34: 0 | Z34: 0 | AA34: 0 | AB34: 0 | AC34: 0 | AD34: 0
A35: 熊本県 | B35: 43442 | C35: 嘉島町 | D35: =SUM(E35,+L35) -> 0 | E35: 0 | F35: 0 | G35: 0 | H35: 0 | I35: 0 | J35: 0 | K35: 0 | L35: 0 | M35: =SUM(N35,+U35) -> 0 | N35: 0 | O35: 0 | P35: 0 | Q35: 0 | R35: 0 | S35: 0 | T35: 0 | U35: 0 | V35: 0 | W35: 0 | X35: 0 | Y35: 0 | Z35: 0 | AA35: 0 | AB35: 0 | AC35: 0 | AD35: 0
A36: 熊本県 | B36: 43443 | C36: 益城町 | D36: =SUM(E36,+L36) -> 0 | E36: 0 | F36: 0 | G36: 0 | H36: 0 | I36: 0 | J36: 0 | K36: 0 | L36: 0 | M36: =SUM(N36,+U36) -> 0 | N36: 0 | O36: 0 | P36: 0 | Q36: 0 | R36: 0 | S36: 0 | T36: 0 | U36: 0 | V36: 0 | W36: 0 | X36: 0 | Y36: 0 | Z36: 0 | AA36: 0 | AB36: 0 | AC36: 0 | AD36: 0
A37: 熊本県 | B37: 43447 | C37: 山都町 | D37: =SUM(E37,+L37) -> 0 | E37: 0 | F37: 0 | G37: 0 | H37: 0 | I37: 0 | J37: 0 | K37: 0 | L37: 0 | M37: =SUM(N37,+U37) -> 0 | N37: 0 | O37: 0 | P37: 0 | Q37: 0 | R37: 0 | S37: 0 | T37: 0 | U37: 0 | V37: 0 | W37: 0 | X37: 0 | Y37: 0 | Z37: 0 | AA37: 0 | AB37: 0 | AC37: 0 | AD37: 0
A38: 熊本県 | B38: 43468 | C38: 氷川町 | D38: =SUM(E38,+L38) -> 0 | E38: 0 | F38: 0 | G38: 0 | H38: 0 | I38: 0 | J38: 0 | K38: 0 | L38: 0 | M38: =SUM(N38,+U38) -> 0 | N38: 0 | O38: 0 | P38: 0 | Q38: 0 | R38: 0 | S38: 0 | T38: 0 | U38: 0 | V38: 0 | W38: 0 | X38: 0 | Y38: 0 | Z38: 0 | AA38: 0 | AB38: 0 | AC38: 0 | AD38: 0
A39: 熊本県 | B39: 43482 | C39: 芦北町 | D39: =SUM(E39,+L39) -> 0 | E39: 0 | F39: 0 | G39: 0 | H39: 0 | I39: 0 | J39: 0 | K39: 0 | L39: 0 | M39: =SUM(N39,+U39) -> 0 | N39: 0 | O39: 0 | P39: 0 | Q39: 0 | R39: 0 | S39: 0 | T39: 0 | U39: 0 | V39: 0 | W39: 0 | X39: 0 | Y39: 0 | Z39: 0 | AA39: 0 | AB39: 0 | AC39: 0 | AD39: 0
A40: 熊本県 | B40: 43501 | C40: 錦町 | D40: =SUM(E40,+L40) -> 26,000 | E40: 26,000 | F40: 13,000 | G40: 0 | H40: 13,000 | I40: 0 | J40: 0 | K40: 0 | L40: 0 | M40: =SUM(N40,+U40) -> 0 | N40: 0 | O40: 0 | P40: 0 | Q40: 0 | R40: 0 | S40: 0 | T40: 0 | U40: 0 | V40: 26,000 | W40: 26,000 | X40: 13,000 | Y40: 0 | Z40: 13,000 | AA40: 0 | AB40: 0 | AC40: 0 | AD40: 0
A41: 熊本県 | B41: 43505 | C41: 多良木町 | D41: =SUM(E41,+L41) -> 2,783 | E41: 1,391 | F41: 1,391 | G41: 0 | H41: 0 | I41: 0 | J41: 0 | K41: 0 | L41: 1,392 | M41: =SUM(N41,+U41) -> 0 | N41: 0 | O41: 0 | P41: 0 | Q41: 0 | R41: 0 | S41: 0 | T41: 0 | U41: 0 | V41: 2,783 | W41: 1,391 | X41: 1,391 | Y41: 0 | Z41: 0 | AA41: 0 | AB41: 0 | AC41: 0 | AD41: 1,392
A42: 熊本県 | B42: 43506 | C42: 湯前町 | D42: =SUM(E42,+L42) -> 1,669 | E42: 824 | F42: 824 | G42: 0 | H42: 0 | I42: 0 | J42: 0 | K42: 0 | L42: 845 | M42: =SUM(N42,+U42) -> 0 | N42: 0 | O42: 0 | P42: 0 | Q42: 0 | R42: 0 | S42: 0 | T42: 0 | U42: 0 | V42: 1,669 | W42: 824 | X42: 824 | Y42: 0 | Z42: 0 | AA42: 0 | AB42: 0 | AC42: 0 | AD42: 845
A43: 熊本県 | B43: 43507 | C43: 水上村 | D43: =SUM(E43,+L43) -> 0 | E43: 0 | F43: 0 | G43: 0 | H43: 0 | I43: 0 | J43: 0 | K43: 0 | L43: 0 | M43: =SUM(N43,+U43) -> 0 | N43: 0 | O43: 0 | P43: 0 | Q43: 0 | R43: 0 | S43: 0 | T43: 0 | U43: 0 | V43: 0 | W43: 0 | X43: 0 | Y43: 0 | Z43: 0 | AA43: 0 | AB43: 0 | AC43: 0 | AD43: 0
A44: 熊本県 | B44: 43510 | C44: 相良村 | D44: =SUM(E44,+L44) -> 0 | E44: 0 | F44: 0 | G44: 0 | H44: 0 | I44: 0 | J44: 0 | K44: 0 | L44: 0 | M44: =SUM(N44,+U44) -> 0 | N44: 0 | O44: 0 | P44: 0 | Q44: 0 | R44: 0 | S44: 0 | T44: 0 | U44: 0 | V44: 0 | W44: 0 | X44: 0 | Y44: 0 | Z44: 0 | AA44: 0 | AB44: 0 | AC44: 0 | AD44: 0
A45: 熊本県 | B45: 43511 | C45: 五木村 | D45: =SUM(E45,+L45) -> 618 | E45: 309 | F45: 309 | G45: 0 | H45: 0 | I45: 0 | J45: 0 | K45: 0 | L45: 309 | M45: =SUM(N45,+U45) -> 0 | N45: 0 | O45: 0 | P45: 0 | Q45: 0 | R45: 0 | S45: 0 | T45: 0 | U45: 0 | V45: 618 | W45: 309 | X45: 309 | Y45: 0 | Z45: 0 | AA45: 0 | AB45: 0 | AC45: 0 | AD45: 309
A46: 熊本県 | B46: 43512 | C46: 山江村 | D46: =SUM(E46,+L46) -> 0 | E46: 0 | F46: 0 | G46: 0 | H46: 0 | I46: 0 | J46: 0 | K46: 0 | L46: 0 | M46: =SUM(N46,+U46) -> 0 | N46: 0 | O46: 0 | P46: 0 | Q46: 0 | R46: 0 | S46: 0 | T46: 0 | U46: 0 | V46: 0 | W46: 0 | X46: 0 | Y46: 0 | Z46: 0 | AA46: 0 | AB46: 0 | AC46: 0 | AD46: 0
A47: 熊本県 | B47: 43513 | C47: 球磨村 | D47: =SUM(E47,+L47) -> 0 | E47: 0 | F47: 0 | G47: 0 | H47: 0 | I47: 0 | J47: 0 | K47: 0 | L47: 0 | M47: =SUM(N47,+U47) -> 0 | N47: 0 | O47: 0 | P47: 0 | Q47: 0 | R47: 0 | S47: 0 | T47: 0 | U47: 0 | V47: 0 | W47: 0 | X47: 0 | Y47: 0 | Z47: 0 | AA47: 0 | AB47: 0 | AC47: 0 | AD47: 0
A48: 熊本県 | B48: 43531 | C48: 苓北町 | D48: =SUM(E48,+L48) -> 0 | E48: 0 | F48: 0 | G48: 0 | H48: 0 | I48: 0 | J48: 0 | K48: 0 | L48: 0 | M48: =SUM(N48,+U48) -> 0 | N48: 0 | O48: 0 | P48: 0 | Q48: 0 | R48: 0 | S48: 0 | T48: 0 | U48: 0 | V48: 0 | W48: 0 | X48: 0 | Y48: 0 | Z48: 0 | AA48: 0 | AB48: 0 | AC48: 0 | AD48: 0
A49: 熊本県 | B49: 43854 | C49: 菊池環境保全組合 | D49: =SUM(E49,+L49) -> 0 | E49: 0 | F49: 0 | G49: 0 | H49: 0 | I49: 0 | J49: =市町村分担金内訳!D8 -> 0 | K49: 0 | L49: 0 | M49: =SUM(N49,+U49) -> 0 | N49: 0 | O49: 0 | P49: 0 | Q49: 0 | R49: 0 | S49: =市町村分担金内訳!E8 -> 0 | T49: 0 | U49: 0 | V49: 0 | W49: 0 | X49: 0 | Y49: 0 | Z49: 0 | AA49: 0 | AB49: =SUM(J49,S49) -> 0 | AC49: 0 | AD49: 0
A50: 熊本県 | B50: 43857 | C50: 御船地区衛生施設組合 | D50: =SUM(E50,+L50) -> 0 | E50: 0 | F50: 0 | G50: 0 | H50: 0 | I50: 0 | J50: =市町村分担金内訳!D9 -> 0 | K50: 0 | L50: 0 | M50: =SUM(N50,+U50) -> 0 | N50: 0 | O50: 0 | P50: 0 | Q50: 0 | R50: 0 | S50: =市町村分担金内訳!E9 -> 0 | T50: 0 | U50: 0 | V50: 0 | W50: 0 | X50: 0 | Y50: 0 | Z50: 0 | AA50: 0 | AB50: =SUM(J50,S50) -> 0 | AC50: 0 | AD50: 0
A51: 熊本県 | B51: 43935 | C51: 上天草衛生施設組合 | D51: =SUM(E51,+L51) -> 0 | E51: 0 | F51: 0 | G51: 0 | H51: 0 | I51: 0 | J51: =市町村分担金内訳!D10 -> 0 | K51: 0 | L51: 0 | M51: =SUM(N51,+U51) -> 0 | N51: 0 | O51: 0 | P51: 0 | Q51: 0 | R51: 0 | S51: =市町村分担金内訳!E10 -> 0 | T51: 0 | U51: 0 | V51: 0 | W51: 0 | X51: 0 | Y51: 0 | Z51: 0 | AA51: 0 | AB51: =SUM(J51,S51) -> 0 | AC51: 0 | AD51: 0
A52: 熊本県 | B52: 43949 | C52: 益城、嘉島、西原環境衛生施設組合 | D52: =SUM(E52,+L52) -> 0 | E52: 0 | F52: 0 | G52: 0 | H52: 0 | I52: 0 | J52: =市町村分担金内訳!D11 -> 0 | K52: 0 | L52: 0 | M52: =SUM(N52,+U52) -> 0 | N52: 0 | O52: 0 | P52: 0 | Q52: 0 | R52: 0 | S52: =市町村分担金内訳!E11 -> 0 | T52: 0 | U52: 0 | V52: 0 | W52: 0 | X52: 0 | Y52: 0 | Z52: 0 | AA52: 0 | AB52: =SUM(J52,S52) -> 0 | AC52: 0 | AD52: 0
A53: 熊本県 | B53: 43954 | C53: 山鹿植木広域行政事務組合 | D53: =SUM(E53,+L53) -> 0 | E53: 0 | F53: 0 | G53: 0 | H53: 0 | I53: 0 | J53: =市町村分担金内訳!D12 -> 0 | K53: 0 | L53: 0 | M53: =SUM(N53,+U53) -> 0 | N53: 0 | O53: 0 | P53: 0 | Q53: 0 | R53: 0 | S53: =市町村分担金内訳!E12 -> 0 | T53: 0 | U53: 0 | V53: 0 | W53: 0 | X53: 0 | Y53: 0 | Z53: 0 | AA53: 0 | AB53: =SUM(J53,S53) -> 0 | AC53: 0 | AD53: 0
A54: 熊本県 | B54: 43974 | C54: 八代生活環境事務組合 | D54: =SUM(E54,+L54) -> 0 | E54: 0 | F54: 0 | G54: 0 | H54: 0 | I54: 0 | J54: =市町村分担金内訳!D13 -> 0 | K54: 0 | L54: 0 | M54: =SUM(N54,+U54) -> 0 | N54: 0 | O54: 0 | P54: 0 | Q54: 0 | R54: 0 | S54: =市町村分担金内訳!E13 -> 0 | T54: 0 | U54: 0 | V54: 0 | W54: 0 | X54: 0 | Y54: 0 | Z54: 0 | AA54: 0 | AB54: =SUM(J54,S54) -> 0 | AC54: 0 | AD54: 0
A55: 熊本県 | B55: 43985 | C55: 阿蘇広域行政事務組合 | D55: =SUM(E55,+L55) -> 0 | E55: 0 | F55: 0 | G55: 0 | H55: 0 | I55: 0 | J55: =市町村分担金内訳!D14 -> 0 | K55: 0 | L55: 0 | M55: =SUM(N55,+U55) -> 0 | N55: 0 | O55: 0 | P55: 0 | Q55: 0 | R55: 0 | S55: =市町村分担金内訳!E14 -> 0 | T55: 0 | U55: 0 | V55: 0 | W55: 0 | X55: 0 | Y55: 0 | Z55: 0 | AA55: 0 | AB55: =SUM(J55,S55) -> 0 | AC55: 0 | AD55: 0
A56: 熊本県 | B56: 43986 | C56: 人吉球磨広域行政組合 | D56: =SUM(E56,+L56) -> 0 | E56: 0 | F56: 0 | G56: 0 | H56: 0 | I56: 0 | J56: =市町村分担金内訳!D15 -> 0 | K56: 0 | L56: 0 | M56: =SUM(N56,+U56) -> 0 | N56: 0 | O56: 0 | P56: 0 | Q56: 0 | R56: 0 | S56: =市町村分担金内訳!E15 -> 0 | T56: 0 | U56: 0 | V56: 0 | W56: 0 | X56: 0 | Y56: 0 | Z56: 0 | AA56: 0 | AB56: =SUM(J56,S56) -> 0 | AC56: 0 | AD56: 0
A57: 熊本県 | B57: 43991 | C57: 有明広域行政事務組合 | D57: =SUM(E57,+L57) -> 0 | E57: 0 | F57: 0 | G57: 0 | H57: 0 | I57: 0 | J57: =市町村分担金内訳!D16 -> 0 | K57: 0 | L57: 0 | M57: =SUM(N57,+U57) -> 0 | N57: 0 | O57: 0 | P57: 0 | Q57: 0 | R57: 0 | S57: =市町村分担金内訳!E16 -> 0 | T57: 0 | U57: 0 | V57: 0 | W57: 0 | X57: 0 | Y57: 0 | Z57: 0 | AA57: 0 | AB57: =SUM(J57,S57) -> 0 | AC57: 0 | AD57: 0
A58: 熊本県 | B58: 43993 | C58: 水俣芦北広域行政事務組合 | D58: =SUM(E58,+L58) -> 0 | E58: 0 | F58: 0 | G58: 0 | H58: 0 | I58: 0 | J58: =市町村分担金内訳!D17 -> 0 | K58: 0 | L58: 0 | M58: =SUM(N58,+U58) -> 0 | N58: 0 | O58: 0 | P58: 0 | Q58: 0 | R58: 0 | S58: =市町村分担金内訳!E17 -> 0 | T58: 0 | U58: 0 | V58: 0 | W58: 0 | X58: 0 | Y58: 0 | Z58: 0 | AA58: 0 | AB58: =SUM(J58,S58) -> 0 | AC58: 0 | AD58: 0
A59: 熊本県 | B59: 43995 | C59: 宇城広域連合 | D59: =SUM(E59,+L59) -> 0 | E59: 0 | F59: 0 | G59: 0 | H59: 0 | I59: 0 | J59: =市町村分担金内訳!D18 -> 0 | K59: 0 | L59: 0 | M59: =SUM(N59,+U59) -> 0 | N59: 0 | O59: 0 | P59: 0 | Q59: 0 | R59: 0 | S59: =市町村分担金内訳!E18 -> 0 | T59: 0 | U59: 0 | V59: 0 | W59: 0 | X59: 0 | Y59: 0 | Z59: 0 | AA59: 0 | AB59: =SUM(J59,S59) -> 0 | AC59: 0 | AD59: 0
A60: 熊本県 | B60: 43996 | C60: 菊池広域連合 | D60: =SUM(E60,+L60) -> 0 | E60: 0 | F60: 0 | G60: 0 | H60: 0 | I60: 0 | J60: =市町村分担金内訳!D19 -> 0 | K60: 0 | L60: 0 | M60: =SUM(N60,+U60) -> 0 | N60: 0 | O60: 0 | P60: 0 | Q60: 0 | R60: 0 | S60: =市町村分担金内訳!E19 -> 0 | T60: 0 | U60: 0 | V60: 0 | W60: 0 | X60: 0 | Y60: 0 | Z60: 0 | AA60: 0 | AB60: =SUM(J60,S60) -> 0 | AC60: 0 | AD60: 0

Sheet 災害廃棄物事業経費（歳出）
A1: 【災害】廃棄物処理事業経費（市区町村及び一部事務組合・広域連合の合計）【歳出】（令和4年度実績）
A2: 都道府県名 | B2: 地方公共団体コード | C2: 市区町村・一部事務組合・広域連合名 | D2: ごみ（建設改良費＋処理維持管理費＋その他）（組合分担金を除く） | AF2: し尿（建設改良費＋処理維持管理費＋その他）（組合分担金を除く） | BH2: 合計（建設改良費＋処理維持管理費＋その他）（組合分担金を除く）
D3: 建設改良費 (工事費+調査費)(組合分担金を除く) | L3: 処理及び維持管理費 (人件費+処理費+車両購入費+委託費+調査研究費)(組合分担金を除く) | AD3: その他 | AE3: 合計 | AF3: 建設改良費 (工事費+調査費)(組合分担金を除く) | AN3: 処理及び維持管理費 (人件費+処理費+車両購入費+委託費+調査研究費)(組合分担金を除く) | BF3: その他 | BG3: 合計 | BH3: 建設改良費 (工事費+調査費)(組合分担金を除く) | BP3: 処理及び維持管理費 (人件費+処理費+車両購入費+委託費+調査研究費)(組合分担金を除く) | CH3: その他 | CI3: 合計
D4: 合計 | E4: 工事費 (収集運搬施設+中間処理施設+最終処分場+その他) | J4: 調査費 | K4: （建設改良費組合分担金） | L4: 合計 | M4: 人件費（一般職＋収集運搬＋中間処理＋最終処分） | R4: 処理費 (収集運搬費+中間処理費+最終処分費) | V4: 車両等購入費 | W4: 委託費 (収集運搬費+中間処理費+最終処分費+その他) | AB4: (組合分担金) | AC4: 調査研究費 | AF4: 合計 | AG4: 工事費 (収集運搬施設+中間処理施設+最終処分場+その他) | AL4: 調査費 | AM4: （建設改良費組合分担金） | AN4: 合計 | AO4: 人件費（一般職＋収集運搬＋中間処理＋最終処分） | AT4: 処理費 (収集運搬費+中間処理費+最終処分費) | AX4: 車両等購入費 | AY4: 委託費 (収集運搬費+中間処理費+最終処分費+その他) | BD4: (組合分担金) | BE4: 調査研究費 | BH4: 合計 | BI4: 工事費 (収集運搬施設+中間処理施設+最終処分場+その他) | BN4: 調査費 | BO4: （建設改良費組合分担金） | BP4: 合計 | BQ4: 人件費（一般職＋収集運搬＋中間処理＋最終処分） | BV4: 処理費 (収集運搬費+中間処理費+最終処分費) | BZ4: 車両等購入費 | CA4: 委託費 (収集運搬費+中間処理費+最終処分費+その他) | CF4: (組合分担金) | CG4: 調査研究費
E5: 合計 | F5: 収集運搬施設 | G5: 中間処理施設 | H5: 最終処分場 | I5: その他 | M5: 合計 | N5: 一般職 | O5: 収集運搬 | P5: 中間処理 | Q5: 最終処分 | R5: 合計 | S5: 収集運搬費 | T5: 中間処理費 | U5: 最終処分費 | W5: 合計 | X5: 収集運搬費 | Y5: 中間処理費 | Z5: 最終処分費 | AA5: その他 | AG5: 合計 | AH5: 収集運搬施設 | AI5: 中間処理施設 | AJ5: 最終処分場 | AK5: その他 | AO5: 合計 | AP5: 一般職 | AQ5: 収集運搬 | AR5: 中間処理 | AS5: 最終処分 | AT5: 合計 | AU5: 収集運搬費 | AV5: 中間処理費 | AW5: 最終処分費 | AY5: 合計 | AZ5: 収集運搬費 | BA5: 中間処理費 | BB5: 最終処分費 | BC5: その他 | BI5: 合計 | BJ5: 収集運搬施設 | BK5: 中間処理施設 | BL5: 最終処分場 | BM5: その他 | BQ5: 合計 | BR5: 一般職 | BS5: 収集運搬 | BT5: 中間処理 | BU5: 最終処分 | BV5: 合計 | BW5: 収集運搬費 | BX5: 中間処理費 | BY5: 最終処分費 | CA5: 合計 | CB5: 収集運搬費 | CC5: 中間処理費 | CD5: 最終処分費 | CE5: その他
D6: （千円） | E6: （千円） | F6: （千円） | G6: （千円） | H6: （千円） | I6: （千円） | J6: （千円） | K6: （千円） | L6: （千円） | M6: （千円） | N6: （千円） | O6: （千円） | P6: （千円） | Q6: （千円） | R6: （千円） | S6: （千円） | T6: （千円） | U6: （千円） | V6: （千円） | W6: （千円） | X6: （千円） | Y6: （千円） | Z6: （千円） | AA6: （千円） | AB6: （千円） | AC6: （千円） | AD6: （千円） | AE6: （千円） | AF6: （千円） | AG6: （千円） | AH6: （千円） | AI6: （千円） | AJ6: （千円） | AK6: （千円） | AL6: （千円） | AM6: （千円） | AN6: （千円） | AO6: （千円） | AP6: （千円） | AQ6: （千円） | AR6: （千円） | AS6: （千円） | AT6: （千円） | AU6: （千円） | AV6: （千円） | AW6: （千円） | AX6: （千円） | AY6: （千円） | AZ6: （千円） | BA6: （千円） | BB6: （千円） | BC6: （千円） | BD6: （千円） | BE6: （千円） | BF6: （千円） | BG6: （千円） | BH6: （千円） | BI6: （千円） | BJ6: （千円） | BK6: （千円） | BL6: （千円） | BM6: （千円） | BN6: （千円） | BO6: （千円） | BP6: （千円） | BQ6: （千円） | BR6: （千円） | BS6: （千円） | BT6: （千円） | BU6: （千円） | BV6: （千円） | BW6: （千円） | BX6: （千円） | BY6: （千円） | BZ6: （千円） | CA6: （千円） | CB6: （千円） | CC6: （千円） | CD6: （千円） | CE6: （千円） | CF6: （千円） | CG6: （千円） | CH6: （千円） | CI6: （千円）
A7: 熊本県 | B7: 43000 | C7: 合計 | D7: =SUM($D$8:$D$60) -> 27,031 | E7: =SUM($E$8:$E$60) -> 27,031 | F7: =SUM($F$8:$F$60) -> 1,031 | G7: =SUM($G$8:$G$60) -> 0 | H7: =SUM($H$8:$H$60) -> 0 | I7: =SUM($I$8:$I$60) -> 26,000 | J7: =SUM($J$8:$J$60) -> 0 | K7: =SUM($K$8:$K$60) -> 0 | L7: =SUM($L$8:$L$60) -> 121,866 | M7: =SUM($M$8:$M$60) -> 0 | N7: =SUM($N$8:$N$60) -> 0 | O7: =SUM($O$8:$O$60) -> 0 | P7: =SUM($P$8:$P$60) -> 0 | Q7: =SUM($Q$8:$Q$60) -> 0 | R7: =SUM($R$8:$R$60) -> 29 | S7: =SUM($S$8:$S$60) -> 20 | T7: =SUM($T$8:$T$60) -> 9 | U7: =SUM($U$8:$U$60) -> 0 | V7: =SUM($V$8:$V$60) -> 0 | W7: =SUM($W$8:$W$60) -> 121,837 | X7: =SUM($X$8:$X$60) -> 618 | Y7: =SUM($Y$8:$Y$60) -> 2,774 | Z7: =SUM($Z$8:$Z$60) -> 0 | AA7: =SUM($AA$8:$AA$60) -> 118,445 | AB7: =SUM($AB$8:$AB$60) -> 0 | AC7: =SUM($AC$8:$AC$60) -> 0 | AD7: =SUM($AD$8:$AD$60) -> 0 | AE7: =SUM($AE$8:$AE$60) -> 148,897 | AF7: =SUM($AF$8:$AF$60) -> 0 | AG7: =SUM($AG$8:$AG$60) -> 0 | AH7: =SUM($AH$8:$AH$60) -> 0 | AI7: =SUM($AI$8:$AI$60) -> 0 | AJ7: =SUM($AJ$8:$AJ$60) -> 0 | AK7: =SUM($AK$8:$AK$60) -> 0 | AL7: =SUM($AL$8:$AL$60) -> 0 | AM7: =SUM($AM$8:$AM$60) -> 0 | AN7: =SUM($AN$8:$AN$60) -> 0 | AO7: =SUM($AO$8:$AO$60) -> 0 | AP7: =SUM($AP$8:$AP$60) -> 0 | AQ7: =SUM($AQ$8:$AQ$60) -> 0 | AR7: =SUM($AR$8:$AR$60) -> 0 | AS7: =SUM($AS$8:$AS$60) -> 0 | AT7: =SUM($AT$8:$AT$60) -> 0 | AU7: =SUM($AU$8:$AU$60) -> 0 | AV7: =SUM($AV$8:$AV$60) -> 0 | AW7: =SUM($AW$8:$AW$60) -> 0 | AX7: =SUM($AX$8:$AX$60) -> 0 | AY7: =SUM($AY$8:$AY$60) -> 0 | AZ7: =SUM($AZ$8:$AZ$60) -> 0 | BA7: =SUM($BA$8:$BA$60) -> 0 | BB7: =SUM($BB$8:$BB$60) -> 0 | BC7: =SUM($BC$8:$BC$60) -> 0 | BD7: =SUM($BD$8:$BD$60) -> 0 | BE7: =SUM($BE$8:$BE$60) -> 0 | BF7: =SUM($BF$8:$BF$60) -> 0 | BG7: =SUM($BG$8:$BG$60) -> 0 | BH7: =SUM($BH$8:$BH$60) -> 27,031 | BI7: =SUM($BI$8:$BI$60) -> 27,031 | BJ7: =SUM($BJ$8:$BJ$60) -> 1,031 | BK7: =SUM($BK$8:$BK$60) -> 0 | BL7: =SUM($BL$8:$BL$60) -> 0 | BM7: =SUM($BM$8:$BM$60) -> 26,000 | BN7: =SUM($BN$8:$BN$60) -> 0 | BO7: =SUM($BO$8:$BO$60) -> 0 | BP7: =SUM($BP$8:$BP$60) -> 121,866 | BQ7: =SUM($BQ$8:$BQ$60) -> 0 | BR7: =SUM($BR$8:$BR$60) -> 0 | BS7: =SUM($BS$8:$BS$60) -> 0 | BT7: =SUM($BT$8:$BT$60) -> 0 | BU7: =SUM($BU$8:$BU$60) -> 0 | BV7: =SUM($BV$8:$BV$60) -> 29 | BW7: =SUM($BW$8:$BW$60) -> 20 | BX7: =SUM($BX$8:$BX$60) -> 9 | BY7: =SUM($BY$8:$BY$60) -> 0 | BZ7: =SUM($BZ$8:$BZ$60) -> 0 | CA7: =SUM($CA$8:$CA$60) -> 121,837 | CB7: =SUM($CB$8:$CB$60) -> 618 | CC7: =SUM($CC$8:$CC$60) -> 2,774 | CD7: =SUM($CD$8:$CD$60) -> 0 | CE7: =SUM($CE$8:$CE$60) -> 118,445 | CF7: =SUM($CF$8:$CF$60) -> 0 | CG7: =SUM($CG$8:$CG$60) -> 0 | CH7: =SUM($CH$8:$CH$60) -> 0 | CI7: =SUM($CI$8:$CI$60) -> 148,897
A8: 熊本県 | B8: 43100 | C8: 熊本市 | D8: 0 | E8: 0 | F8: 0 | G8: 0 | H8: 0 | I8: 0 | J8: 0 | K8: =組合分担金内訳!D8 -> 0 | L8: 0 | M8: 0 | N8: 0 | O8: 0 | P8: 0 | Q8: 0 | R8: 0 | S8: 0 | T8: 0 | U8: 0 | V8: 0 | W8: 0 | X8: 0 | Y8: 0 | Z8: 0 | AA8: 0 | AB8: =組合分担金内訳!E8 -> 0 | AC8: 0 | AD8: 0 | AE8: 0 | AF8: 0 | AG8: 0 | AH8: 0 | AI8: 0 | AJ8: 0 | AK8: 0 | AL8: 0 | AM8: =組合分担金内訳!G8 -> 0 | AN8: 0 | AO8: 0 | AP8: 0 | AQ8: 0 | AR8: 0 | AS8: 0 | AT8: 0 | AU8: 0 | AV8: 0 | AW8: 0 | AX8: 0 | AY8: 0 | AZ8: 0 | BA8: 0 | BB8: 0 | BC8: 0 | BD8: =組合分担金内訳!H8 -> 0 | BE8: 0 | BF8: 0 | BG8: 0 | BH8: =SUM(D8,AF8) -> 0 | BI8: =SUM(E8,AG8) -> 0 | BJ8: =SUM(F8,AH8) -> 0 | BK8: =SUM(G8,AI8) -> 0 | BL8: =SUM(H8,AJ8) -> 0 | BM8: =SUM(I8,AK8) -> 0 | BN8: =SUM(J8,AL8) -> 0 | BO8: =SUM(K8,AM8) -> 0 | BP8: =SUM(L8,AN8) -> 0 | BQ8: =SUM(M8,AO8) -> 0 | BR8: =SUM(N8,AP8) -> 0 | BS8: =SUM(O8,AQ8) -> 0 | BT8: =SUM(P8,AR8) -> 0 | BU8: =SUM(Q8,AS8) -> 0 | BV8: =SUM(R8,AT8) -> 0 | BW8: =SUM(S8,AU8) -> 0 | BX8: =SUM(T8,AV8) -> 0 | BY8: =SUM(U8,AW8) -> 0 | BZ8: =SUM(V8,AX8) -> 0 | CA8: =SUM(W8,AY8) -> 0 | CB8: =SUM(X8,AZ8) -> 0 | CC8: =SUM(Y8,BA8) -> 0 | CD8: =SUM(Z8,BB8) -> 0 | CE8: =SUM(AA8,BC8) -> 0 | CF8: =SUM(AB8,BD8) -> 0 | CG8: =SUM(AC8,BE8) -> 0 | CH8: =SUM(AD8,BF8) -> 0 | CI8: =SUM(AE8,BG8) -> 0
A9: 熊本県 | B9: 43202 | C9: 八代市 | D9: 0 | E9: 0 | F9: 0 | G9: 0 | H9: 0 | I9: 0 | J9: 0 | K9: =組合分担金内訳!D9 -> 0 | L9: 117,827 | M9: 0 | N9: 0 | O9: 0 | P9: 0 | Q9: 0 | R9: 0 | S9: 0 | T9: 0 | U9: 0 | V9: 0 | W9: 117,827 | X9: 0 | Y9: 0 | Z9: 0 | AA9: 117,827 | AB9: =組合分担金内訳!E9 -> 0 | AC9: 0 | AD9: 0 | AE9: 117,827 | AF9: 0 | AG9: 0 | AH9: 0 | AI9: 0 | AJ9: 0 | AK9: 0 | AL9: 0 | AM9: =組合分担金内訳!G9 -> 0 | AN9: 0 | AO9: 0 | AP9: 0 | AQ9: 0 | AR9: 0 | AS9: 0 | AT9: 0 | AU9: 0 | AV9: 0 | AW9: 0 | AX9: 0 | AY9: 0 | AZ9: 0 | BA9: 0 | BB9: 0 | BC9: 0 | BD9: =組合分担金内訳!H9 -> 0 | BE9: 0 | BF9: 0 | BG9: 0 | BH9: 0 | BI9: 0 | BJ9: 0 | BK9: 0 | BL9: 0 | BM9: 0 | BN9: 0 | BO9: 0 | BP9: 117,827 | BQ9: 0 | BR9: 0 | BS9: 0 | BT9: 0 | BU9: 0 | BV9: 0 | BW9: 0 | BX9: 0 | BY9: 0 | BZ9: 0 | CA9: 117,827 | CB9: 0 | CC9: 0 | CD9: 0 | CE9: 117,827 | CF9: 0 | CG9: 0 | CH9: 0 | CI9: 117,827
A10: 熊本県 | B10: 43203 | C10: 人吉市 | D10: 0 | E10: 0 | F10: 0 | G10: 0 | H10: 0 | I10: 0 | J10: 0 | K10: =組合分担金内訳!D10 -> 0 | L10: 0 | M10: 0 | N10: 0 | O10: 0 | P10: 0 | Q10: 0 | R10: 0 | S10: 0 | T10: 0 | U10: 0 | V10: 0 | W10: 0 | X10: 0 | Y10: 0 | Z10: 0 | AA10: 0 | AB10: =組合分担金内訳!E10 -> 0 | AC10: 0 | AD10: 0 | AE10: 0 | AF10: 0 | AG10: 0 | AH10: 0 | AI10: 0 | AJ10: 0 | AK10: 0 | AL10: 0 | AM10: =組合分担金内訳!G10 -> 0 | AN10: 0 | AO10: 0 | AP10: 0 | AQ10: 0 | AR10: 0 | AS10: 0 | AT10: 0 | AU10: 0 | AV10: 0 | AW10: 0 | AX10: 0 | AY10: 0 | AZ10: 0 | BA10: 0 | BB10: 0 | BC10: 0 | BD10: =組合分担金内訳!H10 -> 0 | BE10: 0 | BF10: 0 | BG10: 0 | BH10: 0 | BI10: 0 | BJ10: 0 | BK10: 0 | BL10: 0 | BM10: 0 | BN10: 0 | BO10: 0 | BP10: 0 | BQ10: 0 | BR10: 0 | BS10: 0 | BT10: 0 | BU10: 0 | BV10: 0 | BW10: 0 | BX10: 0 | BY10: 0 | BZ10: 0 | CA10: 0 | CB10: 0 | CC10: 0 | CD10: 0 | CE10: 0 | CF10: 0 | CG10: 0 | CH10: 0 | CI10: 0
A11: 熊本県 | B11: 43204 | C11: 荒尾市 | D11: 0 | E11: 0 | F11: 0 | G11: 0 | H11: 0 | I11: 0 | J11: 0 | K11: =組合分担金内訳!D11 -> 0 | L11: 0 | M11: 0 | N11: 0 | O11: 0 | P11: 0 | Q11: 0 | R11: 0 | S11: 0 | T11: 0 | U11: 0 | V11: 0 | W11: 0 | X11: 0 | Y11: 0 | Z11: 0 | AA11: 0 | AB11: =組合分担金内訳!E11 -> 0 | AC11: 0 | AD11: 0 | AE11: 0 | AF11: 0 | AG11: 0 | AH11: 0 | AI11: 0 | AJ11: 0 | AK11: 0 | AL11: 0 | AM11: =組合分担金内訳!G11 -> 0 | AN11: 0 | AO11: 0 | AP11: 0 | AQ11: 0 | AR11: 0 | AS11: 0 | AT11: 0 | AU11: 0 | AV11: 0 | AW11: 0 | AX11: 0 | AY11: 0 | AZ11: 0 | BA11: 0 | BB11: 0 | BC11: 0 | BD11: =組合分担金内訳!H11 -> 0 | BE11: 0 | BF11: 0 | BG11: 0 | BH11: 0 | BI11: 0 | BJ11: 0 | BK11: 0 | BL11: 0 | BM11: 0 | BN11: 0 | BO11: 0 | BP11: 0 | BQ11: 0 | BR11: 0 | BS11: 0 | BT11: 0 | BU11: 0 | BV11: 0 | BW11: 0 | BX11: 0 | BY11: 0 | BZ11: 0 | CA11: 0 | CB11: 0 | CC11: 0 | CD11: 0 | CE11: 0 | CF11: 0 | CG11: 0 | CH11: 0 | CI11: 0
A12: 熊本県 | B12: 43205 | C12: 水俣市 | D12: 0 | E12: 0 | F12: 0 | G12: 0 | H12: 0 | I12: 0 | J12: 0 | K12: =組合分担金内訳!D12 -> 0 | L12: 0 | M12: 0 | N12: 0 | O12: 0 | P12: 0 | Q12: 0 | R12: 0 | S12: 0 | T12: 0 | U12: 0 | V12: 0 | W12: 0 | X12: 0 | Y12: 0 | Z12: 0 | AA12: 0 | AB12: =組合分担金内訳!E12 -> 0 | AC12: 0 | AD12: 0 | AE12: 0 | AF12: 0 | AG12: 0 | AH12: 0 | AI12: 0 | AJ12: 0 | AK12: 0 | AL12: 0 | AM12: =組合分担金内訳!G12 -> 0 | AN12: 0 | AO12: 0 | AP12: 0 | AQ12: 0 | AR12: 0 | AS12: 0 | AT12: 0 | AU12: 0 | AV12: 0 | AW12: 0 | AX12: 0 | AY12: 0 | AZ12: 0 | BA12: 0 | BB12: 0 | BC12: 0 | BD12: =組合分担金内訳!H12 -> 0 | BE12: 0 | BF12: 0 | BG12: 0 | BH12: 0 | BI12: 0 | BJ12: 0 | BK12: 0 | BL12: 0 | BM12: 0 | BN12: 0 | BO12: 0 | BP12: 0 | BQ12: 0 | BR12: 0 | BS12: 0 | BT12: 0 | BU12: 0 | BV12: 0 | BW12: 0 | BX12: 0 | BY12: 0 | BZ12: 0 | CA12: 0 | CB12: 0 | CC12: 0 | CD12: 0 | CE12: 0 | CF12: 0 | CG12: 0 | CH12: 0 | CI12: 0
A13: 熊本県 | B13: 43206 | C13: 玉名市 | D13: 0 | E13: 0 | F13: 0 | G13: 0 | H13: 0 | I13: 0 | J13: 0 | K13: =組合分担金内訳!D13 -> 0 | L13: 0 | M13: 0 | N13: 0 | O13: 0 | P13: 0 | Q13: 0 | R13: 0 | S13: 0 | T13: 0 | U13: 0 | V13: 0 | W13: 0 | X13: 0 | Y13: 0 | Z13: 0 | AA13: 0 | AB13: =組合分担金内訳!E13 -> 0 | AC13: 0 | AD13: 0 | AE13: 0 | AF13: 0 | AG13: 0 | AH13: 0 | AI13: 0 | AJ13: 0 | AK13: 0 | AL13: 0 | AM13: =組合分担金内訳!G13 -> 0 | AN13: 0 | AO13: 0 | AP13: 0 | AQ13: 0 | AR13: 0 | AS13: 0 | AT13: 0 | AU13: 0 | AV13: 0 | AW13: 0 | AX13: 0 | AY13: 0 | AZ13: 0 | BA13: 0 | BB13: 0 | BC13: 0 | BD13: =組合分担金内訳!H13 -> 0 | BE13: 0 | BF13: 0 | BG13: 0 | BH13: 0 | BI13: 0 | BJ13: 0 | BK13: 0 | BL13: 0 | BM13: 0 | BN13: 0 | BO13: 0 | BP13: 0 | BQ13: 0 | BR13: 0 | BS13: 0 | BT13: 0 | BU13: 0 | BV13: 0 | BW13: 0 | BX13: 0 | BY13: 0 | BZ13: 0 | CA13: 0 | CB13: 0 | CC13: 0 | CD13: 0 | CE13: 0 | CF13: 0 | CG13: 0 | CH13: 0 | CI13: 0
A14: 熊本県 | B14: 43208 | C14: 山鹿市 | D14: 0 | E14: 0 | F14: 0 | G14: 0 | H14: 0 | I14: 0 | J14: 0 | K14: =組合分担金内訳!D14 -> 0 | L14: 0 | M14: 0 | N14: 0 | O14: 0 | P14: 0 | Q14: 0 | R14: 0 | S14: 0 | T14: 0 | U14: 0 | V14: 0 | W14: 0 | X14: 0 | Y14: 0 | Z14: 0 | AA14: 0 | AB14: =組合分担金内訳!E14 -> 0 | AC14: 0 | AD14: 0 | AE14: 0 | AF14: 0 | AG14: 0 | AH14: 0 | AI14: 0 | AJ14: 0 | AK14: 0 | AL14: 0 | AM14: =組合分担金内訳!G14 -> 0 | AN14: 0 | AO14: 0 | AP14: 0 | AQ14: 0 | AR14: 0 | AS14: 0 | AT14: 0 | AU14: 0 | AV14: 0 | AW14: 0 | AX14: 0 | AY14: 0 | AZ14: 0 | BA14: 0 | BB14: 0 | BC14: 0 | BD14: =組合分担金内訳!H14 -> 0 | BE14: 0 | BF14: 0 | BG14: 0 | BH14: 0 | BI14: 0 | BJ14: 0 | BK14: 0 | BL14: 0 | BM14: 0 | BN14: 0 | BO14: 0 | BP14: 0 | BQ14: 0 | BR14: 0 | BS14: 0 | BT14: 0 | BU14: 0 | BV14: 0 | BW14: 0 | BX14: 0 | BY14: 0 | BZ14: 0 | CA14: 0 | CB14: 0 | CC14: 0 | CD14: 0 | CE14: 0 | CF14: 0 | CG14: 0 | CH14: 0 | CI14: 0
A15: 熊本県 | B15: 43210 | C15: 菊池市 | D15: 0 | E15: 0 | F15: 0 | G15: 0 | H15: 0 | I15: 0 | J15: 0 | K15: =組合分担金内訳!D15 -> 0 | L15: 0 | M15: 0 | N15: 0 | O15: 0 | P15: 0 | Q15: 0 | R15: 0 | S15: 0 | T15: 0 | U15: 0 | V15: 0 | W15: 0 | X15: 0 | Y15: 0 | Z15: 0 | AA15: 0 | AB15: =組合分担金内訳!E15 -> 0 | AC15: 0 | AD15: 0 | AE15: 0 | AF15: 0 | AG15: 0 | AH15: 0 | AI15: 0 | AJ15: 0 | AK15: 0 | AL15: 0 | AM15: =組合分担金内訳!G15 -> 0 | AN15: 0 | AO15: 0 | AP15: 0 | AQ15: 0 | AR15: 0 | AS15: 0 | AT15: 0 | AU15: 0 | AV15: 0 | AW15: 0 | AX15: 0 | AY15: 0 | AZ15: 0 | BA15: 0 | BB15: 0 | BC15: 0 | BD15: =組合分担金内訳!H15 -> 0 | BE15: 0 | BF15: 0 | BG15: 0 | BH15: 0 | BI15: 0 | BJ15: 0 | BK15: 0 | BL15: 0 | BM15: 0 | BN15: 0 | BO15: 0 | BP15: 0 | BQ15: 0 | BR15: 0 | BS15: 0 | BT15: 0 | BU15: 0 | BV15: 0 | BW15: 0 | BX15: 0 | BY15: 0 | BZ15: 0 | CA15: 0 | CB15: 0 | CC15: 0 | CD15: 0 | CE15: 0 | CF15: 0 | CG15: 0 | CH15: 0 | CI15: 0
A16: 熊本県 | B16: 43211 | C16: 宇土市 | D16: 0 | E16: 0 | F16: 0 | G16: 0 | H16: 0 | I16: 0 | J16: 0 | K16: =組合分担金内訳!D16 -> 0 | L16: 0 | M16: 0 | N16: 0 | O16: 0 | P16: 0 | Q16: 0 | R16: 0 | S16: 0 | T16: 0 | U16: 0 | V16: 0 | W16: 0 | X16: 0 | Y16: 0 | Z16: 0 | AA16: 0 | AB16: =組合分担金内訳!E16 -> 0 | AC16: 0 | AD16: 0 | AE16: 0 | AF16: 0 | AG16: 0 | AH16: 0 | AI16: 0 | AJ16: 0 | AK16: 0 | AL16: 0 | AM16: =組合分担金内訳!G16 -> 0 | AN16: 0 | AO16: 0 | AP16: 0 | AQ16: 0 | AR16: 0 | AS16: 0 | AT16: 0 | AU16: 0 | AV16: 0 | AW16: 0 | AX16: 0 | AY16: 0 | AZ16: 0 | BA16: 0 | BB16: 0 | BC16: 0 | BD16: =組合分担金内訳!H16 -> 0 | BE16: 0 | BF16: 0 | BG16: 0 | BH16: 0 | BI16: 0 | BJ16: 0 | BK16: 0 | BL16: 0 | BM16: 0 | BN16: 0 | BO16: 0 | BP16: 0 | BQ16: 0 | BR16: 0 | BS16: 0 | BT16: 0 | BU16: 0 | BV16: 0 | BW16: 0 | BX16: 0 | BY16: 0 | BZ16: 0 | CA16: 0 | CB16: 0 | CC16: 0 | CD16: 0 | CE16: 0 | CF16: 0 | CG16: 0 | CH16: 0 | CI16: 0
A17: 熊本県 | B17: 43212 | C17: 上天草市 | D17: 0 | E17: 0 | F17: 0 | G17: 0 | H17: 0 | I17: 0 | J17: 0 | K17: =組合分担金内訳!D17 -> 0 | L17: 0 | M17: 0 | N17: 0 | O17: 0 | P17: 0 | Q17: 0 | R17: 0 | S17: 0 | T17: 0 | U17: 0 | V17: 0 | W17: 0 | X17: 0 | Y17: 0 | Z17: 0 | AA17: 0 | AB17: =組合分担金内訳!E17 -> 0 | AC17: 0 | AD17: 0 | AE17: 0 | AF17: 0 | AG17: 0 | AH17: 0 | AI17: 0 | AJ17: 0 | AK17: 0 | AL17: 0 | AM17: =組合分担金内訳!G17 -> 0 | AN17: 0 | AO17: 0 | AP17: 0 | AQ17: 0 | AR17: 0 | AS17: 0 | AT17: 0 | AU17: 0 | AV17: 0 | AW17: 0 | AX17: 0 | AY17: 0 | AZ17: 0 | BA17: 0 | BB17: 0 | BC17: 0 | BD17: =組合分担金内訳!H17 -> 0 | BE17: 0 | BF17: 0 | BG17: 0 | BH17: 0 | BI17: 0 | BJ17: 0 | BK17: 0 | BL17: 0 | BM17: 0 | BN17: 0 | BO17: 0 | BP17: 0 | BQ17: 0 | BR17: 0 | BS17: 0 | BT17: 0 | BU17: 0 | BV17: 0 | BW17: 0 | BX17: 0 | BY17: 0 | BZ17: 0 | CA17: 0 | CB17: 0 | CC17: 0 | CD17: 0 | CE17: 0 | CF17: 0 | CG17: 0 | CH17: 0 | CI17: 0
A18: 熊本県 | B18: 43213 | C18: 宇城市 | D18: 0 | E18: 0 | F18: 0 | G18: 0 | H18: 0 | I18: 0 | J18: 0 | K18: =組合分担金内訳!D18 -> 0 | L18: 0 | M18: 0 | N18: 0 | O18: 0 | P18: 0 | Q18: 0 | R18: 0 | S18: 0 | T18: 0 | U18: 0 | V18: 0 | W18: 0 | X18: 0 | Y18: 0 | Z18: 0 | AA18: 0 | AB18: =組合分担金内訳!E18 -> 0 | AC18: 0 | AD18: 0 | AE18: 0 | AF18: 0 | AG18: 0 | AH18: 0 | AI18: 0 | AJ18: 0 | AK18: 0 | AL18: 0 | AM18: =組合分担金内訳!G18 -> 0 | AN18: 0 | AO18: 0 | AP18: 0 | AQ18: 0 | AR18: 0 | AS18: 0 | AT18: 0 | AU18: 0 | AV18: 0 | AW18: 0 | AX18: 0 | AY18: 0 | AZ18: 0 | BA18: 0 | BB18: 0 | BC18: 0 | BD18: =組合分担金内訳!H18 -> 0 | BE18: 0 | BF18: 0 | BG18: 0 | BH18: 0 | BI18: 0 | BJ18: 0 | BK18: 0 | BL18: 0 | BM18: 0 | BN18: 0 | BO18: 0 | BP18: 0 | BQ18: 0 | BR18: 0 | BS18: 0 | BT18: 0 | BU18: 0 | BV18: 0 | BW18: 0 | BX18: 0 | BY18: 0 | BZ18: 0 | CA18: 0 | CB18: 0 | CC18: 0 | CD18: 0 | CE18: 0 | CF18: 0 | CG18: 0 | CH18: 0 | CI18: 0
A19: 熊本県 | B19: 43214 | C19: 阿蘇市 | D19: 0 | E19: 0 | F19: 0 | G19: 0 | H19: 0 | I19: 0 | J19: 0 | K19: =組合分担金内訳!D19 -> 0 | L19: 0 | M19: 0 | N19: 0 | O19: 0 | P19: 0 | Q19: 0 | R19: 0 | S19: 0 | T19: 0 | U19: 0 | V19: 0 | W19: 0 | X19: 0 | Y19: 0 | Z19: 0 | AA19: 0 | AB19: =組合分担金内訳!E19 -> 0 | AC19: 0 | AD19: 0 | AE19: 0 | AF19: 0 | AG19: 0 | AH19: 0 | AI19: 0 | AJ19: 0 | AK19: 0 | AL19: 0 | AM19: =組合分担金内訳!G19 -> 0 | AN19: 0 | AO19: 0 | AP19: 0 | AQ19: 0 | AR19: 0 | AS19: 0 | AT19: 0 | AU19: 0 | AV19: 0 | AW19: 0 | AX19: 0 | AY19: 0 | AZ19: 0 | BA19: 0 | BB19: 0 | BC19: 0 | BD19: =組合分担金内訳!H19 -> 0 | BE19: 0 | BF19: 0 | BG19: 0 | BH19: 0 | BI19: 0 | BJ19: 0 | BK19: 0 | BL19: 0 | BM19: 0 | BN19: 0 | BO19: 0 | BP19: 0 | BQ19: 0 | BR19: 0 | BS19: 0 | BT19: 0 | BU19: 0 | BV19: 0 | BW19: 0 | BX19: 0 | BY19: 0 | BZ19: 0 | CA19: 0 | CB19: 0 | CC19: 0 | CD19: 0 | CE19: 0 | CF19: 0 | CG19: 0 | CH19: 0 | CI19: 0
A20: 熊本県 | B20: 43216 | C20: 合志市 | D20: 0 | E20: 0 | F20: 0 | G20: 0 | H20: 0 | I20: 0 | J20: 0 | K20: =組合分担金内訳!D20 -> 0 | L20: 0 | M20: 0 | N20: 0 | O20: 0 | P20: 0 | Q20: 0 | R20: 0 | S20: 0 | T20: 0 | U20: 0 | V20: 0 | W20: 0 | X20: 0 | Y20: 0 | Z20: 0 | AA20: 0 | AB20: =組合分担金内訳!E20 -> 0 | AC20: 0 | AD20: 0 | AE20: 0 | AF20: 0 | AG20: 0 | AH20: 0 | AI20: 0 | AJ20: 0 | AK20: 0 | AL20: 0 | AM20: =組合分担金内訳!G20 -> 0 | AN20: 0 | AO20: 0 | AP20: 0 | AQ20: 0 | AR20: 0 | AS20: 0 | AT20: 0 | AU20: 0 | AV20: 0 | AW20: 0 | AX20: 0 | AY20: 0 | AZ20: 0 | BA20: 0 | BB20: 0 | BC20: 0 | BD20: =組合分担金内訳!H20 -> 0 | BE20: 0 | BF20: 0 | BG20: 0 | BH20: 0 | BI20: 0 | BJ20: 0 | BK20: 0 | BL20: 0 | BM20: 0 | BN20: 0 | BO20: 0 | BP20: 0 | BQ20: 0 | BR20: 0 | BS20: 0 | BT20: 0 | BU20: 0 | BV20: 0 | BW20: 0 | BX20: 0 | BY20: 0 | BZ20: 0 | CA20: 0 | CB20: 0 | CC20: 0 | CD20: 0 | CE20: 0 | CF20: 0 | CG20: 0 | CH20: 0 | CI20: 0
A21: 熊本県 | B21: 43348 | C21: 美里町 | D21: 0 | E21: 0 | F21: 0 | G21: 0 | H21: 0 | I21: 0 | J21: 0 | K21: =組合分担金内訳!D21 -> 0 | L21: 0 | M21: 0 | N21: 0 | O21: 0 | P21: 0 | Q21: 0 | R21: 0 | S21: 0 | T21: 0 | U21: 0 | V21: 0 | W21: 0 | X21: 0 | Y21: 0 | Z21: 0 | AA21: 0 | AB21: =組合分担金内訳!E21 -> 0 | AC21: 0 | AD21: 0 | AE21: 0 | AF21: 0 | AG21: 0 | AH21: 0 | AI21: 0 | AJ21: 0 | AK21: 0 | AL21: 0 | AM21: =組合分担金内訳!G21 -> 0 | AN21: 0 | AO21: 0 | AP21: 0 | AQ21: 0 | AR21: 0 | AS21: 0 | AT21: 0 | AU21: 0 | AV21: 0 | AW21: 0 | AX21: 0 | AY21: 0 | AZ21: 0 | BA21: 0 | BB21: 0 | BC21: 0 | BD21: =組合分担金内訳!H21 -> 0 | BE21: 0 | BF21: 0 | BG21: 0 | BH21: 0 | BI21: 0 | BJ21: 0 | BK21: 0 | BL21: 0 | BM21: 0 | BN21: 0 | BO21: 0 | BP21: 0 | BQ21: 0 | BR21: 0 | BS21: 0 | BT21: 0 | BU21: 0 | BV21: 0 | BW21: 0 | BX21: 0 | BY21: 0 | BZ21: 0 | CA21: 0 | CB21: 0 | CC21: 0 | CD21: 0 | CE21: 0 | CF21: 0 | CG21: 0 | CH21: 0 | CI21: 0
A22: 熊本県 | B22: 43364 | C22: 玉東町 | D22: 0 | E22: 0 | F22: 0 | G22: 0 | H22: 0 | I22: 0 | J22: 0 | K22: =組合分担金内訳!D22 -> 0 | L22: 0 | M22: 0 | N22: 0 | O22: 0 | P22: 0 | Q22: 0 | R22: 0 | S22: 0 | T22: 0 | U22: 0 | V22: 0 | W22: 0 | X22: 0 | Y22: 0 | Z22: 0 | AA22: 0 | AB22: =組合分担金内訳!E22 -> 0 | AC22: 0 | AD22: 0 | AE22: 0 | AF22: 0 | AG22: 0 | AH22: 0 | AI22: 0 | AJ22: 0 | AK22: 0 | AL22: 0 | AM22: =組合分担金内訳!G22 -> 0 | AN22: 0 | AO22: 0 | AP22: 0 | AQ22: 0 | AR22: 0 | AS22: 0 | AT22: 0 | AU22: 0 | AV22: 0 | AW22: 0 | AX22: 0 | AY22: 0 | AZ22: 0 | BA22: 0 | BB22: 0 | BC22: 0 | BD22: =組合分担金内訳!H22 -> 0 | BE22: 0 | BF22: 0 | BG22: 0 | BH22: 0 | BI22: 0 | BJ22: 0 | BK22: 0 | BL22: 0 | BM22: 0 | BN22: 0 | BO22: 0 | BP22: 0 | BQ22: 0 | BR22: 0 | BS22: 0 | BT22: 0 | BU22: 0 | BV22: 0 | BW22: 0 | BX22: 0 | BY22: 0 | BZ22: 0 | CA22: 0 | CB22: 0 | CC22: 0 | CD22: 0 | CE22: 0 | CF22: 0 | CG22: 0 | CH22: 0 | CI22: 0
A23: 熊本県 | B23: 43367 | C23: 南関町 | D23: 0 | E23: 0 | F23: 0 | G23: 0 | H23: 0 | I23: 0 | J23: 0 | K23: =組合分担金内訳!D23 -> 0 | L23: 0 | M23: 0 | N23: 0 | O23: 0 | P23: 0 | Q23: 0 | R23: 0 | S23: 0 | T23: 0 | U23: 0 | V23: 0 | W23: 0 | X23: 0 | Y23: 0 | Z23: 0 | AA23: 0 | AB23: =組合分担金内訳!E23 -> 0 | AC23: 0 | AD23: 0 | AE23: 0 | AF23: 0 | AG23: 0 | AH23: 0 | AI23: 0 | AJ23: 0 | AK23: 0 | AL23: 0 | AM23: =組合分担金内訳!G23 -> 0 | AN23: 0 | AO23: 0 | AP23: 0 | AQ23: 0 | AR23: 0 | AS23: 0 | AT23: 0 | AU23: 0 | AV23: 0 | AW23: 0 | AX23: 0 | AY23: 0 | AZ23: 0 | BA23: 0 | BB23: 0 | BC23: 0 | BD23: =組合分担金内訳!H23 -> 0 | BE23: 0 | BF23: 0 | BG23: 0 | BH23: 0 | BI23: 0 | BJ23: 0 | BK23: 0 | BL23: 0 | BM23: 0 | BN23: 0 | BO23: 0 | BP23: 0 | BQ23: 0 | BR23: 0 | BS23: 0 | BT23: 0 | BU23: 0 | BV23: 0 | BW23: 0 | BX23: 0 | BY23: 0 | BZ23: 0 | CA23: 0 | CB23: 0 | CC23: 0 | CD23: 0 | CE23: 0 | CF23: 0 | CG23: 0 | CH23: 0 | CI23: 0
A24: 熊本県 | B24: 43368 | C24: 長洲町 | D24: 0 | E24: 0 | F24: 0 | G24: 0 | H24: 0 | I24: 0 | J24: 0 | K24: =組合分担金内訳!D24 -> 0 | L24: 0 | M24: 0 | N24: 0 | O24: 0 | P24: 0 | Q24: 0 | R24: 0 | S24: 0 | T24: 0 | U24: 0 | V24: 0 | W24: 0 | X24: 0 | Y24: 0 | Z24: 0 | AA24: 0 | AB24: =組合分担金内訳!E24 -> 0 | AC24: 0 | AD24: 0 | AE24: 0 | AF24: 0 | AG24: 0 | AH24: 0 | AI24: 0 | AJ24: 0 | AK24: 0 | AL24: 0 | AM24: =組合分担金内訳!G24 -> 0 | AN24: 0 | AO24: 0 | AP24: 0 | AQ24: 0 | AR24: 0 | AS24: 0 | AT24: 0 | AU24: 0 | AV24: 0 | AW24: 0 | AX24: 0 | AY24: 0 | AZ24: 0 | BA24: 0 | BB24: 0 | BC24: 0 | BD24: =組合分担金内訳!H24 -> 0 | BE24: 0 | BF24: 0 | BG24: 0 | BH24: 0 | BI24: 0 | BJ24: 0 | BK24: 0 | BL24: 0 | BM24: 0 | BN24: 0 | BO24: 0 | BP24: 0 | BQ24: 0 | BR24: 0 | BS24: 0 | BT24: 0 | BU24: 0 | BV24: 0 | BW24: 0 | BX24: 0 | BY24: 0 | BZ24: 0 | CA24: 0 | CB24: 0 | CC24: 0 | CD24: 0 | CE24: 0 | CF24: 0 | CG24: 0 | CH24: 0 | CI24: 0
A25: 熊本県 | B25: 43369 | C25: 和水町 | D25: 0 | E25: 0 | F25: 0 | G25: 0 | H25: 0 | I25: 0 | J25: 0 | K25: =組合分担金内訳!D25 -> 0 | L25: 0 | M25: 0 | N25: 0 | O25: 0 | P25: 0 | Q25: 0 | R25: 0 | S25: 0 | T25: 0 | U25: 0 | V25: 0 | W25: 0 | X25: 0 | Y25: 0 | Z25: 0 | AA25: 0 | AB25: =組合分担金内訳!E25 -> 0 | AC25: 0 | AD25: 0 | AE25: 0 | AF25: 0 | AG25: 0 | AH25: 0 | AI25: 0 | AJ25: 0 | AK25: 0 | AL25: 0 | AM25: =組合分担金内訳!G25 -> 0 | AN25: 0 | AO25: 0 | AP25: 0 | AQ25: 0 | AR25: 0 | AS25: 0 | AT25: 0 | AU25: 0 | AV25: 0 | AW25: 0 | AX25: 0 | AY25: 0 | AZ25: 0 | BA25: 0 | BB25: 0 | BC25: 0 | BD25: =組合分担金内訳!H25 -> 0 | BE25: 0 | BF25: 0 | BG25: 0 | BH25: 0 | BI25: 0 | BJ25: 0 | BK25: 0 | BL25: 0 | BM25: 0 | BN25: 0 | BO25: 0 | BP25: 0 | BQ25: 0 | BR25: 0 | BS25: 0 | BT25: 0 | BU25: 0 | BV25: 0 | BW25: 0 | BX25: 0 | BY25: 0 | BZ25: 0 | CA25: 0 | CB25: 0 | CC25: 0 | CD25: 0 | CE25: 0 | CF25: 0 | CG25: 0 | CH25: 0 | CI25: 0
A26: 熊本県 | B26: 43403 | C26: 大津町 | D26: 0 | E26: 0 | F26: 0 | G26: 0 | H26: 0 | I26: 0 | J26: 0 | K26: =組合分担金内訳!D26 -> 0 | L26: 0 | M26: 0 | N26: 0 | O26: 0 | P26: 0 | Q26: 0 | R26: 0 | S26: 0 | T26: 0 | U26: 0 | V26: 0 | W26: 0 | X26: 0 | Y26: 0 | Z26: 0 | AA26: 0 | AB26: =組合分担金内訳!E26 -> 0 | AC26: 0 | AD26: 0 | AE26: 0 | AF26: 0 | AG26: 0 | AH26: 0 | AI26: 0 | AJ26: 0 | AK26: 0 | AL26: 0 | AM26: =組合分担金内訳!G26 -> 0 | AN26: 0 | AO26: 0 | AP26: 0 | AQ26: 0 | AR26: 0 | AS26: 0 | AT26: 0 | AU26: 0 | AV26: 0 | AW26: 0 | AX26: 0 | AY26: 0 | AZ26: 0 | BA26: 0 | BB26: 0 | BC26: 0 | BD26: =組合分担金内訳!H26 -> 0 | BE26: 0 | BF26: 0 | BG26: 0 | BH26: 0 | BI26: 0 | BJ26: 0 | BK26: 0 | BL26: 0 | BM26: 0 | BN26: 0 | BO26: 0 | BP26: 0 | BQ26: 0 | BR26: 0 | BS26: 0 | BT26: 0 | BU26: 0 | BV26: 0 | BW26: 0 | BX26: 0 | BY26: 0 | BZ26: 0 | CA26: 0 | CB26: 0 | CC26: 0 | CD26: 0 | CE26: 0 | CF26: 0 | CG26: 0 | CH26: 0 | CI26: 0
A27: 熊本県 | B27: 43404 | C27: 菊陽町 | D27: 0 | E27: 0 | F27: 0 | G27: 0 | H27: 0 | I27: 0 | J27: 0 | K27: =組合分担金内訳!D27 -> 0 | L27: 0 | M27: 0 | N27: 0 | O27: 0 | P27: 0 | Q27: 0 | R27: 0 | S27: 0 | T27: 0 | U27: 0 | V27: 0 | W27: 0 | X27: 0 | Y27: 0 | Z27: 0 | AA27: 0 | AB27: =組合分担金内訳!E27 -> 0 | AC27: 0 | AD27: 0 | AE27: 0 | AF27: 0 | AG27: 0 | AH27: 0 | AI27: 0 | AJ27: 0 | AK27: 0 | AL27: 0 | AM27: =組合分担金内訳!G27 -> 0 | AN27: 0 | AO27: 0 | AP27: 0 | AQ27: 0 | AR27: 0 | AS27: 0 | AT27: 0 | AU27: 0 | AV27: 0 | AW27: 0 | AX27: 0 | AY27: 0 | AZ27: 0 | BA27: 0 | BB27: 0 | BC27: 0 | BD27: =組合分担金内訳!H27 -> 0 | BE27: 0 | BF27: 0 | BG27: 0 | BH27: 0 | BI27: 0 | BJ27: 0 | BK27: 0 | BL27: 0 | BM27: 0 | BN27: 0 | BO27: 0 | BP27: 0 | BQ27: 0 | BR27: 0 | BS27: 0 | BT27: 0 | BU27: 0 | BV27: 0 | BW27: 0 | BX27: 0 | BY27: 0 | BZ27: 0 | CA27: 0 | CB27: 0 | CC27: 0 | CD27: 0 | CE27: 0 | CF27: 0 | CG27: 0 | CH27: 0 | CI27: 0
A28: 熊本県 | B28: 43423 | C28: 南小国町 | D28: 0 | E28: 0 | F28: 0 | G28: 0 | H28: 0 | I28: 0 | J28: 0 | K28: =組合分担金内訳!D28 -> 0 | L28: 0 | M28: 0 | N28: 0 | O28: 0 | P28: 0 | Q28: 0 | R28: 0 | S28: 0 | T28: 0 | U28: 0 | V28: 0 | W28: 0 | X28: 0 | Y28: 0 | Z28: 0 | AA28: 0 | AB28: =組合分担金内訳!E28 -> 0 | AC28: 0 | AD28: 0 | AE28: 0 | AF28: 0 | AG28: 0 | AH28: 0 | AI28: 0 | AJ28: 0 | AK28: 0 | AL28: 0 | AM28: =組合分担金内訳!G28 -> 0 | AN28: 0 | AO28: 0 | AP28: 0 | AQ28: 0 | AR28: 0 | AS28: 0 | AT28: 0 | AU28: 0 | AV28: 0 | AW28: 0 | AX28: 0 | AY28: 0 | AZ28: 0 | BA28: 0 | BB28: 0 | BC28: 0 | BD28: =組合分担金内訳!H28 -> 0 | BE28: 0 | BF28: 0 | BG28: 0 | BH28: 0 | BI28: 0 | BJ28: 0 | BK28: 0 | BL28: 0 | BM28: 0 | BN28: 0 | BO28: 0 | BP28: 0 | BQ28: 0 | BR28: 0 | BS28: 0 | BT28: 0 | BU28: 0 | BV28: 0 | BW28: 0 | BX28: 0 | BY28: 0 | BZ28: 0 | CA28: 0 | CB28: 0 | CC28: 0 | CD28: 0 | CE28: 0 | CF28: 0 | CG28: 0 | CH28: 0 | CI28: 0
A29: 熊本県 | B29: 43424 | C29: 小国町 | D29: 0 | E29: 0 | F29: 0 | G29: 0 | H29: 0 | I29: 0 | J29: 0 | K29: =組合分担金内訳!D29 -> 0 | L29: 0 | M29: 0 | N29: 0 | O29: 0 | P29: 0 | Q29: 0 | R29: 0 | S29: 0 | T29: 0 | U29: 0 | V29: 0 | W29: 0 | X29: 0 | Y29: 0 | Z29: 0 | AA29: 0 | AB29: =組合分担金内訳!E29 -> 0 | AC29: 0 | AD29: 0 | AE29: 0 | AF29: 0 | AG29: 0 | AH29: 0 | AI29: 0 | AJ29: 0 | AK29: 0 | AL29: 0 | AM29: =組合分担金内訳!G29 -> 0 | AN29: 0 | AO29: 0 | AP29: 0 | AQ29: 0 | AR29: 0 | AS29: 0 | AT29: 0 | AU29: 0 | AV29: 0 | AW29: 0 | AX29: 0 | AY29: 0 | AZ29: 0 | BA29: 0 | BB29: 0 | BC29: 0 | BD29: =組合分担金内訳!H29 -> 0 | BE29: 0 | BF29: 0 | BG29: 0 | BH29: 0 | BI29: 0 | BJ29: 0 | BK29: 0 | BL29: 0 | BM29: 0 | BN29: 0 | BO29: 0 | BP29: 0 | BQ29: 0 | BR29: 0 | BS29: 0 | BT29: 0 | BU29: 0 | BV29: 0 | BW29: 0 | BX29: 0 | BY29: 0 | BZ29: 0 | CA29: 0 | CB29: 0 | CC29: 0 | CD29: 0 | CE29: 0 | CF29: 0 | CG29: 0 | CH29: 0 | CI29: 0
A30: 熊本県 | B30: 43425 | C30: 産山村 | D30: 0 | E30: 0 | F30: 0 | G30: 0 | H30: 0 | I30: 0 | J30: 0 | K30: =組合分担金内訳!D30 -> 0 | L30: 0 | M30: 0 | N30: 0 | O30: 0 | P30: 0 | Q30: 0 | R30: 0 | S30: 0 | T30: 0 | U30: 0 | V30: 0 | W30: 0 | X30: 0 | Y30: 0 | Z30: 0 | AA30: 0 | AB30: =組合分担金内訳!E30 -> 0 | AC30: 0 | AD30: 0 | AE30: 0 | AF30: 0 | AG30: 0 | AH30: 0 | AI30: 0 | AJ30: 0 | AK30: 0 | AL30: 0 | AM30: =組合分担金内訳!G30 -> 0 | AN30: 0 | AO30: 0 | AP30: 0 | AQ30: 0 | AR30: 0 | AS30: 0 | AT30: 0 | AU30: 0 | AV30: 0 | AW30: 0 | AX30: 0 | AY30: 0 | AZ30: 0 | BA30: 0 | BB30: 0 | BC30: 0 | BD30: =組合分担金内訳!H30 -> 0 | BE30: 0 | BF30: 0 | BG30: 0 | BH30: 0 | BI30: 0 | BJ30: 0 | BK30: 0 | BL30: 0 | BM30: 0 | BN30: 0 | BO30: 0 | BP30: 0 | BQ30: 0 | BR30: 0 | BS30: 0 | BT30: 0 | BU30: 0 | BV30: 0 | BW30: 0 | BX30: 0 | BY30: 0 | BZ30: 0 | CA30: 0 | CB30: 0 | CC30: 0 | CD30: 0 | CE30: 0 | CF30: 0 | CG30: 0 | CH30: 0 | CI30: 0
A31: 熊本県 | B31: 43428 | C31: 高森町 | D31: 0 | E31: 0 | F31: 0 | G31: 0 | H31: 0 | I31: 0 | J31: 0 | K31: =組合分担金内訳!D31 -> 0 | L31: 0 | M31: 0 | N31: 0 | O31: 0 | P31: 0 | Q31: 0 | R31: 0 | S31: 0 | T31: 0 | U31: 0 | V31: 0 | W31: 0 | X31: 0 | Y31: 0 | Z31: 0 | AA31: 0 | AB31: =組合分担金内訳!E31 -> 0 | AC31: 0 | AD31: 0 | AE31: 0 | AF31: 0 | AG31: 0 | AH31: 0 | AI31: 0 | AJ31: 0 | AK31: 0 | AL31: 0 | AM31: =組合分担金内訳!G31 -> 0 | AN31: 0 | AO31: 0 | AP31: 0 | AQ31: 0 | AR31: 0 | AS31: 0 | AT31: 0 | AU31: 0 | AV31: 0 | AW31: 0 | AX31: 0 | AY31: 0 | AZ31: 0 | BA31: 0 | BB31: 0 | BC31: 0 | BD31: =組合分担金内訳!H31 -> 0 | BE31: 0 | BF31: 0 | BG31: 0 | BH31: 0 | BI31: 0 | BJ31: 0 | BK31: 0 | BL31: 0 | BM31: 0 | BN31: 0 | BO31: 0 | BP31: 0 | BQ31: 0 | BR31: 0 | BS31: 0 | BT31: 0 | BU31: 0 | BV31: 0 | BW31: 0 | BX31: 0 | BY31: 0 | BZ31: 0 | CA31: 0 | CB31: 0 | CC31: 0 | CD31: 0 | CE31: 0 | CF31: 0 | CG31: 0 | CH31: 0 | CI31: 0
A32: 熊本県 | B32: 43432 | C32: 西原村 | D32: 0 | E32: 0 | F32: 0 | G32: 0 | H32: 0 | I32: 0 | J32: 0 | K32: =組合分担金内訳!D32 -> 0 | L32: 0 | M32: 0 | N32: 0 | O32: 0 | P32: 0 | Q32: 0 | R32: 0 | S32: 0 | T32: 0 | U32: 0 | V32: 0 | W32: 0 | X32: 0 | Y32: 0 | Z32: 0 | AA32: 0 | AB32: =組合分担金内訳!E32 -> 0 | AC32: 0 | AD32: 0 | AE32: 0 | AF32: 0 | AG32: 0 | AH32: 0 | AI32: 0 | AJ32: 0 | AK32: 0 | AL32: 0 | AM32: =組合分担金内訳!G32 -> 0 | AN32: 0 | AO32: 0 | AP32: 0 | AQ32: 0 | AR32: 0 | AS32: 0 | AT32: 0 | AU32: 0 | AV32: 0 | AW32: 0 | AX32: 0 | AY32: 0 | AZ32: 0 | BA32: 0 | BB32: 0 | BC32: 0 | BD32: =組合分担金内訳!H32 -> 0 | BE32: 0 | BF32: 0 | BG32: 0 | BH32: 0 | BI32: 0 | BJ32: 0 | BK32: 0 | BL32: 0 | BM32: 0 | BN32: 0 | BO32: 0 | BP32: 0 | BQ32: 0 | BR32: 0 | BS32: 0 | BT32: 0 | BU32: 0 | BV32: 0 | BW32: 0 | BX32: 0 | BY32: 0 | BZ32: 0 | CA32: 0 | CB32: 0 | CC32: 0 | CD32: 0 | CE32: 0 | CF32: 0 | CG32: 0 | CH32: 0 | CI32: 0
A33: 熊本県 | B33: 43433 | C33: 南阿蘇村 | D33: 0 | E33: 0 | F33: 0 | G33: 0 | H33: 0 | I33: 0 | J33: 0 | K33: =組合分担金内訳!D33 -> 0 | L33: 0 | M33: 0 | N33: 0 | O33: 0 | P33: 0 | Q33: 0 | R33: 0 | S33: 0 | T33: 0 | U33: 0 | V33: 0 | W33: 0 | X33: 0 | Y33: 0 | Z33: 0 | AA33: 0 | AB33: =組合分担金内訳!E33 -> 0 | AC33: 0 | AD33: 0 | AE33: 0 | AF33: 0 | AG33: 0 | AH33: 0 | AI33: 0 | AJ33: 0 | AK33: 0 | AL33: 0 | AM33: =組合分担金内訳!G33 -> 0 | AN33: 0 | AO33: 0 | AP33: 0 | AQ33: 0 | AR33: 0 | AS33: 0 | AT33: 0 | AU33: 0 | AV33: 0 | AW33: 0 | AX33: 0 | AY33: 0 | AZ33: 0 | BA33: 0 | BB33: 0 | BC33: 0 | BD33: =組合分担金内訳!H33 -> 0 | BE33: 0 | BF33: 0 | BG33: 0 | BH33: 0 | BI33: 0 | BJ33: 0 | BK33: 0 | BL33: 0 | BM33: 0 | BN33: 0 | BO33: 0 | BP33: 0 | BQ33: 0 | BR33: 0 | BS33: 0 | BT33: 0 | BU33: 0 | BV33: 0 | BW33: 0 | BX33: 0 | BY33: 0 | BZ33: 0 | CA33: 0 | CB33: 0 | CC33: 0 | CD33: 0 | CE33: 0 | CF33: 0 | CG33: 0 | CH33: 0 | CI33: 0
A34: 熊本県 | B34: 43441 | C34: 御船町 | D34: 0 | E34: 0 | F34: 0 | G34: 0 | H34: 0 | I34: 0 | J34: 0 | K34: =組合分担金内訳!D34 -> 0 | L34: 0 | M34: 0 | N34: 0 | O34: 0 | P34: 0 | Q34: 0 | R34: 0 | S34: 0 | T34: 0 | U34: 0 | V34: 0 | W34: 0 | X34: 0 | Y34: 0 | Z34: 0 | AA34: 0 | AB34: =組合分担金内訳!E34 -> 0 | AC34: 0 | AD34: 0 | AE34: 0 | AF34: 0 | AG34: 0 | AH34: 0 | AI34: 0 | AJ34: 0 | AK34: 0 | AL34: 0 | AM34: =組合分担金内訳!G34 -> 0 | AN34: 0 | AO34: 0 | AP34: 0 | AQ34: 0 | AR34: 0 | AS34: 0 | AT34: 0 | AU34: 0 | AV34: 0 | AW34: 0 | AX34: 0 | AY34: 0 | AZ34: 0 | BA34: 0 | BB34: 0 | BC34: 0 | BD34: =組合分担金内訳!H34 -> 0 | BE34: 0 | BF34: 0 | BG34: 0 | BH34: 0 | BI34: 0 | BJ34: 0 | BK34: 0 | BL34: 0 | BM34: 0 | BN34: 0 | BO34: 0 | BP34: 0 | BQ34: 0 | BR34: 0 | BS34: 0 | BT34: 0 | BU34: 0 | BV34: 0 | BW34: 0 | BX34: 0 | BY34: 0 | BZ34: 0 | CA34: 0 | CB34: 0 | CC34: 0 | CD34: 0 | CE34: 0 | CF34: 0 | CG34: 0 | CH34: 0 | CI34: 0
A35: 熊本県 | B35: 43442 | C35: 嘉島町 | D35: 0 | E35: 0 | F35: 0 | G35: 0 | H35: 0 | I35: 0 | J35: 0 | K35: =組合分担金内訳!D35 -> 0 | L35: 0 | M35: 0 | N35: 0 | O35: 0 | P35: 0 | Q35: 0 | R35: 0 | S35: 0 | T35: 0 | U35: 0 | V35: 0 | W35: 0 | X35: 0 | Y35: 0 | Z35: 0 | AA35: 0 | AB35: =組合分担金内訳!E35 -> 0 | AC35: 0 | AD35: 0 | AE35: 0 | AF35: 0 | AG35: 0 | AH35: 0 | AI35: 0 | AJ35: 0 | AK35: 0 | AL35: 0 | AM35: =組合分担金内訳!G35 -> 0 | AN35: 0 | AO35: 0 | AP35: 0 | AQ35: 0 | AR35: 0 | AS35: 0 | AT35: 0 | AU35: 0 | AV35: 0 | AW35: 0 | AX35: 0 | AY35: 0 | AZ35: 0 | BA35: 0 | BB35: 0 | BC35: 0 | BD35: =組合分担金内訳!H35 -> 0 | BE35: 0 | BF35: 0 | BG35: 0 | BH35: 0 | BI35: 0 | BJ35: 0 | BK35: 0 | BL35: 0 | BM35: 0 | BN35: 0 | BO35: 0 | BP35: 0 | BQ35: 0 | BR35: 0 | BS35: 0 | BT35: 0 | BU35: 0 | BV35: 0 | BW35: 0 | BX35: 0 | BY35: 0 | BZ35: 0 | CA35: 0 | CB35: 0 | CC35: 0 | CD35: 0 | CE35: 0 | CF35: 0 | CG35: 0 | CH35: 0 | CI35: 0
A36: 熊本県 | B36: 43443 | C36: 益城町 | D36: 0 | E36: 0 | F36: 0 | G36: 0 | H36: 0 | I36: 0 | J36: 0 | K36: =組合分担金内訳!D36 -> 0 | L36: 0 | M36: 0 | N36: 0 | O36: 0 | P36: 0 | Q36: 0 | R36: 0 | S36: 0 | T36: 0 | U36: 0 | V36: 0 | W36: 0 | X36: 0 | Y36: 0 | Z36: 0 | AA36: 0 | AB36: =組合分担金内訳!E36 -> 0 | AC36: 0 | AD36: 0 | AE36: 0 | AF36: 0 | AG36: 0 | AH36: 0 | AI36: 0 | AJ36: 0 | AK36: 0 | AL36: 0 | AM36: =組合分担金内訳!G36 -> 0 | AN36: 0 | AO36: 0 | AP36: 0 | AQ36: 0 | AR36: 0 | AS36: 0 | AT36: 0 | AU36: 0 | AV36: 0 | AW36: 0 | AX36: 0 | AY36: 0 | AZ36: 0 | BA36: 0 | BB36: 0 | BC36: 0 | BD36: =組合分担金内訳!H36 -> 0 | BE36: 0 | BF36: 0 | BG36: 0 | BH36: 0 | BI36: 0 | BJ36: 0 | BK36: 0 | BL36: 0 | BM36: 0 | BN36: 0 | BO36: 0 | BP36: 0 | BQ36: 0 | BR36: 0 | BS36: 0 | BT36: 0 | BU36: 0 | BV36: 0 | BW36: 0 | BX36: 0 | BY36: 0 | BZ36: 0 | CA36: 0 | CB36: 0 | CC36: 0 | CD36: 0 | CE36: 0 | CF36: 0 | CG36: 0 | CH36: 0 | CI36: 0
A37: 熊本県 | B37: 43447 | C37: 山都町 | D37: 0 | E37: 0 | F37: 0 | G37: 0 | H37: 0 | I37: 0 | J37: 0 | K37: =組合分担金内訳!D37 -> 0 | L37: 0 | M37: 0 | N37: 0 | O37: 0 | P37: 0 | Q37: 0 | R37: 0 | S37: 0 | T37: 0 | U37: 0 | V37: 0 | W37: 0 | X37: 0 | Y37: 0 | Z37: 0 | AA37: 0 | AB37: =組合分担金内訳!E37 -> 0 | AC37: 0 | AD37: 0 | AE37: 0 | AF37: 0 | AG37: 0 | AH37: 0 | AI37: 0 | AJ37: 0 | AK37: 0 | AL37: 0 | AM37: =組合分担金内訳!G37 -> 0 | AN37: 0 | AO37: 0 | AP37: 0 | AQ37: 0 | AR37: 0 | AS37: 0 | AT37: 0 | AU37: 0 | AV37: 0 | AW37: 0 | AX37: 0 | AY37: 0 | AZ37: 0 | BA37: 0 | BB37: 0 | BC37: 0 | BD37: =組合分担金内訳!H37 -> 0 | BE37: 0 | BF37: 0 | BG37: 0 | BH37: 0 | BI37: 0 | BJ37: 0 | BK37: 0 | BL37: 0 | BM37: 0 | BN37: 0 | BO37: 0 | BP37: 0 | BQ37: 0 | BR37: 0 | BS37: 0 | BT37: 0 | BU37: 0 | BV37: 0 | BW37: 0 | BX37: 0 | BY37: 0 | BZ37: 0 | CA37: 0 | CB37: 0 | CC37: 0 | CD37: 0 | CE37: 0 | CF37: 0 | CG37: 0 | CH37: 0 | CI37: 0
A38: 熊本県 | B38: 43468 | C38: 氷川町 | D38: 0 | E38: 0 | F38: 0 | G38: 0 | H38: 0 | I38: 0 | J38: 0 | K38: =組合分担金内訳!D38 -> 0 | L38: 0 | M38: 0 | N38: 0 | O38: 0 | P38: 0 | Q38: 0 | R38: 0 | S38: 0 | T38: 0 | U38: 0 | V38: 0 | W38: 0 | X38: 0 | Y38: 0 | Z38: 0 | AA38: 0 | AB38: =組合分担金内訳!E38 -> 0 | AC38: 0 | AD38: 0 | AE38: 0 | AF38: 0 | AG38: 0 | AH38: 0 | AI38: 0 | AJ38: 0 | AK38: 0 | AL38: 0 | AM38: =組合分担金内訳!G38 -> 0 | AN38: 0 | AO38: 0 | AP38: 0 | AQ38: 0 | AR38: 0 | AS38: 0 | AT38: 0 | AU38: 0 | AV38: 0 | AW38: 0 | AX38: 0 | AY38: 0 | AZ38: 0 | BA38: 0 | BB38: 0 | BC38: 0 | BD38: =組合分担金内訳!H38 -> 0 | BE38: 0 | BF38: 0 | BG38: 0 | BH38: 0 | BI38: 0 | BJ38: 0 | BK38: 0 | BL38: 0 | BM38: 0 | BN38: 0 | BO38: 0 | BP38: 0 | BQ38: 0 | BR38: 0 | BS38: 0 | BT38: 0 | BU38: 0 | BV38: 0 | BW38: 0 | BX38: 0 | BY38: 0 | BZ38: 0 | CA38: 0 | CB38: 0 | CC38: 0 | CD38: 0 | CE38: 0 | CF38: 0 | CG38: 0 | CH38: 0 | CI38: 0
A39: 熊本県 | B39: 43482 | C39: 芦北町 | D39: 0 | E39: 0 | F39: 0 | G39: 0 | H39: 0 | I39: 0 | J39: 0 | K39: =組合分担金内訳!D39 -> 0 | L39: 0 | M39: 0 | N39: 0 | O39: 0 | P39: 0 | Q39: 0 | R39: 0 | S39: 0 | T39: 0 | U39: 0 | V39: 0 | W39: 0 | X39: 0 | Y39: 0 | Z39: 0 | AA39: 0 | AB39: =組合分担金内訳!E39 -> 0 | AC39: 0 | AD39: 0 | AE39: 0 | AF39: 0 | AG39: 0 | AH39: 0 | AI39: 0 | AJ39: 0 | AK39: 0 | AL39: 0 | AM39: =組合分担金内訳!G39 -> 0 | AN39: 0 | AO39: 0 | AP39: 0 | AQ39: 0 | AR39: 0 | AS39: 0 | AT39: 0 | AU39: 0 | AV39: 0 | AW39: 0 | AX39: 0 | AY39: 0 | AZ39: 0 | BA39: 0 | BB39: 0 | BC39: 0 | BD39: =組合分担金内訳!H39 -> 0 | BE39: 0 | BF39: 0 | BG39: 0 | BH39: 0 | BI39: 0 | BJ39: 0 | BK39: 0 | BL39: 0 | BM39: 0 | BN39: 0 | BO39: 0 | BP39: 0 | BQ39: 0 | BR39: 0 | BS39: 0 | BT39: 0 | BU39: 0 | BV39: 0 | BW39: 0 | BX39: 0 | BY39: 0 | BZ39: 0 | CA39: 0 | CB39: 0 | CC39: 0 | CD39: 0 | CE39: 0 | CF39: 0 | CG39: 0 | CH39: 0 | CI39: 0
A40: 熊本県 | B40: 43501 | C40: 錦町 | D40: 26,000 | E40: 26,000 | F40: 0 | G40: 0 | H40: 0 | I40: 26,000 | J40: 0 | K40: =組合分担金内訳!D40 -> 0 | L40: 0 | M40: 0 | N40: 0 | O40: 0 | P40: 0 | Q40: 0 | R40: 0 | S40: 0 | T40: 0 | U40: 0 | V40: 0 | W40: 0 | X40: 0 | Y40: 0 | Z40: 0 | AA40: 0 | AB40: =組合分担金内訳!E40 -> 0 | AC40: 0 | AD40: 0 | AE40: 26,000 | AF40: 0 | AG40: 0 | AH40: 0 | AI40: 0 | AJ40: 0 | AK40: 0 | AL40: 0 | AM40: =組合分担金内訳!G40 -> 0 | AN40: 0 | AO40: 0 | AP40: 0 | AQ40: 0 | AR40: 0 | AS40: 0 | AT40: 0 | AU40: 0 | AV40: 0 | AW40: 0 | AX40: 0 | AY40: 0 | AZ40: 0 | BA40: 0 | BB40: 0 | BC40: 0 | BD40: =組合分担金内訳!H40 -> 0 | BE40: 0 | BF40: 0 | BG40: 0 | BH40: 26,000 | BI40: 26,000 | BJ40: 0 | BK40: 0 | BL40: 0 | BM40: 26,000 | BN40: 0 | BO40: 0 | BP40: 0 | BQ40: 0 | BR40: 0 | BS40: 0 | BT40: 0 | BU40: 0 | BV40: 0 | BW40: 0 | BX40: 0 | BY40: 0 | BZ40: 0 | CA40: 0 | CB40: 0 | CC40: 0 | CD40: 0 | CE40: 0 | CF40: 0 | CG40: 0 | CH40: 0 | CI40: 26,000
A41: 熊本県 | B41: 43505 | C41: 多良木町 | D41: 0 | E41: 0 | F41: 0 | G41: 0 | H41: 0 | I41: 0 | J41: 0 | K41: =組合分担金内訳!D41 -> 0 | L41: 2,783 | M41: 0 | N41: 0 | O41: 0 | P41: 0 | Q41: 0 | R41: 9 | S41: 0 | T41: 9 | U41: 0 | V41: 0 | W41: 2,774 | X41: 0 | Y41: 2,774 | Z41: 0 | AA41: 0 | AB41: =組合分担金内訳!E41 -> 0 | AC41: 0 | AD41: 0 | AE41: 2,783 | AF41: 0 | AG41: 0 | AH41: 0 | AI41: 0 | AJ41: 0 | AK41: 0 | AL41: 0 | AM41: =組合分担金内訳!G41 -> 0 | AN41: 0 | AO41: 0 | AP41: 0 | AQ41: 0 | AR41: 0 | AS41: 0 | AT41: 0 | AU41: 0 | AV41: 0 | AW41: 0 | AX41: 0 | AY41: 0 | AZ41: 0 | BA41: 0 | BB41: 0 | BC41: 0 | BD41: =組合分担金内訳!H41 -> 0 | BE41: 0 | BF41: 0 | BG41: 0 | BH41: 0 | BI41: 0 | BJ41: 0 | BK41: 0 | BL41: 0 | BM41: 0 | BN41: 0 | BO41: 0 | BP41: 2,783 | BQ41: 0 | BR41: 0 | BS41: 0 | BT41: 0 | BU41: 0 | BV41: 9 | BW41: 0 | BX41: 9 | BY41: 0 | BZ41: 0 | CA41: 2,774 | CB41: 0 | CC41: 2,774 | CD41: 0 | CE41: 0 | CF41: 0 | CG41: 0 | CH41: 0 | CI41: 2,783
A42: 熊本県 | B42: 43506 | C42: 湯前町 | D42: 1,031 | E42: 1,031 | F42: 1,031 | G42: 0 | H42: 0 | I42: 0 | J42: 0 | K42: =組合分担金内訳!D42 -> 0 | L42: 638 | M42: 0 | N42: 0 | O42: 0 | P42: 0 | Q42: 0 | R42: 20 | S42: 20 | T42: 0 | U42: 0 | V42: 0 | W42: 618 | X42: 618 | Y42: 0 | Z42: 0 | AA42: 0 | AB42: =組合分担金内訳!E42 -> 0 | AC42: 0 | AD42: 0 | AE42: 1,669 | AF42: 0 | AG42: 0 | AH42: 0 | AI42: 0 | AJ42: 0 | AK42: 0 | AL42: 0 | AM42: =組合分担金内訳!G42 -> 0 | AN42: 0 | AO42: 0 | AP42: 0 | AQ42: 0 | AR42: 0 | AS42: 0 | AT42: 0 | AU42: 0 | AV42: 0 | AW42: 0 | AX42: 0 | AY42: 0 | AZ42: 0 | BA42: 0 | BB42: 0 | BC42: 0 | BD42: =組合分担金内訳!H42 -> 0 | BE42: 0 | BF42: 0 | BG42: 0 | BH42: 1,031 | BI42: 1,031 | BJ42: 1,031 | BK42: 0 | BL42: 0 | BM42: 0 | BN42: 0 | BO42: 0 | BP42: 638 | BQ42: 0 | BR42: 0 | BS42: 0 | BT42: 0 | BU42: 0 | BV42: 20 | BW42: 20 | BX42: 0 | BY42: 0 | BZ42: 0 | CA42: 618 | CB42: 618 | CC42: 0 | CD42: 0 | CE42: 0 | CF42: 0 | CG42: 0 | CH42: 0 | CI42: 1,669
A43: 熊本県 | B43: 43507 | C43: 水上村 | D43: 0 | E43: 0 | F43: 0 | G43: 0 | H43: 0 | I43: 0 | J43: 0 | K43: =組合分担金内訳!D43 -> 0 | L43: 0 | M43: 0 | N43: 0 | O43: 0 | P43: 0 | Q43: 0 | R43: 0 | S43: 0 | T43: 0 | U43: 0 | V43: 0 | W43: 0 | X43: 0 | Y43: 0 | Z43: 0 | AA43: 0 | AB43: =組合分担金内訳!E43 -> 0 | AC43: 0 | AD43: 0 | AE43: 0 | AF43: 0 | AG43: 0 | AH43: 0 | AI43: 0 | AJ43: 0 | AK43: 0 | AL43: 0 | AM43: =組合分担金内訳!G43 -> 0 | AN43: 0 | AO43: 0 | AP43: 0 | AQ43: 0 | AR43: 0 | AS43: 0 | AT43: 0 | AU43: 0 | AV43: 0 | AW43: 0 | AX43: 0 | AY43: 0 | AZ43: 0 | BA43: 0 | BB43: 0 | BC43: 0 | BD43: =組合分担金内訳!H43 -> 0 | BE43: 0 | BF43: 0 | BG43: 0 | BH43: 0 | BI43: 0 | BJ43: 0 | BK43: 0 | BL43: 0 | BM43: 0 | BN43: 0 | BO43: 0 | BP43: 0 | BQ43: 0 | BR43: 0 | BS43: 0 | BT43: 0 | BU43: 0 | BV43: 0 | BW43: 0 | BX43: 0 | BY43: 0 | BZ43: 0 | CA43: 0 | CB43: 0 | CC43: 0 | CD43: 0 | CE43: 0 | CF43: 0 | CG43: 0 | CH43: 0 | CI43: 0
A44: 熊本県 | B44: 43510 | C44: 相良村 | D44: 0 | E44: 0 | F44: 0 | G44: 0 | H44: 0 | I44: 0 | J44: 0 | K44: =組合分担金内訳!D44 -> 0 | L44: 0 | M44: 0 | N44: 0 | O44: 0 | P44: 0 | Q44: 0 | R44: 0 | S44: 0 | T44: 0 | U44: 0 | V44: 0 | W44: 0 | X44: 0 | Y44: 0 | Z44: 0 | AA44: 0 | AB44: =組合分担金内訳!E44 -> 0 | AC44: 0 | AD44: 0 | AE44: 0 | AF44: 0 | AG44: 0 | AH44: 0 | AI44: 0 | AJ44: 0 | AK44: 0 | AL44: 0 | AM44: =組合分担金内訳!G44 -> 0 | AN44: 0 | AO44: 0 | AP44: 0 | AQ44: 0 | AR44: 0 | AS44: 0 | AT44: 0 | AU44: 0 | AV44: 0 | AW44: 0 | AX44: 0 | AY44: 0 | AZ44: 0 | BA44: 0 | BB44: 0 | BC44: 0 | BD44: =組合分担金内訳!H44 -> 0 | BE44: 0 | BF44: 0 | BG44: 0 | BH44: 0 | BI44: 0 | BJ44: 0 | BK44: 0 | BL44: 0 | BM44: 0 | BN44: 0 | BO44: 0 | BP44: 0 | BQ44: 0 | BR44: 0 | BS44: 0 | BT44: 0 | BU44: 0 | BV44: 0 | BW44: 0 | BX44: 0 | BY44: 0 | BZ44: 0 | CA44: 0 | CB44: 0 | CC44: 0 | CD44: 0 | CE44: 0 | CF44: 0 | CG44: 0 | CH44: 0 | CI44: 0
A45: 熊本県 | B45: 43511 | C45: 五木村 | D45: 0 | E45: 0 | F45: 0 | G45: 0 | H45: 0 | I45: 0 | J45: 0 | K45: =組合分担金内訳!D45 -> 0 | L45: 618 | M45: 0 | N45: 0 | O45: 0 | P45: 0 | Q45: 0 | R45: 0 | S45: 0 | T45: 0 | U45: 0 | V45: 0 | W45: 618 | X45: 0 | Y45: 0 | Z45: 0 | AA45: 618 | AB45: =組合分担金内訳!E45 -> 0 | AC45: 0 | AD45: 0 | AE45: 618 | AF45: 0 | AG45: 0 | AH45: 0 | AI45: 0 | AJ45: 0 | AK45: 0 | AL45: 0 | AM45: =組合分担金内訳!G45 -> 0 | AN45: 0 | AO45: 0 | AP45: 0 | AQ45: 0 | AR45: 0 | AS45: 0 | AT45: 0 | AU45: 0 | AV45: 0 | AW45: 0 | AX45: 0 | AY45: 0 | AZ45: 0 | BA45: 0 | BB45: 0 | BC45: 0 | BD45: =組合分担金内訳!H45 -> 0 | BE45: 0 | BF45: 0 | BG45: 0 | BH45: 0 | BI45: 0 | BJ45: 0 | BK45: 0 | BL45: 0 | BM45: 0 | BN45: 0 | BO45: 0 | BP45: 618 | BQ45: 0 | BR45: 0 | BS45: 0 | BT45: 0 | BU45: 0 | BV45: 0 | BW45: 0 | BX45: 0 | BY45: 0 | BZ45: 0 | CA45: 618 | CB45: 0 | CC45: 0 | CD45: 0 | CE45: 618 | CF45: 0 | CG45: 0 | CH45: 0 | CI45: 618
A46: 熊本県 | B46: 43512 | C46: 山江村 | D46: 0 | E46: 0 | F46: 0 | G46: 0 | H46: 0 | I46: 0 | J46: 0 | K46: =組合分担金内訳!D46 -> 0 | L46: 0 | M46: 0 | N46: 0 | O46: 0 | P46: 0 | Q46: 0 | R46: 0 | S46: 0 | T46: 0 | U46: 0 | V46: 0 | W46: 0 | X46: 0 | Y46: 0 | Z46: 0 | AA46: 0 | AB46: =組合分担金内訳!E46 -> 0 | AC46: 0 | AD46: 0 | AE46: 0 | AF46: 0 | AG46: 0 | AH46: 0 | AI46: 0 | AJ46: 0 | AK46: 0 | AL46: 0 | AM46: =組合分担金内訳!G46 -> 0 | AN46: 0 | AO46: 0 | AP46: 0 | AQ46: 0 | AR46: 0 | AS46: 0 | AT46: 0 | AU46: 0 | AV46: 0 | AW46: 0 | AX46: 0 | AY46: 0 | AZ46: 0 | BA46: 0 | BB46: 0 | BC46: 0 | BD46: =組合分担金内訳!H46 -> 0 | BE46: 0 | BF46: 0 | BG46: 0 | BH46: 0 | BI46: 0 | BJ46: 0 | BK46: 0 | BL46: 0 | BM46: 0 | BN46: 0 | BO46: 0 | BP46: 0 | BQ46: 0 | BR46: 0 | BS46: 0 | BT46: 0 | BU46: 0 | BV46: 0 | BW46: 0 | BX46: 0 | BY46: 0 | BZ46: 0 | CA46: 0 | CB46: 0 | CC46: 0 | CD46: 0 | CE46: 0 | CF46: 0 | CG46: 0 | CH46: 0 | CI46: 0
A47: 熊本県 | B47: 43513 | C47: 球磨村 | D47: 0 | E47: 0 | F47: 0 | G47: 0 | H47: 0 | I47: 0 | J47: 0 | K47: =組合分担金内訳!D47 -> 0 | L47: 0 | M47: 0 | N47: 0 | O47: 0 | P47: 0 | Q47: 0 | R47: 0 | S47: 0 | T47: 0 | U47: 0 | V47: 0 | W47: 0 | X47: 0 | Y47: 0 | Z47: 0 | AA47: 0 | AB47: =組合分担金内訳!E47 -> 0 | AC47: 0 | AD47: 0 | AE47: 0 | AF47: 0 | AG47: 0 | AH47: 0 | AI47: 0 | AJ47: 0 | AK47: 0 | AL47: 0 | AM47: =組合分担金内訳!G47 -> 0 | AN47: 0 | AO47: 0 | AP47: 0 | AQ47: 0 | AR47: 0 | AS47: 0 | AT47: 0 | AU47: 0 | AV47: 0 | AW47: 0 | AX47: 0 | AY47: 0 | AZ47: 0 | BA47: 0 | BB47: 0 | BC47: 0 | BD47: =組合分担金内訳!H47 -> 0 | BE47: 0 | BF47: 0 | BG47: 0 | BH47: 0 | BI47: 0 | BJ47: 0 | BK47: 0 | BL47: 0 | BM47: 0 | BN47: 0 | BO47: 0 | BP47: 0 | BQ47: 0 | BR47: 0 | BS47: 0 | BT47: 0 | BU47: 0 | BV47: 0 | BW47: 0 | BX47: 0 | BY47: 0 | BZ47: 0 | CA47: 0 | CB47: 0 | CC47: 0 | CD47: 0 | CE47: 0 | CF47: 0 | CG47: 0 | CH47: 0 | CI47: 0
A48: 熊本県 | B48: 43531 | C48: 苓北町 | D48: 0 | E48: 0 | F48: 0 | G48: 0 | H48: 0 | I48: 0 | J48: 0 | K48: =組合分担金内訳!D48 -> 0 | L48: 0 | M48: 0 | N48: 0 | O48: 0 | P48: 0 | Q48: 0 | R48: 0 | S48: 0 | T48: 0 | U48: 0 | V48: 0 | W48: 0 | X48: 0 | Y48: 0 | Z48: 0 | AA48: 0 | AB48: =組合分担金内訳!E48 -> 0 | AC48: 0 | AD48: 0 | AE48: 0 | AF48: 0 | AG48: 0 | AH48: 0 | AI48: 0 | AJ48: 0 | AK48: 0 | AL48: 0 | AM48: =組合分担金内訳!G48 -> 0 | AN48: 0 | AO48: 0 | AP48: 0 | AQ48: 0 | AR48: 0 | AS48: 0 | AT48: 0 | AU48: 0 | AV48: 0 | AW48: 0 | AX48: 0 | AY48: 0 | AZ48: 0 | BA48: 0 | BB48: 0 | BC48: 0 | BD48: =組合分担金内訳!H48 -> 0 | BE48: 0 | BF48: 0 | BG48: 0 | BH48: 0 | BI48: 0 | BJ48: 0 | BK48: 0 | BL48: 0 | BM48: 0 | BN48: 0 | BO48: 0 | BP48: 0 | BQ48: 0 | BR48: 0 | BS48: 0 | BT48: 0 | BU48: 0 | BV48: 0 | BW48: 0 | BX48: 0 | BY48: 0 | BZ48: 0 | CA48: 0 | CB48: 0 | CC48: 0 | CD48: 0 | CE48: 0 | CF48: 0 | CG48: 0 | CH48: 0 | CI48: 0
A49: 熊本県 | B49: 43854 | C49: 菊池環境保全組合 | D49: 0 | E49: 0 | F49: 0 | G49: 0 | H49: 0 | I49: 0 | J49: 0 | K49: 0 | L49: 0 | M49: 0 | N49: 0 | O49: 0 | P49: 0 | Q49: 0 | R49: 0 | S49: 0 | T49: 0 | U49: 0 | V49: 0 | W49: 0 | X49: 0 | Y49: 0 | Z49: 0 | AA49: 0 | AB49: 0 | AC49: 0 | AD49: 0 | AE49: 0 | AF49: 0 | AG49: 0 | AH49: 0 | AI49: 0 | AJ49: 0 | AK49: 0 | AL49: 0 | AM49: 0 | AN49: 0 | AO49: 0 | AP49: 0 | AQ49: 0 | AR49: 0 | AS49: 0 | AT49: 0 | AU49: 0 | AV49: 0 | AW49: 0 | AX49: 0 | AY49: 0 | AZ49: 0 | BA49: 0 | BB49: 0 | BC49: 0 | BD49: 0 | BE49: 0 | BF49: 0 | BG49: 0 | BH49: 0 | BI49: 0 | BJ49: 0 | BK49: 0 | BL49: 0 | BM49: 0 | BN49: 0 | BO49: 0 | BP49: 0 | BQ49: 0 | BR49: 0 | BS49: 0 | BT49: 0 | BU49: 0 | BV49: 0 | BW49: 0 | BX49: 0 | BY49: 0 | BZ49: 0 | CA49: 0 | CB49: 0 | CC49: 0 | CD49: 0 | CE49: 0 | CF49: 0 | CG49: 0 | CH49: 0 | CI49: 0
A50: 熊本県 | B50: 43857 | C50: 御船地区衛生施設組合 | D50: 0 | E50: 0 | F50: 0 | G50: 0 | H50: 0 | I50: 0 | J50: 0 | K50: 0 | L50: 0 | M50: 0 | N50: 0 | O50: 0 | P50: 0 | Q50: 0 | R50: 0 | S50: 0 | T50: 0 | U50: 0 | V50: 0 | W50: 0 | X50: 0 | Y50: 0 | Z50: 0 | AA50: 0 | AB50: 0 | AC50: 0 | AD50: 0 | AE50: 0 | AF50: 0 | AG50: 0 | AH50: 0 | AI50: 0 | AJ50: 0 | AK50: 0 | AL50: 0 | AM50: 0 | AN50: 0 | AO50: 0 | AP50: 0 | AQ50: 0 | AR50: 0 | AS50: 0 | AT50: 0 | AU50: 0 | AV50: 0 | AW50: 0 | AX50: 0 | AY50: 0 | AZ50: 0 | BA50: 0 | BB50: 0 | BC50: 0 | BD50: 0 | BE50: 0 | BF50: 0 | BG50: 0 | BH50: 0 | BI50: 0 | BJ50: 0 | BK50: 0 | BL50: 0 | BM50: 0 | BN50: 0 | BO50: 0 | BP50: 0 | BQ50: 0 | BR50: 0 | BS50: 0 | BT50: 0 | BU50: 0 | BV50: 0 | BW50: 0 | BX50: 0 | BY50: 0 | BZ50: 0 | CA50: 0 | CB50: 0 | CC50: 0 | CD50: 0 | CE50: 0 | CF50: 0 | CG50: 0 | CH50: 0 | CI50: 0
A51: 熊本県 | B51: 43935 | C51: 上天草衛生施設組合 | D51: 0 | E51: 0 | F51: 0 | G51: 0 | H51: 0 | I51: 0 | J51: 0 | K51: 0 | L51: 0 | M51: 0 | N51: 0 | O51: 0 | P51: 0 | Q51: 0 | R51: 0 | S51: 0 | T51: 0 | U51: 0 | V51: 0 | W51: 0 | X51: 0 | Y51: 0 | Z51: 0 | AA51: 0 | AB51: 0 | AC51: 0 | AD51: 0 | AE51: 0 | AF51: 0 | AG51: 0 | AH51: 0 | AI51: 0 | AJ51: 0 | AK51: 0 | AL51: 0 | AM51: 0 | AN51: 0 | AO51: 0 | AP51: 0 | AQ51: 0 | AR51: 0 | AS51: 0 | AT51: 0 | AU51: 0 | AV51: 0 | AW51: 0 | AX51: 0 | AY51: 0 | AZ51: 0 | BA51: 0 | BB51: 0 | BC51: 0 | BD51: 0 | BE51: 0 | BF51: 0 | BG51: 0 | BH51: 0 | BI51: 0 | BJ51: 0 | BK51: 0 | BL51: 0 | BM51: 0 | BN51: 0 | BO51: 0 | BP51: 0 | BQ51: 0 | BR51: 0 | BS51: 0 | BT51: 0 | BU51: 0 | BV51: 0 | BW51: 0 | BX51: 0 | BY51: 0 | BZ51: 0 | CA51: 0 | CB51: 0 | CC51: 0 | CD51: 0 | CE51: 0 | CF51: 0 | CG51: 0 | CH51: 0 | CI51: 0
A52: 熊本県 | B52: 43949 | C52: 益城、嘉島、西原環境衛生施設組合 | D52: 0 | E52: 0 | F52: 0 | G52: 0 | H52: 0 | I52: 0 | J52: 0 | K52: 0 | L52: 0 | M52: 0 | N52: 0 | O52: 0 | P52: 0 | Q52: 0 | R52: 0 | S52: 0 | T52: 0 | U52: 0 | V52: 0 | W52: 0 | X52: 0 | Y52: 0 | Z52: 0 | AA52: 0 | AB52: 0 | AC52: 0 | AD52: 0 | AE52: 0 | AF52: 0 | AG52: 0 | AH52: 0 | AI52: 0 | AJ52: 0 | AK52: 0 | AL52: 0 | AM52: 0 | AN52: 0 | AO52: 0 | AP52: 0 | AQ52: 0 | AR52: 0 | AS52: 0 | AT52: 0 | AU52: 0 | AV52: 0 | AW52: 0 | AX52: 0 | AY52: 0 | AZ52: 0 | BA52: 0 | BB52: 0 | BC52: 0 | BD52: 0 | BE52: 0 | BF52: 0 | BG52: 0 | BH52: 0 | BI52: 0 | BJ52: 0 | BK52: 0 | BL52: 0 | BM52: 0 | BN52: 0 | BO52: 0 | BP52: 0 | BQ52: 0 | BR52: 0 | BS52: 0 | BT52: 0 | BU52: 0 | BV52: 0 | BW52: 0 | BX52: 0 | BY52: 0 | BZ52: 0 | CA52: 0 | CB52: 0 | CC52: 0 | CD52: 0 | CE52: 0 | CF52: 0 | CG52: 0 | CH52: 0 | CI52: 0
A53: 熊本県 | B53: 43954 | C53: 山鹿植木広域行政事務組合 | D53: 0 | E53: 0 | F53: 0 | G53: 0 | H53: 0 | I53: 0 | J53: 0 | K53: 0 | L53: 0 | M53: 0 | N53: 0 | O53: 0 | P53: 0 | Q53: 0 | R53: 0 | S53: 0 | T53: 0 | U53: 0 | V53: 0 | W53: 0 | X53: 0 | Y53: 0 | Z53: 0 | AA53: 0 | AB53: 0 | AC53: 0 | AD53: 0 | AE53: 0 | AF53: 0 | AG53: 0 | AH53: 0 | AI53: 0 | AJ53: 0 | AK53: 0 | AL53: 0 | AM53: 0 | AN53: 0 | AO53: 0 | AP53: 0 | AQ53: 0 | AR53: 0 | AS53: 0 | AT53: 0 | AU53: 0 | AV53: 0 | AW53: 0 | AX53: 0 | AY53: 0 | AZ53: 0 | BA53: 0 | BB53: 0 | BC53: 0 | BD53: 0 | BE53: 0 | BF53: 0 | BG53: 0 | BH53: 0 | BI53: 0 | BJ53: 0 | BK53: 0 | BL53: 0 | BM53: 0 | BN53: 0 | BO53: 0 | BP53: 0 | BQ53: 0 | BR53: 0 | BS53: 0 | BT53: 0 | BU53: 0 | BV53: 0 | BW53: 0 | BX53: 0 | BY53: 0 | BZ53: 0 | CA53: 0 | CB53: 0 | CC53: 0 | CD53: 0 | CE53: 0 | CF53: 0 | CG53: 0 | CH53: 0 | CI53: 0
A54: 熊本県 | B54: 43974 | C54: 八代生活環境事務組合 | D54: 0 | E54: 0 | F54: 0 | G54: 0 | H54: 0 | I54: 0 | J54: 0 | K54: 0 | L54: 0 | M54: 0 | N54: 0 | O54: 0 | P54: 0 | Q54: 0 | R54: 0 | S54: 0 | T54: 0 | U54: 0 | V54: 0 | W54: 0 | X54: 0 | Y54: 0 | Z54: 0 | AA54: 0 | AB54: 0 | AC54: 0 | AD54: 0 | AE54: 0 | AF54: 0 | AG54: 0 | AH54: 0 | AI54: 0 | AJ54: 0 | AK54: 0 | AL54: 0 | AM54: 0 | AN54: 0 | AO54: 0 | AP54: 0 | AQ54: 0 | AR54: 0 | AS54: 0 | AT54: 0 | AU54: 0 | AV54: 0 | AW54: 0 | AX54: 0 | AY54: 0 | AZ54: 0 | BA54: 0 | BB54: 0 | BC54: 0 | BD54: 0 | BE54: 0 | BF54: 0 | BG54: 0 | BH54: 0 | BI54: 0 | BJ54: 0 | BK54: 0 | BL54: 0 | BM54: 0 | BN54: 0 | BO54: 0 | BP54: 0 | BQ54: 0 | BR54: 0 | BS54: 0 | BT54: 0 | BU54: 0 | BV54: 0 | BW54: 0 | BX54: 0 | BY54: 0 | BZ54: 0 | CA54: 0 | CB54: 0 | CC54: 0 | CD54: 0 | CE54: 0 | CF54: 0 | CG54: 0 | CH54: 0 | CI54: 0
A55: 熊本県 | B55: 43985 | C55: 阿蘇広域行政事務組合 | D55: 0 | E55: 0 | F55: 0 | G55: 0 | H55: 0 | I55: 0 | J55: 0 | K55: 0 | L55: 0 | M55: 0 | N55: 0 | O55: 0 | P55: 0 | Q55: 0 | R55: 0 | S55: 0 | T55: 0 | U55: 0 | V55: 0 | W55: 0 | X55: 0 | Y55: 0 | Z55: 0 | AA55: 0 | AB55: 0 | AC55: 0 | AD55: 0 | AE55: 0 | AF55: 0 | AG55: 0 | AH55: 0 | AI55: 0 | AJ55: 0 | AK55: 0 | AL55: 0 | AM55: 0 | AN55: 0 | AO55: 0 | AP55: 0 | AQ55: 0 | AR55: 0 | AS55: 0 | AT55: 0 | AU55: 0 | AV55: 0 | AW55: 0 | AX55: 0 | AY55: 0 | AZ55: 0 | BA55: 0 | BB55: 0 | BC55: 0 | BD55: 0 | BE55: 0 | BF55: 0 | BG55: 0 | BH55: 0 | BI55: 0 | BJ55: 0 | BK55: 0 | BL55: 0 | BM55: 0 | BN55: 0 | BO55: 0 | BP55: 0 | BQ55: 0 | BR55: 0 | BS55: 0 | BT55: 0 | BU55: 0 | BV55: 0 | BW55: 0 | BX55: 0 | BY55: 0 | BZ55: 0 | CA55: 0 | CB55: 0 | CC55: 0 | CD55: 0 | CE55: 0 | CF55: 0 | CG55: 0 | CH55: 0 | CI55: 0
A56: 熊本県 | B56: 43986 | C56: 人吉球磨広域行政組合 | D56: 0 | E56: 0 | F56: 0 | G56: 0 | H56: 0 | I56: 0 | J56: 0 | K56: 0 | L56: 0 | M56: 0 | N56: 0 | O56: 0 | P56: 0 | Q56: 0 | R56: 0 | S56: 0 | T56: 0 | U56: 0 | V56: 0 | W56: 0 | X56: 0 | Y56: 0 | Z56: 0 | AA56: 0 | AB56: 0 | AC56: 0 | AD56: 0 | AE56: 0 | AF56: 0 | AG56: 0 | AH56: 0 | AI56: 0 | AJ56: 0 | AK56: 0 | AL56: 0 | AM56: 0 | AN56: 0 | AO56: 0 | AP56: 0 | AQ56: 0 | AR56: 0 | AS56: 0 | AT56: 0 | AU56: 0 | AV56: 0 | AW56: 0 | AX56: 0 | AY56: 0 | AZ56: 0 | BA56: 0 | BB56: 0 | BC56: 0 | BD56: 0 | BE56: 0 | BF56: 0 | BG56: 0 | BH56: 0 | BI56: 0 | BJ56: 0 | BK56: 0 | BL56: 0 | BM56: 0 | BN56: 0 | BO56: 0 | BP56: 0 | BQ56: 0 | BR56: 0 | BS56: 0 | BT56: 0 | BU56: 0 | BV56: 0 | BW56: 0 | BX56: 0 | BY56: 0 | BZ56: 0 | CA56: 0 | CB56: 0 | CC56: 0 | CD56: 0 | CE56: 0 | CF56: 0 | CG56: 0 | CH56: 0 | CI56: 0
A57: 熊本県 | B57: 43991 | C57: 有明広域行政事務組合 | D57: 0 | E57: 0 | F57: 0 | G57: 0 | H57: 0 | I57: 0 | J57: 0 | K57: 0 | L57: 0 | M57: 0 | N57: 0 | O57: 0 | P57: 0 | Q57: 0 | R57: 0 | S57: 0 | T57: 0 | U57: 0 | V57: 0 | W57: 0 | X57: 0 | Y57: 0 | Z57: 0 | AA57: 0 | AB57: 0 | AC57: 0 | AD57: 0 | AE57: 0 | AF57: 0 | AG57: 0 | AH57: 0 | AI57: 0 | AJ57: 0 | AK57: 0 | AL57: 0 | AM57: 0 | AN57: 0 | AO57: 0 | AP57: 0 | AQ57: 0 | AR57: 0 | AS57: 0 | AT57: 0 | AU57: 0 | AV57: 0 | AW57: 0 | AX57: 0 | AY57: 0 | AZ57: 0 | BA57: 0 | BB57: 0 | BC57: 0 | BD57: 0 | BE57: 0 | BF57: 0 | BG57: 0 | BH57: 0 | BI57: 0 | BJ57: 0 | BK57: 0 | BL57: 0 | BM57: 0 | BN57: 0 | BO57: 0 | BP57: 0 | BQ57: 0 | BR57: 0 | BS57: 0 | BT57: 0 | BU57: 0 | BV57: 0 | BW57: 0 | BX57: 0 | BY57: 0 | BZ57: 0 | CA57: 0 | CB57: 0 | CC57: 0 | CD57: 0 | CE57: 0 | CF57: 0 | CG57: 0 | CH57: 0 | CI57: 0
A58: 熊本県 | B58: 43993 | C58: 水俣芦北広域行政事務組合 | D58: 0 | E58: 0 | F58: 0 | G58: 0 | H58: 0 | I58: 0 | J58: 0 | K58: 0 | L58: 0 | M58: 0 | N58: 0 | O58: 0 | P58: 0 | Q58: 0 | R58: 0 | S58: 0 | T58: 0 | U58: 0 | V58: 0 | W58: 0 | X58: 0 | Y58: 0 | Z58: 0 | AA58: 0 | AB58: 0 | AC58: 0 | AD58: 0 | AE58: 0 | AF58: 0 | AG58: 0 | AH58: 0 | AI58: 0 | AJ58: 0 | AK58: 0 | AL58: 0 | AM58: 0 | AN58: 0 | AO58: 0 | AP58: 0 | AQ58: 0 | AR58: 0 | AS58: 0 | AT58: 0 | AU58: 0 | AV58: 0 | AW58: 0 | AX58: 0 | AY58: 0 | AZ58: 0 | BA58: 0 | BB58: 0 | BC58: 0 | BD58: 0 | BE58: 0 | BF58: 0 | BG58: 0 | BH58: 0 | BI58: 0 | BJ58: 0 | BK58: 0 | BL58: 0 | BM58: 0 | BN58: 0 | BO58: 0 | BP58: 0 | BQ58: 0 | BR58: 0 | BS58: 0 | BT58: 0 | BU58: 0 | BV58: 0 | BW58: 0 | BX58: 0 | BY58: 0 | BZ58: 0 | CA58: 0 | CB58: 0 | CC58: 0 | CD58: 0 | CE58: 0 | CF58: 0 | CG58: 0 | CH58: 0 | CI58: 0
A59: 熊本県 | B59: 43995 | C59: 宇城広域連合 | D59: 0 | E59: 0 | F59: 0 | G59: 0 | H59: 0 | I59: 0 | J59: 0 | K59: 0 | L59: 0 | M59: 0 | N59: 0 | O59: 0 | P59: 0 | Q59: 0 | R59: 0 | S59: 0 | T59: 0 | U59: 0 | V59: 0 | W59: 0 | X59: 0 | Y59: 0 | Z59: 0 | AA59: 0 | AB59: 0 | AC59: 0 | AD59: 0 | AE59: 0 | AF59: 0 | AG59: 0 | AH59: 0 | AI59: 0 | AJ59: 0 | AK59: 0 | AL59: 0 | AM59: 0 | AN59: 0 | AO59: 0 | AP59: 0 | AQ59: 0 | AR59: 0 | AS59: 0 | AT59: 0 | AU59: 0 | AV59: 0 | AW59: 0 | AX59: 0 | AY59: 0 | AZ59: 0 | BA59: 0 | BB59: 0 | BC59: 0 | BD59: 0 | BE59: 0 | BF59: 0 | BG59: 0 | BH59: 0 | BI59: 0 | BJ59: 0 | BK59: 0 | BL59: 0 | BM59: 0 | BN59: 0 | BO59: 0 | BP59: 0 | BQ59: 0 | BR59: 0 | BS59: 0 | BT59: 0 | BU59: 0 | BV59: 0 | BW59: 0 | BX59: 0 | BY59: 0 | BZ59: 0 | CA59: 0 | CB59: 0 | CC59: 0 | CD59: 0 | CE59: 0 | CF59: 0 | CG59: 0 | CH59: 0 | CI59: 0
A60: 熊本県 | B60: 43996 | C60: 菊池広域連合 | D60: 0 | E60: 0 | F60: 0 | G60: 0 | H60: 0 | I60: 0 | J60: 0 | K60: 0 | L60: 0 | M60: 0 | N60: 0 | O60: 0 | P60: 0 | Q60: 0 | R60: 0 | S60: 0 | T60: 0 | U60: 0 | V60: 0 | W60: 0 | X60: 0 | Y60: 0 | Z60: 0 | AA60: 0 | AB60: 0 | AC60: 0 | AD60: 0 | AE60: 0 | AF60: 0 | AG60: 0 | AH60: 0 | AI60: 0 | AJ60: 0 | AK60: 0 | AL60: 0 | AM60: 0 | AN60: 0 | AO60: 0 | AP60: 0 | AQ60: 0 | AR60: 0 | AS60: 0 | AT60: 0 | AU60: 0 | AV60: 0 | AW60: 0 | AX60: 0 | AY60: 0 | AZ60: 0 | BA60: 0 | BB60: 0 | BC60: 0 | BD60: 0 | BE60: 0 | BF60: 0 | BG60: 0 | BH60: 0 | BI60: 0 | BJ60: 0 | BK60: 0 | BL60: 0 | BM60: 0 | BN60: 0 | BO60: 0 | BP60: 0 | BQ60: 0 | BR60: 0 | BS60: 0 | BT60: 0 | BU60: 0 | BV60: 0 | BW60: 0 | BX60: 0 | BY60: 0 | BZ60: 0 | CA60: 0 | CB60: 0 | CC60: 0 | CD60: 0 | CE60: 0 | CF60: 0 | CG60: 0 | CH60: 0 | CI60: 0

Sheet 組合分担金内訳
A1: 【災害】廃棄物処理事業経費【分担金の合計】（令和4年度実績）
A2: 都道府県名 | B2: 地方公共団体コード | C2: 市区町村名 | D2: 合計（広域団体１+広域団体２+広域団体３+広域団体４+広域団体５+広域団体６） | J2: 広域団体１ | R2: 広域団体２ | Z2: 広域団体３ | AH2: 広域団体４ | AP2: 広域団体５ | AX2: 広域団体６
D4: ごみ | G4: し尿 | J4: 広域団体ｺｰﾄﾞ | K4: 一部事務組合・広域連合名 | L4: ごみ | O4: し尿 | R4: 広域団体ｺｰﾄﾞ | S4: 一部事務組合・広域連合名 | T4: ごみ | W4: し尿 | Z4: 広域団体ｺｰﾄﾞ | AA4: 一部事務組合・広域連合名 | AB4: ごみ | AE4: し尿 | AH4: 広域団体ｺｰﾄﾞ | AI4: 一部事務組合・広域連合名 | AJ4: ごみ | AM4: し尿 | AP4: 広域団体ｺｰﾄﾞ | AQ4: 一部事務組合・広域連合名 | AR4: ごみ | AU4: し尿 | AX4: 広域団体ｺｰﾄﾞ | AY4: 一部事務組合・広域連合名 | AZ4: ごみ | BC4: し尿
D5: 建設・改良費 | E5: 処理及び 維持管理費 | F5: 合計 | G5: 建設・改良費 | H5: 処理及び 維持管理費 | I5: 合計 | L5: 建設・改良費 | M5: 処理及び 維持管理費 | N5: 小計 | O5: 建設・改良費 | P5: 処理及び 維持管理費 | Q5: 小計 | T5: 建設・改良費 | U5: 処理及び 維持管理費 | V5: 小計 | W5: 建設・改良費 | X5: 処理及び 維持管理費 | Y5: 小計 | AB5: 建設・改良費 | AC5: 処理及び 維持管理費 | AD5: 小計 | AE5: 建設・改良費 | AF5: 処理及び 維持管理費 | AG5: 小計 | AJ5: 建設・改良費 | AK5: 処理及び 維持管理費 | AL5: 小計 | AM5: 建設・改良費 | AN5: 処理及び 維持管理費 | AO5: 小計 | AR5: 建設・改良費 | AS5: 処理及び 維持管理費 | AT5: 小計 | AU5: 建設・改良費 | AV5: 処理及び 維持管理費 | AW5: 小計 | AZ5: 建設・改良費 | BA5: 処理及び 維持管理費 | BB5: 小計 | BC5: 建設・改良費 | BD5: 処理及び 維持管理費 | BE5: 小計
D6: （千円） | E6: （千円） | F6: （千円） | G6: （千円） | H6: （千円） | I6: （千円） | L6: （千円） | M6: （千円） | N6: （千円） | O6: （千円） | P6: （千円） | Q6: （千円） | T6: （千円） | U6: （千円） | V6: （千円） | W6: （千円） | X6: （千円） | Y6: （千円） | AB6: （千円） | AC6: （千円） | AD6: （千円） | AE6: （千円） | AF6: （千円） | AG6: （千円） | AJ6: （千円） | AK6: （千円） | AL6: （千円） | AM6: （千円） | AN6: （千円） | AO6: （千円） | AR6: （千円） | AS6: （千円） | AT6: （千円） | AU6: （千円） | AV6: （千円） | AW6: （千円） | AZ6: （千円） | BA6: （千円） | BB6: （千円） | BC6: （千円） | BD6: （千円） | BE6: （千円）
A7: 熊本県 | B7: 43000 | C7: 合計 | D7: =SUM($D$8:$D$48) -> 0 | E7: =SUM($E$8:$E$48) -> 0 | F7: =SUM($F$8:$F$48) -> 0 | G7: =SUM($G$8:$G$48) -> 0 | H7: =SUM($H$8:$H$48) -> 0 | I7: =SUM($I$8:$I$48) -> 0 | J7: =COUNTIF($J$8:$J$48,"<>") - COUNTIF($J$8:$J$48,"< >") -> 0 | K7: =COUNTIF($K$8:$K$48,"<>") - COUNTIF($K$8:$K$48,"< >") -> 0 | L7: =SUM($L$8:$L$48) -> 0 | M7: =SUM($M$8:$M$48) -> 0 | N7: =SUM($N$8:$N$48) -> 0 | O7: =SUM($O$8:$O$48) -> 0 | P7: =SUM($P$8:$P$48) -> 0 | Q7: =SUM($Q$8:$Q$48) -> 0 | R7: =COUNTIF($R$8:$R$48,"<>") - COUNTIF($R$8:$R$48,"< >") -> 0 | S7: =COUNTIF($S$8:$S$48,"<>") - COUNTIF($S$8:$S$48,"< >") -> 0 | T7: =SUM($T$8:$T$48) -> 0 | U7: =SUM($U$8:$U$48) -> 0 | V7: =SUM($V$8:$V$48) -> 0 | W7: =SUM($W$8:$W$48) -> 0 | X7: =SUM($X$8:$X$48) -> 0 | Y7: =SUM($Y$8:$Y$48) -> 0 | Z7: =COUNTIF($Z$8:$Z$48,"<>") - COUNTIF($Z$8:$Z$48,"< >") -> 0 | AA7: =COUNTIF($AA$8:$AA$48,"<>") - COUNTIF($AA$8:$AA$48,"< >") -> 0 | AB7: =SUM($AB$8:$AB$48) -> 0 | AC7: =SUM($AC$8:$AC$48) -> 0 | AD7: =SUM($AD$8:$AD$48) -> 0 | AE7: =SUM($AE$8:$AE$48) -> 0 | AF7: =SUM($AF$8:$AF$48) -> 0 | AG7: =SUM($AG$8:$AG$48) -> 0 | AH7: =COUNTIF($AH$8:$AH$48,"<>") - COUNTIF($AH$8:$AH$48,"< >") -> 0 | AI7: =COUNTIF($AI$8:$AI$48,"<>") - COUNTIF($AI$8:$AI$48,"< >") -> 0 | AJ7: =SUM($AJ$8:$AJ$48) -> 0 | AK7: =SUM($AK$8:$AK$48) -> 0 | AL7: =SUM($AL$8:$AL$48) -> 0 | AM7: =SUM($AM$8:$AM$48) -> 0 | AN7: =SUM($AN$8:$AN$48) -> 0 | AO7: =SUM($AO$8:$AO$48) -> 0 | AP7: =COUNTIF($AP$8:$AP$48,"<>") - COUNTIF($AP$8:$AP$48,"< >") -> 0 | AQ7: =COUNTIF($AQ$8:$AQ$48,"<>") - COUNTIF($AQ$8:$AQ$48,"< >") -> 0 | AR7: =SUM($AR$8:$AR$48) -> 0 | AS7: =SUM($AS$8:$AS$48) -> 0 | AT7: =SUM($AT$8:$AT$48) -> 0 | AU7: =SUM($AU$8:$AU$48) -> 0 | AV7: =SUM($AV$8:$AV$48) -> 0 | AW7: =SUM($AW$8:$AW$48) -> 0 | AX7: =COUNTIF($AX$8:$AX$48,"<>") - COUNTIF($AX$8:$AX$48,"< >") -> 0 | AY7: =COUNTIF($AY$8:$AY$48,"<>") - COUNTIF($AY$8:$AY$48,"< >") -> 0 | AZ7: =SUM($AZ$8:$AZ$48) -> 0 | BA7: =SUM($BA$8:$BA$48) -> 0 | BB7: =SUM($BB$8:$BB$48) -> 0 | BC7: =SUM($BC$8:$BC$48) -> 0 | BD7: =SUM($BD$8:$BD$48) -> 0 | BE7: =SUM($BE$8:$BE$48) -> 0
A8: 熊本県 | B8: 43100 | C8: 熊本市 | D8: =SUM(L8,T8,AB8,AJ8,AR8,AZ8) -> 0 | E8: =SUM(M8,U8,AC8,AK8,AS8,BA8) -> 0 | F8: =SUM(D8:E8) -> 0 | G8: =SUM(O8,W8,AE8,AM8,AU8,BC8) -> 0 | H8: =SUM(P8,X8,AF8,AN8,AV8,BD8) -> 0 | I8: =SUM(G8:H8) -> 0 | L8: 0 | M8: 0 | N8: =SUM(L8,+M8) -> 0 | O8: 0 | P8: 0 | Q8: =SUM(O8,+P8) -> 0 | T8: 0 | U8: 0 | V8: 0 | W8: 0 | X8: 0 | Y8: 0 | AB8: 0 | AC8: 0 | AD8: 0 | AE8: 0 | AF8: 0 | AG8: =SUM(AE8,+AF8) -> 0 | AJ8: 0 | AK8: 0 | AL8: =SUM(AJ8,+AK8) -> 0 | AM8: 0 | AN8: 0 | AO8: =SUM(AM8,+AN8) -> 0 | AR8: 0 | AS8: 0 | AT8: =SUM(AR8,+AS8) -> 0 | AU8: 0 | AV8: 0 | AW8: =SUM(AU8,+AV8) -> 0 | AZ8: 0 | BA8: 0 | BB8: =SUM(AZ8,BA8) -> 0 | BC8: 0 | BD8: 0 | BE8: =SUM(BC8,+BD8) -> 0
A9: 熊本県 | B9: 43202 | C9: 八代市 | D9: =SUM(L9,T9,AB9,AJ9,AR9,AZ9) -> 0 | E9: =SUM(M9,U9,AC9,AK9,AS9,BA9) -> 0 | F9: =SUM(D9:E9) -> 0 | G9: =SUM(O9,W9,AE9,AM9,AU9,BC9) -> 0 | H9: =SUM(P9,X9,AF9,AN9,AV9,BD9) -> 0 | I9: =SUM(G9:H9) -> 0 | L9: 0 | M9: 0 | N9: =SUM(L9,+M9) -> 0 | O9: 0 | P9: 0 | Q9: =SUM(O9,+P9) -> 0 | T9: 0 | U9: 0 | V9: 0 | W9: 0 | X9: 0 | Y9: 0 | AB9: 0 | AC9: 0 | AD9: 0 | AE9: 0 | AF9: 0 | AG9: =SUM(AE9,+AF9) -> 0 | AJ9: 0 | AK9: 0 | AL9: =SUM(AJ9,+AK9) -> 0 | AM9: 0 | AN9: 0 | AO9: =SUM(AM9,+AN9) -> 0 | AR9: 0 | AS9: 0 | AT9: =SUM(AR9,+AS9) -> 0 | AU9: 0 | AV9: 0 | AW9: =SUM(AU9,+AV9) -> 0 | AZ9: 0 | BA9: 0 | BB9: =SUM(AZ9,BA9) -> 0 | BC9: 0 | BD9: 0 | BE9: =SUM(BC9,+BD9) -> 0
A10: 熊本県 | B10: 43203 | C10: 人吉市 | D10: =SUM(L10,T10,AB10,AJ10,AR10,AZ10) -> 0 | E10: =SUM(M10,U10,AC10,AK10,AS10,BA10) -> 0 | F10: =SUM(D10:E10) -> 0 | G10: =SUM(O10,W10,AE10,AM10,AU10,BC10) -> 0 | H10: =SUM(P10,X10,AF10,AN10,AV10,BD10) -> 0 | I10: =SUM(G10:H10) -> 0 | L10: 0 | M10: 0 | N10: =SUM(L10,+M10) -> 0 | O10: 0 | P10: 0 | Q10: =SUM(O10,+P10) -> 0 | T10: 0 | U10: 0 | V10: 0 | W10: 0 | X10: 0 | Y10: 0 | AB10: 0 | AC10: 0 | AD10: 0 | AE10: 0 | AF10: 0 | AG10: =SUM(AE10,+AF10) -> 0 | AJ10: 0 | AK10: 0 | AL10: =SUM(AJ10,+AK10) -> 0 | AM10: 0 | AN10: 0 | AO10: =SUM(AM10,+AN10) -> 0 | AR10: 0 | AS10: 0 | AT10: =SUM(AR10,+AS10) -> 0 | AU10: 0 | AV10: 0 | AW10: =SUM(AU10,+AV10) -> 0 | AZ10: 0 | BA10: 0 | BB10: =SUM(AZ10,BA10) -> 0 | BC10: 0 | BD10: 0 | BE10: =SUM(BC10,+BD10) -> 0
A11: 熊本県 | B11: 43204 | C11: 荒尾市 | D11: =SUM(L11,T11,AB11,AJ11,AR11,AZ11) -> 0 | E11: =SUM(M11,U11,AC11,AK11,AS11,BA11) -> 0 | F11: =SUM(D11:E11) -> 0 | G11: =SUM(O11,W11,AE11,AM11,AU11,BC11) -> 0 | H11: =SUM(P11,X11,AF11,AN11,AV11,BD11) -> 0 | I11: =SUM(G11:H11) -> 0 | L11: 0 | M11: 0 | N11: =SUM(L11,+M11) -> 0 | O11: 0 | P11: 0 | Q11: =SUM(O11,+P11) -> 0 | T11: 0 | U11: 0 | V11: 0 | W11: 0 | X11: 0 | Y11: 0 | AB11: 0 | AC11: 0 | AD11: 0 | AE11: 0 | AF11: 0 | AG11: =SUM(AE11,+AF11) -> 0 | AJ11: 0 | AK11: 0 | AL11: =SUM(AJ11,+AK11) -> 0 | AM11: 0 | AN11: 0 | AO11: =SUM(AM11,+AN11) -> 0 | AR11: 0 | AS11: 0 | AT11: =SUM(AR11,+AS11) -> 0 | AU11: 0 | AV11: 0 | AW11: =SUM(AU11,+AV11) -> 0 | AZ11: 0 | BA11: 0 | BB11: =SUM(AZ11,BA11) -> 0 | BC11: 0 | BD11: 0 | BE11: =SUM(BC11,+BD11) -> 0
A12: 熊本県 | B12: 43205 | C12: 水俣市 | D12: =SUM(L12,T12,AB12,AJ12,AR12,AZ12) -> 0 | E12: =SUM(M12,U12,AC12,AK12,AS12,BA12) -> 0 | F12: =SUM(D12:E12) -> 0 | G12: =SUM(O12,W12,AE12,AM12,AU12,BC12) -> 0 | H12: =SUM(P12,X12,AF12,AN12,AV12,BD12) -> 0 | I12: =SUM(G12:H12) -> 0 | L12: 0 | M12: 0 | N12: =SUM(L12,+M12) -> 0 | O12: 0 | P12: 0 | Q12: =SUM(O12,+P12) -> 0 | T12: 0 | U12: 0 | V12: 0 | W12: 0 | X12: 0 | Y12: 0 | AB12: 0 | AC12: 0 | AD12: 0 | AE12: 0 | AF12: 0 | AG12: =SUM(AE12,+AF12) -> 0 | AJ12: 0 | AK12: 0 | AL12: =SUM(AJ12,+AK12) -> 0 | AM12: 0 | AN12: 0 | AO12: =SUM(AM12,+AN12) -> 0 | AR12: 0 | AS12: 0 | AT12: =SUM(AR12,+AS12) -> 0 | AU12: 0 | AV12: 0 | AW12: =SUM(AU12,+AV12) -> 0 | AZ12: 0 | BA12: 0 | BB12: =SUM(AZ12,BA12) -> 0 | BC12: 0 | BD12: 0 | BE12: =SUM(BC12,+BD12) -> 0
A13: 熊本県 | B13: 43206 | C13: 玉名市 | D13: =SUM(L13,T13,AB13,AJ13,AR13,AZ13) -> 0 | E13: =SUM(M13,U13,AC13,AK13,AS13,BA13) -> 0 | F13: =SUM(D13:E13) -> 0 | G13: =SUM(O13,W13,AE13,AM13,AU13,BC13) -> 0 | H13: =SUM(P13,X13,AF13,AN13,AV13,BD13) -> 0 | I13: =SUM(G13:H13) -> 0 | L13: 0 | M13: 0 | N13: =SUM(L13,+M13) -> 0 | O13: 0 | P13: 0 | Q13: =SUM(O13,+P13) -> 0 | T13: 0 | U13: 0 | V13: 0 | W13: 0 | X13: 0 | Y13: 0 | AB13: 0 | AC13: 0 | AD13: 0 | AE13: 0 | AF13: 0 | AG13: =SUM(AE13,+AF13) -> 0 | AJ13: 0 | AK13: 0 | AL13: =SUM(AJ13,+AK13) -> 0 | AM13: 0 | AN13: 0 | AO13: =SUM(AM13,+AN13) -> 0 | AR13: 0 | AS13: 0 | AT13: =SUM(AR13,+AS13) -> 0 | AU13: 0 | AV13: 0 | AW13: =SUM(AU13,+AV13) -> 0 | AZ13: 0 | BA13: 0 | BB13: =SUM(AZ13,BA13) -> 0 | BC13: 0 | BD13: 0 | BE13: =SUM(BC13,+BD13) -> 0
A14: 熊本県 | B14: 43208 | C14: 山鹿市 | D14: =SUM(L14,T14,AB14,AJ14,AR14,AZ14) -> 0 | E14: =SUM(M14,U14,AC14,AK14,AS14,BA14) -> 0 | F14: =SUM(D14:E14) -> 0 | G14: =SUM(O14,W14,AE14,AM14,AU14,BC14) -> 0 | H14: =SUM(P14,X14,AF14,AN14,AV14,BD14) -> 0 | I14: =SUM(G14:H14) -> 0 | L14: 0 | M14: 0 | N14: =SUM(L14,+M14) -> 0 | O14: 0 | P14: 0 | Q14: =SUM(O14,+P14) -> 0 | T14: 0 | U14: 0 | V14: 0 | W14: 0 | X14: 0 | Y14: 0 | AB14: 0 | AC14: 0 | AD14: 0 | AE14: 0 | AF14: 0 | AG14: =SUM(AE14,+AF14) -> 0 | AJ14: 0 | AK14: 0 | AL14: =SUM(AJ14,+AK14) -> 0 | AM14: 0 | AN14: 0 | AO14: =SUM(AM14,+AN14) -> 0 | AR14: 0 | AS14: 0 | AT14: =SUM(AR14,+AS14) -> 0 | AU14: 0 | AV14: 0 | AW14: =SUM(AU14,+AV14) -> 0 | AZ14: 0 | BA14: 0 | BB14: =SUM(AZ14,BA14) -> 0 | BC14: 0 | BD14: 0 | BE14: =SUM(BC14,+BD14) -> 0
A15: 熊本県 | B15: 43210 | C15: 菊池市 | D15: =SUM(L15,T15,AB15,AJ15,AR15,AZ15) -> 0 | E15: =SUM(M15,U15,AC15,AK15,AS15,BA15) -> 0 | F15: =SUM(D15:E15) -> 0 | G15: =SUM(O15,W15,AE15,AM15,AU15,BC15) -> 0 | H15: =SUM(P15,X15,AF15,AN15,AV15,BD15) -> 0 | I15: =SUM(G15:H15) -> 0 | L15: 0 | M15: 0 | N15: =SUM(L15,+M15) -> 0 | O15: 0 | P15: 0 | Q15: =SUM(O15,+P15) -> 0 | T15: 0 | U15: 0 | V15: 0 | W15: 0 | X15: 0 | Y15: 0 | AB15: 0 | AC15: 0 | AD15: 0 | AE15: 0 | AF15: 0 | AG15: =SUM(AE15,+AF15) -> 0 | AJ15: 0 | AK15: 0 | AL15: =SUM(AJ15,+AK15) -> 0 | AM15: 0 | AN15: 0 | AO15: =SUM(AM15,+AN15) -> 0 | AR15: 0 | AS15: 0 | AT15: =SUM(AR15,+AS15) -> 0 | AU15: 0 | AV15: 0 | AW15: =SUM(AU15,+AV15) -> 0 | AZ15: 0 | BA15: 0 | BB15: =SUM(AZ15,BA15) -> 0 | BC15: 0 | BD15: 0 | BE15: =SUM(BC15,+BD15) -> 0
A16: 熊本県 | B16: 43211 | C16: 宇土市 | D16: =SUM(L16,T16,AB16,AJ16,AR16,AZ16) -> 0 | E16: =SUM(M16,U16,AC16,AK16,AS16,BA16) -> 0 | F16: =SUM(D16:E16) -> 0 | G16: =SUM(O16,W16,AE16,AM16,AU16,BC16) -> 0 | H16: =SUM(P16,X16,AF16,AN16,AV16,BD16) -> 0 | I16: =SUM(G16:H16) -> 0 | L16: 0 | M16: 0 | N16: =SUM(L16,+M16) -> 0 | O16: 0 | P16: 0 | Q16: =SUM(O16,+P16) -> 0 | T16: 0 | U16: 0 | V16: 0 | W16: 0 | X16: 0 | Y16: 0 | AB16: 0 | AC16: 0 | AD16: 0 | AE16: 0 | AF16: 0 | AG16: =SUM(AE16,+AF16) -> 0 | AJ16: 0 | AK16: 0 | AL16: =SUM(AJ16,+AK16) -> 0 | AM16: 0 | AN16: 0 | AO16: =SUM(AM16,+AN16) -> 0 | AR16: 0 | AS16: 0 | AT16: =SUM(AR16,+AS16) -> 0 | AU16: 0 | AV16: 0 | AW16: =SUM(AU16,+AV16) -> 0 | AZ16: 0 | BA16: 0 | BB16: =SUM(AZ16,BA16) -> 0 | BC16: 0 | BD16: 0 | BE16: =SUM(BC16,+BD16) -> 0
A17: 熊本県 | B17: 43212 | C17: 上天草市 | D17: =SUM(L17,T17,AB17,AJ17,AR17,AZ17) -> 0 | E17: =SUM(M17,U17,AC17,AK17,AS17,BA17) -> 0 | F17: =SUM(D17:E17) -> 0 | G17: =SUM(O17,W17,AE17,AM17,AU17,BC17) -> 0 | H17: =SUM(P17,X17,AF17,AN17,AV17,BD17) -> 0 | I17: =SUM(G17:H17) -> 0 | L17: 0 | M17: 0 | N17: =SUM(L17,+M17) -> 0 | O17: 0 | P17: 0 | Q17: =SUM(O17,+P17) -> 0 | T17: 0 | U17: 0 | V17: 0 | W17: 0 | X17: 0 | Y17: 0 | AB17: 0 | AC17: 0 | AD17: 0 | AE17: 0 | AF17: 0 | AG17: =SUM(AE17,+AF17) -> 0 | AJ17: 0 | AK17: 0 | AL17: =SUM(AJ17,+AK17) -> 0 | AM17: 0 | AN17: 0 | AO17: =SUM(AM17,+AN17) -> 0 | AR17: 0 | AS17: 0 | AT17: =SUM(AR17,+AS17) -> 0 | AU17: 0 | AV17: 0 | AW17: =SUM(AU17,+AV17) -> 0 | AZ17: 0 | BA17: 0 | BB17: =SUM(AZ17,BA17) -> 0 | BC17: 0 | BD17: 0 | BE17: =SUM(BC17,+BD17) -> 0
A18: 熊本県 | B18: 43213 | C18: 宇城市 | D18: =SUM(L18,T18,AB18,AJ18,AR18,AZ18) -> 0 | E18: =SUM(M18,U18,AC18,AK18,AS18,BA18) -> 0 | F18: =SUM(D18:E18) -> 0 | G18: =SUM(O18,W18,AE18,AM18,AU18,BC18) -> 0 | H18: =SUM(P18,X18,AF18,AN18,AV18,BD18) -> 0 | I18: =SUM(G18:H18) -> 0 | L18: 0 | M18: 0 | N18: =SUM(L18,+M18) -> 0 | O18: 0 | P18: 0 | Q18: =SUM(O18,+P18) -> 0 | T18: 0 | U18: 0 | V18: 0 | W18: 0 | X18: 0 | Y18: 0 | AB18: 0 | AC18: 0 | AD18: 0 | AE18: 0 | AF18: 0 | AG18: =SUM(AE18,+AF18) -> 0 | AJ18: 0 | AK18: 0 | AL18: =SUM(AJ18,+AK18) -> 0 | AM18: 0 | AN18: 0 | AO18: =SUM(AM18,+AN18) -> 0 | AR18: 0 | AS18: 0 | AT18: =SUM(AR18,+AS18) -> 0 | AU18: 0 | AV18: 0 | AW18: =SUM(AU18,+AV18) -> 0 | AZ18: 0 | BA18: 0 | BB18: =SUM(AZ18,BA18) -> 0 | BC18: 0 | BD18: 0 | BE18: =SUM(BC18,+BD18) -> 0
A19: 熊本県 | B19: 43214 | C19: 阿蘇市 | D19: =SUM(L19,T19,AB19,AJ19,AR19,AZ19) -> 0 | E19: =SUM(M19,U19,AC19,AK19,AS19,BA19) -> 0 | F19: =SUM(D19:E19) -> 0 | G19: =SUM(O19,W19,AE19,AM19,AU19,BC19) -> 0 | H19: =SUM(P19,X19,AF19,AN19,AV19,BD19) -> 0 | I19: =SUM(G19:H19) -> 0 | L19: 0 | M19: 0 | N19: =SUM(L19,+M19) -> 0 | O19: 0 | P19: 0 | Q19: =SUM(O19,+P19) -> 0 | T19: 0 | U19: 0 | V19: 0 | W19: 0 | X19: 0 | Y19: 0 | AB19: 0 | AC19: 0 | AD19: 0 | AE19: 0 | AF19: 0 | AG19: =SUM(AE19,+AF19) -> 0 | AJ19: 0 | AK19: 0 | AL19: =SUM(AJ19,+AK19) -> 0 | AM19: 0 | AN19: 0 | AO19: =SUM(AM19,+AN19) -> 0 | AR19: 0 | AS19: 0 | AT19: =SUM(AR19,+AS19) -> 0 | AU19: 0 | AV19: 0 | AW19: =SUM(AU19,+AV19) -> 0 | AZ19: 0 | BA19: 0 | BB19: =SUM(AZ19,BA19) -> 0 | BC19: 0 | BD19: 0 | BE19: =SUM(BC19,+BD19) -> 0
A20: 熊本県 | B20: 43216 | C20: 合志市 | D20: =SUM(L20,T20,AB20,AJ20,AR20,AZ20) -> 0 | E20: =SUM(M20,U20,AC20,AK20,AS20,BA20) -> 0 | F20: =SUM(D20:E20) -> 0 | G20: =SUM(O20,W20,AE20,AM20,AU20,BC20) -> 0 | H20: =SUM(P20,X20,AF20,AN20,AV20,BD20) -> 0 | I20: =SUM(G20:H20) -> 0 | L20: 0 | M20: 0 | N20: =SUM(L20,+M20) -> 0 | O20: 0 | P20: 0 | Q20: =SUM(O20,+P20) -> 0 | T20: 0 | U20: 0 | V20: 0 | W20: 0 | X20: 0 | Y20: 0 | AB20: 0 | AC20: 0 | AD20: 0 | AE20: 0 | AF20: 0 | AG20: =SUM(AE20,+AF20) -> 0 | AJ20: 0 | AK20: 0 | AL20: =SUM(AJ20,+AK20) -> 0 | AM20: 0 | AN20: 0 | AO20: =SUM(AM20,+AN20) -> 0 | AR20: 0 | AS20: 0 | AT20: =SUM(AR20,+AS20) -> 0 | AU20: 0 | AV20: 0 | AW20: =SUM(AU20,+AV20) -> 0 | AZ20: 0 | BA20: 0 | BB20: =SUM(AZ20,BA20) -> 0 | BC20: 0 | BD20: 0 | BE20: =SUM(BC20,+BD20) -> 0
A21: 熊本県 | B21: 43348 | C21: 美里町 | D21: =SUM(L21,T21,AB21,AJ21,AR21,AZ21) -> 0 | E21: =SUM(M21,U21,AC21,AK21,AS21,BA21) -> 0 | F21: =SUM(D21:E21) -> 0 | G21: =SUM(O21,W21,AE21,AM21,AU21,BC21) -> 0 | H21: =SUM(P21,X21,AF21,AN21,AV21,BD21) -> 0 | I21: =SUM(G21:H21) -> 0 | L21: 0 | M21: 0 | N21: =SUM(L21,+M21) -> 0 | O21: 0 | P21: 0 | Q21: =SUM(O21,+P21) -> 0 | T21: 0 | U21: 0 | V21: 0 | W21: 0 | X21: 0 | Y21: 0 | AB21: 0 | AC21: 0 | AD21: 0 | AE21: 0 | AF21: 0 | AG21: =SUM(AE21,+AF21) -> 0 | AJ21: 0 | AK21: 0 | AL21: =SUM(AJ21,+AK21) -> 0 | AM21: 0 | AN21: 0 | AO21: =SUM(AM21,+AN21) -> 0 | AR21: 0 | AS21: 0 | AT21: =SUM(AR21,+AS21) -> 0 | AU21: 0 | AV21: 0 | AW21: =SUM(AU21,+AV21) -> 0 | AZ21: 0 | BA21: 0 | BB21: =SUM(AZ21,BA21) -> 0 | BC21: 0 | BD21: 0 | BE21: =SUM(BC21,+BD21) -> 0
A22: 熊本県 | B22: 43364 | C22: 玉東町 | D22: =SUM(L22,T22,AB22,AJ22,AR22,AZ22) -> 0 | E22: =SUM(M22,U22,AC22,AK22,AS22,BA22) -> 0 | F22: =SUM(D22:E22) -> 0 | G22: =SUM(O22,W22,AE22,AM22,AU22,BC22) -> 0 | H22: =SUM(P22,X22,AF22,AN22,AV22,BD22) -> 0 | I22: =SUM(G22:H22) -> 0 | L22: 0 | M22: 0 | N22: =SUM(L22,+M22) -> 0 | O22: 0 | P22: 0 | Q22: =SUM(O22,+P22) -> 0 | T22: 0 | U22: 0 | V22: 0 | W22: 0 | X22: 0 | Y22: 0 | AB22: 0 | AC22: 0 | AD22: 0 | AE22: 0 | AF22: 0 | AG22: =SUM(AE22,+AF22) -> 0 | AJ22: 0 | AK22: 0 | AL22: =SUM(AJ22,+AK22) -> 0 | AM22: 0 | AN22: 0 | AO22: =SUM(AM22,+AN22) -> 0 | AR22: 0 | AS22: 0 | AT22: =SUM(AR22,+AS22) -> 0 | AU22: 0 | AV22: 0 | AW22: =SUM(AU22,+AV22) -> 0 | AZ22: 0 | BA22: 0 | BB22: =SUM(AZ22,BA22) -> 0 | BC22: 0 | BD22: 0 | BE22: =SUM(BC22,+BD22) -> 0
A23: 熊本県 | B23: 43367 | C23: 南関町 | D23: =SUM(L23,T23,AB23,AJ23,AR23,AZ23) -> 0 | E23: =SUM(M23,U23,AC23,AK23,AS23,BA23) -> 0 | F23: =SUM(D23:E23) -> 0 | G23: =SUM(O23,W23,AE23,AM23,AU23,BC23) -> 0 | H23: =SUM(P23,X23,AF23,AN23,AV23,BD23) -> 0 | I23: =SUM(G23:H23) -> 0 | L23: 0 | M23: 0 | N23: =SUM(L23,+M23) -> 0 | O23: 0 | P23: 0 | Q23: =SUM(O23,+P23) -> 0 | T23: 0 | U23: 0 | V23: 0 | W23: 0 | X23: 0 | Y23: 0 | AB23: 0 | AC23: 0 | AD23: 0 | AE23: 0 | AF23: 0 | AG23: =SUM(AE23,+AF23) -> 0 | AJ23: 0 | AK23: 0 | AL23: =SUM(AJ23,+AK23) -> 0 | AM23: 0 | AN23: 0 | AO23: =SUM(AM23,+AN23) -> 0 | AR23: 0 | AS23: 0 | AT23: =SUM(AR23,+AS23) -> 0 | AU23: 0 | AV23: 0 | AW23: =SUM(AU23,+AV23) -> 0 | AZ23: 0 | BA23: 0 | BB23: =SUM(AZ23,BA23) -> 0 | BC23: 0 | BD23: 0 | BE23: =SUM(BC23,+BD23) -> 0
A24: 熊本県 | B24: 43368 | C24: 長洲町 | D24: =SUM(L24,T24,AB24,AJ24,AR24,AZ24) -> 0 | E24: =SUM(M24,U24,AC24,AK24,AS24,BA24) -> 0 | F24: =SUM(D24:E24) -> 0 | G24: =SUM(O24,W24,AE24,AM24,AU24,BC24) -> 0 | H24: =SUM(P24,X24,AF24,AN24,AV24,BD24) -> 0 | I24: =SUM(G24:H24) -> 0 | L24: 0 | M24: 0 | N24: =SUM(L24,+M24) -> 0 | O24: 0 | P24: 0 | Q24: =SUM(O24,+P24) -> 0 | T24: 0 | U24: 0 | V24: 0 | W24: 0 | X24: 0 | Y24: 0 | AB24: 0 | AC24: 0 | AD24: 0 | AE24: 0 | AF24: 0 | AG24: =SUM(AE24,+AF24) -> 0 | AJ24: 0 | AK24: 0 | AL24: =SUM(AJ24,+AK24) -> 0 | AM24: 0 | AN24: 0 | AO24: =SUM(AM24,+AN24) -> 0 | AR24: 0 | AS24: 0 | AT24: =SUM(AR24,+AS24) -> 0 | AU24: 0 | AV24: 0 | AW24: =SUM(AU24,+AV24) -> 0 | AZ24: 0 | BA24: 0 | BB24: =SUM(AZ24,BA24) -> 0 | BC24: 0 | BD24: 0 | BE24: =SUM(BC24,+BD24) -> 0
A25: 熊本県 | B25: 43369 | C25: 和水町 | D25: =SUM(L25,T25,AB25,AJ25,AR25,AZ25) -> 0 | E25: =SUM(M25,U25,AC25,AK25,AS25,BA25) -> 0 | F25: =SUM(D25:E25) -> 0 | G25: =SUM(O25,W25,AE25,AM25,AU25,BC25) -> 0 | H25: =SUM(P25,X25,AF25,AN25,AV25,BD25) -> 0 | I25: =SUM(G25:H25) -> 0 | L25: 0 | M25: 0 | N25: =SUM(L25,+M25) -> 0 | O25: 0 | P25: 0 | Q25: =SUM(O25,+P25) -> 0 | T25: 0 | U25: 0 | V25: 0 | W25: 0 | X25: 0 | Y25: 0 | AB25: 0 | AC25: 0 | AD25: 0 | AE25: 0 | AF25: 0 | AG25: =SUM(AE25,+AF25) -> 0 | AJ25: 0 | AK25: 0 | AL25: =SUM(AJ25,+AK25) -> 0 | AM25: 0 | AN25: 0 | AO25: =SUM(AM25,+AN25) -> 0 | AR25: 0 | AS25: 0 | AT25: =SUM(AR25,+AS25) -> 0 | AU25: 0 | AV25: 0 | AW25: =SUM(AU25,+AV25) -> 0 | AZ25: 0 | BA25: 0 | BB25: =SUM(AZ25,BA25) -> 0 | BC25: 0 | BD25: 0 | BE25: =SUM(BC25,+BD25) -> 0
A26: 熊本県 | B26: 43403 | C26: 大津町 | D26: =SUM(L26,T26,AB26,AJ26,AR26,AZ26) -> 0 | E26: =SUM(M26,U26,AC26,AK26,AS26,BA26) -> 0 | F26: =SUM(D26:E26) -> 0 | G26: =SUM(O26,W26,AE26,AM26,AU26,BC26) -> 0 | H26: =SUM(P26,X26,AF26,AN26,AV26,BD26) -> 0 | I26: =SUM(G26:H26) -> 0 | L26: 0 | M26: 0 | N26: =SUM(L26,+M26) -> 0 | O26: 0 | P26: 0 | Q26: =SUM(O26,+P26) -> 0 | T26: 0 | U26: 0 | V26: 0 | W26: 0 | X26: 0 | Y26: 0 | AB26: 0 | AC26: 0 | AD26: 0 | AE26: 0 | AF26: 0 | AG26: =SUM(AE26,+AF26) -> 0 | AJ26: 0 | AK26: 0 | AL26: =SUM(AJ26,+AK26) -> 0 | AM26: 0 | AN26: 0 | AO26: =SUM(AM26,+AN26) -> 0 | AR26: 0 | AS26: 0 | AT26: =SUM(AR26,+AS26) -> 0 | AU26: 0 | AV26: 0 | AW26: =SUM(AU26,+AV26) -> 0 | AZ26: 0 | BA26: 0 | BB26: =SUM(AZ26,BA26) -> 0 | BC26: 0 | BD26: 0 | BE26: =SUM(BC26,+BD26) -> 0
A27: 熊本県 | B27: 43404 | C27: 菊陽町 | D27: =SUM(L27,T27,AB27,AJ27,AR27,AZ27) -> 0 | E27: =SUM(M27,U27,AC27,AK27,AS27,BA27) -> 0 | F27: =SUM(D27:E27) -> 0 | G27: =SUM(O27,W27,AE27,AM27,AU27,BC27) -> 0 | H27: =SUM(P27,X27,AF27,AN27,AV27,BD27) -> 0 | I27: =SUM(G27:H27) -> 0 | L27: 0 | M27: 0 | N27: =SUM(L27,+M27) -> 0 | O27: 0 | P27: 0 | Q27: =SUM(O27,+P27) -> 0 | T27: 0 | U27: 0 | V27: 0 | W27: 0 | X27: 0 | Y27: 0 | AB27: 0 | AC27: 0 | AD27: 0 | AE27: 0 | AF27: 0 | AG27: =SUM(AE27,+AF27) -> 0 | AJ27: 0 | AK27: 0 | AL27: =SUM(AJ27,+AK27) -> 0 | AM27: 0 | AN27: 0 | AO27: =SUM(AM27,+AN27) -> 0 | AR27: 0 | AS27: 0 | AT27: =SUM(AR27,+AS27) -> 0 | AU27: 0 | AV27: 0 | AW27: =SUM(AU27,+AV27) -> 0 | AZ27: 0 | BA27: 0 | BB27: =SUM(AZ27,BA27) -> 0 | BC27: 0 | BD27: 0 | BE27: =SUM(BC27,+BD27) -> 0
A28: 熊本県 | B28: 43423 | C28: 南小国町 | D28: =SUM(L28,T28,AB28,AJ28,AR28,AZ28) -> 0 | E28: =SUM(M28,U28,AC28,AK28,AS28,BA28) -> 0 | F28: =SUM(D28:E28) -> 0 | G28: =SUM(O28,W28,AE28,AM28,AU28,BC28) -> 0 | H28: =SUM(P28,X28,AF28,AN28,AV28,BD28) -> 0 | I28: =SUM(G28:H28) -> 0 | L28: 0 | M28: 0 | N28: =SUM(L28,+M28) -> 0 | O28: 0 | P28: 0 | Q28: =SUM(O28,+P28) -> 0 | T28: 0 | U28: 0 | V28: 0 | W28: 0 | X28: 0 | Y28: 0 | AB28: 0 | AC28: 0 | AD28: 0 | AE28: 0 | AF28: 0 | AG28: =SUM(AE28,+AF28) -> 0 | AJ28: 0 | AK28: 0 | AL28: =SUM(AJ28,+AK28) -> 0 | AM28: 0 | AN28: 0 | AO28: =SUM(AM28,+AN28) -> 0 | AR28: 0 | AS28: 0 | AT28: =SUM(AR28,+AS28) -> 0 | AU28: 0 | AV28: 0 | AW28: =SUM(AU28,+AV28) -> 0 | AZ28: 0 | BA28: 0 | BB28: =SUM(AZ28,BA28) -> 0 | BC28: 0 | BD28: 0 | BE28: =SUM(BC28,+BD28) -> 0
A29: 熊本県 | B29: 43424 | C29: 小国町 | D29: =SUM(L29,T29,AB29,AJ29,AR29,AZ29) -> 0 | E29: =SUM(M29,U29,AC29,AK29,AS29,BA29) -> 0 | F29: =SUM(D29:E29) -> 0 | G29: =SUM(O29,W29,AE29,AM29,AU29,BC29) -> 0 | H29: =SUM(P29,X29,AF29,AN29,AV29,BD29) -> 0 | I29: =SUM(G29:H29) -> 0 | L29: 0 | M29: 0 | N29: =SUM(L29,+M29) -> 0 | O29: 0 | P29: 0 | Q29: =SUM(O29,+P29) -> 0 | T29: 0 | U29: 0 | V29: 0 | W29: 0 | X29: 0 | Y29: 0 | AB29: 0 | AC29: 0 | AD29: 0 | AE29: 0 | AF29: 0 | AG29: =SUM(AE29,+AF29) -> 0 | AJ29: 0 | AK29: 0 | AL29: =SUM(AJ29,+AK29) -> 0 | AM29: 0 | AN29: 0 | AO29: =SUM(AM29,+AN29) -> 0 | AR29: 0 | AS29: 0 | AT29: =SUM(AR29,+AS29) -> 0 | AU29: 0 | AV29: 0 | AW29: =SUM(AU29,+AV29) -> 0 | AZ29: 0 | BA29: 0 | BB29: =SUM(AZ29,BA29) -> 0 | BC29: 0 | BD29: 0 | BE29: =SUM(BC29,+BD29) -> 0
A30: 熊本県 | B30: 43425 | C30: 産山村 | D30: =SUM(L30,T30,AB30,AJ30,AR30,AZ30) -> 0 | E30: =SUM(M30,U30,AC30,AK30,AS30,BA30) -> 0 | F30: =SUM(D30:E30) -> 0 | G30: =SUM(O30,W30,AE30,AM30,AU30,BC30) -> 0 | H30: =SUM(P30,X30,AF30,AN30,AV30,BD30) -> 0 | I30: =SUM(G30:H30) -> 0 | L30: 0 | M30: 0 | N30: =SUM(L30,+M30) -> 0 | O30: 0 | P30: 0 | Q30: =SUM(O30,+P30) -> 0 | T30: 0 | U30: 0 | V30: 0 | W30: 0 | X30: 0 | Y30: 0 | AB30: 0 | AC30: 0 | AD30: 0 | AE30: 0 | AF30: 0 | AG30: =SUM(AE30,+AF30) -> 0 | AJ30: 0 | AK30: 0 | AL30: =SUM(AJ30,+AK30) -> 0 | AM30: 0 | AN30: 0 | AO30: =SUM(AM30,+AN30) -> 0 | AR30: 0 | AS30: 0 | AT30: =SUM(AR30,+AS30) -> 0 | AU30: 0 | AV30: 0 | AW30: =SUM(AU30,+AV30) -> 0 | AZ30: 0 | BA30: 0 | BB30: =SUM(AZ30,BA30) -> 0 | BC30: 0 | BD30: 0 | BE30: =SUM(BC30,+BD30) -> 0
A31: 熊本県 | B31: 43428 | C31: 高森町 | D31: =SUM(L31,T31,AB31,AJ31,AR31,AZ31) -> 0 | E31: =SUM(M31,U31,AC31,AK31,AS31,BA31) -> 0 | F31: =SUM(D31:E31) -> 0 | G31: =SUM(O31,W31,AE31,AM31,AU31,BC31) -> 0 | H31: =SUM(P31,X31,AF31,AN31,AV31,BD31) -> 0 | I31: =SUM(G31:H31) -> 0 | L31: 0 | M31: 0 | N31: =SUM(L31,+M31) -> 0 | O31: 0 | P31: 0 | Q31: =SUM(O31,+P31) -> 0 | T31: 0 | U31: 0 | V31: 0 | W31: 0 | X31: 0 | Y31: 0 | AB31: 0 | AC31: 0 | AD31: 0 | AE31: 0 | AF31: 0 | AG31: =SUM(AE31,+AF31) -> 0 | AJ31: 0 | AK31: 0 | AL31: =SUM(AJ31,+AK31) -> 0 | AM31: 0 | AN31: 0 | AO31: =SUM(AM31,+AN31) -> 0 | AR31: 0 | AS31: 0 | AT31: =SUM(AR31,+AS31) -> 0 | AU31: 0 | AV31: 0 | AW31: =SUM(AU31,+AV31) -> 0 | AZ31: 0 | BA31: 0 | BB31: =SUM(AZ31,BA31) -> 0 | BC31: 0 | BD31: 0 | BE31: =SUM(BC31,+BD31) -> 0
A32: 熊本県 | B32: 43432 | C32: 西原村 | D32: =SUM(L32,T32,AB32,AJ32,AR32,AZ32) -> 0 | E32: =SUM(M32,U32,AC32,AK32,AS32,BA32) -> 0 | F32: =SUM(D32:E32) -> 0 | G32: =SUM(O32,W32,AE32,AM32,AU32,BC32) -> 0 | H32: =SUM(P32,X32,AF32,AN32,AV32,BD32) -> 0 | I32: =SUM(G32:H32) -> 0 | L32: 0 | M32: 0 | N32: =SUM(L32,+M32) -> 0 | O32: 0 | P32: 0 | Q32: =SUM(O32,+P32) -> 0 | T32: 0 | U32: 0 | V32: 0 | W32: 0 | X32: 0 | Y32: 0 | AB32: 0 | AC32: 0 | AD32: 0 | AE32: 0 | AF32: 0 | AG32: =SUM(AE32,+AF32) -> 0 | AJ32: 0 | AK32: 0 | AL32: =SUM(AJ32,+AK32) -> 0 | AM32: 0 | AN32: 0 | AO32: =SUM(AM32,+AN32) -> 0 | AR32: 0 | AS32: 0 | AT32: =SUM(AR32,+AS32) -> 0 | AU32: 0 | AV32: 0 | AW32: =SUM(AU32,+AV32) -> 0 | AZ32: 0 | BA32: 0 | BB32: =SUM(AZ32,BA32) -> 0 | BC32: 0 | BD32: 0 | BE32: =SUM(BC32,+BD32) -> 0
A33: 熊本県 | B33: 43433 | C33: 南阿蘇村 | D33: =SUM(L33,T33,AB33,AJ33,AR33,AZ33) -> 0 | E33: =SUM(M33,U33,AC33,AK33,AS33,BA33) -> 0 | F33: =SUM(D33:E33) -> 0 | G33: =SUM(O33,W33,AE33,AM33,AU33,BC33) -> 0 | H33: =SUM(P33,X33,AF33,AN33,AV33,BD33) -> 0 | I33: =SUM(G33:H33) -> 0 | L33: 0 | M33: 0 | N33: =SUM(L33,+M33) -> 0 | O33: 0 | P33: 0 | Q33: =SUM(O33,+P33) -> 0 | T33: 0 | U33: 0 | V33: 0 | W33: 0 | X33: 0 | Y33: 0 | AB33: 0 | AC33: 0 | AD33: 0 | AE33: 0 | AF33: 0 | AG33: =SUM(AE33,+AF33) -> 0 | AJ33: 0 | AK33: 0 | AL33: =SUM(AJ33,+AK33) -> 0 | AM33: 0 | AN33: 0 | AO33: =SUM(AM33,+AN33) -> 0 | AR33: 0 | AS33: 0 | AT33: =SUM(AR33,+AS33) -> 0 | AU33: 0 | AV33: 0 | AW33: =SUM(AU33,+AV33) -> 0 | AZ33: 0 | BA33: 0 | BB33: =SUM(AZ33,BA33) -> 0 | BC33: 0 | BD33: 0 | BE33: =SUM(BC33,+BD33) -> 0
A34: 熊本県 | B34: 43441 | C34: 御船町 | D34: =SUM(L34,T34,AB34,AJ34,AR34,AZ34) -> 0 | E34: =SUM(M34,U34,AC34,AK34,AS34,BA34) -> 0 | F34: =SUM(D34:E34) -> 0 | G34: =SUM(O34,W34,AE34,AM34,AU34,BC34) -> 0 | H34: =SUM(P34,X34,AF34,AN34,AV34,BD34) -> 0 | I34: =SUM(G34:H34) -> 0 | L34: 0 | M34: 0 | N34: =SUM(L34,+M34) -> 0 | O34: 0 | P34: 0 | Q34: =SUM(O34,+P34) -> 0 | T34: 0 | U34: 0 | V34: 0 | W34: 0 | X34: 0 | Y34: 0 | AB34: 0 | AC34: 0 | AD34: 0 | AE34: 0 | AF34: 0 | AG34: =SUM(AE34,+AF34) -> 0 | AJ34: 0 | AK34: 0 | AL34: =SUM(AJ34,+AK34) -> 0 | AM34: 0 | AN34: 0 | AO34: =SUM(AM34,+AN34) -> 0 | AR34: 0 | AS34: 0 | AT34: =SUM(AR34,+AS34) -> 0 | AU34: 0 | AV34: 0 | AW34: =SUM(AU34,+AV34) -> 0 | AZ34: 0 | BA34: 0 | BB34: =SUM(AZ34,BA34) -> 0 | BC34: 0 | BD34: 0 | BE34: =SUM(BC34,+BD34) -> 0
A35: 熊本県 | B35: 43442 | C35: 嘉島町 | D35: =SUM(L35,T35,AB35,AJ35,AR35,AZ35) -> 0 | E35: =SUM(M35,U35,AC35,AK35,AS35,BA35) -> 0 | F35: =SUM(D35:E35) -> 0 | G35: =SUM(O35,W35,AE35,AM35,AU35,BC35) -> 0 | H35: =SUM(P35,X35,AF35,AN35,AV35,BD35) -> 0 | I35: =SUM(G35:H35) -> 0 | L35: 0 | M35: 0 | N35: =SUM(L35,+M35) -> 0 | O35: 0 | P35: 0 | Q35: =SUM(O35,+P35) -> 0 | T35: 0 | U35: 0 | V35: 0 | W35: 0 | X35: 0 | Y35: 0 | AB35: 0 | AC35: 0 | AD35: 0 | AE35: 0 | AF35: 0 | AG35: =SUM(AE35,+AF35) -> 0 | AJ35: 0 | AK35: 0 | AL35: =SUM(AJ35,+AK35) -> 0 | AM35: 0 | AN35: 0 | AO35: =SUM(AM35,+AN35) -> 0 | AR35: 0 | AS35: 0 | AT35: =SUM(AR35,+AS35) -> 0 | AU35: 0 | AV35: 0 | AW35: =SUM(AU35,+AV35) -> 0 | AZ35: 0 | BA35: 0 | BB35: =SUM(AZ35,BA35) -> 0 | BC35: 0 | BD35: 0 | BE35: =SUM(BC35,+BD35) -> 0
A36: 熊本県 | B36: 43443 | C36: 益城町 | D36: =SUM(L36,T36,AB36,AJ36,AR36,AZ36) -> 0 | E36: =SUM(M36,U36,AC36,AK36,AS36,BA36) -> 0 | F36: =SUM(D36:E36) -> 0 | G36: =SUM(O36,W36,AE36,AM36,AU36,BC36) -> 0 | H36: =SUM(P36,X36,AF36,AN36,AV36,BD36) -> 0 | I36: =SUM(G36:H36) -> 0 | L36: 0 | M36: 0 | N36: =SUM(L36,+M36) -> 0 | O36: 0 | P36: 0 | Q36: =SUM(O36,+P36) -> 0 | T36: 0 | U36: 0 | V36: 0 | W36: 0 | X36: 0 | Y36: 0 | AB36: 0 | AC36: 0 | AD36: 0 | AE36: 0 | AF36: 0 | AG36: =SUM(AE36,+AF36) -> 0 | AJ36: 0 | AK36: 0 | AL36: =SUM(AJ36,+AK36) -> 0 | AM36: 0 | AN36: 0 | AO36: =SUM(AM36,+AN36) -> 0 | AR36: 0 | AS36: 0 | AT36: =SUM(AR36,+AS36) -> 0 | AU36: 0 | AV36: 0 | AW36: =SUM(AU36,+AV36) -> 0 | AZ36: 0 | BA36: 0 | BB36: =SUM(AZ36,BA36) -> 0 | BC36: 0 | BD36: 0 | BE36: =SUM(BC36,+BD36) -> 0
A37: 熊本県 | B37: 43447 | C37: 山都町 | D37: =SUM(L37,T37,AB37,AJ37,AR37,AZ37) -> 0 | E37: =SUM(M37,U37,AC37,AK37,AS37,BA37) -> 0 | F37: =SUM(D37:E37) -> 0 | G37: =SUM(O37,W37,AE37,AM37,AU37,BC37) -> 0 | H37: =SUM(P37,X37,AF37,AN37,AV37,BD37) -> 0 | I37: =SUM(G37:H37) -> 0 | L37: 0 | M37: 0 | N37: =SUM(L37,+M37) -> 0 | O37: 0 | P37: 0 | Q37: =SUM(O37,+P37) -> 0 | T37: 0 | U37: 0 | V37: 0 | W37: 0 | X37: 0 | Y37: 0 | AB37: 0 | AC37: 0 | AD37: 0 | AE37: 0 | AF37: 0 | AG37: =SUM(AE37,+AF37) -> 0 | AJ37: 0 | AK37: 0 | AL37: =SUM(AJ37,+AK37) -> 0 | AM37: 0 | AN37: 0 | AO37: =SUM(AM37,+AN37) -> 0 | AR37: 0 | AS37: 0 | AT37: =SUM(AR37,+AS37) -> 0 | AU37: 0 | AV37: 0 | AW37: =SUM(AU37,+AV37) -> 0 | AZ37: 0 | BA37: 0 | BB37: =SUM(AZ37,BA37) -> 0 | BC37: 0 | BD37: 0 | BE37: =SUM(BC37,+BD37) -> 0
A38: 熊本県 | B38: 43468 | C38: 氷川町 | D38: =SUM(L38,T38,AB38,AJ38,AR38,AZ38) -> 0 | E38: =SUM(M38,U38,AC38,AK38,AS38,BA38) -> 0 | F38: =SUM(D38:E38) -> 0 | G38: =SUM(O38,W38,AE38,AM38,AU38,BC38) -> 0 | H38: =SUM(P38,X38,AF38,AN38,AV38,BD38) -> 0 | I38: =SUM(G38:H38) -> 0 | L38: 0 | M38: 0 | N38: =SUM(L38,+M38) -> 0 | O38: 0 | P38: 0 | Q38: =SUM(O38,+P38) -> 0 | T38: 0 | U38: 0 | V38: 0 | W38: 0 | X38: 0 | Y38: 0 | AB38: 0 | AC38: 0 | AD38: 0 | AE38: 0 | AF38: 0 | AG38: =SUM(AE38,+AF38) -> 0 | AJ38: 0 | AK38: 0 | AL38: =SUM(AJ38,+AK38) -> 0 | AM38: 0 | AN38: 0 | AO38: =SUM(AM38,+AN38) -> 0 | AR38: 0 | AS38: 0 | AT38: =SUM(AR38,+AS38) -> 0 | AU38: 0 | AV38: 0 | AW38: =SUM(AU38,+AV38) -> 0 | AZ38: 0 | BA38: 0 | BB38: =SUM(AZ38,BA38) -> 0 | BC38: 0 | BD38: 0 | BE38: =SUM(BC38,+BD38) -> 0
A39: 熊本県 | B39: 43482 | C39: 芦北町 | D39: =SUM(L39,T39,AB39,AJ39,AR39,AZ39) -> 0 | E39: =SUM(M39,U39,AC39,AK39,AS39,BA39) -> 0 | F39: =SUM(D39:E39) -> 0 | G39: =SUM(O39,W39,AE39,AM39,AU39,BC39) -> 0 | H39: =SUM(P39,X39,AF39,AN39,AV39,BD39) -> 0 | I39: =SUM(G39:H39) -> 0 | L39: 0 | M39: 0 | N39: =SUM(L39,+M39) -> 0 | O39: 0 | P39: 0 | Q39: =SUM(O39,+P39) -> 0 | T39: 0 | U39: 0 | V39: 0 | W39: 0 | X39: 0 | Y39: 0 | AB39: 0 | AC39: 0 | AD39: 0 | AE39: 0 | AF39: 0 | AG39: =SUM(AE39,+AF39) -> 0 | AJ39: 0 | AK39: 0 | AL39: =SUM(AJ39,+AK39) -> 0 | AM39: 0 | AN39: 0 | AO39: =SUM(AM39,+AN39) -> 0 | AR39: 0 | AS39: 0 | AT39: =SUM(AR39,+AS39) -> 0 | AU39: 0 | AV39: 0 | AW39: =SUM(AU39,+AV39) -> 0 | AZ39: 0 | BA39: 0 | BB39: =SUM(AZ39,BA39) -> 0 | BC39: 0 | BD39: 0 | BE39: =SUM(BC39,+BD39) -> 0
A40: 熊本県 | B40: 43501 | C40: 錦町 | D40: =SUM(L40,T40,AB40,AJ40,AR40,AZ40) -> 0 | E40: =SUM(M40,U40,AC40,AK40,AS40,BA40) -> 0 | F40: =SUM(D40:E40) -> 0 | G40: =SUM(O40,W40,AE40,AM40,AU40,BC40) -> 0 | H40: =SUM(P40,X40,AF40,AN40,AV40,BD40) -> 0 | I40: =SUM(G40:H40) -> 0 | L40: 0 | M40: 0 | N40: =SUM(L40,+M40) -> 0 | O40: 0 | P40: 0 | Q40: =SUM(O40,+P40) -> 0 | T40: 0 | U40: 0 | V40: 0 | W40: 0 | X40: 0 | Y40: 0 | AB40: 0 | AC40: 0 | AD40: 0 | AE40: 0 | AF40: 0 | AG40: =SUM(AE40,+AF40) -> 0 | AJ40: 0 | AK40: 0 | AL40: =SUM(AJ40,+AK40) -> 0 | AM40: 0 | AN40: 0 | AO40: =SUM(AM40,+AN40) -> 0 | AR40: 0 | AS40: 0 | AT40: =SUM(AR40,+AS40) -> 0 | AU40: 0 | AV40: 0 | AW40: =SUM(AU40,+AV40) -> 0 | AZ40: 0 | BA40: 0 | BB40: =SUM(AZ40,BA40) -> 0 | BC40: 0 | BD40: 0 | BE40: =SUM(BC40,+BD40) -> 0
A41: 熊本県 | B41: 43505 | C41: 多良木町 | D41: =SUM(L41,T41,AB41,AJ41,AR41,AZ41) -> 0 | E41: =SUM(M41,U41,AC41,AK41,AS41,BA41) -> 0 | F41: =SUM(D41:E41) -> 0 | G41: =SUM(O41,W41,AE41,AM41,AU41,BC41) -> 0 | H41: =SUM(P41,X41,AF41,AN41,AV41,BD41) -> 0 | I41: =SUM(G41:H41) -> 0 | L41: 0 | M41: 0 | N41: =SUM(L41,+M41) -> 0 | O41: 0 | P41: 0 | Q41: =SUM(O41,+P41) -> 0 | T41: 0 | U41: 0 | V41: 0 | W41: 0 | X41: 0 | Y41: 0 | AB41: 0 | AC41: 0 | AD41: 0 | AE41: 0 | AF41: 0 | AG41: =SUM(AE41,+AF41) -> 0 | AJ41: 0 | AK41: 0 | AL41: =SUM(AJ41,+AK41) -> 0 | AM41: 0 | AN41: 0 | AO41: =SUM(AM41,+AN41) -> 0 | AR41: 0 | AS41: 0 | AT41: =SUM(AR41,+AS41) -> 0 | AU41: 0 | AV41: 0 | AW41: =SUM(AU41,+AV41) -> 0 | AZ41: 0 | BA41: 0 | BB41: =SUM(AZ41,BA41) -> 0 | BC41: 0 | BD41: 0 | BE41: =SUM(BC41,+BD41) -> 0
A42: 熊本県 | B42: 43506 | C42: 湯前町 | D42: =SUM(L42,T42,AB42,AJ42,AR42,AZ42) -> 0 | E42: =SUM(M42,U42,AC42,AK42,AS42,BA42) -> 0 | F42: =SUM(D42:E42) -> 0 | G42: =SUM(O42,W42,AE42,AM42,AU42,BC42) -> 0 | H42: =SUM(P42,X42,AF42,AN42,AV42,BD42) -> 0 | I42: =SUM(G42:H42) -> 0 | L42: 0 | M42: 0 | N42: =SUM(L42,+M42) -> 0 | O42: 0 | P42: 0 | Q42: =SUM(O42,+P42) -> 0 | T42: 0 | U42: 0 | V42: 0 | W42: 0 | X42: 0 | Y42: 0 | AB42: 0 | AC42: 0 | AD42: 0 | AE42: 0 | AF42: 0 | AG42: =SUM(AE42,+AF42) -> 0 | AJ42: 0 | AK42: 0 | AL42: =SUM(AJ42,+AK42) -> 0 | AM42: 0 | AN42: 0 | AO42: =SUM(AM42,+AN42) -> 0 | AR42: 0 | AS42: 0 | AT42: =SUM(AR42,+AS42) -> 0 | AU42: 0 | AV42: 0 | AW42: =SUM(AU42,+AV42) -> 0 | AZ42: 0 | BA42: 0 | BB42: =SUM(AZ42,BA42) -> 0 | BC42: 0 | BD42: 0 | BE42: =SUM(BC42,+BD42) -> 0
A43: 熊本県 | B43: 43507 | C43: 水上村 | D43: =SUM(L43,T43,AB43,AJ43,AR43,AZ43) -> 0 | E43: =SUM(M43,U43,AC43,AK43,AS43,BA43) -> 0 | F43: =SUM(D43:E43) -> 0 | G43: =SUM(O43,W43,AE43,AM43,AU43,BC43) -> 0 | H43: =SUM(P43,X43,AF43,AN43,AV43,BD43) -> 0 | I43: =SUM(G43:H43) -> 0 | L43: 0 | M43: 0 | N43: =SUM(L43,+M43) -> 0 | O43: 0 | P43: 0 | Q43: =SUM(O43,+P43) -> 0 | T43: 0 | U43: 0 | V43: 0 | W43: 0 | X43: 0 | Y43: 0 | AB43: 0 | AC43: 0 | AD43: 0 | AE43: 0 | AF43: 0 | AG43: =SUM(AE43,+AF43) -> 0 | AJ43: 0 | AK43: 0 | AL43: =SUM(AJ43,+AK43) -> 0 | AM43: 0 | AN43: 0 | AO43: =SUM(AM43,+AN43) -> 0 | AR43: 0 | AS43: 0 | AT43: =SUM(AR43,+AS43) -> 0 | AU43: 0 | AV43: 0 | AW43: =SUM(AU43,+AV43) -> 0 | AZ43: 0 | BA43: 0 | BB43: =SUM(AZ43,BA43) -> 0 | BC43: 0 | BD43: 0 | BE43: =SUM(BC43,+BD43) -> 0
A44: 熊本県 | B44: 43510 | C44: 相良村 | D44: =SUM(L44,T44,AB44,AJ44,AR44,AZ44) -> 0 | E44: =SUM(M44,U44,AC44,AK44,AS44,BA44) -> 0 | F44: =SUM(D44:E44) -> 0 | G44: =SUM(O44,W44,AE44,AM44,AU44,BC44) -> 0 | H44: =SUM(P44,X44,AF44,AN44,AV44,BD44) -> 0 | I44: =SUM(G44:H44) -> 0 | L44: 0 | M44: 0 | N44: =SUM(L44,+M44) -> 0 | O44: 0 | P44: 0 | Q44: =SUM(O44,+P44) -> 0 | T44: 0 | U44: 0 | V44: 0 | W44: 0 | X44: 0 | Y44: 0 | AB44: 0 | AC44: 0 | AD44: 0 | AE44: 0 | AF44: 0 | AG44: =SUM(AE44,+AF44) -> 0 | AJ44: 0 | AK44: 0 | AL44: =SUM(AJ44,+AK44) -> 0 | AM44: 0 | AN44: 0 | AO44: =SUM(AM44,+AN44) -> 0 | AR44: 0 | AS44: 0 | AT44: =SUM(AR44,+AS44) -> 0 | AU44: 0 | AV44: 0 | AW44: =SUM(AU44,+AV44) -> 0 | AZ44: 0 | BA44: 0 | BB44: =SUM(AZ44,BA44) -> 0 | BC44: 0 | BD44: 0 | BE44: =SUM(BC44,+BD44) -> 0
A45: 熊本県 | B45: 43511 | C45: 五木村 | D45: =SUM(L45,T45,AB45,AJ45,AR45,AZ45) -> 0 | E45: =SUM(M45,U45,AC45,AK45,AS45,BA45) -> 0 | F45: =SUM(D45:E45) -> 0 | G45: =SUM(O45,W45,AE45,AM45,AU45,BC45) -> 0 | H45: =SUM(P45,X45,AF45,AN45,AV45,BD45) -> 0 | I45: =SUM(G45:H45) -> 0 | L45: 0 | M45: 0 | N45: =SUM(L45,+M45) -> 0 | O45: 0 | P45: 0 | Q45: =SUM(O45,+P45) -> 0 | T45: 0 | U45: 0 | V45: 0 | W45: 0 | X45: 0 | Y45: 0 | AB45: 0 | AC45: 0 | AD45: 0 | AE45: 0 | AF45: 0 | AG45: =SUM(AE45,+AF45) -> 0 | AJ45: 0 | AK45: 0 | AL45: =SUM(AJ45,+AK45) -> 0 | AM45: 0 | AN45: 0 | AO45: =SUM(AM45,+AN45) -> 0 | AR45: 0 | AS45: 0 | AT45: =SUM(AR45,+AS45) -> 0 | AU45: 0 | AV45: 0 | AW45: =SUM(AU45,+AV45) -> 0 | AZ45: 0 | BA45: 0 | BB45: =SUM(AZ45,BA45) -> 0 | BC45: 0 | BD45: 0 | BE45: =SUM(BC45,+BD45) -> 0
A46: 熊本県 | B46: 43512 | C46: 山江村 | D46: =SUM(L46,T46,AB46,AJ46,AR46,AZ46) -> 0 | E46: =SUM(M46,U46,AC46,AK46,AS46,BA46) -> 0 | F46: =SUM(D46:E46) -> 0 | G46: =SUM(O46,W46,AE46,AM46,AU46,BC46) -> 0 | H46: =SUM(P46,X46,AF46,AN46,AV46,BD46) -> 0 | I46: =SUM(G46:H46) -> 0 | L46: 0 | M46: 0 | N46: =SUM(L46,+M46) -> 0 | O46: 0 | P46: 0 | Q46: =SUM(O46,+P46) -> 0 | T46: 0 | U46: 0 | V46: 0 | W46: 0 | X46: 0 | Y46: 0 | AB46: 0 | AC46: 0 | AD46: 0 | AE46: 0 | AF46: 0 | AG46: =SUM(AE46,+AF46) -> 0 | AJ46: 0 | AK46: 0 | AL46: =SUM(AJ46,+AK46) -> 0 | AM46: 0 | AN46: 0 | AO46: =SUM(AM46,+AN46) -> 0 | AR46: 0 | AS46: 0 | AT46: =SUM(AR46,+AS46) -> 0 | AU46: 0 | AV46: 0 | AW46: =SUM(AU46,+AV46) -> 0 | AZ46: 0 | BA46: 0 | BB46: =SUM(AZ46,BA46) -> 0 | BC46: 0 | BD46: 0 | BE46: =SUM(BC46,+BD46) -> 0
A47: 熊本県 | B47: 43513 | C47: 球磨村 | D47: =SUM(L47,T47,AB47,AJ47,AR47,AZ47) -> 0 | E47: =SUM(M47,U47,AC47,AK47,AS47,BA47) -> 0 | F47: =SUM(D47:E47) -> 0 | G47: =SUM(O47,W47,AE47,AM47,AU47,BC47) -> 0 | H47: =SUM(P47,X47,AF47,AN47,AV47,BD47) -> 0 | I47: =SUM(G47:H47) -> 0 | L47: 0 | M47: 0 | N47: =SUM(L47,+M47) -> 0 | O47: 0 | P47: 0 | Q47: =SUM(O47,+P47) -> 0 | T47: 0 | U47: 0 | V47: 0 | W47: 0 | X47: 0 | Y47: 0 | AB47: 0 | AC47: 0 | AD47: 0 | AE47: 0 | AF47: 0 | AG47: =SUM(AE47,+AF47) -> 0 | AJ47: 0 | AK47: 0 | AL47: =SUM(AJ47,+AK47) -> 0 | AM47: 0 | AN47: 0 | AO47: =SUM(AM47,+AN47) -> 0 | AR47: 0 | AS47: 0 | AT47: =SUM(AR47,+AS47) -> 0 | AU47: 0 | AV47: 0 | AW47: =SUM(AU47,+AV47) -> 0 | AZ47: 0 | BA47: 0 | BB47: =SUM(AZ47,BA47) -> 0 | BC47: 0 | BD47: 0 | BE47: =SUM(BC47,+BD47) -> 0
A48: 熊本県 | B48: 43531 | C48: 苓北町 | D48: =SUM(L48,T48,AB48,AJ48,AR48,AZ48) -> 0 | E48: =SUM(M48,U48,AC48,AK48,AS48,BA48) -> 0 | F48: =SUM(D48:E48) -> 0 | G48: =SUM(O48,W48,AE48,AM48,AU48,BC48) -> 0 | H48: =SUM(P48,X48,AF48,AN48,AV48,BD48) -> 0 | I48: =SUM(G48:H48) -> 0 | L48: 0 | M48: 0 | N48: =SUM(L48,+M48) -> 0 | O48: 0 | P48: 0 | Q48: =SUM(O48,+P48) -> 0 | T48: 0 | U48: 0 | V48: 0 | W48: 0 | X48: 0 | Y48: 0 | AB48: 0 | AC48: 0 | AD48: 0 | AE48: 0 | AF48: 0 | AG48: =SUM(AE48,+AF48) -> 0 | AJ48: 0 | AK48: 0 | AL48: =SUM(AJ48,+AK48) -> 0 | AM48: 0 | AN48: 0 | AO48: =SUM(AM48,+AN48) -> 0 | AR48: 0 | AS48: 0 | AT48: =SUM(AR48,+AS48) -> 0 | AU48: 0 | AV48: 0 | AW48: =SUM(AU48,+AV48) -> 0 | AZ48: 0 | BA48: 0 | BB48: =SUM(AZ48,BA48) -> 0 | BC48: 0 | BD48: 0 | BE48: =SUM(BC48,+BD48) -> 0

Sheet 市町村分担金内訳
A1: 【災害】廃棄物処理事業経費【市区町村分担金の合計】（令和4年度実績）
A2: 都道府県名 | B2: 地方公共団体コード | C2: 一部事務組合・広域連合名 | D2: 合計（構成市区町村1+～+構成市区町村30） | F2: 構成市区町村1 | J2: 構成市区町村2 | N2: 構成市区町村3 | R2: 構成市区町村4 | V2: 構成市区町村5 | Z2: 構成市区町村6 | AD2: 構成市区町村7 | AH2: 構成市区町村8 | AL2: 構成市区町村9 | AP2: 構成市区町村10 | AT2: 構成市区町村11 | AX2: 構成市区町村12 | BB2: 構成市区町村13 | BF2: 構成市区町村14 | BJ2: 構成市区町村15 | BN2: 構成市区町村16 | BR2: 構成市区町村17 | BV2: 構成市区町村18 | BZ2: 構成市区町村19 | CD2: 構成市区町村20 | CH2: 構成市区町村21 | CL2: 構成市区町村22 | CP2: 構成市区町村23 | CT2: 構成市区町村24 | CX2: 構成市区町村25 | DB2: 構成市区町村26 | DF2: 構成市区町村27 | DJ2: 構成市区町村28 | DN2: 構成市区町村29 | DR2: 構成市区町村30
D4: ごみ | E4: し尿 | F4: 市区町村 コード | G4: 市区町村名 | H4: ごみ | I4: し尿 | J4: 市区町村 コード | K4: 市区町村名 | L4: ごみ | M4: し尿 | N4: 市区町村 コード | O4: 市区町村名 | P4: ごみ | Q4: し尿 | R4: 市区町村 コード | S4: 市区町村名 | T4: ごみ | U4: し尿 | V4: 市区町村 コード | W4: 市区町村名 | X4: ごみ | Y4: し尿 | Z4: 市区町村 コード | AA4: 市区町村名 | AB4: ごみ | AC4: し尿 | AD4: 市区町村 コード | AE4: 市区町村名 | AF4: ごみ | AG4: し尿 | AH4: 市区町村 コード | AI4: 市区町村名 | AJ4: ごみ | AK4: し尿 | AL4: 市区町村 コード | AM4: 市区町村名 | AN4: ごみ | AO4: し尿 | AP4: 市区町村 コード | AQ4: 市区町村名 | AR4: ごみ | AS4: し尿 | AT4: 市区町村 コード | AU4: 市区町村名 | AV4: ごみ | AW4: し尿 | AX4: 市区町村 コード | AY4: 市区町村名 | AZ4: ごみ | BA4: し尿 | BB4: 市区町村 コード | BC4: 市区町村名 | BD4: ごみ | BE4: し尿 | BF4: 市区町村 コード | BG4: 市区町村名 | BH4: ごみ | BI4: し尿 | BJ4: 市区町村 コード | BK4: 市区町村名 | BL4: ごみ | BM4: し尿 | BN4: 市区町村 コード | BO4: 市区町村名 | BP4: ごみ | BQ4: し尿 | BR4: 市区町村 コード | BS4: 市区町村名 | BT4: ごみ | BU4: し尿 | BV4: 市区町村 コード | BW4: 市区町村名 | BX4: ごみ | BY4: し尿 | BZ4: 市区町村 コード | CA4: 市区町村名 | CB4: ごみ | CC4: し尿 | CD4: 市区町村 コード | CE4: 市区町村名 | CF4: ごみ | CG4: し尿 | CH4: 市区町村 コード | CI4: 市区町村名 | CJ4: ごみ | CK4: し尿 | CL4: 市区町村 コード | CM4: 市区町村名 | CN4: ごみ | CO4: し尿 | CP4: 市区町村 コード | CQ4: 市区町村名 | CR4: ごみ | CS4: し尿 | CT4: 市区町村 コード | CU4: 市区町村名 | CV4: ごみ | CW4: し尿 | CX4: 市区町村 コード | CY4: 市区町村名 | CZ4: ごみ | DA4: し尿 | DB4: 市区町村 コード | DC4: 市区町村名 | DD4: ごみ | DE4: し尿 | DF4: 市区町村 コード | DG4: 市区町村名 | DH4: ごみ | DI4: し尿 | DJ4: 市区町村 コード | DK4: 市区町村名 | DL4: ごみ | DM4: し尿 | DN4: 市区町村 コード | DO4: 市区町村名 | DP4: ごみ | DQ4: し尿 | DR4: 市区町村 コード | DS4: 市区町村名 | DT4: ごみ | DU4: し尿
D6: （千円） | E6: （千円） | H6: （千円） | I6: （千円） | L6: （千円） | M6: （千円） | P6: （千円） | Q6: （千円） | T6: （千円） | U6: （千円） | X6: （千円） | Y6: （千円） | AB6: （千円） | AC6: （千円） | AF6: （千円） | AG6: （千円） | AJ6: （千円） | AK6: （千円） | AN6: （千円） | AO6: （千円） | AR6: （千円） | AS6: （千円） | AV6: （千円） | AW6: （千円） | AZ6: （千円） | BA6: （千円） | BD6: （千円） | BE6: （千円） | BH6: （千円） | BI6: （千円） | BL6: （千円） | BM6: （千円） | BP6: （千円） | BQ6: （千円） | BT6: （千円） | BU6: （千円） | BX6: （千円） | BY6: （千円） | CB6: （千円） | CC6: （千円） | CF6: （千円） | CG6: （千円） | CJ6: （千円） | CK6: （千円） | CN6: （千円） | CO6: （千円） | CR6: （千円） | CS6: （千円） | CV6: （千円） | CW6: （千円） | CZ6: （千円） | DA6: （千円） | DD6: （千円） | DE6: （千円） | DH6: （千円） | DI6: （千円） | DL6: （千円） | DM6: （千円） | DP6: （千円） | DQ6: （千円） | DT6: （千円） | DU6: （千円）
A7: 熊本県 | B7: 43000 | C7: 合計 | D7: =SUM($D$8:$D$19) -> 0 | E7: =SUM($E$8:$E$19) -> 0 | F7: =COUNTIF($F$8:$F$19,"<>") - COUNTIF($F$8:$F$19,"< >") -> 0 | G7: =COUNTIF($G$8:$G$19,"<>") - COUNTIF($G$8:$G$19,"< >") -> 0 | H7: =SUM($H$8:$H$19) -> 0 | I7: =SUM($I$8:$I$19) -> 0 | J7: =COUNTIF($J$8:$J$19,"<>") - COUNTIF($J$8:$J$19,"< >") -> 0 | K7: =COUNTIF($K$8:$K$19,"<>") - COUNTIF($K$8:$K$19,"< >") -> 0 | L7: =SUM($L$8:$L$19) -> 0 | M7: =SUM($M$8:$M$19) -> 0 | N7: =COUNTIF($N$8:$N$19,"<>") - COUNTIF($N$8:$N$19,"< >") -> 0 | O7: =COUNTIF($O$8:$O$19,"<>") - COUNTIF($O$8:$O$19,"< >") -> 0 | P7: =SUM($P$8:$P$19) -> 0 | Q7: =SUM($Q$8:$Q$19) -> 0 | R7: =COUNTIF($R$8:$R$19,"<>") - COUNTIF($R$8:$R$19,"< >") -> 0 | S7: =COUNTIF($S$8:$S$19,"<>") - COUNTIF($S$8:$S$19,"< >") -> 0 | T7: =SUM($T$8:$T$19) -> 0 | U7: =SUM($U$8:$U$19) -> 0 | V7: =COUNTIF($V$8:$V$19,"<>") - COUNTIF($V$8:$V$19,"< >") -> 0 | W7: =COUNTIF($W$8:$W$19,"<>") - COUNTIF($W$8:$W$19,"< >") -> 0 | X7: =SUM($X$8:$X$19) -> 0 | Y7: =SUM($Y$8:$Y$19) -> 0 | Z7: =COUNTIF($Z$8:$Z$19,"<>") - COUNTIF($Z$8:$Z$19,"< >") -> 0 | AA7: =COUNTIF($AA$8:$AA$19,"<>") - COUNTIF($AA$8:$AA$19,"< >") -> 0 | AB7: =SUM($AB$8:$AB$19) -> 0 | AC7: =SUM($AC$8:$AC$19) -> 0 | AD7: =COUNTIF($AD$8:$AD$19,"<>") - COUNTIF($AD$8:$AD$19,"< >") -> 0 | AE7: =COUNTIF($AE$8:$AE$19,"<>") - COUNTIF($AE$8:$AE$19,"< >") -> 0 | AF7: =SUM($AF$8:$AF$19) -> 0 | AG7: =SUM($AG$8:$AG$19) -> 0 | AH7: =COUNTIF($AH$8:$AH$19,"<>") - COUNTIF($AH$8:$AH$19,"< >") -> 0 | AI7: =COUNTIF($AI$8:$AI$19,"<>") - COUNTIF($AI$8:$AI$19,"< >") -> 0 | AJ7: =SUM($AJ$8:$AJ$19) -> 0 | AK7: =SUM($AK$8:$AK$19) -> 0 | AL7: =COUNTIF($AL$8:$AL$19,"<>") - COUNTIF($AL$8:$AL$19,"< >") -> 0 | AM7: =COUNTIF($AM$8:$AM$19,"<>") - COUNTIF($AM$8:$AM$19,"< >") -> 0 | AN7: =SUM($AN$8:$AN$19) -> 0 | AO7: =SUM($AO$8:$AO$19) -> 0 | AP7: =COUNTIF($AP$8:$AP$19,"<>") - COUNTIF($AP$8:$AP$19,"< >") -> 0 | AQ7: =COUNTIF($AQ$8:$AQ$19,"<>") - COUNTIF($AQ$8:$AQ$19,"< >") -> 0 | AR7: =SUM($AR$8:$AR$19) -> 0 | AS7: =SUM($AS$8:$AS$19) -> 0 | AT7: =COUNTIF($AT$8:$AT$19,"<>") - COUNTIF($AT$8:$AT$19,"< >") -> 0 | AU7: =COUNTIF($AU$8:$AU$19,"<>") - COUNTIF($AU$8:$AU$19,"< >") -> 0 | AV7: =SUM($AV$8:$AV$19) -> 0 | AW7: =SUM($AW$8:$AW$19) -> 0 | AX7: =COUNTIF($AX$8:$AX$19,"<>") - COUNTIF($AX$8:$AX$19,"< >") -> 0 | AY7: =COUNTIF($AY$8:$AY$19,"<>") - COUNTIF($AY$8:$AY$19,"< >") -> 0 | AZ7: =SUM($AZ$8:$AZ$19) -> 0 | BA7: =SUM($BA$8:$BA$19) -> 0 | BB7: =COUNTIF($BB$8:$BB$19,"<>") - COUNTIF($BB$8:$BB$19,"< >") -> 0 | BC7: =COUNTIF($BC$8:$BC$19,"<>") - COUNTIF($BC$8:$BC$19,"< >") -> 0 | BD7: =SUM($BD$8:$BD$19) -> 0 | BE7: =SUM($BE$8:$BE$19) -> 0 | BF7: =COUNTIF($BF$8:$BF$19,"<>") - COUNTIF($BF$8:$BF$19,"< >") -> 0 | BG7: =COUNTIF($BG$8:$BG$19,"<>") - COUNTIF($BG$8:$BG$19,"< >") -> 0 | BH7: =SUM($BH$8:$BH$19) -> 0 | BI7: =SUM($BI$8:$BI$19) -> 0 | BJ7: =COUNTIF($BJ$8:$BJ$19,"<>") - COUNTIF($BJ$8:$BJ$19,"< >") -> 0 | BK7: =COUNTIF($BK$8:$BK$19,"<>") - COUNTIF($BK$8:$BK$19,"< >") -> 0 | BL7: =SUM($BL$8:$BL$19) -> 0 | BM7: =SUM($BM$8:$BM$19) -> 0 | BN7: =COUNTIF($BN$8:$BN$19,"<>") - COUNTIF($BN$8:$BN$19,"< >") -> 0 | BO7: =COUNTIF($BO$8:$BO$19,"<>") - COUNTIF($BO$8:$BO$19,"< >") -> 0 | BP7: =SUM($BP$8:$BP$19) -> 0 | BQ7: =SUM($BQ$8:$BQ$19) -> 0 | BR7: =COUNTIF($BR$8:$BR$19,"<>") - COUNTIF($BR$8:$BR$19,"< >") -> 0 | BS7: =COUNTIF($BS$8:$BS$19,"<>") - COUNTIF($BS$8:$BS$19,"< >") -> 0 | BT7: =SUM($BT$8:$BT$19) -> 0 | BU7: =SUM($BU$8:$BU$19) -> 0 | BV7: =COUNTIF($BV$8:$BV$19,"<>") - COUNTIF($BV$8:$BV$19,"< >") -> 0 | BW7: =COUNTIF($BW$8:$BW$19,"<>") - COUNTIF($BW$8:$BW$19,"< >") -> 0 | BX7: =SUM($BX$8:$BX$19) -> 0 | BY7: =SUM($BY$8:$BY$19) -> 0 | BZ7: =COUNTIF($BZ$8:$BZ$19,"<>") - COUNTIF($BZ$8:$BZ$19,"< >") -> 0 | CA7: =COUNTIF($CA$8:$CA$19,"<>") - COUNTIF($CA$8:$CA$19,"< >") -> 0 | CB7: =SUM($CB$8:$CB$19) -> 0 | CC7: =SUM($CC$8:$CC$19) -> 0 | CD7: =COUNTIF($CD$8:$CD$19,"<>") - COUNTIF($CD$8:$CD$19,"< >") -> 0 | CE7: =COUNTIF($CE$8:$CE$19,"<>") - COUNTIF($CE$8:$CE$19,"< >") -> 0 | CF7: =SUM($CF$8:$CF$19) -> 0 | CG7: =SUM($CG$8:$CG$19) -> 0 | CH7: =COUNTIF($CH$8:$CH$19,"<>") - COUNTIF($CH$8:$CH$19,"< >") -> 0 | CI7: =COUNTIF($CI$8:$CI$19,"<>") - COUNTIF($CI$8:$CI$19,"< >") -> 0 | CJ7: =SUM($CJ$8:$CJ$19) -> 0 | CK7: =SUM($CK$8:$CK$19) -> 0 | CL7: =COUNTIF($CL$8:$CL$19,"<>") - COUNTIF($CL$8:$CL$19,"< >") -> 0 | CM7: =COUNTIF($CM$8:$CM$19,"<>") - COUNTIF($CM$8:$CM$19,"< >") -> 0 | CN7: =SUM($CN$8:$CN$19) -> 0 | CO7: =SUM($CO$8:$CO$19) -> 0 | CP7: =COUNTIF($CP$8:$CP$19,"<>") - COUNTIF($CP$8:$CP$19,"< >") -> 0 | CQ7: =COUNTIF($CQ$8:$CQ$19,"<>") - COUNTIF($CQ$8:$CQ$19,"< >") -> 0 | CR7: =SUM($CR$8:$CR$19) -> 0 | CS7: =SUM($CS$8:$CS$19) -> 0 | CT7: =COUNTIF($CT$8:$CT$19,"<>") - COUNTIF($CT$8:$CT$19,"< >") -> 0 | CU7: =COUNTIF($CU$8:$CU$19,"<>") - COUNTIF($CU$8:$CU$19,"< >") -> 0 | CV7: =SUM($CV$8:$CV$19) -> 0 | CW7: =SUM($CW$8:$CW$19) -> 0 | CX7: =COUNTIF($CX$8:$CX$19,"<>") - COUNTIF($CX$8:$CX$19,"< >") -> 0 | CY7: =COUNTIF($CY$8:$CY$19,"<>") - COUNTIF($CY$8:$CY$19,"< >") -> 0 | CZ7: =SUM($CZ$8:$CZ$19) -> 0 | DA7: =SUM($DA$8:$DA$19) -> 0 | DB7: =COUNTIF($DB$8:$DB$19,"<>") - COUNTIF($DB$8:$DB$19,"< >") -> 0 | DC7: =COUNTIF($DC$8:$DC$19,"<>") - COUNTIF($DC$8:$DC$19,"< >") -> 0 | DD7: =SUM($DD$8:$DD$19) -> 0 | DE7: =SUM($DE$8:$DE$19) -> 0 | DF7: =COUNTIF($DF$8:$DF$19,"<>") - COUNTIF($DF$8:$DF$19,"< >") -> 0 | DG7: =COUNTIF($DG$8:$DG$19,"<>") - COUNTIF($DG$8:$DG$19,"< >") -> 0 | DH7: =SUM($DH$8:$DH$19) -> 0 | DI7: =SUM($DI$8:$DI$19) -> 0 | DJ7: =COUNTIF($DJ$8:$DJ$19,"<>") - COUNTIF($DJ$8:$DJ$19,"< >") -> 0 | DK7: =COUNTIF($DK$8:$DK$19,"<>") - COUNTIF($DK$8:$DK$19,"< >") -> 0 | DL7: =SUM($DL$8:$DL$19) -> 0 | DM7: =SUM($DM$8:$DM$19) -> 0 | DN7: =COUNTIF($DN$8:$DN$19,"<>") - COUNTIF($DN$8:$DN$19,"< >") -> 0 | DO7: =COUNTIF($DO$8:$DO$19,"<>") - COUNTIF($DO$8:$DO$19,"< >") -> 0 | DP7: =SUM($DP$8:$DP$19) -> 0 | DQ7: =SUM($DQ$8:$DQ$19) -> 0 | DR7: =COUNTIF($DR$8:$DR$19,"<>") - COUNTIF($DR$8:$DR$19,"< >") -> 0 | DS7: =COUNTIF($DS$8:$DS$19,"<>") - COUNTIF($DS$8:$DS$19,"< >") -> 0 | DT7: =SUM($DT$8:$DT$19) -> 0 | DU7: =SUM($DU$8:$DU$19) -> 0
A8: 熊本県 | B8: 43854 | C8: 菊池環境保全組合 | D8: =SUM(H8,L8,P8,T8,X8,AB8,AF8,AJ8,AN8,AR8,AV8,AZ8,BD8,BH8,BL8,BP8,BT8,BX8,CB8,CF8,CJ8,CN8,CR8,CV8,CZ8,DD8,DH8,DL8,DP8,DT8) -> 0 | E8: =SUM(I8,M8,Q8,U8,Y8,AC8,AG8,AK8,AO8,AS8,AW8,BA8,BE8,BI8,BM8,BQ8,BU8,BY8,CC8,CG8,CK8,CO8,CS8,CW8,DA8,DE8,DI8,DM8,DQ8,DU8) -> 0 | H8: 0 | I8: 0 | L8: 0 | M8: 0 | P8: 0 | Q8: 0 | T8: 0 | U8: 0 | X8: 0 | Y8: 0 | AB8: 0 | AC8: 0 | AF8: 0 | AG8: 0 | AJ8: 0 | AK8: 0 | AN8: 0 | AO8: 0 | AR8: 0 | AS8: 0 | AV8: 0 | AW8: 0 | AZ8: 0 | BA8: 0 | BD8: 0 | BE8: 0 | BH8: 0 | BI8: 0 | BL8: 0 | BM8: 0 | BP8: 0 | BQ8: 0 | BT8: 0 | BU8: 0 | BX8: 0 | BY8: 0 | CB8: 0 | CC8: 0 | CF8: 0 | CG8: 0 | CJ8: 0 | CK8: 0 | CN8: 0 | CO8: 0 | CR8: 0 | CS8: 0 | CV8: 0 | CW8: 0 | CZ8: 0 | DA8: 0 | DD8: 0 | DE8: 0 | DH8: 0 | DI8: 0 | DL8: 0 | DM8: 0 | DP8: 0 | DQ8: 0 | DT8: 0 | DU8: 0
A9: 熊本県 | B9: 43857 | C9: 御船地区衛生施設組合 | D9: =SUM(H9,L9,P9,T9,X9,AB9,AF9,AJ9,AN9,AR9,AV9,AZ9,BD9,BH9,BL9,BP9,BT9,BX9,CB9,CF9,CJ9,CN9,CR9,CV9,CZ9,DD9,DH9,DL9,DP9,DT9) -> 0 | E9: =SUM(I9,M9,Q9,U9,Y9,AC9,AG9,AK9,AO9,AS9,AW9,BA9,BE9,BI9,BM9,BQ9,BU9,BY9,CC9,CG9,CK9,CO9,CS9,CW9,DA9,DE9,DI9,DM9,DQ9,DU9) -> 0 | H9: 0 | I9: 0 | L9: 0 | M9: 0 | P9: 0 | Q9: 0 | T9: 0 | U9: 0 | X9: 0 | Y9: 0 | AB9: 0 | AC9: 0 | AF9: 0 | AG9: 0 | AJ9: 0 | AK9: 0 | AN9: 0 | AO9: 0 | AR9: 0 | AS9: 0 | AV9: 0 | AW9: 0 | AZ9: 0 | BA9: 0 | BD9: 0 | BE9: 0 | BH9: 0 | BI9: 0 | BL9: 0 | BM9: 0 | BP9: 0 | BQ9: 0 | BT9: 0 | BU9: 0 | BX9: 0 | BY9: 0 | CB9: 0 | CC9: 0 | CF9: 0 | CG9: 0 | CJ9: 0 | CK9: 0 | CN9: 0 | CO9: 0 | CR9: 0 | CS9: 0 | CV9: 0 | CW9: 0 | CZ9: 0 | DA9: 0 | DD9: 0 | DE9: 0 | DH9: 0 | DI9: 0 | DL9: 0 | DM9: 0 | DP9: 0 | DQ9: 0 | DT9: 0 | DU9: 0
A10: 熊本県 | B10: 43935 | C10: 上天草衛生施設組合 | D10: =SUM(H10,L10,P10,T10,X10,AB10,AF10,AJ10,AN10,AR10,AV10,AZ10,BD10,BH10,BL10,BP10,BT10,BX10,CB10,CF10,CJ10,CN10,CR10,CV10,CZ10,DD10,DH10,DL10,DP10,DT10) -> 0 | E10: =SUM(I10,M10,Q10,U10,Y10,AC10,AG10,AK10,AO10,AS10,AW10,BA10,BE10,BI10,BM10,BQ10,BU10,BY10,CC10,CG10,CK10,CO10,CS10,CW10,DA10,DE10,DI10,DM10,DQ10,DU10) -> 0 | H10: 0 | I10: 0 | L10: 0 | M10: 0 | P10: 0 | Q10: 0 | T10: 0 | U10: 0 | X10: 0 | Y10: 0 | AB10: 0 | AC10: 0 | AF10: 0 | AG10: 0 | AJ10: 0 | AK10: 0 | AN10: 0 | AO10: 0 | AR10: 0 | AS10: 0 | AV10: 0 | AW10: 0 | AZ10: 0 | BA10: 0 | BD10: 0 | BE10: 0 | BH10: 0 | BI10: 0 | BL10: 0 | BM10: 0 | BP10: 0 | BQ10: 0 | BT10: 0 | BU10: 0 | BX10: 0 | BY10: 0 | CB10: 0 | CC10: 0 | CF10: 0 | CG10: 0 | CJ10: 0 | CK10: 0 | CN10: 0 | CO10: 0 | CR10: 0 | CS10: 0 | CV10: 0 | CW10: 0 | CZ10: 0 | DA10: 0 | DD10: 0 | DE10: 0 | DH10: 0 | DI10: 0 | DL10: 0 | DM10: 0 | DP10: 0 | DQ10: 0 | DT10: 0 | DU10: 0
A11: 熊本県 | B11: 43949 | C11: 益城、嘉島、西原環境衛生施設組合 | D11: =SUM(H11,L11,P11,T11,X11,AB11,AF11,AJ11,AN11,AR11,AV11,AZ11,BD11,BH11,BL11,BP11,BT11,BX11,CB11,CF11,CJ11,CN11,CR11,CV11,CZ11,DD11,DH11,DL11,DP11,DT11) -> 0 | E11: =SUM(I11,M11,Q11,U11,Y11,AC11,AG11,AK11,AO11,AS11,AW11,BA11,BE11,BI11,BM11,BQ11,BU11,BY11,CC11,CG11,CK11,CO11,CS11,CW11,DA11,DE11,DI11,DM11,DQ11,DU11) -> 0 | H11: 0 | I11: 0 | L11: 0 | M11: 0 | P11: 0 | Q11: 0 | T11: 0 | U11: 0 | X11: 0 | Y11: 0 | AB11: 0 | AC11: 0 | AF11: 0 | AG11: 0 | AJ11: 0 | AK11: 0 | AN11: 0 | AO11: 0 | AR11: 0 | AS11: 0 | AV11: 0 | AW11: 0 | AZ11: 0 | BA11: 0 | BD11: 0 | BE11: 0 | BH11: 0 | BI11: 0 | BL11: 0 | BM11: 0 | BP11: 0 | BQ11: 0 | BT11: 0 | BU11: 0 | BX11: 0 | BY11: 0 | CB11: 0 | CC11: 0 | CF11: 0 | CG11: 0 | CJ11: 0 | CK11: 0 | CN11: 0 | CO11: 0 | CR11: 0 | CS11: 0 | CV11: 0 | CW11: 0 | CZ11: 0 | DA11: 0 | DD11: 0 | DE11: 0 | DH11: 0 | DI11: 0 | DL11: 0 | DM11: 0 | DP11: 0 | DQ11: 0 | DT11: 0 | DU11: 0
A12: 熊本県 | B12: 43954 | C12: 山鹿植木広域行政事務組合 | D12: =SUM(H12,L12,P12,T12,X12,AB12,AF12,AJ12,AN12,AR12,AV12,AZ12,BD12,BH12,BL12,BP12,BT12,BX12,CB12,CF12,CJ12,CN12,CR12,CV12,CZ12,DD12,DH12,DL12,DP12,DT12) -> 0 | E12: =SUM(I12,M12,Q12,U12,Y12,AC12,AG12,AK12,AO12,AS12,AW12,BA12,BE12,BI12,BM12,BQ12,BU12,BY12,CC12,CG12,CK12,CO12,CS12,CW12,DA12,DE12,DI12,DM12,DQ12,DU12) -> 0 | H12: 0 | I12: 0 | L12: 0 | M12: 0 | P12: 0 | Q12: 0 | T12: 0 | U12: 0 | X12: 0 | Y12: 0 | AB12: 0 | AC12: 0 | AF12: 0 | AG12: 0 | AJ12: 0 | AK12: 0 | AN12: 0 | AO12: 0 | AR12: 0 | AS12: 0 | AV12: 0 | AW12: 0 | AZ12: 0 | BA12: 0 | BD12: 0 | BE12: 0 | BH12: 0 | BI12: 0 | BL12: 0 | BM12: 0 | BP12: 0 | BQ12: 0 | BT12: 0 | BU12: 0 | BX12: 0 | BY12: 0 | CB12: 0 | CC12: 0 | CF12: 0 | CG12: 0 | CJ12: 0 | CK12: 0 | CN12: 0 | CO12: 0 | CR12: 0 | CS12: 0 | CV12: 0 | CW12: 0 | CZ12: 0 | DA12: 0 | DD12: 0 | DE12: 0 | DH12: 0 | DI12: 0 | DL12: 0 | DM12: 0 | DP12: 0 | DQ12: 0 | DT12: 0 | DU12: 0
A13: 熊本県 | B13: 43974 | C13: 八代生活環境事務組合 | D13: =SUM(H13,L13,P13,T13,X13,AB13,AF13,AJ13,AN13,AR13,AV13,AZ13,BD13,BH13,BL13,BP13,BT13,BX13,CB13,CF13,CJ13,CN13,CR13,CV13,CZ13,DD13,DH13,DL13,DP13,DT13) -> 0 | E13: =SUM(I13,M13,Q13,U13,Y13,AC13,AG13,AK13,AO13,AS13,AW13,BA13,BE13,BI13,BM13,BQ13,BU13,BY13,CC13,CG13,CK13,CO13,CS13,CW13,DA13,DE13,DI13,DM13,DQ13,DU13) -> 0 | H13: 0 | I13: 0 | L13: 0 | M13: 0 | P13: 0 | Q13: 0 | T13: 0 | U13: 0 | X13: 0 | Y13: 0 | AB13: 0 | AC13: 0 | AF13: 0 | AG13: 0 | AJ13: 0 | AK13: 0 | AN13: 0 | AO13: 0 | AR13: 0 | AS13: 0 | AV13: 0 | AW13: 0 | AZ13: 0 | BA13: 0 | BD13: 0 | BE13: 0 | BH13: 0 | BI13: 0 | BL13: 0 | BM13: 0 | BP13: 0 | BQ13: 0 | BT13: 0 | BU13: 0 | BX13: 0 | BY13: 0 | CB13: 0 | CC13: 0 | CF13: 0 | CG13: 0 | CJ13: 0 | CK13: 0 | CN13: 0 | CO13: 0 | CR13: 0 | CS13: 0 | CV13: 0 | CW13: 0 | CZ13: 0 | DA13: 0 | DD13: 0 | DE13: 0 | DH13: 0 | DI13: 0 | DL13: 0 | DM13: 0 | DP13: 0 | DQ13: 0 | DT13: 0 | DU13: 0
A14: 熊本県 | B14: 43985 | C14: 阿蘇広域行政事務組合 | D14: =SUM(H14,L14,P14,T14,X14,AB14,AF14,AJ14,AN14,AR14,AV14,AZ14,BD14,BH14,BL14,BP14,BT14,BX14,CB14,CF14,CJ14,CN14,CR14,CV14,CZ14,DD14,DH14,DL14,DP14,DT14) -> 0 | E14: =SUM(I14,M14,Q14,U14,Y14,AC14,AG14,AK14,AO14,AS14,AW14,BA14,BE14,BI14,BM14,BQ14,BU14,BY14,CC14,CG14,CK14,CO14,CS14,CW14,DA14,DE14,DI14,DM14,DQ14,DU14) -> 0 | H14: 0 | I14: 0 | L14: 0 | M14: 0 | P14: 0 | Q14: 0 | T14: 0 | U14: 0 | X14: 0 | Y14: 0 | AB14: 0 | AC14: 0 | AF14: 0 | AG14: 0 | AJ14: 0 | AK14: 0 | AN14: 0 | AO14: 0 | AR14: 0 | AS14: 0 | AV14: 0 | AW14: 0 | AZ14: 0 | BA14: 0 | BD14: 0 | BE14: 0 | BH14: 0 | BI14: 0 | BL14: 0 | BM14: 0 | BP14: 0 | BQ14: 0 | BT14: 0 | BU14: 0 | BX14: 0 | BY14: 0 | CB14: 0 | CC14: 0 | CF14: 0 | CG14: 0 | CJ14: 0 | CK14: 0 | CN14: 0 | CO14: 0 | CR14: 0 | CS14: 0 | CV14: 0 | CW14: 0 | CZ14: 0 | DA14: 0 | DD14: 0 | DE14: 0 | DH14: 0 | DI14: 0 | DL14: 0 | DM14: 0 | DP14: 0 | DQ14: 0 | DT14: 0 | DU14: 0
A15: 熊本県 | B15: 43986 | C15: 人吉球磨広域行政組合 | D15: =SUM(H15,L15,P15,T15,X15,AB15,AF15,AJ15,AN15,AR15,AV15,AZ15,BD15,BH15,BL15,BP15,BT15,BX15,CB15,CF15,CJ15,CN15,CR15,CV15,CZ15,DD15,DH15,DL15,DP15,DT15) -> 0 | E15: =SUM(I15,M15,Q15,U15,Y15,AC15,AG15,AK15,AO15,AS15,AW15,BA15,BE15,BI15,BM15,BQ15,BU15,BY15,CC15,CG15,CK15,CO15,CS15,CW15,DA15,DE15,DI15,DM15,DQ15,DU15) -> 0 | H15: 0 | I15: 0 | L15: 0 | M15: 0 | P15: 0 | Q15: 0 | T15: 0 | U15: 0 | X15: 0 | Y15: 0 | AB15: 0 | AC15: 0 | AF15: 0 | AG15: 0 | AJ15: 0 | AK15: 0 | AN15: 0 | AO15: 0 | AR15: 0 | AS15: 0 | AV15: 0 | AW15: 0 | AZ15: 0 | BA15: 0 | BD15: 0 | BE15: 0 | BH15: 0 | BI15: 0 | BL15: 0 | BM15: 0 | BP15: 0 | BQ15: 0 | BT15: 0 | BU15: 0 | BX15: 0 | BY15: 0 | CB15: 0 | CC15: 0 | CF15: 0 | CG15: 0 | CJ15: 0 | CK15: 0 | CN15: 0 | CO15: 0 | CR15: 0 | CS15: 0 | CV15: 0 | CW15: 0 | CZ15: 0 | DA15: 0 | DD15: 0 | DE15: 0 | DH15: 0 | DI15: 0 | DL15: 0 | DM15: 0 | DP15: 0 | DQ15: 0 | DT15: 0 | DU15: 0
A16: 熊本県 | B16: 43991 | C16: 有明広域行政事務組合 | D16: =SUM(H16,L16,P16,T16,X16,AB16,AF16,AJ16,AN16,AR16,AV16,AZ16,BD16,BH16,BL16,BP16,BT16,BX16,CB16,CF16,CJ16,CN16,CR16,CV16,CZ16,DD16,DH16,DL16,DP16,DT16) -> 0 | E16: =SUM(I16,M16,Q16,U16,Y16,AC16,AG16,AK16,AO16,AS16,AW16,BA16,BE16,BI16,BM16,BQ16,BU16,BY16,CC16,CG16,CK16,CO16,CS16,CW16,DA16,DE16,DI16,DM16,DQ16,DU16) -> 0 | H16: 0 | I16: 0 | L16: 0 | M16: 0 | P16: 0 | Q16: 0 | T16: 0 | U16: 0 | X16: 0 | Y16: 0 | AB16: 0 | AC16: 0 | AF16: 0 | AG16: 0 | AJ16: 0 | AK16: 0 | AN16: 0 | AO16: 0 | AR16: 0 | AS16: 0 | AV16: 0 | AW16: 0 | AZ16: 0 | BA16: 0 | BD16: 0 | BE16: 0 | BH16: 0 | BI16: 0 | BL16: 0 | BM16: 0 | BP16: 0 | BQ16: 0 | BT16: 0 | BU16: 0 | BX16: 0 | BY16: 0 | CB16: 0 | CC16: 0 | CF16: 0 | CG16: 0 | CJ16: 0 | CK16: 0 | CN16: 0 | CO16: 0 | CR16: 0 | CS16: 0 | CV16: 0 | CW16: 0 | CZ16: 0 | DA16: 0 | DD16: 0 | DE16: 0 | DH16: 0 | DI16: 0 | DL16: 0 | DM16: 0 | DP16: 0 | DQ16: 0 | DT16: 0 | DU16: 0
A17: 熊本県 | B17: 43993 | C17: 水俣芦北広域行政事務組合 | D17: =SUM(H17,L17,P17,T17,X17,AB17,AF17,AJ17,AN17,AR17,AV17,AZ17,BD17,BH17,BL17,BP17,BT17,BX17,CB17,CF17,CJ17,CN17,CR17,CV17,CZ17,DD17,DH17,DL17,DP17,DT17) -> 0 | E17: =SUM(I17,M17,Q17,U17,Y17,AC17,AG17,AK17,AO17,AS17,AW17,BA17,BE17,BI17,BM17,BQ17,BU17,BY17,CC17,CG17,CK17,CO17,CS17,CW17,DA17,DE17,DI17,DM17,DQ17,DU17) -> 0 | H17: 0 | I17: 0 | L17: 0 | M17: 0 | P17: 0 | Q17: 0 | T17: 0 | U17: 0 | X17: 0 | Y17: 0 | AB17: 0 | AC17: 0 | AF17: 0 | AG17: 0 | AJ17: 0 | AK17: 0 | AN17: 0 | AO17: 0 | AR17: 0 | AS17: 0 | AV17: 0 | AW17: 0 | AZ17: 0 | BA17: 0 | BD17: 0 | BE17: 0 | BH17: 0 | BI17: 0 | BL17: 0 | BM17: 0 | BP17: 0 | BQ17: 0 | BT17: 0 | BU17: 0 | BX17: 0 | BY17: 0 | CB17: 0 | CC17: 0 | CF17: 0 | CG17: 0 | CJ17: 0 | CK17: 0 | CN17: 0 | CO17: 0 | CR17: 0 | CS17: 0 | CV17: 0 | CW17: 0 | CZ17: 0 | DA17: 0 | DD17: 0 | DE17: 0 | DH17: 0 | DI17: 0 | DL17: 0 | DM17: 0 | DP17: 0 | DQ17: 0 | DT17: 0 | DU17: 0
A18: 熊本県 | B18: 43995 | C18: 宇城広域連合 | D18: =SUM(H18,L18,P18,T18,X18,AB18,AF18,AJ18,AN18,AR18,AV18,AZ18,BD18,BH18,BL18,BP18,BT18,BX18,CB18,CF18,CJ18,CN18,CR18,CV18,CZ18,DD18,DH18,DL18,DP18,DT18) -> 0 | E18: =SUM(I18,M18,Q18,U18,Y18,AC18,AG18,AK18,AO18,AS18,AW18,BA18,BE18,BI18,BM18,BQ18,BU18,BY18,CC18,CG18,CK18,CO18,CS18,CW18,DA18,DE18,DI18,DM18,DQ18,DU18) -> 0 | H18: 0 | I18: 0 | L18: 0 | M18: 0 | P18: 0 | Q18: 0 | T18: 0 | U18: 0 | X18: 0 | Y18: 0 | AB18: 0 | AC18: 0 | AF18: 0 | AG18: 0 | AJ18: 0 | AK18: 0 | AN18: 0 | AO18: 0 | AR18: 0 | AS18: 0 | AV18: 0 | AW18: 0 | AZ18: 0 | BA18: 0 | BD18: 0 | BE18: 0 | BH18: 0 | BI18: 0 | BL18: 0 | BM18: 0 | BP18: 0 | BQ18: 0 | BT18: 0 | BU18: 0 | BX18: 0 | BY18: 0 | CB18: 0 | CC18: 0 | CF18: 0 | CG18: 0 | CJ18: 0 | CK18: 0 | CN18: 0 | CO18: 0 | CR18: 0 | CS18: 0 | CV18: 0 | CW18: 0 | CZ18: 0 | DA18: 0 | DD18: 0 | DE18: 0 | DH18: 0 | DI18: 0 | DL18: 0 | DM18: 0 | DP18: 0 | DQ18: 0 | DT18: 0 | DU18: 0
A19: 熊本県 | B19: 43996 | C19: 菊池広域連合 | D19: =SUM(H19,L19,P19,T19,X19,AB19,AF19,AJ19,AN19,AR19,AV19,AZ19,BD19,BH19,BL19,BP19,BT19,BX19,CB19,CF19,CJ19,CN19,CR19,CV19,CZ19,DD19,DH19,DL19,DP19,DT19) -> 0 | E19: =SUM(I19,M19,Q19,U19,Y19,AC19,AG19,AK19,AO19,AS19,AW19,BA19,BE19,BI19,BM19,BQ19,BU19,BY19,CC19,CG19,CK19,CO19,CS19,CW19,DA19,DE19,DI19,DM19,DQ19,DU19) -> 0 | H19: 0 | I19: 0 | L19: 0 | M19: 0 | P19: 0 | Q19: 0 | T19: 0 | U19: 0 | X19: 0 | Y19: 0 | AB19: 0 | AC19: 0 | AF19: 0 | AG19: 0 | AJ19: 0 | AK19: 0 | AN19: 0 | AO19: 0 | AR19: 0 | AS19: 0 | AV19: 0 | AW19: 0 | AZ19: 0 | BA19: 0 | BD19: 0 | BE19: 0 | BH19: 0 | BI19: 0 | BL19: 0 | BM19: 0 | BP19: 0 | BQ19: 0 | BT19: 0 | BU19: 0 | BX19: 0 | BY19: 0 | CB19: 0 | CC19: 0 | CF19: 0 | CG19: 0 | CJ19: 0 | CK19: 0 | CN19: 0 | CO19: 0 | CR19: 0 | CS19: 0 | CV19: 0 | CW19: 0 | CZ19: 0 | DA19: 0 | DD19: 0 | DE19: 0 | DH19: 0 | DI19: 0 | DL19: 0 | DM19: 0 | DP19: 0 | DQ19: 0 | DT19: 0 | DU19: 0
